{"text_format":"1","workbook":"xlsx","n_sheets":15,"sheets":["Introduction","Default Values","Mac and Windows","Help","Disclaimer template","Log","Input Colours","Test Colours","Other Inputs","Col Letter","Find Sheet Name","Shift Cntl S","Shortcuts List","CNTL Shortcuts","Shortcut Table"],"not_rendered":{"charts":0,"images":18,"macros":1,"external_links":0,"defined_names":130,"comments":0,"pivot_tables":0},"unopened":[],"bounds":{"document_bytes":16777216,"sheet_cells":100000,"rows_first":2000,"rows_last":500,"rows_between":2000,"halvings":0,"cell_chars":16384,"cell_head_chars":4096},"cells_cut":0,"cells_raw":0,"read":"whole","date_system":"1900"}

{"sheet":"Introduction","index":0,"n_rows":38,"n_cols":15,"rows_kept":38,"cut":false,"hidden":false,"merged":[]}
[]
[]
[]
[]
[]
[]
[]
[]
[]
[]
[]
[]
[]
[]
[]
[]
[]
[]
[]
[]
[]
[]
[]
[]
[]
[]
[]
[]
[]
[]
[]
[]
[]
[]
[]
[null,null,null,null,null,null,null,null,null,null,null,null,"x_delete_rows"]
[]
[null,null,null,null,null,null,null,null,null,null,null,null,"CNTL,ALT,U",null,"Find source"]

{"sheet":"Default Values","index":1,"n_rows":115,"n_cols":57,"rows_kept":115,"cut":false,"hidden":false,"merged":[[2,13,2,14],[2,4,2,6]]}
["          ","Instructions  at www.edbodmer.com",null,null,null,null,null,null,"Questions: e-mail edwardbodmer@gmail.com",null,null,null," Last Save By",{"$f":"lastsaveby1()","v":"Edward Bodmer"},null," Last Save Date ",null,{"$f":"lastsaved1()","v":"7/14/2026 10:23:03 AM"},null,null,null,null,null,null,null,null,null," File Name: ",null,{"$f":"File_name()","v":"https://d.docs.live.net/f82d64a42721f930/Documents/Generic-Macros.xlsm"}]
[]
[null,null,null,null,"Options for Colour of Inputs",null,null,null,null,"Column Title Option",null,"Sum Colour Option",null,"Options for Colour of TRUE and FALSE",null,null,"Options for Links FROM Sheets",null,"Top Row Dashboard",null,"Contents Menu Options",null,"Options for Links TO Sheets",null,null,null,null,null,"General Parameters",null,null,null,null,null,"Fix Shift,Cntl R options",null,null,null,null,"           Selected Macro List",null,null,null,null,null,null,null,null,"Short Cuts",null,null,null,null,null,null,null,"           Functions"]
[]
[null,null,null,"","Colour Input 1",1,null,null,null,"Title Code 1",null,null,null,null,null,null,null,null,null,null,null,null,null,null,null,null,null,null,null,null,null,null,null,null,null,null,null,null,null,null,null,null,null,null,null,null,null,null,null,null,null,null,null,null,null,null,"Note that you must copy and paste the functions"]
[null,null,null,null,"Colour Input 2",2,null,null,null,"Title Code 2",null,"Sum Code 1",null,"True Code 1","False Code 1",null,"Take from Sheet",null,"Top Colour 1",null,"Row Colour 1",null,null,null,null,null,null,null,"Max Rows to Scan",null,500,null,null,"Max rows to look up ",null,100,null,null,null,"Sub x_replace_sheet_name()",null,"Takes away current name of sheet in formulas",null,null,null,null,null,null,"Alt s ",null,"Fill Series - Row"]
[null,null,null,null,"Colour Input 3",3,null,null,null,"Title Code 3",null,"Sum Code 2",null,"True Code 2","False Code 2",null,"Fixed Colour 1",null,"Top Colour 2",null,"Row Colour 2",null,null,null,null,null,null,null,"Cols to Scan in Finding Row",null,200,null,null,"shortest column for test",null,5,null,null,null,"Sub x_Delete_cols()",null,"Deletes columns that are blank",null,null,null,null,null,null,"Alt g ",null,"Fill Series - Row",null,null,null,null,null,"Function sheet_name(cell)"]
[null,null,null,null,"Colour Input 4",4,null,null,null,"Title Code 4",null,"Sum Code 3",null,"True Code 3","False Code 2",null,"Fixed Colour 2",null,"Top Colour 3",null,"Row Colour 3",null,null,null,null,null,null,null,"Max Cols to Scan",null,200,null,null,"Look in down rows",null,false,null,null,null,"Sub x_Delete_rows()",null,"Deletes rows that are blank",null,null,null,null,null,null,null,null,null,null,null,null,null,null,"Function sum_labels(series)"]
[null,null,null,null,"Colour Input 5",5,null,null,null,"Title Code 5",null,"Sum Code 4",null,"True Code 4","False Code 4",null,"Fixed Colour 3",null,"Top Colour 4",null,"Row Colour 4",null,null,null,null,null,null,null,"Rows to Scan in Finding Col",null,50,null,null,null,null,null,null,null,null,"Sub x_fix_decimal()",null,"Fixes Problems with auto formatting",null,null,null,null,null,null,"Shift,CNTL, P",null,"Percent with 2 Decimals",null,null,null,null,null,"Function File_name() As Variant"]
[null,null,null,null,"Colour Input 6",6,null,null,null,"Title Code 6",null,"Sum Code 5",null,"True Code 5","False Code 5",null,"Fixed Colour 4",null,"Top Colour 5",null,"Row Colour 5",null,null,null,null,null,null,null,"Max Time",null,1000,null,null,null,null,null,null,null,null,"Sub x_find_rows()",null,"Finds number of rows used in sheet",null,null,null,null,null,null,"Shift,CNTL, E",null,"Underline subtotals",null,null,null,null,null,"Function MyUDF(LastSaved1 As Boolean) As Double"]
[null,null,null,null,"Colour Input 7",7,null,null,null,"Title Code 7",null,"Sum Code 6",null,"True Code 6","False Code 6",null,"Fixed Colour 5",null,"Top Colour 6",null,"Row Colour 6",null,null,null,null,null,null,null,null,null,null,null,null,null,null,null,null,null,null,"Sub x_find_cols()",null,"Finds number of cols in sheet",null,null,null,null,null,null,"Shift,CNTL, D",null,"Commas without Decimals",null,null,null,null,null,"Function Last_save_by() As Variant"]
[null,null,null,null,"Colour Input 8",8,null,null,null,"Title Code 8",null,"Sum Code 7",null,"True Code 7","False Code 7",null,null,null,null,null,null,null,null,null,null,null,null,null,"Debug Code",null,false,null,null,null,null,null,null,null,null,"Sub x_colourTitles()",null,"Colours titles for the first column",null,null,null,null,null,null,"Shift,CNTL, M",null,"Clears the Status Bar",null,null,null,null,null,"Function LastSaved() As String"]
[null,null,null,null,"Colour Input 9",9,null,null,null,"Title Code 9",null,"Sum Code 8",null,null,null,null,null,null,null,null,null,null,null,null,null,null,null,null,null,null,null,null,null,null,null,null,null,null,null,"Sub x_Create_Table_of_Contents_From_Sheet_Names()",null,"  Creates Contents with links",null,null,null,null,null,null,"Shift,CNTL, C",null,"Comma Format with 2 Decimals",null,null,null,null,null,"Function lookup_NA(lookup_value, test_array, result_array)"]
[null,null,null,null,null,null,null,null,null,null,null,null,null,null,null,null,null,null,null,null,null,null,null,null,null,null,null,null,"Remove Bold",null,true,null,null,null,null,null,null,null,null,"Sub x_find_externl_links()",null,"  Find External Links",null,null,null,null,null,null,"Shift,CNTL, D",null,"Comma Format without",null,null,null,null,null,"Function match_adj(lookup_value, lookup_array)"]
[null,null,"Custom -->",null,"Custom Input Colour",null,null,null,null,"Title Flex Colour",null,"Sum Flex Colour",null,"Custom Colour","Custom Colour",null,"FAST Colour",null,"Top Flex Colour",null,"Custom Colour",null,null,null,null,null,null,null,"Remove Outlines",null,false,null,null,null,null,null,null,null,null,"Sub x_hide_sheets_after()",null,"  Hide Sheets after Given Name",null,null,null,null,null,null,null,null,null,null,null,null,null,null,"Function payback(series)"]
[null,null,null,null,null,null,null,null,null,null,null,null,null,null,null,null,null,null,null,null,null,null,null,null,null,null,null,null,null,null,null,null,null,null,null,null,null,null,null,"Sub x_EIS()",null,"EIS with Row (ALT,S)",null,null,null,null,null,null,null,null,null,null,null,null,null,null,"Function dpayback(d_rate, series)"]
[null,null,null,null,"Colour Input 1",null,null,null,null,"Custom Colour",null,"Sum Flex Colour",null,"Custom True",null,null,"Custom Fixed Colour Sheet",null,"Row Colour 1",null,"Row Colour 1",null,null,null,null,null,null,null,null,null,null,null,null,null,null,null,null,null,null,"Sub x_EIS_column()",null,"EIS with Col (ALT, G)",null,null,null,null,null,null,null,null,null,null,null,null,null,null,"Function period_of_year(period, timing)"]
[null,null,null,null,"colour option",10,null,null,null,"Title Option",10,"Sum Option",{"$f":"MATCH(L17,L7:L15,0)","v":9},"True False Code",6,null,"Fixed sheet colour code",4,"Top Colour Code",1,"Menu ",1,null,null,null,null,null,null,"Show Status Help",null,false,null,null,null,null,null,null,null,null,null,null,null,null,null,null,null,null,null,null,null,null,null,null,null,null,null,"Function show_formula(cell)"]
[null,null,null,null,null,null,null,null,null,null,null,null,null,null,null,null,null,null,null,null,null,null,null,null,null,null,null,null,null,null,null,null,null,null,null,null,null,null,null,null,null,null,null,null,null,null,null,null,null,null,null,null,null,null,null,null,"Function show_formulaR(cell)"]
[null,null,null,"","Customi Inputs for Paint",null,null,null,null,"Custom Titles for Paint",null,"Custom Titles for Paint",null,"Custom Titles for Paint",null,null,"You can paint this",null,"You can paint this",null,"You can paint this",null,null,null,null,null,null,null,"Max Row ",null,107,null,null,null,null,null,null,null,null,"' This is simple SHIFT, CNTL and Letter",null,null,null,null,null,null,null,null,null,null,null,null,null,null,null,null,"Function show_formulaL(cell)"]
[null,null,null,null,"FAST Input Colour",null,null,null,null,"FAST Title",null,"Custom Colour",null,"Custom Colour","Custom Colour",null,"FAST Colour",null,"Custom Colour",null,"Custom Colour",null,null,null,null,null,null,null,"Max Col",null,25]
[null,null,null,null,"Custom Input Colour",null,null,null,null,"Custom Colour",null,"Custom Colour",null,"Custom Colour","Custom Colour",null,"Custom Colour",null,"Custom Colour",null,"Custom Colour",null,null,null,null,null,null,null,null,null,null,null,null,null,null,null,null,null,null,"    Application.OnKey \"^R\", \"x_fill_right\""]
[null,null,null,null,"Custom Input Colour",null,null,null,null,"Custom Colour",null,"Custom Colour",null,"Custom Colour","Custom Colour",null,"Custom Colour",null,"Custom Colour",null,"Custom Colour",null,null,null,null,null,null,null,"Colour Debug",null,true,null,null,null,null,null,null,null,null,"    Application.OnKey \"^S\", \"x_undo_fill_right\""]
[null,null,null,null,"Custom Input Colour",null,null,null,null,"Custom Colour",null,"Custom Colour",null,"Custom Colour","Custom Colour",null,"Custom Colour",null,"Custom Colour",null,"Custom Colour"]
[null,null,null,null,"Colour Input 9",null,null,null,null,"Custom Colour",null,"Custom Colour",null,"Custom Colour","Custom Colour",null,"Custom Colour",null,"Custom Colour",null,"Custom Top Colour",null,null,null,null,null,null,null,"Starting Column for Display",null,1,null,null,null,null,null,null,null,null,"' This is CNTL and ALT and then the Letter"]
[null,null,null,null,"Use Outline",false,null,null,null,"Custom Colour",null,"Apply Sum",false,"Custom Colour","Custom Colour",null,"Custom Colour",null,"Custom Colour",null,null,null,null,null,null,null,null,null,null,null,null,null,null,null,null,null,null,null,null,"    "]
[null,null,null,null,null,null,null,null,null,null,null,null,null,null,null,null,"F1F9 Colour",null,"Row Colour 2",null,null,null,null,null,null,null,null,null,"Last Book",null,1,null,null,null,null,null,null,null,null,"    Application.OnKey \"^%c\", \"x_Colour_menu\""]
[null,null,null,null,"Border Input Code",2,null,null,null,"Apply Title Cols",true,"Sum Column","A","implement_conditional_formatting",true,null,null,null,null,null,null,null,null,null,null,null,null,null,"Last Sheet",null,null,null,null,null,null,null,null,null,null,"    Application.OnKey \"^%d\", \"x_help\""]
[null,null,null,null,null,null,null,null,null,"Title Columns",1000,"Sum Column Option",9,"conditional_starting_column","K",null,"Apply Links",true,"Apply Dashboard",false,"Re Set Contents",true,null,null,null,null,null,null,null,null,null,null,null,null,null,null,null,null,null,"    Application.OnKey \"^%e\", \"x_short_cuts\""]
[null,null,null,null,"Input Font Code",-65536,null,null,null,"First Title Column","B",null,null,null,null,null,null,null,"Default Rows",10,"Copy Pictures",true,null,null,null,null,null,null,null,null,null,null,null,null,null,null,null,null,null,"                                        "]
[null,null,null,null,"Input Interior Code",10092543,null,null,null,null,null,"Border Sum Code",1,"True Name",{"$f":"1=1","v":true},null,"start_column_colour_link","A",null,null,"Colour Code",true,null,null,null,null,null,null,null,null,null,null,null,null,null,null,null,null,null,"    Application.OnKey \"^M\", \"x_status_clear\""]
[null,null,null,null,null,null,null,null,null,"Title Group Option",false,null,null,"False Name",{"$f":"1=2","v":false},null,null,null,"Bold Dashboard",false,null,null,null,null,null,null,null,null,null,null,null,null,null,null,null,null,null,null,null,"    Application.OnKey \"^P\", \"x_Decimals\""]
[null,null,null,null,"Marking No Dependents",true,null,null,null,null,null,null,null,null,null,null,"Maximum Colums Search",27,null,null,null,null,null,null,null,null,null,null,null,null,null,null,null,null,null,null,null,null,null,"    "]
[null,null,null,null,null,null,null,null,null,null,null,"Sum Font Code",0,"True Font Code",0,null,null,null,null,null,null,null,null,null,null,null,null,null,null,null,null,null,null,null,null,null,null,null,null,"    Application.OnKey \"^3\", \"x_Date_Format\""]
[null,null,null,null,"Find Dependents",false,null,null,null,null,null,"Sum Interior Code",16775143,"True Interior Code",15073264,null,"Link Font Code",16711680,"Top Font Code",0,"Hyper Link in Sheet",true,null,null,null,null,null,null,null,null,null,null,null,null,null,null,null,null,null,"    Application.OnKey \"^e\", \"x_EIS\""]
[null,null,null,null,"R G B No Depenents Font",0,0,0,null,"Title Font Code",16777215,null,null,null,null,null,"Link Interior Code",16777215,"Top Back Code",0,null,null,null,null,null,null,null,null,null,null,null,null,null,null,null,null,null,null,null,"    "]
[null,null,null,null,"R G B No Depenents Interior",67,242,227,null,"Title Interior Code",6697728,null,null,"False Font Code",0,null,null,null,null,null,null,"Gridlines",null,null,null,"ENEC",null,null,null,null,null,null,null,null,null,null,null,null,null,"' ALT u for replacing ["]
[null,null,null,null,null,null,null,null,null,null,null,null,null,"False Interior Code",15658238,null,null,null,null,null,null,null,null,null,null,null,null,null,null,null,null,null,null,null,null,null,null,null,null,"    "]
[null,null,null,null,"RGB Colour",null,null,null,null,"Underline_Title",true,null,null,null,null,null,"Marking Transfers",false,"Label 1","Dev","Dev","Dev",null,null,null,"Dev",null,null,null,"Pre-COD",null,null,null,"Pre COD",null,null,null,null,null,"'    Application.OnKey \"%u\", False"]
[null,null,null,null,null,null,null,null,null,null,null,null,null,null,null,null,null,null,"Label 2","FC/Const","FC/Const","FC/Const",null,null,null,"Pre-FC",null,null,null,"Post PCOD",null,null,null,"Operation"]
[null,null,null,null,"Column Start Dependencies",5,null,null,null,null,null,null,null,null,null,null,"R Transfer",67,"Label 3","Const","Const","Const",null,null,null,"FC to PCOD",null,null,null,"COD to PCOD",null,null,null,"COD",null,null,null,null,null,"    Application.OnKey \"%u\", \"x_original_square_bracket\""]
[null,null,null,null,"Column End Dependencies",20,null,null,null,null,null,null,null,null,null,null,"G Transfer",242,"Label 4","Ops","Ops","Ops",null,null,null,"Post PCOD",null,null,null,"Retirement",null,null,null,null,null,null,null,null,null,"    Application.OnKey \"^U\", \"x_original_square_bracket\""]
[null,null,null,null,null,null,null,null,null,null,null,null,null,null,null,null,"B Transfer",227,"Label 5","Retire","Retire","Retirement",null,null,null,"Retire",null,null,null,"FC"]
[null,null,null,null,null,null,null,null,null,null,null,null,null,null,null,null,null,null,"Label 6","Actuals","Actuals",null,null,null,null,"FC",null,null,null,"Actuals"]
[null,null,null,null,null,null,null,null,null,null,null,null,null,null,null,null,"Column Start Transfer",10,"Label 7","Projected","Projected",null,null,null,null,"PCOD",null,null,null,"Projected",null,null,null,null,null,null,null,null,null,"' ALT s and ALT g"]
[null,null,null,null,"Pattern Option",null,null,null,null,null,null,"Pattern Option",null,null,null,null,"Column End Transfer",15,"Label 8","Other","Other",null,null,null,null,"Other 3",null,null,null,"Other"]
[null,null,null,null,"None",null,null,null,null,null,null,"None",null,null,null,null,null,null,"Label 9","Other","Other",null,null,null,null,"Other 4",null,null,null,"Other",null,null,null,null,null,null,null,null,null,"    Application.OnKey \"%s\", \"x_EIS\"                      ' This is ALT s"]
[null,null,null,null,"Pattern 1",null,null,null,null,null,null,"Pattern 1",null,null,null,null,"Reverse Background",false,null,null,null,null,null,null,null,null,null,null,null,null,null,null,null,null,null,null,null,null,null,"    Application.OnKey \"%g\", \"x_EIS_column\"               ' This is Alt g"]
[null,null,null,null,"Pattern 2",null,null,null,null,null,null,"Pattern 2",null,null,null,null,null,null,"Labela 1","Replacement",null,null,null,null,null,null,null,null,null,null,null,null,null,null,null,null,null,null,null,"        "]
[null,null,null,null,"Pattern 3",null,null,null,null,null,null,"Pattern 3",null,null,null,null,null,null,"Labela 2","No Replacement",null,null,null,null,null,null,null,null,null,null,null,null,null,null,null,null,null,null,null,"    Application.OnKey \"^D\", \"x_comma_format\""]
[null,null,null,null,"Pattern 4",null,null,null,null,null,null,"Pattern 4",null,null,null,null,null,null,"Labela 3",null,null,null,null,null,null,null,null,null,null,null,null,null,null,null,null,null,null,null,null,"    Application.OnKey \"^W\", \"x_comma_format\""]
[null,null,null,null,null,null,null,null,null,null,null,null,null,null,null,null,null,null,"Labela 4",null,null,null,null,null,null,null,null,null,null,null,null,null,null,null,null,null,null,null,null,"    "]
[null,null,null,null,null,null,null,null,null,null,null,null,null,null,null,null,null,null,"Labela 5",null,null,null,null,null,null,null,null,null,null,null,null,null,null,null,null,null,null,null,null,"    Application.OnKey \"^C\", \"x_comma_format_comma_and_percent\""]
[null,null,null,null,null,null,null,null,null,null,null,null,null,null,null,null,null,null,"Labela 6",null,null,null,null,null,null,null,null,null,null,null,null,null,null,null,null,null,null,null,null,"                "]
[null,null,null,null,null,null,null,null,null,null,null,null,null,null,null,null,null,null,"Labela 7",null,null,null,null,null,null,null,null,null,null,null,null,null,null,null,null,null,null,null,null,"    Application.OnKey \"^E\", \"x_double_underline\""]
[null,null,null,null,null,null,null,null,null,null,null,null,null,null,null,null,null,null,"Labela 8",null,null,null,null,null,null,null,null,null,null,null,null,null,null,null,null,null,null,null,null,"    Application.OnKey \"^G\", \"x_total_underline\""]
[null,null,null,null,null,null,null,null,null,null,null,null,null,null,null,null,null,null,"Labela 9",null,null,null,null,null,null,null,null,null,null,null,null,null,null,null,null,null,null,null,null,"    "]
[null,null,null,null,null,null,null,null,null,null,null,null,null,null,null,null,null,null,null,null,null,null,null,null,null,null,null,null,null,null,null,null,null,null,null,null,null,null,null,"    Application.OnKey \"^F\", \"remove_borders\""]
[null,null,null,null,null,null,null,null,null,null,null,null,null,null,null,null,null,null,null,null,null,null,null,null,null,null,null,null,null,null,null,null,null,null,null,null,null,null,null,"                        "]
[null,null,null,null,null,null,null,null,null,null,null,null,null,null,null,null,null,null,null,null,null,null,null,null,null,null,null,null,null,null,null,null,null,null,null,null,null,null,null,"    Application.OnKey \"^T\", \"measure_time\""]
[null,null,null,null,null,null,null,null,null,null,null,null,null,null,null,null,null,null,null,null,null,null,null,null,null,null,null,null,null,null,null,null,null,null,null,null,null,null,null,"    Application.OnKey \"^Q\", \"measure_time_end\""]
[null,null,null,null,null,null,null,null,null,null,null,null,null,null,null,null,null,null,null,null,null,null,null,null,null,null,null,null,null,null,null,null,null,null,null,null,null,null,null,"    "]
[null,null,null,null,"https://htmlcolors.com/html-color-picker",null,null,null,null,null,null,null,null,null,null,null,null,null,null,null,null,null,null,null,null,null,null,null,null,null,null,null,null,null,null,null,null,null,null,"    Application.OnKey \"^p\", \"x_precedents\""]
[null,null,null,null,null,null,null,null,null,null,null,null,null,null,null,null,null,null,null,null,null,null,null,null,null,null,null,null,null,null,null,null,null,null,null,null,null,null,null,"    Application.OnKey \"^{TAB}\", \"x_CNTL_TAB\""]
[null,null,null,null,null,null,null,null,null,null,null,null,null,null,null,null,"Dev",null,"Dev",null,"Pre-FC",null,null,null,null,null,null,null,null,null,null,null,null,null,null,null,null,null,null,"                        "]
[null,null,null,null,null,null,null,null,null,null,null,null,null,null,null,null,"FC/Const",null,"FC/Const",null,"FC to PCOD",null,null,null,null,null,null,null,null,null,null,null,null,null,null,null,null,null,null,"                        "]
[null,null,null,null,null,null,null,null,null,null,null,null,null,null,null,null,"Const",null,"Const",null,"Post PCOD",null,null,null,null,null,null,null,null,null,null,null,null,null,null,null,null,null,null,"     Application.OnKey \"^V\", \"x_sum_to_end\""]
[null,null,null,null,null,null,null,null,null,null,null,null,null,null,null,null,"Ops",null,"Ops",null,"Retire",null,null,null,null,null,null,null,null,null,null,null,null,null,null,null,null,null,null,"                        "]
[null,null,null,null,null,null,null,null,null,null,null,null,null,null,null,null,"Retirement",null,"Retirement",null,"FC",null,null,null,null,null,null,null,null,null,null,null,null,null,null,null,null,null,null,"                        "]
[null,null,null,null,null,null,null,null,null,null,null,null,null,null,null,null,null,null,null,null,null,null,null,null,null,null,null,null,null,null,null,null,null,null,null,null,null,null,null,"' Shift ENTER and Shift Alt -"]
[]
[null,null,null,null,null,null,null,null,null,null,null,null,null,null,null,null,null,null,null,null,null,null,null,null,null,null,null,null,null,null,null,null,null,null,null,null,null,null,null,"    Application.OnKey \"+~\", \"x_goto_sheet\""]
[null,null,null,null,null,null,null,null,null,null,null,null,null,null,null,null,null,null,null,null,null,null,null,null,null,null,null,null,null,null,null,null,null,null,null,null,null,null,null,"    Application.OnKey \"%-\", \"x_product\""]
[null,null,null,null,null,null,null,null,null,null,null,null,null,null,null,null,null,null,null,null,null,null,null,null,null,null,null,null,null,null,null,null,null,null,null,null,null,null,null,"    "]
[null,null,null,null,null,null,null,null,null,null,null,null,null,null,null,null,null,null,null,null,null,null,null,null,null,null,null,null,null,null,null,null,null,null,null,null,null,null,null,"'    Application.OnKey \"^Z\", \"x_goback\""]
[null,null,null,null,null,null,null,null,null,null,null,null,null,null,null,null,null,null,null,null,null,null,null,null,null,null,null,null,null,null,null,null,null,null,null,null,null,null,null,"'    Application.OnKey \"^%t\", \"a_create_Table_of_Contents_From_Sheet_Names\""]
[null,null,null,null,null,null,null,null,null,null,null,null,null,null,null,null,null,null,null,null,null,null,null,null,null,null,null,null,null,null,null,null,null,null,null,null,null,null,null,"'    Application.OnKey \"^q\", \"Explode.xla!ShowExplodeForm\""]
[null,null,null,null,null,null,null,null,null,null,null,null,null,null,null,null,null,null,null,null,null,null,null,null,null,null,null,null,null,null,null,null,null,null,null,null,null,null,null,"'    Application.OnKey \"^H\", \"x_assign_links1\""]
[null,null,null,null,null,null,null,null,null,null,null,null,null,null,null,null,null,null,null,null,null,null,null,null,null,null,null,null,null,null,null,null,null,null,null,null,null,null,null,"'    Application.OnKey \"^%s\", \"x_select_area\""]
[null,null,null,null,null,null,null,null,null,null,null,null,null,null,null,null,null,null,null,null,null,null,null,null,null,null,null,null,null,null,null,null,null,null,null,null,null,null,null,"'    Application.OnKey \"^C\", \"x_Colour_1\""]
[null,null,null,null,"Dev",null,null,null,null,null,null,null,null,null,null,null,null,null,null,null,null,null,null,null,null,null,null,null,null,null,null,null,null,null,null,null,null,null,null,"                 "]
[null,null,null,null,"FC/Const",null,null,null,null,null,null,null,null,null,null,null,null,null,null,null,null,null,null,null,null,null,null,null,null,null,null,null,null,null,null,null,null,null,null,"     Application.OnKey \"^X\", \"Cut_and_Transpose\""]
[null,null,null,null,"Const",null,null,null,null,null,null,null,null,216]
[null,null,null,null,"Ops",null,null,null,null,null,null,null,null,213]
[null,null,null,null,"Retirement",null,null,null,null,null,null,null,null,28]
[null,null,null,null,"Other 1"]
[null,null,null,null,"Other 2"]
[null,null,null,null,"Other 3"]
[null,null,null,null,"Other 4"]
[]
[]
[]
[]
[]
[]
[]
[]
[]
[]
[]
[]
[]
[]
[]
[]
[]
[]
[]
[]
[]
[]
[]
[]
[]
[null,null,null,null,null,null,null,null,null,null,null,null,null,null,67,242,227]

{"sheet":"Mac and Windows","index":2,"n_rows":3,"n_cols":1,"rows_kept":3,"cut":false,"hidden":false,"merged":[]}
[]
[]
["zz"]

{"sheet":"Help","index":3,"n_rows":20,"n_cols":5,"rows_kept":20,"cut":false,"hidden":false,"merged":[]}
["          "]
[]
[null,"help links",null,null,"http://www.edbodmer.com"]
[]
[]
[]
[]
[null,"Sometimes it is best to re-start your computer before a new run"]
[]
[null,"Website Link Describing How to Use the Generic Macros"]
[]
[null,"Video Describing Use of Generic Macros - Basic"]
[]
[null,"Video Describing Use of Generic Macros - Advanced"]
[]
[null,"Video Describing Analysis with Database"]
[]
[null,"Powerpoint Slides Reference on Generic Macros"]
[]
[null,"Link to Range Names"]

{"sheet":"Disclaimer template","index":4,"n_rows":2,"n_cols":2,"rows_kept":2,"cut":false,"hidden":false,"merged":[]}
["          "]
[null,"Put your own pictures here for use in the table of contents"]

{"sheet":"Log","index":5,"n_rows":8,"n_cols":3,"rows_kept":8,"cut":false,"hidden":false,"merged":[]}
[]
[]
[null,null,"Centering of short-cuts"]
[null,null,"Clear up the printing of default values"]
[null,null,"All 1's or All 0's"]
[null,null,"Speed up call to rows and columns"]
[null,null,"0's font colour"]
[null,null,"Put in Direct Call to Colour Code Documentation"]

{"sheet":"Input Colours","index":6,"n_rows":18,"n_cols":509,"rows_kept":18,"cut":false,"hidden":false,"merged":[]}
[{"$f":"SUM(E7:E8)","v":0.09},"          "]
[null,null,null,"Start Year",2010,null,null,1,1,1,1,1,1,1]
[null,null,null,"Last year of History",2014,null,null,2,2,2,2,2,2,2]
[null,null,null,null,null,null,null,3,3,3,3,3,3,3]
[null,null,null,"Input 1",100,null,null,4,4,4,4,4,4,4]
[null,null,null,null,null,null,null,5,5,5,5,5,5,5]
[null,null,null,"Input 2",0.04,null,null,6,6,6,6,6,6,6]
[null,null,null,"Input 3",0.05,null,null,7,7,7,7,7,7,7]
[null,null,null,"Sum",{"$f":"SUM(E7:E8)","v":0.09},"k"]
[null,null,null,null,null,null,null,null,null,3,4,5,6]
[]
[null,null,null,null,100000000]
[]
[]
[]
[null,null,null,null,null,null,null,null,null,5]
[null,null,null,null,null,null,null,null,null,6]
[null,null,null,null,null,null,null,null,null,1,2,3,4,5,6,7,8,9,10,11,12,13,14,15,16,17,18,19,20,21,22,23,24,25,26,27,28,29,30,31,32,33,34,35,36,37,38,39,40,41,42,43,44,45,46,47,48,49,50,51,52,53,54,55,56,57,58,59,60,61,62,63,64,65,66,67,68,69,70,71,72,73,74,75,76,77,78,79,80,81,82,83,84,85,86,87,88,89,90,91,92,93,94,95,96,97,98,99,100,101,102,103,104,105,106,107,108,109,110,111,112,113,114,115,116,117,118,119,120,121,122,123,124,125,126,127,128,129,130,131,132,133,134,135,136,137,138,139,140,141,142,143,144,145,146,147,148,149,150,151,152,153,154,155,156,157,158,159,160,161,162,163,164,165,166,167,168,169,170,171,172,173,174,175,176,177,178,179,180,181,182,183,184,185,186,187,188,189,190,191,192,193,194,195,196,197,198,199,200,201,202,203,204,205,206,207,208,209,210,211,212,213,214,215,216,217,218,219,220,221,222,223,224,225,226,227,228,229,230,231,232,233,234,235,236,237,238,239,240,241,242,243,244,245,246,247,248,249,250,251,252,253,254,255,256,257,258,259,260,261,262,263,264,265,266,267,268,269,270,271,272,273,274,275,276,277,278,279,280,281,282,283,284,285,286,287,288,289,290,291,292,293,294,295,296,297,298,299,300,301,302,303,304,305,306,307,308,309,310,311,312,313,314,315,316,317,318,319,320,321,322,323,324,325,326,327,328,329,330,331,332,333,334,335,336,337,338,339,340,341,342,343,344,345,346,347,348,349,350,351,352,353,354,355,356,357,358,359,360,361,362,363,364,365,366,367,368,369,370,371,372,373,374,375,376,377,378,379,380,381,382,383,384,385,386,387,388,389,390,391,392,393,394,395,396,397,398,399,400,401,402,403,404,405,406,407,408,409,410,411,412,413,414,415,416,417,418,419,420,421,422,423,424,425,426,427,428,429,430,431,432,433,434,435,436,437,438,439,440,441,442,443,444,445,446,447,448,449,450,451,452,453,454,455,456,457,458,459,460,461,462,463,464,465,466,467,468,469,470,471,472,473,474,475,476,477,478,479,480,481,482,483,484,485,486,487,488,489,490,491,492,493,494,495,496,497,498,499,500]

{"sheet":"Test Colours","index":7,"n_rows":25,"n_cols":24,"rows_kept":25,"cut":false,"hidden":false,"merged":[]}
["          "]
[null,"Title"]
[]
[null,null,"Year",null,null,null,null,2010,{"$f":"H4+1","v":2011},{"$f":"I4+1","v":2012},2013,2014,2015,2016,2017,2018,2019,2020,2021]
[null,null,"Switch",null,2014,null,null,{"$f":"H4<=$E$5","v":true},{"$f":"I4<=$E$5","v":true},true,true,true,false,false,false,false,false,false,false]
[]
[null,null,"Calculation 1",null,100,null,null,{"$f":"$E7","v":100},{"$f":"$E7","v":100},100,100,100,100,100,100,100,100,100,100]
[null,null,"Calculation 2 ",null,0.04,null,null,{"$f":"$E8","v":0.04},0.04,0.04,0.04,0.04,0.04,0.04,0.04,0.04,0.04,0.04,0.04]
[null,null,"Calculation 3",null,null,null,null,{"$f":"H7*H8","v":4},{"$f":"I7*I8","v":4},4,4,4,4,4,4,4,4,4,4]
[]
[null,null,null,null,null,null,null,100,200,200,200,200,200,200,200,200,200,200,200,200,200,200,200,200]
[]
[null,null,null,null,null,null,null,100,100,100,100,100,100,100,100,100,100,100,100,100,100,100,100,100]
[]
[null,null,null,null,null,null,null,400,400,400,400,400,400,400,400,400,400,400,400,400,400,400,400,400]
[]
[null,null,"Underline",null,null,null,null,300,300,300,300,300,300,300,300,300]
[]
[]
[null,null,null,null,null,null,null,{"$f":"H17/12","v":25},{"$f":"IF(I17=12,I15,I13)","v":100},{"$f":"IF(J17=5,J15,J13*5)","v":500},{"$f":"K4<20","v":false},null,null,"Separators: =( ) , + - * / < > "]
[null,null,null,null,null,null,null,{"$f":"_xlfn.FORMULATEXT(H20)","v":"=H17/12"},{"$f":"_xlfn.FORMULATEXT(I20)","v":"=IF(I17=12,I15,I13)"},{"$f":"_xlfn.FORMULATEXT(J20)","v":"=IF(J17=5,J15,J13*5)"},{"$f":"_xlfn.FORMULATEXT(K20)","v":"=K4<20"}]
[null,null,null,null,null,null,null,"=H17/12",null,null,null,null,null,"Separators",null,{"$f":"FIND(\"/\",H22)","v":5}]
[null,null,null,null,null,null,null,null,"=IF(I17=12,I15,I13)",null,null,null,null,"Separate to parts",null,{"$f":"MID(H22,P22+1,20)","v":"12"}]
[null,null,null,null,null,null,null,null,null,"=IF(J17=5,J15,J13*5)",null,null,null,"Value",null,{"$f":"VALUE(P23)","v":12}]
[null,null,null,null,null,null,null,null,null,null,"=K4<20",null,null,"Isnumber",null,{"$f":"ISNUMBER(P24)","v":true}]

{"sheet":"Other Inputs","index":8,"n_rows":21,"n_cols":24,"rows_kept":21,"cut":false,"hidden":false,"merged":[]}
["          "]
[null,null,null,null,1,2,3,4,5,6,7,8,9,10,11,12,13,14,15,16,17,18,19,20]
["Time Line"]
[null,null,-1,-1,-1,-1]
["Operating Inputs"]
[null,null,-100,-100,-100,-100]
[null,null,-100,-100,-100,-100]
["Model"]
[null,null,1,2,3,4,5,6,7,8,9,10]
[null,null,100,100,100,100,100,100,100,100,100,100]
["Financing"]
[null,null,1,2,3,4,5,6,7,8,9,10]
[null,null,{"$f":"C12*C10","v":100},200,300,400,500,600,700,800,900,1000]
["Outputs"]
[null,"Calculation 1",2010]
[null,"Calculation 2 ",2014]
[null,"Calculation 3",0.09]
[]
[]
[null,null,"2026-01-01","Cntl 3"]
[null,null,"2026-01-01","Cntl A"]

{"sheet":"Col Letter","index":9,"n_rows":10,"n_cols":731,"rows_kept":10,"cut":false,"hidden":false,"merged":[]}
[null,null,{"$f":"COLUMN()","v":3},{"$f":"COLUMN()","v":4},{"$f":"COLUMN()","v":5},{"$f":"COLUMN()","v":6},{"$f":"COLUMN()","v":7},{"$f":"COLUMN()","v":8},{"$f":"COLUMN()","v":9},{"$f":"COLUMN()","v":10},{"$f":"COLUMN()","v":11},{"$f":"COLUMN()","v":12},{"$f":"COLUMN()","v":13},{"$f":"COLUMN()","v":14},{"$f":"COLUMN()","v":15},{"$f":"COLUMN()","v":16},{"$f":"COLUMN()","v":17},{"$f":"COLUMN()","v":18},{"$f":"COLUMN()","v":19},{"$f":"COLUMN()","v":20},{"$f":"COLUMN()","v":21},{"$f":"COLUMN()","v":22},{"$f":"COLUMN()","v":23},{"$f":"COLUMN()","v":24},{"$f":"COLUMN()","v":25},{"$f":"COLUMN()","v":26},{"$f":"COLUMN()","v":27},{"$f":"COLUMN()","v":28},{"$f":"COLUMN()","v":29},{"$f":"COLUMN()","v":30},{"$f":"COLUMN()","v":31},{"$f":"COLUMN()","v":32},{"$f":"COLUMN()","v":33},{"$f":"COLUMN()","v":34},{"$f":"COLUMN()","v":35},{"$f":"COLUMN()","v":36},{"$f":"COLUMN()","v":37},{"$f":"COLUMN()","v":38},{"$f":"COLUMN()","v":39},{"$f":"COLUMN()","v":40},{"$f":"COLUMN()","v":41},{"$f":"COLUMN()","v":42},{"$f":"COLUMN()","v":43},{"$f":"COLUMN()","v":44},{"$f":"COLUMN()","v":45},{"$f":"COLUMN()","v":46},{"$f":"COLUMN()","v":47},{"$f":"COLUMN()","v":48},{"$f":"COLUMN()","v":49},{"$f":"COLUMN()","v":50},{"$f":"COLUMN()","v":51},{"$f":"COLUMN()","v":52},{"$f":"COLUMN()","v":53},{"$f":"COLUMN()","v":54},{"$f":"COLUMN()","v":55},{"$f":"COLUMN()","v":56},{"$f":"COLUMN()","v":57},{"$f":"COLUMN()","v":58},{"$f":"COLUMN()","v":59},{"$f":"COLUMN()","v":60},{"$f":"COLUMN()","v":61},{"$f":"COLUMN()","v":62},{"$f":"COLUMN()","v":63},{"$f":"COLUMN()","v":64},{"$f":"COLUMN()","v":65},{"$f":"COLUMN()","v":66},{"$f":"COLUMN()","v":67},{"$f":"COLUMN()","v":68},{"$f":"COLUMN()","v":69},{"$f":"COLUMN()","v":70},{"$f":"COLUMN()","v":71},{"$f":"COLUMN()","v":72},{"$f":"COLUMN()","v":73},{"$f":"COLUMN()","v":74},{"$f":"COLUMN()","v":75},{"$f":"COLUMN()","v":76},{"$f":"COLUMN()","v":77},{"$f":"COLUMN()","v":78},{"$f":"COLUMN()","v":79},{"$f":"COLUMN()","v":80},{"$f":"COLUMN()","v":81},{"$f":"COLUMN()","v":82},{"$f":"COLUMN()","v":83},{"$f":"COLUMN()","v":84},{"$f":"COLUMN()","v":85},{"$f":"COLUMN()","v":86},{"$f":"COLUMN()","v":87},{"$f":"COLUMN()","v":88},{"$f":"COLUMN()","v":89},{"$f":"COLUMN()","v":90},{"$f":"COLUMN()","v":91},{"$f":"COLUMN()","v":92},{"$f":"COLUMN()","v":93},{"$f":"COLUMN()","v":94},{"$f":"COLUMN()","v":95},{"$f":"COLUMN()","v":96},{"$f":"COLUMN()","v":97},{"$f":"COLUMN()","v":98},{"$f":"COLUMN()","v":99},{"$f":"COLUMN()","v":100},{"$f":"COLUMN()","v":101},{"$f":"COLUMN()","v":102},{"$f":"COLUMN()","v":103},{"$f":"COLUMN()","v":104},{"$f":"COLUMN()","v":105},{"$f":"COLUMN()","v":106},{"$f":"COLUMN()","v":107},{"$f":"COLUMN()","v":108},{"$f":"COLUMN()","v":109},{"$f":"COLUMN()","v":110},{"$f":"COLUMN()","v":111},{"$f":"COLUMN()","v":112},{"$f":"COLUMN()","v":113},{"$f":"COLUMN()","v":114},{"$f":"COLUMN()","v":115},{"$f":"COLUMN()","v":116},{"$f":"COLUMN()","v":117},{"$f":"COLUMN()","v":118},{"$f":"COLUMN()","v":119},{"$f":"COLUMN()","v":120},{"$f":"COLUMN()","v":121},{"$f":"COLUMN()","v":122},{"$f":"COLUMN()","v":123},{"$f":"COLUMN()","v":124},{"$f":"COLUMN()","v":125},{"$f":"COLUMN()","v":126},{"$f":"COLUMN()","v":127},{"$f":"COLUMN()","v":128},{"$f":"COLUMN()","v":129},{"$f":"COLUMN()","v":130},{"$f":"COLUMN()","v":131},{"$f":"COLUMN()","v":132},{"$f":"COLUMN()","v":133},{"$f":"COLUMN()","v":134},{"$f":"COLUMN()","v":135},{"$f":"COLUMN()","v":136},{"$f":"COLUMN()","v":137},{"$f":"COLUMN()","v":138},{"$f":"COLUMN()","v":139},{"$f":"COLUMN()","v":140},{"$f":"COLUMN()","v":141},{"$f":"COLUMN()","v":142},{"$f":"COLUMN()","v":143},{"$f":"COLUMN()","v":144},{"$f":"COLUMN()","v":145},{"$f":"COLUMN()","v":146},{"$f":"COLUMN()","v":147},{"$f":"COLUMN()","v":148},{"$f":"COLUMN()","v":149},{"$f":"COLUMN()","v":150},{"$f":"COLUMN()","v":151},{"$f":"COLUMN()","v":152},{"$f":"COLUMN()","v":153},{"$f":"COLUMN()","v":154},{"$f":"COLUMN()","v":155},{"$f":"COLUMN()","v":156},{"$f":"COLUMN()","v":157},{"$f":"COLUMN()","v":158},{"$f":"COLUMN()","v":159},{"$f":"COLUMN()","v":160}]
[null,null,{"$f":"ADDRESS(1,C1)","v":"$C$1"},{"$f":"ADDRESS(1,D1)","v":"$D$1"},"$E$1","$F$1","$G$1","$H$1","$I$1","$J$1","$K$1","$L$1","$M$1","$N$1","$O$1","$P$1","$Q$1","$R$1","$S$1","$T$1","$U$1","$V$1","$W$1","$X$1","$Y$1","$Z$1","$AA$1","$AB$1","$AC$1","$AD$1","$AE$1","$AF$1","$AG$1","$AH$1","$AI$1","$AJ$1","$AK$1","$AL$1","$AM$1","$AN$1","$AO$1","$AP$1","$AQ$1","$AR$1","$AS$1","$AT$1","$AU$1","$AV$1","$AW$1","$AX$1","$AY$1","$AZ$1","$BA$1","$BB$1","$BC$1","$BD$1","$BE$1","$BF$1","$BG$1","$BH$1","$BI$1","$BJ$1","$BK$1","$BL$1","$BM$1","$BN$1","$BO$1",{"$f":"ADDRESS(1,BP1)","v":"$BP$1"},"$BQ$1","$BR$1","$BS$1","$BT$1","$BU$1","$BV$1","$BW$1","$BX$1","$BY$1","$BZ$1","$CA$1","$CB$1","$CC$1","$CD$1","$CE$1","$CF$1","$CG$1","$CH$1","$CI$1","$CJ$1","$CK$1","$CL$1","$CM$1","$CN$1","$CO$1","$CP$1","$CQ$1","$CR$1","$CS$1","$CT$1","$CU$1","$CV$1","$CW$1","$CX$1","$CY$1","$CZ$1","$DA$1","$DB$1","$DC$1","$DD$1","$DE$1","$DF$1","$DG$1","$DH$1","$DI$1","$DJ$1","$DK$1","$DL$1","$DM$1","$DN$1","$DO$1","$DP$1","$DQ$1","$DR$1","$DS$1","$DT$1","$DU$1","$DV$1","$DW$1","$DX$1","$DY$1","$DZ$1","$EA$1",{"$f":"ADDRESS(1,EB1)","v":"$EB$1"},"$EC$1","$ED$1","$EE$1","$EF$1","$EG$1","$EH$1","$EI$1","$EJ$1","$EK$1","$EL$1","$EM$1","$EN$1","$EO$1","$EP$1","$EQ$1","$ER$1","$ES$1","$ET$1","$EU$1","$EV$1","$EW$1","$EX$1","$EY$1","$EZ$1","$FA$1","$FB$1","$FC$1","$FD$1"]
[null,null,1,1,1,1,1,1,1,1,1,1,1,1,1,1,1,1,1,1,1,1,1,1,1,1,1,1,2,2,2,2,2,2,2,2,2,2,2,2,2,2,2,2,2,2,2,2,2,2,2,2,2,2,2,2,2,2,2,2,2,2,2,2,2,2,2,2,2,2,2,2,2,2,2,2,2,2,2,2,2,2,2,2,2,2,2,2,2,2,2,2,2,2,2,2,2,2,2,2,2,2,2,2,2,2,2,2,2,2,2,2,2,2,2,2,2,2,2,2,2,2,2,2,2,2,2,2,2,2,2,2,2,2,2,2,2,2,2,2,2,2,2,2,2,2,2,2,2,2,2,2,2,2,2,2,2,2,2,2]
[null,null,{"$f":"MID(C2,2,C3)","v":"C"},{"$f":"MID(D2,2,D3)","v":"D"},"E","F","G","H","I","J","K","L","M","N","O","P","Q","R","S","T","U","V","W","X","Y","Z","A","A","AC","AD","AE","AF","AG","AH","AI","AJ","AK","AL","AM","AN","AO","AP","AQ","AR","AS","AT","AU","AV","AW","AX","AY","AZ","BA","BB","BC","BD","BE","BF","BG","BH","BI","BJ","BK","BL","BM","BN","BO",{"$f":"MID(BP2,2,BP3)","v":"BP"},"BQ","BR","BS","BT","BU","BV","BW","BX","BY","BZ","CA","CB","CC","CD","CE","CF","CG","CH","CI","CJ","CK","CL","CM","CN","CO","CP","CQ","CR","CS","CT","CU","CV","CW","CX","CY","CZ","DA","DB","DC","DD","DE","DF","DG","DH","DI","DJ","DK","DL","DM","DN","DO","DP","DQ","DR","DS","DT","DU","DV","DW","DX","DY","DZ","EA",{"$f":"MID(EB2,2,EB3)","v":"EB"},"EC","ED","EE","EF","EG","EH","EI","EJ","EK","EL","EM","EN","EO","EP","EQ","ER","ES","ET","EU","EV","EW","EX","EY","EZ","FA","FB","FC","FD"]
[]
[null,"Column",{"$f":"COLUMN()","v":3},{"$f":"COLUMN()","v":4},{"$f":"COLUMN()","v":5},{"$f":"COLUMN()","v":6},{"$f":"COLUMN()","v":7},{"$f":"COLUMN()","v":8},{"$f":"COLUMN()","v":9},{"$f":"COLUMN()","v":10},{"$f":"COLUMN()","v":11},{"$f":"COLUMN()","v":12},{"$f":"COLUMN()","v":13},{"$f":"COLUMN()","v":14},{"$f":"COLUMN()","v":15},{"$f":"COLUMN()","v":16},{"$f":"COLUMN()","v":17},{"$f":"COLUMN()","v":18},{"$f":"COLUMN()","v":19},{"$f":"COLUMN()","v":20},{"$f":"COLUMN()","v":21},{"$f":"COLUMN()","v":22},{"$f":"COLUMN()","v":23},{"$f":"COLUMN()","v":24},{"$f":"COLUMN()","v":25},{"$f":"COLUMN()","v":26},{"$f":"COLUMN()","v":27},{"$f":"COLUMN()","v":28},{"$f":"COLUMN()","v":29},{"$f":"COLUMN()","v":30},{"$f":"COLUMN()","v":31},{"$f":"COLUMN()","v":32},{"$f":"COLUMN()","v":33},{"$f":"COLUMN()","v":34},{"$f":"COLUMN()","v":35},{"$f":"COLUMN()","v":36},{"$f":"COLUMN()","v":37},{"$f":"COLUMN()","v":38},{"$f":"COLUMN()","v":39},{"$f":"COLUMN()","v":40},{"$f":"COLUMN()","v":41},{"$f":"COLUMN()","v":42},{"$f":"COLUMN()","v":43},{"$f":"COLUMN()","v":44},{"$f":"COLUMN()","v":45},{"$f":"COLUMN()","v":46},{"$f":"COLUMN()","v":47},{"$f":"COLUMN()","v":48},{"$f":"COLUMN()","v":49},{"$f":"COLUMN()","v":50},{"$f":"COLUMN()","v":51},{"$f":"COLUMN()","v":52},{"$f":"COLUMN()","v":53},{"$f":"COLUMN()","v":54},{"$f":"COLUMN()","v":55},{"$f":"COLUMN()","v":56},{"$f":"COLUMN()","v":57},{"$f":"COLUMN()","v":58},{"$f":"COLUMN()","v":59},{"$f":"COLUMN()","v":60},{"$f":"COLUMN()","v":61},{"$f":"COLUMN()","v":62},{"$f":"COLUMN()","v":63},{"$f":"COLUMN()","v":64},{"$f":"COLUMN()","v":65},{"$f":"COLUMN()","v":66},{"$f":"COLUMN()","v":67},{"$f":"COLUMN()","v":68},{"$f":"COLUMN()","v":69},{"$f":"COLUMN()","v":70},{"$f":"COLUMN()","v":71},{"$f":"COLUMN()","v":72},{"$f":"COLUMN()","v":73},{"$f":"COLUMN()","v":74},{"$f":"COLUMN()","v":75},{"$f":"COLUMN()","v":76},{"$f":"COLUMN()","v":77},{"$f":"COLUMN()","v":78},{"$f":"COLUMN()","v":79},{"$f":"COLUMN()","v":80},{"$f":"COLUMN()","v":81},{"$f":"COLUMN()","v":82},{"$f":"COLUMN()","v":83},{"$f":"COLUMN()","v":84},{"$f":"COLUMN()","v":85},{"$f":"COLUMN()","v":86},{"$f":"COLUMN()","v":87},{"$f":"COLUMN()","v":88},{"$f":"COLUMN()","v":89},{"$f":"COLUMN()","v":90},{"$f":"COLUMN()","v":91},{"$f":"COLUMN()","v":92},{"$f":"COLUMN()","v":93},{"$f":"COLUMN()","v":94},{"$f":"COLUMN()","v":95},{"$f":"COLUMN()","v":96},{"$f":"COLUMN()","v":97},{"$f":"COLUMN()","v":98},{"$f":"COLUMN()","v":99},{"$f":"COLUMN()","v":100},{"$f":"COLUMN()","v":101},{"$f":"COLUMN()","v":102},{"$f":"COLUMN()","v":103},{"$f":"COLUMN()","v":104},{"$f":"COLUMN()","v":105},{"$f":"COLUMN()","v":106},{"$f":"COLUMN()","v":107},{"$f":"COLUMN()","v":108},{"$f":"COLUMN()","v":109},{"$f":"COLUMN()","v":110},{"$f":"COLUMN()","v":111},{"$f":"COLUMN()","v":112},{"$f":"COLUMN()","v":113},{"$f":"COLUMN()","v":114},{"$f":"COLUMN()","v":115},{"$f":"COLUMN()","v":116},{"$f":"COLUMN()","v":117},{"$f":"COLUMN()","v":118},{"$f":"COLUMN()","v":119},{"$f":"COLUMN()","v":120},{"$f":"COLUMN()","v":121},{"$f":"COLUMN()","v":122},{"$f":"COLUMN()","v":123},{"$f":"COLUMN()","v":124},{"$f":"COLUMN()","v":125},{"$f":"COLUMN()","v":126},{"$f":"COLUMN()","v":127},{"$f":"COLUMN()","v":128},{"$f":"COLUMN()","v":129},{"$f":"COLUMN()","v":130},{"$f":"COLUMN()","v":131},{"$f":"COLUMN()","v":132},{"$f":"COLUMN()","v":133},{"$f":"COLUMN()","v":134},{"$f":"COLUMN()","v":135},{"$f":"COLUMN()","v":136},{"$f":"COLUMN()","v":137},{"$f":"COLUMN()","v":138},{"$f":"COLUMN()","v":139},{"$f":"COLUMN()","v":140},{"$f":"COLUMN()","v":141},{"$f":"COLUMN()","v":142},{"$f":"COLUMN()","v":143},{"$f":"COLUMN()","v":144},{"$f":"COLUMN()","v":145},{"$f":"COLUMN()","v":146},{"$f":"COLUMN()","v":147},{"$f":"COLUMN()","v":148},{"$f":"COLUMN()","v":149},{"$f":"COLUMN()","v":150},{"$f":"COLUMN()","v":151},{"$f":"COLUMN()","v":152},{"$f":"COLUMN()","v":153},{"$f":"COLUMN()","v":154},{"$f":"COLUMN()","v":155},{"$f":"COLUMN()","v":156},{"$f":"COLUMN()","v":157},{"$f":"COLUMN()","v":158},{"$f":"COLUMN()","v":159},{"$f":"COLUMN()","v":160},{"$f":"COLUMN()","v":161},{"$f":"COLUMN()","v":162},{"$f":"COLUMN()","v":163},{"$f":"COLUMN()","v":164},{"$f":"COLUMN()","v":165},{"$f":"COLUMN()","v":166},{"$f":"COLUMN()","v":167},{"$f":"COLUMN()","v":168},{"$f":"COLUMN()","v":169},{"$f":"COLUMN()","v":170},{"$f":"COLUMN()","v":171},{"$f":"COLUMN()","v":172},{"$f":"COLUMN()","v":173},{"$f":"COLUMN()","v":174},{"$f":"COLUMN()","v":175},{"$f":"COLUMN()","v":176},{"$f":"COLUMN()","v":177},{"$f":"COLUMN()","v":178},{"$f":"COLUMN()","v":179},{"$f":"COLUMN()","v":180},{"$f":"COLUMN()","v":181},{"$f":"COLUMN()","v":182},{"$f":"COLUMN()","v":183},{"$f":"COLUMN()","v":184},{"$f":"COLUMN()","v":185},{"$f":"COLUMN()","v":186},{"$f":"COLUMN()","v":187},{"$f":"COLUMN()","v":188},{"$f":"COLUMN()","v":189},{"$f":"COLUMN()","v":190},{"$f":"COLUMN()","v":191},{"$f":"COLUMN()","v":192},{"$f":"COLUMN()","v":193},{"$f":"COLUMN()","v":194},{"$f":"COLUMN()","v":195},{"$f":"COLUMN()","v":196},{"$f":"COLUMN()","v":197},{"$f":"COLUMN()","v":198},{"$f":"COLUMN()","v":199},{"$f":"COLUMN()","v":200},{"$f":"COLUMN()","v":201},{"$f":"COLUMN()","v":202},{"$f":"COLUMN()","v":203},{"$f":"COLUMN()","v":204},{"$f":"COLUMN()","v":205},{"$f":"COLUMN()","v":206},{"$f":"COLUMN()","v":207},{"$f":"COLUMN()","v":208},{"$f":"COLUMN()","v":209},{"$f":"COLUMN()","v":210},{"$f":"COLUMN()","v":211},{"$f":"COLUMN()","v":212},{"$f":"COLUMN()","v":213},{"$f":"COLUMN()","v":214},{"$f":"COLUMN()","v":215},{"$f":"COLUMN()","v":216},{"$f":"COLUMN()","v":217},{"$f":"COLUMN()","v":218},{"$f":"COLUMN()","v":219},{"$f":"COLUMN()","v":220},{"$f":"COLUMN()","v":221},{"$f":"COLUMN()","v":222},{"$f":"COLUMN()","v":223},{"$f":"COLUMN()","v":224},{"$f":"COLUMN()","v":225},{"$f":"COLUMN()","v":226},{"$f":"COLUMN()","v":227},{"$f":"COLUMN()","v":228},{"$f":"COLUMN()","v":229},{"$f":"COLUMN()","v":230},{"$f":"COLUMN()","v":231},{"$f":"COLUMN()","v":232},{"$f":"COLUMN()","v":233},{"$f":"COLUMN()","v":234},{"$f":"COLUMN()","v":235},{"$f":"COLUMN()","v":236},{"$f":"COLUMN()","v":237},{"$f":"COLUMN()","v":238},{"$f":"COLUMN()","v":239},{"$f":"COLUMN()","v":240},{"$f":"COLUMN()","v":241},{"$f":"COLUMN()","v":242},{"$f":"COLUMN()","v":243},{"$f":"COLUMN()","v":244},{"$f":"COLUMN()","v":245},{"$f":"COLUMN()","v":246},{"$f":"COLUMN()","v":247},{"$f":"COLUMN()","v":248},{"$f":"COLUMN()","v":249},{"$f":"COLUMN()","v":250},{"$f":"COLUMN()","v":251},{"$f":"COLUMN()","v":252},{"$f":"COLUMN()","v":253},{"$f":"COLUMN()","v":254},{"$f":"COLUMN()","v":255},{"$f":"COLUMN()","v":256},{"$f":"COLUMN()","v":257},{"$f":"COLUMN()","v":258},{"$f":"COLUMN()","v":259},{"$f":"COLUMN()","v":260},{"$f":"COLUMN()","v":261},{"$f":"COLUMN()","v":262},{"$f":"COLUMN()","v":263},{"$f":"COLUMN()","v":264},{"$f":"COLUMN()","v":265},{"$f":"COLUMN()","v":266},{"$f":"COLUMN()","v":267},{"$f":"COLUMN()","v":268},{"$f":"COLUMN()","v":269},{"$f":"COLUMN()","v":270},{"$f":"COLUMN()","v":271},{"$f":"COLUMN()","v":272},{"$f":"COLUMN()","v":273},{"$f":"COLUMN()","v":274},{"$f":"COLUMN()","v":275},{"$f":"COLUMN()","v":276},{"$f":"COLUMN()","v":277},{"$f":"COLUMN()","v":278},{"$f":"COLUMN()","v":279},{"$f":"COLUMN()","v":280},{"$f":"COLUMN()","v":281},{"$f":"COLUMN()","v":282},{"$f":"COLUMN()","v":283},{"$f":"COLUMN()","v":284},{"$f":"COLUMN()","v":285},{"$f":"COLUMN()","v":286},{"$f":"COLUMN()","v":287},{"$f":"COLUMN()","v":288},{"$f":"COLUMN()","v":289},{"$f":"COLUMN()","v":290},{"$f":"COLUMN()","v":291},{"$f":"COLUMN()","v":292},{"$f":"COLUMN()","v":293},{"$f":"COLUMN()","v":294},{"$f":"COLUMN()","v":295},{"$f":"COLUMN()","v":296},{"$f":"COLUMN()","v":297},{"$f":"COLUMN()","v":298},{"$f":"COLUMN()","v":299},{"$f":"COLUMN()","v":300},{"$f":"COLUMN()","v":301},{"$f":"COLUMN()","v":302},{"$f":"COLUMN()","v":303},{"$f":"COLUMN()","v":304},{"$f":"COLUMN()","v":305},{"$f":"COLUMN()","v":306},{"$f":"COLUMN()","v":307},{"$f":"COLUMN()","v":308},{"$f":"COLUMN()","v":309},{"$f":"COLUMN()","v":310},{"$f":"COLUMN()","v":311},{"$f":"COLUMN()","v":312},{"$f":"COLUMN()","v":313},{"$f":"COLUMN()","v":314},{"$f":"COLUMN()","v":315},{"$f":"COLUMN()","v":316},{"$f":"COLUMN()","v":317},{"$f":"COLUMN()","v":318},{"$f":"COLUMN()","v":319},{"$f":"COLUMN()","v":320},{"$f":"COLUMN()","v":321},{"$f":"COLUMN()","v":322},{"$f":"COLUMN()","v":323},{"$f":"COLUMN()","v":324},{"$f":"COLUMN()","v":325},{"$f":"COLUMN()","v":326},{"$f":"COLUMN()","v":327},{"$f":"COLUMN()","v":328},{"$f":"COLUMN()","v":329},{"$f":"COLUMN()","v":330},{"$f":"COLUMN()","v":331},{"$f":"COLUMN()","v":332},{"$f":"COLUMN()","v":333},{"$f":"COLUMN()","v":334},{"$f":"COLUMN()","v":335},{"$f":"COLUMN()","v":336},{"$f":"COLUMN()","v":337},{"$f":"COLUMN()","v":338},{"$f":"COLUMN()","v":339},{"$f":"COLUMN()","v":340},{"$f":"COLUMN()","v":341},{"$f":"COLUMN()","v":342},{"$f":"COLUMN()","v":343},{"$f":"COLUMN()","v":344},{"$f":"COLUMN()","v":345},{"$f":"COLUMN()","v":346},{"$f":"COLUMN()","v":347},{"$f":"COLUMN()","v":348},{"$f":"COLUMN()","v":349},{"$f":"COLUMN()","v":350},{"$f":"COLUMN()","v":351},{"$f":"COLUMN()","v":352},{"$f":"COLUMN()","v":353},{"$f":"COLUMN()","v":354},{"$f":"COLUMN()","v":355},{"$f":"COLUMN()","v":356},{"$f":"COLUMN()","v":357},{"$f":"COLUMN()","v":358},{"$f":"COLUMN()","v":359},{"$f":"COLUMN()","v":360},{"$f":"COLUMN()","v":361},{"$f":"COLUMN()","v":362},{"$f":"COLUMN()","v":363},{"$f":"COLUMN()","v":364},{"$f":"COLUMN()","v":365},{"$f":"COLUMN()","v":366},{"$f":"COLUMN()","v":367},{"$f":"COLUMN()","v":368},{"$f":"COLUMN()","v":369},{"$f":"COLUMN()","v":370},{"$f":"COLUMN()","v":371},{"$f":"COLUMN()","v":372},{"$f":"COLUMN()","v":373},{"$f":"COLUMN()","v":374},{"$f":"COLUMN()","v":375},{"$f":"COLUMN()","v":376},{"$f":"COLUMN()","v":377},{"$f":"COLUMN()","v":378},{"$f":"COLUMN()","v":379},{"$f":"COLUMN()","v":380},{"$f":"COLUMN()","v":381},{"$f":"COLUMN()","v":382},{"$f":"COLUMN()","v":383},{"$f":"COLUMN()","v":384},{"$f":"COLUMN()","v":385},{"$f":"COLUMN()","v":386},{"$f":"COLUMN()","v":387},{"$f":"COLUMN()","v":388},{"$f":"COLUMN()","v":389},{"$f":"COLUMN()","v":390},{"$f":"COLUMN()","v":391},{"$f":"COLUMN()","v":392},{"$f":"COLUMN()","v":393},{"$f":"COLUMN()","v":394},{"$f":"COLUMN()","v":395},{"$f":"COLUMN()","v":396},{"$f":"COLUMN()","v":397},{"$f":"COLUMN()","v":398},{"$f":"COLUMN()","v":399},{"$f":"COLUMN()","v":400},{"$f":"COLUMN()","v":401},{"$f":"COLUMN()","v":402},{"$f":"COLUMN()","v":403},{"$f":"COLUMN()","v":404},{"$f":"COLUMN()","v":405},{"$f":"COLUMN()","v":406},{"$f":"COLUMN()","v":407},{"$f":"COLUMN()","v":408},{"$f":"COLUMN()","v":409},{"$f":"COLUMN()","v":410},{"$f":"COLUMN()","v":411},{"$f":"COLUMN()","v":412},{"$f":"COLUMN()","v":413},{"$f":"COLUMN()","v":414},{"$f":"COLUMN()","v":415},{"$f":"COLUMN()","v":416},{"$f":"COLUMN()","v":417},{"$f":"COLUMN()","v":418},{"$f":"COLUMN()","v":419},{"$f":"COLUMN()","v":420},{"$f":"COLUMN()","v":421},{"$f":"COLUMN()","v":422},{"$f":"COLUMN()","v":423},{"$f":"COLUMN()","v":424},{"$f":"COLUMN()","v":425},{"$f":"COLUMN()","v":426},{"$f":"COLUMN()","v":427},{"$f":"COLUMN()","v":428},{"$f":"COLUMN()","v":429},{"$f":"COLUMN()","v":430},{"$f":"COLUMN()","v":431},{"$f":"COLUMN()","v":432},{"$f":"COLUMN()","v":433},{"$f":"COLUMN()","v":434},{"$f":"COLUMN()","v":435},{"$f":"COLUMN()","v":436},{"$f":"COLUMN()","v":437},{"$f":"COLUMN()","v":438},{"$f":"COLUMN()","v":439},{"$f":"COLUMN()","v":440},{"$f":"COLUMN()","v":441},{"$f":"COLUMN()","v":442},{"$f":"COLUMN()","v":443},{"$f":"COLUMN()","v":444},{"$f":"COLUMN()","v":445},{"$f":"COLUMN()","v":446},{"$f":"COLUMN()","v":447},{"$f":"COLUMN()","v":448},{"$f":"COLUMN()","v":449},{"$f":"COLUMN()","v":450},{"$f":"COLUMN()","v":451},{"$f":"COLUMN()","v":452},{"$f":"COLUMN()","v":453},{"$f":"COLUMN()","v":454},{"$f":"COLUMN()","v":455},{"$f":"COLUMN()","v":456},{"$f":"COLUMN()","v":457},{"$f":"COLUMN()","v":458},{"$f":"COLUMN()","v":459},{"$f":"COLUMN()","v":460},{"$f":"COLUMN()","v":461},{"$f":"COLUMN()","v":462},{"$f":"COLUMN()","v":463},{"$f":"COLUMN()","v":464},{"$f":"COLUMN()","v":465},{"$f":"COLUMN()","v":466},{"$f":"COLUMN()","v":467},{"$f":"COLUMN()","v":468},{"$f":"COLUMN()","v":469},{"$f":"COLUMN()","v":470},{"$f":"COLUMN()","v":471},{"$f":"COLUMN()","v":472},{"$f":"COLUMN()","v":473},{"$f":"COLUMN()","v":474},{"$f":"COLUMN()","v":475},{"$f":"COLUMN()","v":476},{"$f":"COLUMN()","v":477},{"$f":"COLUMN()","v":478},{"$f":"COLUMN()","v":479},{"$f":"COLUMN()","v":480},{"$f":"COLUMN()","v":481},{"$f":"COLUMN()","v":482},{"$f":"COLUMN()","v":483},{"$f":"COLUMN()","v":484},{"$f":"COLUMN()","v":485},{"$f":"COLUMN()","v":486},{"$f":"COLUMN()","v":487},{"$f":"COLUMN()","v":488},{"$f":"COLUMN()","v":489},{"$f":"COLUMN()","v":490},{"$f":"COLUMN()","v":491},{"$f":"COLUMN()","v":492},{"$f":"COLUMN()","v":493},{"$f":"COLUMN()","v":494},{"$f":"COLUMN()","v":495},{"$f":"COLUMN()","v":496},{"$f":"COLUMN()","v":497},{"$f":"COLUMN()","v":498},{"$f":"COLUMN()","v":499},{"$f":"COLUMN()","v":500},{"$f":"COLUMN()","v":501},{"$f":"COLUMN()","v":502},{"$f":"COLUMN()","v":503},{"$f":"COLUMN()","v":504},{"$f":"COLUMN()","v":505},{"$f":"COLUMN()","v":506},{"$f":"COLUMN()","v":507},{"$f":"COLUMN()","v":508},{"$f":"COLUMN()","v":509},{"$f":"COLUMN()","v":510},{"$f":"COLUMN()","v":511},{"$f":"COLUMN()","v":512},{"$f":"COLUMN()","v":513},{"$f":"COLUMN()","v":514},{"$f":"COLUMN()","v":515},{"$f":"COLUMN()","v":516},{"$f":"COLUMN()","v":517},{"$f":"COLUMN()","v":518},{"$f":"COLUMN()","v":519},{"$f":"COLUMN()","v":520},{"$f":"COLUMN()","v":521},{"$f":"COLUMN()","v":522},{"$f":"COLUMN()","v":523},{"$f":"COLUMN()","v":524},{"$f":"COLUMN()","v":525},{"$f":"COLUMN()","v":526},{"$f":"COLUMN()","v":527},{"$f":"COLUMN()","v":528},{"$f":"COLUMN()","v":529},{"$f":"COLUMN()","v":530},{"$f":"COLUMN()","v":531},{"$f":"COLUMN()","v":532},{"$f":"COLUMN()","v":533},{"$f":"COLUMN()","v":534},{"$f":"COLUMN()","v":535},{"$f":"COLUMN()","v":536},{"$f":"COLUMN()","v":537},{"$f":"COLUMN()","v":538},{"$f":"COLUMN()","v":539},{"$f":"COLUMN()","v":540},{"$f":"COLUMN()","v":541},{"$f":"COLUMN()","v":542},{"$f":"COLUMN()","v":543},{"$f":"COLUMN()","v":544},{"$f":"COLUMN()","v":545},{"$f":"COLUMN()","v":546},{"$f":"COLUMN()","v":547},{"$f":"COLUMN()","v":548},{"$f":"COLUMN()","v":549},{"$f":"COLUMN()","v":550},{"$f":"COLUMN()","v":551},{"$f":"COLUMN()","v":552},{"$f":"COLUMN()","v":553},{"$f":"COLUMN()","v":554},{"$f":"COLUMN()","v":555},{"$f":"COLUMN()","v":556},{"$f":"COLUMN()","v":557},{"$f":"COLUMN()","v":558},{"$f":"COLUMN()","v":559},{"$f":"COLUMN()","v":560},{"$f":"COLUMN()","v":561},{"$f":"COLUMN()","v":562},{"$f":"COLUMN()","v":563},{"$f":"COLUMN()","v":564},{"$f":"COLUMN()","v":565},{"$f":"COLUMN()","v":566},{"$f":"COLUMN()","v":567},{"$f":"COLUMN()","v":568},{"$f":"COLUMN()","v":569},{"$f":"COLUMN()","v":570},{"$f":"COLUMN()","v":571},{"$f":"COLUMN()","v":572},{"$f":"COLUMN()","v":573},{"$f":"COLUMN()","v":574},{"$f":"COLUMN()","v":575},{"$f":"COLUMN()","v":576},{"$f":"COLUMN()","v":577},{"$f":"COLUMN()","v":578},{"$f":"COLUMN()","v":579},{"$f":"COLUMN()","v":580},{"$f":"COLUMN()","v":581},{"$f":"COLUMN()","v":582},{"$f":"COLUMN()","v":583},{"$f":"COLUMN()","v":584},{"$f":"COLUMN()","v":585},{"$f":"COLUMN()","v":586},{"$f":"COLUMN()","v":587},{"$f":"COLUMN()","v":588},{"$f":"COLUMN()","v":589},{"$f":"COLUMN()","v":590},{"$f":"COLUMN()","v":591},{"$f":"COLUMN()","v":592},{"$f":"COLUMN()","v":593},{"$f":"COLUMN()","v":594},{"$f":"COLUMN()","v":595},{"$f":"COLUMN()","v":596},{"$f":"COLUMN()","v":597},{"$f":"COLUMN()","v":598},{"$f":"COLUMN()","v":599},{"$f":"COLUMN()","v":600},{"$f":"COLUMN()","v":601},{"$f":"COLUMN()","v":602},{"$f":"COLUMN()","v":603},{"$f":"COLUMN()","v":604},{"$f":"COLUMN()","v":605},{"$f":"COLUMN()","v":606},{"$f":"COLUMN()","v":607},{"$f":"COLUMN()","v":608},{"$f":"COLUMN()","v":609},{"$f":"COLUMN()","v":610},{"$f":"COLUMN()","v":611},{"$f":"COLUMN()","v":612},{"$f":"COLUMN()","v":613},{"$f":"COLUMN()","v":614},{"$f":"COLUMN()","v":615},{"$f":"COLUMN()","v":616},{"$f":"COLUMN()","v":617},{"$f":"COLUMN()","v":618},{"$f":"COLUMN()","v":619},{"$f":"COLUMN()","v":620},{"$f":"COLUMN()","v":621},{"$f":"COLUMN()","v":622},{"$f":"COLUMN()","v":623},{"$f":"COLUMN()","v":624},{"$f":"COLUMN()","v":625},{"$f":"COLUMN()","v":626},{"$f":"COLUMN()","v":627},{"$f":"COLUMN()","v":628},{"$f":"COLUMN()","v":629},{"$f":"COLUMN()","v":630},{"$f":"COLUMN()","v":631},{"$f":"COLUMN()","v":632},{"$f":"COLUMN()","v":633},{"$f":"COLUMN()","v":634},{"$f":"COLUMN()","v":635},{"$f":"COLUMN()","v":636},{"$f":"COLUMN()","v":637},{"$f":"COLUMN()","v":638},{"$f":"COLUMN()","v":639},{"$f":"COLUMN()","v":640},{"$f":"COLUMN()","v":641},{"$f":"COLUMN()","v":642},{"$f":"COLUMN()","v":643},{"$f":"COLUMN()","v":644},{"$f":"COLUMN()","v":645},{"$f":"COLUMN()","v":646},{"$f":"COLUMN()","v":647},{"$f":"COLUMN()","v":648},{"$f":"COLUMN()","v":649},{"$f":"COLUMN()","v":650},{"$f":"COLUMN()","v":651},{"$f":"COLUMN()","v":652},{"$f":"COLUMN()","v":653},{"$f":"COLUMN()","v":654},{"$f":"COLUMN()","v":655},{"$f":"COLUMN()","v":656},{"$f":"COLUMN()","v":657},{"$f":"COLUMN()","v":658},{"$f":"COLUMN()","v":659},{"$f":"COLUMN()","v":660},{"$f":"COLUMN()","v":661},{"$f":"COLUMN()","v":662},{"$f":"COLUMN()","v":663},{"$f":"COLUMN()","v":664},{"$f":"COLUMN()","v":665},{"$f":"COLUMN()","v":666},{"$f":"COLUMN()","v":667},{"$f":"COLUMN()","v":668},{"$f":"COLUMN()","v":669},{"$f":"COLUMN()","v":670},{"$f":"COLUMN()","v":671},{"$f":"COLUMN()","v":672},{"$f":"COLUMN()","v":673},{"$f":"COLUMN()","v":674},{"$f":"COLUMN()","v":675},{"$f":"COLUMN()","v":676},{"$f":"COLUMN()","v":677},{"$f":"COLUMN()","v":678},{"$f":"COLUMN()","v":679},{"$f":"COLUMN()","v":680},{"$f":"COLUMN()","v":681},{"$f":"COLUMN()","v":682},{"$f":"COLUMN()","v":683},{"$f":"COLUMN()","v":684},{"$f":"COLUMN()","v":685},{"$f":"COLUMN()","v":686},{"$f":"COLUMN()","v":687},{"$f":"COLUMN()","v":688},{"$f":"COLUMN()","v":689},{"$f":"COLUMN()","v":690},{"$f":"COLUMN()","v":691},{"$f":"COLUMN()","v":692},{"$f":"COLUMN()","v":693},{"$f":"COLUMN()","v":694},{"$f":"COLUMN()","v":695},{"$f":"COLUMN()","v":696},{"$f":"COLUMN()","v":697},{"$f":"COLUMN()","v":698},{"$f":"COLUMN()","v":699},{"$f":"COLUMN()","v":700},{"$f":"COLUMN()","v":701},{"$f":"COLUMN()","v":702},{"$f":"COLUMN()","v":703},{"$f":"COLUMN()","v":704},{"$f":"COLUMN()","v":705},{"$f":"COLUMN()","v":706},{"$f":"COLUMN()","v":707},{"$f":"COLUMN()","v":708},{"$f":"COLUMN()","v":709},{"$f":"COLUMN()","v":710},{"$f":"COLUMN()","v":711},{"$f":"COLUMN()","v":712},{"$f":"COLUMN()","v":713},{"$f":"COLUMN()","v":714},{"$f":"COLUMN()","v":715},{"$f":"COLUMN()","v":716},{"$f":"COLUMN()","v":717},{"$f":"COLUMN()","v":718},{"$f":"COLUMN()","v":719},{"$f":"COLUMN()","v":720},{"$f":"COLUMN()","v":721},{"$f":"COLUMN()","v":722},{"$f":"COLUMN()","v":723},{"$f":"COLUMN()","v":724},{"$f":"COLUMN()","v":725},{"$f":"COLUMN()","v":726},{"$f":"COLUMN()","v":727},{"$f":"COLUMN()","v":728},{"$f":"COLUMN()","v":729},{"$f":"COLUMN()","v":730},{"$f":"COLUMN()","v":731}]
[null,"Address",{"$f":"ADDRESS(C6,C6)","v":"$C$3"},{"$f":"ADDRESS(D6,D6)","v":"$D$4"},{"$f":"ADDRESS(E6,E6)","v":"$E$5"},{"$f":"ADDRESS(F6,F6)","v":"$F$6"},{"$f":"ADDRESS(G6,G6)","v":"$G$7"},{"$f":"ADDRESS(H6,H6)","v":"$H$8"},"$I$9","$J$10","$K$11","$L$12","$M$13","$N$14","$O$15","$P$16","$Q$17","$R$18","$S$19","$T$20","$U$21","$V$22","$W$23","$X$24","$Y$25","$Z$26","$AA$27","$AB$28","$AC$29","$AD$30","$AE$31","$AF$32","$AG$33","$AH$34","$AI$35","$AJ$36","$AK$37","$AL$38","$AM$39","$AN$40","$AO$41","$AP$42","$AQ$43","$AR$44","$AS$45","$AT$46","$AU$47","$AV$48","$AW$49","$AX$50","$AY$51","$AZ$52","$BA$53",{"$f":"ADDRESS(BB6,BB6)","v":"$BB$54"},{"$f":"ADDRESS(BC6,BC6)","v":"$BC$55"},{"$f":"ADDRESS(BD6,BD6)","v":"$BD$56"},{"$f":"ADDRESS(BE6,BE6)","v":"$BE$57"},{"$f":"ADDRESS(BF6,BF6)","v":"$BF$58"},{"$f":"ADDRESS(BG6,BG6)","v":"$BG$59"},{"$f":"ADDRESS(BH6,BH6)","v":"$BH$60"},{"$f":"ADDRESS(BI6,BI6)","v":"$BI$61"},{"$f":"ADDRESS(BJ6,BJ6)","v":"$BJ$62"},{"$f":"ADDRESS(BK6,BK6)","v":"$BK$63"},{"$f":"ADDRESS(BL6,BL6)","v":"$BL$64"},{"$f":"ADDRESS(BM6,BM6)","v":"$BM$65"},{"$f":"ADDRESS(BN6,BN6)","v":"$BN$66"},{"$f":"ADDRESS(BO6,BO6)","v":"$BO$67"},{"$f":"ADDRESS(BP6,BP6)","v":"$BP$68"},{"$f":"ADDRESS(BQ6,BQ6)","v":"$BQ$69"},{"$f":"ADDRESS(BR6,BR6)","v":"$BR$70"},{"$f":"ADDRESS(BS6,BS6)","v":"$BS$71"},{"$f":"ADDRESS(BT6,BT6)","v":"$BT$72"},{"$f":"ADDRESS(BU6,BU6)","v":"$BU$73"},{"$f":"ADDRESS(BV6,BV6)","v":"$BV$74"},{"$f":"ADDRESS(BW6,BW6)","v":"$BW$75"},{"$f":"ADDRESS(BX6,BX6)","v":"$BX$76"},{"$f":"ADDRESS(BY6,BY6)","v":"$BY$77"},{"$f":"ADDRESS(BZ6,BZ6)","v":"$BZ$78"},{"$f":"ADDRESS(CA6,CA6)","v":"$CA$79"},{"$f":"ADDRESS(CB6,CB6)","v":"$CB$80"},{"$f":"ADDRESS(CC6,CC6)","v":"$CC$81"},{"$f":"ADDRESS(CD6,CD6)","v":"$CD$82"},{"$f":"ADDRESS(CE6,CE6)","v":"$CE$83"},{"$f":"ADDRESS(CF6,CF6)","v":"$CF$84"},{"$f":"ADDRESS(CG6,CG6)","v":"$CG$85"},{"$f":"ADDRESS(CH6,CH6)","v":"$CH$86"},{"$f":"ADDRESS(CI6,CI6)","v":"$CI$87"},{"$f":"ADDRESS(CJ6,CJ6)","v":"$CJ$88"},{"$f":"ADDRESS(CK6,CK6)","v":"$CK$89"},{"$f":"ADDRESS(CL6,CL6)","v":"$CL$90"},{"$f":"ADDRESS(CM6,CM6)","v":"$CM$91"},{"$f":"ADDRESS(CN6,CN6)","v":"$CN$92"},{"$f":"ADDRESS(CO6,CO6)","v":"$CO$93"},{"$f":"ADDRESS(CP6,CP6)","v":"$CP$94"},{"$f":"ADDRESS(CQ6,CQ6)","v":"$CQ$95"},{"$f":"ADDRESS(CR6,CR6)","v":"$CR$96"},{"$f":"ADDRESS(CS6,CS6)","v":"$CS$97"},{"$f":"ADDRESS(CT6,CT6)","v":"$CT$98"},{"$f":"ADDRESS(CU6,CU6)","v":"$CU$99"},{"$f":"ADDRESS(CV6,CV6)","v":"$CV$100"},{"$f":"ADDRESS(CW6,CW6)","v":"$CW$101"},{"$f":"ADDRESS(CX6,CX6)","v":"$CX$102"},{"$f":"ADDRESS(CY6,CY6)","v":"$CY$103"},{"$f":"ADDRESS(CZ6,CZ6)","v":"$CZ$104"},{"$f":"ADDRESS(DA6,DA6)","v":"$DA$105"},{"$f":"ADDRESS(DB6,DB6)","v":"$DB$106"},{"$f":"ADDRESS(DC6,DC6)","v":"$DC$107"},{"$f":"ADDRESS(DD6,DD6)","v":"$DD$108"},{"$f":"ADDRESS(DE6,DE6)","v":"$DE$109"},{"$f":"ADDRESS(DF6,DF6)","v":"$DF$110"},{"$f":"ADDRESS(DG6,DG6)","v":"$DG$111"},{"$f":"ADDRESS(DH6,DH6)","v":"$DH$112"},{"$f":"ADDRESS(DI6,DI6)","v":"$DI$113"},{"$f":"ADDRESS(DJ6,DJ6)","v":"$DJ$114"},{"$f":"ADDRESS(DK6,DK6)","v":"$DK$115"},{"$f":"ADDRESS(DL6,DL6)","v":"$DL$116"},{"$f":"ADDRESS(DM6,DM6)","v":"$DM$117"},{"$f":"ADDRESS(DN6,DN6)","v":"$DN$118"},{"$f":"ADDRESS(DO6,DO6)","v":"$DO$119"},{"$f":"ADDRESS(DP6,DP6)","v":"$DP$120"},{"$f":"ADDRESS(DQ6,DQ6)","v":"$DQ$121"},{"$f":"ADDRESS(DR6,DR6)","v":"$DR$122"},{"$f":"ADDRESS(DS6,DS6)","v":"$DS$123"},{"$f":"ADDRESS(DT6,DT6)","v":"$DT$124"},{"$f":"ADDRESS(DU6,DU6)","v":"$DU$125"},{"$f":"ADDRESS(DV6,DV6)","v":"$DV$126"},{"$f":"ADDRESS(DW6,DW6)","v":"$DW$127"},{"$f":"ADDRESS(DX6,DX6)","v":"$DX$128"},{"$f":"ADDRESS(DY6,DY6)","v":"$DY$129"},{"$f":"ADDRESS(DZ6,DZ6)","v":"$DZ$130"},{"$f":"ADDRESS(EA6,EA6)","v":"$EA$131"},{"$f":"ADDRESS(EB6,EB6)","v":"$EB$132"},{"$f":"ADDRESS(EC6,EC6)","v":"$EC$133"},{"$f":"ADDRESS(ED6,ED6)","v":"$ED$134"},{"$f":"ADDRESS(EE6,EE6)","v":"$EE$135"},{"$f":"ADDRESS(EF6,EF6)","v":"$EF$136"},{"$f":"ADDRESS(EG6,EG6)","v":"$EG$137"},{"$f":"ADDRESS(EH6,EH6)","v":"$EH$138"},{"$f":"ADDRESS(EI6,EI6)","v":"$EI$139"},{"$f":"ADDRESS(EJ6,EJ6)","v":"$EJ$140"},{"$f":"ADDRESS(EK6,EK6)","v":"$EK$141"},{"$f":"ADDRESS(EL6,EL6)","v":"$EL$142"},{"$f":"ADDRESS(EM6,EM6)","v":"$EM$143"},{"$f":"ADDRESS(EN6,EN6)","v":"$EN$144"},{"$f":"ADDRESS(EO6,EO6)","v":"$EO$145"},{"$f":"ADDRESS(EP6,EP6)","v":"$EP$146"},{"$f":"ADDRESS(EQ6,EQ6)","v":"$EQ$147"},{"$f":"ADDRESS(ER6,ER6)","v":"$ER$148"},{"$f":"ADDRESS(ES6,ES6)","v":"$ES$149"},{"$f":"ADDRESS(ET6,ET6)","v":"$ET$150"},{"$f":"ADDRESS(EU6,EU6)","v":"$EU$151"},{"$f":"ADDRESS(EV6,EV6)","v":"$EV$152"},{"$f":"ADDRESS(EW6,EW6)","v":"$EW$153"},{"$f":"ADDRESS(EX6,EX6)","v":"$EX$154"},{"$f":"ADDRESS(EY6,EY6)","v":"$EY$155"},{"$f":"ADDRESS(EZ6,EZ6)","v":"$EZ$156"},{"$f":"ADDRESS(FA6,FA6)","v":"$FA$157"},{"$f":"ADDRESS(FB6,FB6)","v":"$FB$158"},{"$f":"ADDRESS(FC6,FC6)","v":"$FC$159"},{"$f":"ADDRESS(FD6,FD6)","v":"$FD$160"},{"$f":"ADDRESS(FE6,FE6)","v":"$FE$161"},{"$f":"ADDRESS(FF6,FF6)","v":"$FF$162"},{"$f":"ADDRESS(FG6,FG6)","v":"$FG$163"},{"$f":"ADDRESS(FH6,FH6)","v":"$FH$164"},{"$f":"ADDRESS(FI6,FI6)","v":"$FI$165"},{"$f":"ADDRESS(FJ6,FJ6)","v":"$FJ$166"},{"$f":"ADDRESS(FK6,FK6)","v":"$FK$167"},{"$f":"ADDRESS(FL6,FL6)","v":"$FL$168"},{"$f":"ADDRESS(FM6,FM6)","v":"$FM$169"},{"$f":"ADDRESS(FN6,FN6)","v":"$FN$170"},{"$f":"ADDRESS(FO6,FO6)","v":"$FO$171"},{"$f":"ADDRESS(FP6,FP6)","v":"$FP$172"},{"$f":"ADDRESS(FQ6,FQ6)","v":"$FQ$173"},{"$f":"ADDRESS(FR6,FR6)","v":"$FR$174"},{"$f":"ADDRESS(FS6,FS6)","v":"$FS$175"},{"$f":"ADDRESS(FT6,FT6)","v":"$FT$176"},{"$f":"ADDRESS(FU6,FU6)","v":"$FU$177"},{"$f":"ADDRESS(FV6,FV6)","v":"$FV$178"},{"$f":"ADDRESS(FW6,FW6)","v":"$FW$179"},{"$f":"ADDRESS(FX6,FX6)","v":"$FX$180"},{"$f":"ADDRESS(FY6,FY6)","v":"$FY$181"},{"$f":"ADDRESS(FZ6,FZ6)","v":"$FZ$182"},{"$f":"ADDRESS(GA6,GA6)","v":"$GA$183"},{"$f":"ADDRESS(GB6,GB6)","v":"$GB$184"},{"$f":"ADDRESS(GC6,GC6)","v":"$GC$185"},{"$f":"ADDRESS(GD6,GD6)","v":"$GD$186"},{"$f":"ADDRESS(GE6,GE6)","v":"$GE$187"},{"$f":"ADDRESS(GF6,GF6)","v":"$GF$188"},{"$f":"ADDRESS(GG6,GG6)","v":"$GG$189"},{"$f":"ADDRESS(GH6,GH6)","v":"$GH$190"},{"$f":"ADDRESS(GI6,GI6)","v":"$GI$191"},{"$f":"ADDRESS(GJ6,GJ6)","v":"$GJ$192"},{"$f":"ADDRESS(GK6,GK6)","v":"$GK$193"},{"$f":"ADDRESS(GL6,GL6)","v":"$GL$194"},{"$f":"ADDRESS(GM6,GM6)","v":"$GM$195"},{"$f":"ADDRESS(GN6,GN6)","v":"$GN$196"},{"$f":"ADDRESS(GO6,GO6)","v":"$GO$197"},{"$f":"ADDRESS(GP6,GP6)","v":"$GP$198"},{"$f":"ADDRESS(GQ6,GQ6)","v":"$GQ$199"},{"$f":"ADDRESS(GR6,GR6)","v":"$GR$200"},{"$f":"ADDRESS(GS6,GS6)","v":"$GS$201"},{"$f":"ADDRESS(GT6,GT6)","v":"$GT$202"},{"$f":"ADDRESS(GU6,GU6)","v":"$GU$203"},{"$f":"ADDRESS(GV6,GV6)","v":"$GV$204"},{"$f":"ADDRESS(GW6,GW6)","v":"$GW$205"},{"$f":"ADDRESS(GX6,GX6)","v":"$GX$206"},{"$f":"ADDRESS(GY6,GY6)","v":"$GY$207"},{"$f":"ADDRESS(GZ6,GZ6)","v":"$GZ$208"},{"$f":"ADDRESS(HA6,HA6)","v":"$HA$209"},{"$f":"ADDRESS(HB6,HB6)","v":"$HB$210"},{"$f":"ADDRESS(HC6,HC6)","v":"$HC$211"},{"$f":"ADDRESS(HD6,HD6)","v":"$HD$212"},{"$f":"ADDRESS(HE6,HE6)","v":"$HE$213"},{"$f":"ADDRESS(HF6,HF6)","v":"$HF$214"},{"$f":"ADDRESS(HG6,HG6)","v":"$HG$215"},{"$f":"ADDRESS(HH6,HH6)","v":"$HH$216"},{"$f":"ADDRESS(HI6,HI6)","v":"$HI$217"},{"$f":"ADDRESS(HJ6,HJ6)","v":"$HJ$218"},{"$f":"ADDRESS(HK6,HK6)","v":"$HK$219"},{"$f":"ADDRESS(HL6,HL6)","v":"$HL$220"},{"$f":"ADDRESS(HM6,HM6)","v":"$HM$221"},{"$f":"ADDRESS(HN6,HN6)","v":"$HN$222"},{"$f":"ADDRESS(HO6,HO6)","v":"$HO$223"},{"$f":"ADDRESS(HP6,HP6)","v":"$HP$224"},{"$f":"ADDRESS(HQ6,HQ6)","v":"$HQ$225"},{"$f":"ADDRESS(HR6,HR6)","v":"$HR$226"},{"$f":"ADDRESS(HS6,HS6)","v":"$HS$227"},{"$f":"ADDRESS(HT6,HT6)","v":"$HT$228"},{"$f":"ADDRESS(HU6,HU6)","v":"$HU$229"},{"$f":"ADDRESS(HV6,HV6)","v":"$HV$230"},{"$f":"ADDRESS(HW6,HW6)","v":"$HW$231"},{"$f":"ADDRESS(HX6,HX6)","v":"$HX$232"},{"$f":"ADDRESS(HY6,HY6)","v":"$HY$233"},{"$f":"ADDRESS(HZ6,HZ6)","v":"$HZ$234"},{"$f":"ADDRESS(IA6,IA6)","v":"$IA$235"},{"$f":"ADDRESS(IB6,IB6)","v":"$IB$236"},{"$f":"ADDRESS(IC6,IC6)","v":"$IC$237"},{"$f":"ADDRESS(ID6,ID6)","v":"$ID$238"},{"$f":"ADDRESS(IE6,IE6)","v":"$IE$239"},{"$f":"ADDRESS(IF6,IF6)","v":"$IF$240"},{"$f":"ADDRESS(IG6,IG6)","v":"$IG$241"},{"$f":"ADDRESS(IH6,IH6)","v":"$IH$242"},{"$f":"ADDRESS(II6,II6)","v":"$II$243"},{"$f":"ADDRESS(IJ6,IJ6)","v":"$IJ$244"},{"$f":"ADDRESS(IK6,IK6)","v":"$IK$245"},{"$f":"ADDRESS(IL6,IL6)","v":"$IL$246"},{"$f":"ADDRESS(IM6,IM6)","v":"$IM$247"},{"$f":"ADDRESS(IN6,IN6)","v":"$IN$248"},{"$f":"ADDRESS(IO6,IO6)","v":"$IO$249"},{"$f":"ADDRESS(IP6,IP6)","v":"$IP$250"},{"$f":"ADDRESS(IQ6,IQ6)","v":"$IQ$251"},{"$f":"ADDRESS(IR6,IR6)","v":"$IR$252"},{"$f":"ADDRESS(IS6,IS6)","v":"$IS$253"},{"$f":"ADDRESS(IT6,IT6)","v":"$IT$254"},{"$f":"ADDRESS(IU6,IU6)","v":"$IU$255"},{"$f":"ADDRESS(IV6,IV6)","v":"$IV$256"},{"$f":"ADDRESS(IW6,IW6)","v":"$IW$257"},{"$f":"ADDRESS(IX6,IX6)","v":"$IX$258"},{"$f":"ADDRESS(IY6,IY6)","v":"$IY$259"},{"$f":"ADDRESS(IZ6,IZ6)","v":"$IZ$260"},{"$f":"ADDRESS(JA6,JA6)","v":"$JA$261"},{"$f":"ADDRESS(JB6,JB6)","v":"$JB$262"},{"$f":"ADDRESS(JC6,JC6)","v":"$JC$263"},{"$f":"ADDRESS(JD6,JD6)","v":"$JD$264"},{"$f":"ADDRESS(JE6,JE6)","v":"$JE$265"},{"$f":"ADDRESS(JF6,JF6)","v":"$JF$266"},{"$f":"ADDRESS(JG6,JG6)","v":"$JG$267"},{"$f":"ADDRESS(JH6,JH6)","v":"$JH$268"},{"$f":"ADDRESS(JI6,JI6)","v":"$JI$269"},{"$f":"ADDRESS(JJ6,JJ6)","v":"$JJ$270"},{"$f":"ADDRESS(JK6,JK6)","v":"$JK$271"},{"$f":"ADDRESS(JL6,JL6)","v":"$JL$272"},{"$f":"ADDRESS(JM6,JM6)","v":"$JM$273"},{"$f":"ADDRESS(JN6,JN6)","v":"$JN$274"},{"$f":"ADDRESS(JO6,JO6)","v":"$JO$275"},{"$f":"ADDRESS(JP6,JP6)","v":"$JP$276"},{"$f":"ADDRESS(JQ6,JQ6)","v":"$JQ$277"},{"$f":"ADDRESS(JR6,JR6)","v":"$JR$278"},{"$f":"ADDRESS(JS6,JS6)","v":"$JS$279"},{"$f":"ADDRESS(JT6,JT6)","v":"$JT$280"},{"$f":"ADDRESS(JU6,JU6)","v":"$JU$281"},{"$f":"ADDRESS(JV6,JV6)","v":"$JV$282"},{"$f":"ADDRESS(JW6,JW6)","v":"$JW$283"},{"$f":"ADDRESS(JX6,JX6)","v":"$JX$284"},{"$f":"ADDRESS(JY6,JY6)","v":"$JY$285"},{"$f":"ADDRESS(JZ6,JZ6)","v":"$JZ$286"},{"$f":"ADDRESS(KA6,KA6)","v":"$KA$287"},{"$f":"ADDRESS(KB6,KB6)","v":"$KB$288"},{"$f":"ADDRESS(KC6,KC6)","v":"$KC$289"},{"$f":"ADDRESS(KD6,KD6)","v":"$KD$290"},{"$f":"ADDRESS(KE6,KE6)","v":"$KE$291"},{"$f":"ADDRESS(KF6,KF6)","v":"$KF$292"},{"$f":"ADDRESS(KG6,KG6)","v":"$KG$293"},{"$f":"ADDRESS(KH6,KH6)","v":"$KH$294"},{"$f":"ADDRESS(KI6,KI6)","v":"$KI$295"},{"$f":"ADDRESS(KJ6,KJ6)","v":"$KJ$296"},{"$f":"ADDRESS(KK6,KK6)","v":"$KK$297"},{"$f":"ADDRESS(KL6,KL6)","v":"$KL$298"},{"$f":"ADDRESS(KM6,KM6)","v":"$KM$299"},{"$f":"ADDRESS(KN6,KN6)","v":"$KN$300"},{"$f":"ADDRESS(KO6,KO6)","v":"$KO$301"},{"$f":"ADDRESS(KP6,KP6)","v":"$KP$302"},{"$f":"ADDRESS(KQ6,KQ6)","v":"$KQ$303"},{"$f":"ADDRESS(KR6,KR6)","v":"$KR$304"},{"$f":"ADDRESS(KS6,KS6)","v":"$KS$305"},{"$f":"ADDRESS(KT6,KT6)","v":"$KT$306"},{"$f":"ADDRESS(KU6,KU6)","v":"$KU$307"},{"$f":"ADDRESS(KV6,KV6)","v":"$KV$308"},{"$f":"ADDRESS(KW6,KW6)","v":"$KW$309"},{"$f":"ADDRESS(KX6,KX6)","v":"$KX$310"},{"$f":"ADDRESS(KY6,KY6)","v":"$KY$311"},{"$f":"ADDRESS(KZ6,KZ6)","v":"$KZ$312"},{"$f":"ADDRESS(LA6,LA6)","v":"$LA$313"},{"$f":"ADDRESS(LB6,LB6)","v":"$LB$314"},{"$f":"ADDRESS(LC6,LC6)","v":"$LC$315"},{"$f":"ADDRESS(LD6,LD6)","v":"$LD$316"},{"$f":"ADDRESS(LE6,LE6)","v":"$LE$317"},{"$f":"ADDRESS(LF6,LF6)","v":"$LF$318"},{"$f":"ADDRESS(LG6,LG6)","v":"$LG$319"},{"$f":"ADDRESS(LH6,LH6)","v":"$LH$320"},{"$f":"ADDRESS(LI6,LI6)","v":"$LI$321"},{"$f":"ADDRESS(LJ6,LJ6)","v":"$LJ$322"},{"$f":"ADDRESS(LK6,LK6)","v":"$LK$323"},{"$f":"ADDRESS(LL6,LL6)","v":"$LL$324"},{"$f":"ADDRESS(LM6,LM6)","v":"$LM$325"},{"$f":"ADDRESS(LN6,LN6)","v":"$LN$326"},{"$f":"ADDRESS(LO6,LO6)","v":"$LO$327"},{"$f":"ADDRESS(LP6,LP6)","v":"$LP$328"},{"$f":"ADDRESS(LQ6,LQ6)","v":"$LQ$329"},{"$f":"ADDRESS(LR6,LR6)","v":"$LR$330"},{"$f":"ADDRESS(LS6,LS6)","v":"$LS$331"},{"$f":"ADDRESS(LT6,LT6)","v":"$LT$332"},{"$f":"ADDRESS(LU6,LU6)","v":"$LU$333"},{"$f":"ADDRESS(LV6,LV6)","v":"$LV$334"},{"$f":"ADDRESS(LW6,LW6)","v":"$LW$335"},{"$f":"ADDRESS(LX6,LX6)","v":"$LX$336"},{"$f":"ADDRESS(LY6,LY6)","v":"$LY$337"},{"$f":"ADDRESS(LZ6,LZ6)","v":"$LZ$338"},{"$f":"ADDRESS(MA6,MA6)","v":"$MA$339"},{"$f":"ADDRESS(MB6,MB6)","v":"$MB$340"},{"$f":"ADDRESS(MC6,MC6)","v":"$MC$341"},{"$f":"ADDRESS(MD6,MD6)","v":"$MD$342"},{"$f":"ADDRESS(ME6,ME6)","v":"$ME$343"},{"$f":"ADDRESS(MF6,MF6)","v":"$MF$344"},{"$f":"ADDRESS(MG6,MG6)","v":"$MG$345"},{"$f":"ADDRESS(MH6,MH6)","v":"$MH$346"},{"$f":"ADDRESS(MI6,MI6)","v":"$MI$347"},{"$f":"ADDRESS(MJ6,MJ6)","v":"$MJ$348"},{"$f":"ADDRESS(MK6,MK6)","v":"$MK$349"},{"$f":"ADDRESS(ML6,ML6)","v":"$ML$350"},{"$f":"ADDRESS(MM6,MM6)","v":"$MM$351"},{"$f":"ADDRESS(MN6,MN6)","v":"$MN$352"},{"$f":"ADDRESS(MO6,MO6)","v":"$MO$353"},{"$f":"ADDRESS(MP6,MP6)","v":"$MP$354"},{"$f":"ADDRESS(MQ6,MQ6)","v":"$MQ$355"},{"$f":"ADDRESS(MR6,MR6)","v":"$MR$356"},{"$f":"ADDRESS(MS6,MS6)","v":"$MS$357"},{"$f":"ADDRESS(MT6,MT6)","v":"$MT$358"},{"$f":"ADDRESS(MU6,MU6)","v":"$MU$359"},{"$f":"ADDRESS(MV6,MV6)","v":"$MV$360"},{"$f":"ADDRESS(MW6,MW6)","v":"$MW$361"},{"$f":"ADDRESS(MX6,MX6)","v":"$MX$362"},{"$f":"ADDRESS(MY6,MY6)","v":"$MY$363"},{"$f":"ADDRESS(MZ6,MZ6)","v":"$MZ$364"},{"$f":"ADDRESS(NA6,NA6)","v":"$NA$365"},{"$f":"ADDRESS(NB6,NB6)","v":"$NB$366"},{"$f":"ADDRESS(NC6,NC6)","v":"$NC$367"},{"$f":"ADDRESS(ND6,ND6)","v":"$ND$368"},{"$f":"ADDRESS(NE6,NE6)","v":"$NE$369"},{"$f":"ADDRESS(NF6,NF6)","v":"$NF$370"},{"$f":"ADDRESS(NG6,NG6)","v":"$NG$371"},{"$f":"ADDRESS(NH6,NH6)","v":"$NH$372"},{"$f":"ADDRESS(NI6,NI6)","v":"$NI$373"},{"$f":"ADDRESS(NJ6,NJ6)","v":"$NJ$374"},{"$f":"ADDRESS(NK6,NK6)","v":"$NK$375"},{"$f":"ADDRESS(NL6,NL6)","v":"$NL$376"},{"$f":"ADDRESS(NM6,NM6)","v":"$NM$377"},{"$f":"ADDRESS(NN6,NN6)","v":"$NN$378"},{"$f":"ADDRESS(NO6,NO6)","v":"$NO$379"},{"$f":"ADDRESS(NP6,NP6)","v":"$NP$380"},{"$f":"ADDRESS(NQ6,NQ6)","v":"$NQ$381"},{"$f":"ADDRESS(NR6,NR6)","v":"$NR$382"},{"$f":"ADDRESS(NS6,NS6)","v":"$NS$383"},{"$f":"ADDRESS(NT6,NT6)","v":"$NT$384"},{"$f":"ADDRESS(NU6,NU6)","v":"$NU$385"},{"$f":"ADDRESS(NV6,NV6)","v":"$NV$386"},{"$f":"ADDRESS(NW6,NW6)","v":"$NW$387"},{"$f":"ADDRESS(NX6,NX6)","v":"$NX$388"},{"$f":"ADDRESS(NY6,NY6)","v":"$NY$389"},{"$f":"ADDRESS(NZ6,NZ6)","v":"$NZ$390"},{"$f":"ADDRESS(OA6,OA6)","v":"$OA$391"},{"$f":"ADDRESS(OB6,OB6)","v":"$OB$392"},{"$f":"ADDRESS(OC6,OC6)","v":"$OC$393"},{"$f":"ADDRESS(OD6,OD6)","v":"$OD$394"},{"$f":"ADDRESS(OE6,OE6)","v":"$OE$395"},{"$f":"ADDRESS(OF6,OF6)","v":"$OF$396"},{"$f":"ADDRESS(OG6,OG6)","v":"$OG$397"},{"$f":"ADDRESS(OH6,OH6)","v":"$OH$398"},{"$f":"ADDRESS(OI6,OI6)","v":"$OI$399"},{"$f":"ADDRESS(OJ6,OJ6)","v":"$OJ$400"},{"$f":"ADDRESS(OK6,OK6)","v":"$OK$401"},{"$f":"ADDRESS(OL6,OL6)","v":"$OL$402"},{"$f":"ADDRESS(OM6,OM6)","v":"$OM$403"},{"$f":"ADDRESS(ON6,ON6)","v":"$ON$404"},{"$f":"ADDRESS(OO6,OO6)","v":"$OO$405"},{"$f":"ADDRESS(OP6,OP6)","v":"$OP$406"},{"$f":"ADDRESS(OQ6,OQ6)","v":"$OQ$407"},{"$f":"ADDRESS(OR6,OR6)","v":"$OR$408"},{"$f":"ADDRESS(OS6,OS6)","v":"$OS$409"},{"$f":"ADDRESS(OT6,OT6)","v":"$OT$410"},{"$f":"ADDRESS(OU6,OU6)","v":"$OU$411"},{"$f":"ADDRESS(OV6,OV6)","v":"$OV$412"},{"$f":"ADDRESS(OW6,OW6)","v":"$OW$413"},{"$f":"ADDRESS(OX6,OX6)","v":"$OX$414"},{"$f":"ADDRESS(OY6,OY6)","v":"$OY$415"},{"$f":"ADDRESS(OZ6,OZ6)","v":"$OZ$416"},{"$f":"ADDRESS(PA6,PA6)","v":"$PA$417"},{"$f":"ADDRESS(PB6,PB6)","v":"$PB$418"},{"$f":"ADDRESS(PC6,PC6)","v":"$PC$419"},{"$f":"ADDRESS(PD6,PD6)","v":"$PD$420"},{"$f":"ADDRESS(PE6,PE6)","v":"$PE$421"},{"$f":"ADDRESS(PF6,PF6)","v":"$PF$422"},{"$f":"ADDRESS(PG6,PG6)","v":"$PG$423"},{"$f":"ADDRESS(PH6,PH6)","v":"$PH$424"},{"$f":"ADDRESS(PI6,PI6)","v":"$PI$425"},{"$f":"ADDRESS(PJ6,PJ6)","v":"$PJ$426"},{"$f":"ADDRESS(PK6,PK6)","v":"$PK$427"},{"$f":"ADDRESS(PL6,PL6)","v":"$PL$428"},{"$f":"ADDRESS(PM6,PM6)","v":"$PM$429"},{"$f":"ADDRESS(PN6,PN6)","v":"$PN$430"},{"$f":"ADDRESS(PO6,PO6)","v":"$PO$431"},{"$f":"ADDRESS(PP6,PP6)","v":"$PP$432"},{"$f":"ADDRESS(PQ6,PQ6)","v":"$PQ$433"},{"$f":"ADDRESS(PR6,PR6)","v":"$PR$434"},{"$f":"ADDRESS(PS6,PS6)","v":"$PS$435"},{"$f":"ADDRESS(PT6,PT6)","v":"$PT$436"},{"$f":"ADDRESS(PU6,PU6)","v":"$PU$437"},{"$f":"ADDRESS(PV6,PV6)","v":"$PV$438"},{"$f":"ADDRESS(PW6,PW6)","v":"$PW$439"},{"$f":"ADDRESS(PX6,PX6)","v":"$PX$440"},{"$f":"ADDRESS(PY6,PY6)","v":"$PY$441"},{"$f":"ADDRESS(PZ6,PZ6)","v":"$PZ$442"},{"$f":"ADDRESS(QA6,QA6)","v":"$QA$443"},{"$f":"ADDRESS(QB6,QB6)","v":"$QB$444"},{"$f":"ADDRESS(QC6,QC6)","v":"$QC$445"},{"$f":"ADDRESS(QD6,QD6)","v":"$QD$446"},{"$f":"ADDRESS(QE6,QE6)","v":"$QE$447"},{"$f":"ADDRESS(QF6,QF6)","v":"$QF$448"},{"$f":"ADDRESS(QG6,QG6)","v":"$QG$449"},{"$f":"ADDRESS(QH6,QH6)","v":"$QH$450"},{"$f":"ADDRESS(QI6,QI6)","v":"$QI$451"},{"$f":"ADDRESS(QJ6,QJ6)","v":"$QJ$452"},{"$f":"ADDRESS(QK6,QK6)","v":"$QK$453"},{"$f":"ADDRESS(QL6,QL6)","v":"$QL$454"},{"$f":"ADDRESS(QM6,QM6)","v":"$QM$455"},{"$f":"ADDRESS(QN6,QN6)","v":"$QN$456"},{"$f":"ADDRESS(QO6,QO6)","v":"$QO$457"},{"$f":"ADDRESS(QP6,QP6)","v":"$QP$458"},{"$f":"ADDRESS(QQ6,QQ6)","v":"$QQ$459"},{"$f":"ADDRESS(QR6,QR6)","v":"$QR$460"},{"$f":"ADDRESS(QS6,QS6)","v":"$QS$461"},{"$f":"ADDRESS(QT6,QT6)","v":"$QT$462"},{"$f":"ADDRESS(QU6,QU6)","v":"$QU$463"},{"$f":"ADDRESS(QV6,QV6)","v":"$QV$464"},{"$f":"ADDRESS(QW6,QW6)","v":"$QW$465"},{"$f":"ADDRESS(QX6,QX6)","v":"$QX$466"},{"$f":"ADDRESS(QY6,QY6)","v":"$QY$467"},{"$f":"ADDRESS(QZ6,QZ6)","v":"$QZ$468"},{"$f":"ADDRESS(RA6,RA6)","v":"$RA$469"},{"$f":"ADDRESS(RB6,RB6)","v":"$RB$470"},{"$f":"ADDRESS(RC6,RC6)","v":"$RC$471"},{"$f":"ADDRESS(RD6,RD6)","v":"$RD$472"},{"$f":"ADDRESS(RE6,RE6)","v":"$RE$473"},{"$f":"ADDRESS(RF6,RF6)","v":"$RF$474"},{"$f":"ADDRESS(RG6,RG6)","v":"$RG$475"},{"$f":"ADDRESS(RH6,RH6)","v":"$RH$476"},{"$f":"ADDRESS(RI6,RI6)","v":"$RI$477"},{"$f":"ADDRESS(RJ6,RJ6)","v":"$RJ$478"},{"$f":"ADDRESS(RK6,RK6)","v":"$RK$479"},{"$f":"ADDRESS(RL6,RL6)","v":"$RL$480"},{"$f":"ADDRESS(RM6,RM6)","v":"$RM$481"},{"$f":"ADDRESS(RN6,RN6)","v":"$RN$482"},{"$f":"ADDRESS(RO6,RO6)","v":"$RO$483"},{"$f":"ADDRESS(RP6,RP6)","v":"$RP$484"},{"$f":"ADDRESS(RQ6,RQ6)","v":"$RQ$485"},{"$f":"ADDRESS(RR6,RR6)","v":"$RR$486"},{"$f":"ADDRESS(RS6,RS6)","v":"$RS$487"},{"$f":"ADDRESS(RT6,RT6)","v":"$RT$488"},{"$f":"ADDRESS(RU6,RU6)","v":"$RU$489"},{"$f":"ADDRESS(RV6,RV6)","v":"$RV$490"},{"$f":"ADDRESS(RW6,RW6)","v":"$RW$491"},{"$f":"ADDRESS(RX6,RX6)","v":"$RX$492"},{"$f":"ADDRESS(RY6,RY6)","v":"$RY$493"},{"$f":"ADDRESS(RZ6,RZ6)","v":"$RZ$494"},{"$f":"ADDRESS(SA6,SA6)","v":"$SA$495"},{"$f":"ADDRESS(SB6,SB6)","v":"$SB$496"},{"$f":"ADDRESS(SC6,SC6)","v":"$SC$497"},{"$f":"ADDRESS(SD6,SD6)","v":"$SD$498"},{"$f":"ADDRESS(SE6,SE6)","v":"$SE$499"},{"$f":"ADDRESS(SF6,SF6)","v":"$SF$500"},{"$f":"ADDRESS(SG6,SG6)","v":"$SG$501"},{"$f":"ADDRESS(SH6,SH6)","v":"$SH$502"},{"$f":"ADDRESS(SI6,SI6)","v":"$SI$503"},{"$f":"ADDRESS(SJ6,SJ6)","v":"$SJ$504"},{"$f":"ADDRESS(SK6,SK6)","v":"$SK$505"},{"$f":"ADDRESS(SL6,SL6)","v":"$SL$506"},{"$f":"ADDRESS(SM6,SM6)","v":"$SM$507"},{"$f":"ADDRESS(SN6,SN6)","v":"$SN$508"},{"$f":"ADDRESS(SO6,SO6)","v":"$SO$509"},{"$f":"ADDRESS(SP6,SP6)","v":"$SP$510"},{"$f":"ADDRESS(SQ6,SQ6)","v":"$SQ$511"},{"$f":"ADDRESS(SR6,SR6)","v":"$SR$512"},{"$f":"ADDRESS(SS6,SS6)","v":"$SS$513"},{"$f":"ADDRESS(ST6,ST6)","v":"$ST$514"},{"$f":"ADDRESS(SU6,SU6)","v":"$SU$515"},{"$f":"ADDRESS(SV6,SV6)","v":"$SV$516"},{"$f":"ADDRESS(SW6,SW6)","v":"$SW$517"},{"$f":"ADDRESS(SX6,SX6)","v":"$SX$518"},{"$f":"ADDRESS(SY6,SY6)","v":"$SY$519"},{"$f":"ADDRESS(SZ6,SZ6)","v":"$SZ$520"},{"$f":"ADDRESS(TA6,TA6)","v":"$TA$521"},{"$f":"ADDRESS(TB6,TB6)","v":"$TB$522"},{"$f":"ADDRESS(TC6,TC6)","v":"$TC$523"},{"$f":"ADDRESS(TD6,TD6)","v":"$TD$524"},{"$f":"ADDRESS(TE6,TE6)","v":"$TE$525"},{"$f":"ADDRESS(TF6,TF6)","v":"$TF$526"},{"$f":"ADDRESS(TG6,TG6)","v":"$TG$527"},{"$f":"ADDRESS(TH6,TH6)","v":"$TH$528"},{"$f":"ADDRESS(TI6,TI6)","v":"$TI$529"},{"$f":"ADDRESS(TJ6,TJ6)","v":"$TJ$530"},{"$f":"ADDRESS(TK6,TK6)","v":"$TK$531"},{"$f":"ADDRESS(TL6,TL6)","v":"$TL$532"},{"$f":"ADDRESS(TM6,TM6)","v":"$TM$533"},{"$f":"ADDRESS(TN6,TN6)","v":"$TN$534"},{"$f":"ADDRESS(TO6,TO6)","v":"$TO$535"},{"$f":"ADDRESS(TP6,TP6)","v":"$TP$536"},{"$f":"ADDRESS(TQ6,TQ6)","v":"$TQ$537"},{"$f":"ADDRESS(TR6,TR6)","v":"$TR$538"},{"$f":"ADDRESS(TS6,TS6)","v":"$TS$539"},{"$f":"ADDRESS(TT6,TT6)","v":"$TT$540"},{"$f":"ADDRESS(TU6,TU6)","v":"$TU$541"},{"$f":"ADDRESS(TV6,TV6)","v":"$TV$542"},{"$f":"ADDRESS(TW6,TW6)","v":"$TW$543"},{"$f":"ADDRESS(TX6,TX6)","v":"$TX$544"},{"$f":"ADDRESS(TY6,TY6)","v":"$TY$545"},{"$f":"ADDRESS(TZ6,TZ6)","v":"$TZ$546"},{"$f":"ADDRESS(UA6,UA6)","v":"$UA$547"},{"$f":"ADDRESS(UB6,UB6)","v":"$UB$548"},{"$f":"ADDRESS(UC6,UC6)","v":"$UC$549"},{"$f":"ADDRESS(UD6,UD6)","v":"$UD$550"},{"$f":"ADDRESS(UE6,UE6)","v":"$UE$551"},{"$f":"ADDRESS(UF6,UF6)","v":"$UF$552"},{"$f":"ADDRESS(UG6,UG6)","v":"$UG$553"},{"$f":"ADDRESS(UH6,UH6)","v":"$UH$554"},{"$f":"ADDRESS(UI6,UI6)","v":"$UI$555"},{"$f":"ADDRESS(UJ6,UJ6)","v":"$UJ$556"},{"$f":"ADDRESS(UK6,UK6)","v":"$UK$557"},{"$f":"ADDRESS(UL6,UL6)","v":"$UL$558"},{"$f":"ADDRESS(UM6,UM6)","v":"$UM$559"},{"$f":"ADDRESS(UN6,UN6)","v":"$UN$560"},{"$f":"ADDRESS(UO6,UO6)","v":"$UO$561"},{"$f":"ADDRESS(UP6,UP6)","v":"$UP$562"},{"$f":"ADDRESS(UQ6,UQ6)","v":"$UQ$563"},{"$f":"ADDRESS(UR6,UR6)","v":"$UR$564"},{"$f":"ADDRESS(US6,US6)","v":"$US$565"},{"$f":"ADDRESS(UT6,UT6)","v":"$UT$566"},{"$f":"ADDRESS(UU6,UU6)","v":"$UU$567"},{"$f":"ADDRESS(UV6,UV6)","v":"$UV$568"},{"$f":"ADDRESS(UW6,UW6)","v":"$UW$569"},{"$f":"ADDRESS(UX6,UX6)","v":"$UX$570"},{"$f":"ADDRESS(UY6,UY6)","v":"$UY$571"},{"$f":"ADDRESS(UZ6,UZ6)","v":"$UZ$572"},{"$f":"ADDRESS(VA6,VA6)","v":"$VA$573"},{"$f":"ADDRESS(VB6,VB6)","v":"$VB$574"},{"$f":"ADDRESS(VC6,VC6)","v":"$VC$575"},{"$f":"ADDRESS(VD6,VD6)","v":"$VD$576"},{"$f":"ADDRESS(VE6,VE6)","v":"$VE$577"},{"$f":"ADDRESS(VF6,VF6)","v":"$VF$578"},{"$f":"ADDRESS(VG6,VG6)","v":"$VG$579"},{"$f":"ADDRESS(VH6,VH6)","v":"$VH$580"},{"$f":"ADDRESS(VI6,VI6)","v":"$VI$581"},{"$f":"ADDRESS(VJ6,VJ6)","v":"$VJ$582"},{"$f":"ADDRESS(VK6,VK6)","v":"$VK$583"},{"$f":"ADDRESS(VL6,VL6)","v":"$VL$584"},{"$f":"ADDRESS(VM6,VM6)","v":"$VM$585"},{"$f":"ADDRESS(VN6,VN6)","v":"$VN$586"},{"$f":"ADDRESS(VO6,VO6)","v":"$VO$587"},{"$f":"ADDRESS(VP6,VP6)","v":"$VP$588"},{"$f":"ADDRESS(VQ6,VQ6)","v":"$VQ$589"},{"$f":"ADDRESS(VR6,VR6)","v":"$VR$590"},{"$f":"ADDRESS(VS6,VS6)","v":"$VS$591"},{"$f":"ADDRESS(VT6,VT6)","v":"$VT$592"},{"$f":"ADDRESS(VU6,VU6)","v":"$VU$593"},{"$f":"ADDRESS(VV6,VV6)","v":"$VV$594"},{"$f":"ADDRESS(VW6,VW6)","v":"$VW$595"},{"$f":"ADDRESS(VX6,VX6)","v":"$VX$596"},{"$f":"ADDRESS(VY6,VY6)","v":"$VY$597"},{"$f":"ADDRESS(VZ6,VZ6)","v":"$VZ$598"},{"$f":"ADDRESS(WA6,WA6)","v":"$WA$599"},{"$f":"ADDRESS(WB6,WB6)","v":"$WB$600"},{"$f":"ADDRESS(WC6,WC6)","v":"$WC$601"},{"$f":"ADDRESS(WD6,WD6)","v":"$WD$602"},{"$f":"ADDRESS(WE6,WE6)","v":"$WE$603"},{"$f":"ADDRESS(WF6,WF6)","v":"$WF$604"},{"$f":"ADDRESS(WG6,WG6)","v":"$WG$605"},{"$f":"ADDRESS(WH6,WH6)","v":"$WH$606"},{"$f":"ADDRESS(WI6,WI6)","v":"$WI$607"},{"$f":"ADDRESS(WJ6,WJ6)","v":"$WJ$608"},{"$f":"ADDRESS(WK6,WK6)","v":"$WK$609"},{"$f":"ADDRESS(WL6,WL6)","v":"$WL$610"},{"$f":"ADDRESS(WM6,WM6)","v":"$WM$611"},{"$f":"ADDRESS(WN6,WN6)","v":"$WN$612"},{"$f":"ADDRESS(WO6,WO6)","v":"$WO$613"},{"$f":"ADDRESS(WP6,WP6)","v":"$WP$614"},{"$f":"ADDRESS(WQ6,WQ6)","v":"$WQ$615"},{"$f":"ADDRESS(WR6,WR6)","v":"$WR$616"},{"$f":"ADDRESS(WS6,WS6)","v":"$WS$617"},{"$f":"ADDRESS(WT6,WT6)","v":"$WT$618"},{"$f":"ADDRESS(WU6,WU6)","v":"$WU$619"},{"$f":"ADDRESS(WV6,WV6)","v":"$WV$620"},{"$f":"ADDRESS(WW6,WW6)","v":"$WW$621"},{"$f":"ADDRESS(WX6,WX6)","v":"$WX$622"},{"$f":"ADDRESS(WY6,WY6)","v":"$WY$623"},{"$f":"ADDRESS(WZ6,WZ6)","v":"$WZ$624"},{"$f":"ADDRESS(XA6,XA6)","v":"$XA$625"},{"$f":"ADDRESS(XB6,XB6)","v":"$XB$626"},{"$f":"ADDRESS(XC6,XC6)","v":"$XC$627"},{"$f":"ADDRESS(XD6,XD6)","v":"$XD$628"},{"$f":"ADDRESS(XE6,XE6)","v":"$XE$629"},{"$f":"ADDRESS(XF6,XF6)","v":"$XF$630"},{"$f":"ADDRESS(XG6,XG6)","v":"$XG$631"},{"$f":"ADDRESS(XH6,XH6)","v":"$XH$632"},{"$f":"ADDRESS(XI6,XI6)","v":"$XI$633"},{"$f":"ADDRESS(XJ6,XJ6)","v":"$XJ$634"},{"$f":"ADDRESS(XK6,XK6)","v":"$XK$635"},{"$f":"ADDRESS(XL6,XL6)","v":"$XL$636"},{"$f":"ADDRESS(XM6,XM6)","v":"$XM$637"},{"$f":"ADDRESS(XN6,XN6)","v":"$XN$638"},{"$f":"ADDRESS(XO6,XO6)","v":"$XO$639"},{"$f":"ADDRESS(XP6,XP6)","v":"$XP$640"},{"$f":"ADDRESS(XQ6,XQ6)","v":"$XQ$641"},{"$f":"ADDRESS(XR6,XR6)","v":"$XR$642"},{"$f":"ADDRESS(XS6,XS6)","v":"$XS$643"},{"$f":"ADDRESS(XT6,XT6)","v":"$XT$644"},{"$f":"ADDRESS(XU6,XU6)","v":"$XU$645"},{"$f":"ADDRESS(XV6,XV6)","v":"$XV$646"},{"$f":"ADDRESS(XW6,XW6)","v":"$XW$647"},{"$f":"ADDRESS(XX6,XX6)","v":"$XX$648"},{"$f":"ADDRESS(XY6,XY6)","v":"$XY$649"},{"$f":"ADDRESS(XZ6,XZ6)","v":"$XZ$650"},{"$f":"ADDRESS(YA6,YA6)","v":"$YA$651"},{"$f":"ADDRESS(YB6,YB6)","v":"$YB$652"},{"$f":"ADDRESS(YC6,YC6)","v":"$YC$653"},{"$f":"ADDRESS(YD6,YD6)","v":"$YD$654"},{"$f":"ADDRESS(YE6,YE6)","v":"$YE$655"},{"$f":"ADDRESS(YF6,YF6)","v":"$YF$656"},{"$f":"ADDRESS(YG6,YG6)","v":"$YG$657"},{"$f":"ADDRESS(YH6,YH6)","v":"$YH$658"},{"$f":"ADDRESS(YI6,YI6)","v":"$YI$659"},{"$f":"ADDRESS(YJ6,YJ6)","v":"$YJ$660"},{"$f":"ADDRESS(YK6,YK6)","v":"$YK$661"},{"$f":"ADDRESS(YL6,YL6)","v":"$YL$662"},{"$f":"ADDRESS(YM6,YM6)","v":"$YM$663"},{"$f":"ADDRESS(YN6,YN6)","v":"$YN$664"},{"$f":"ADDRESS(YO6,YO6)","v":"$YO$665"},{"$f":"ADDRESS(YP6,YP6)","v":"$YP$666"},{"$f":"ADDRESS(YQ6,YQ6)","v":"$YQ$667"},{"$f":"ADDRESS(YR6,YR6)","v":"$YR$668"},{"$f":"ADDRESS(YS6,YS6)","v":"$YS$669"},{"$f":"ADDRESS(YT6,YT6)","v":"$YT$670"},{"$f":"ADDRESS(YU6,YU6)","v":"$YU$671"},{"$f":"ADDRESS(YV6,YV6)","v":"$YV$672"},{"$f":"ADDRESS(YW6,YW6)","v":"$YW$673"},{"$f":"ADDRESS(YX6,YX6)","v":"$YX$674"},{"$f":"ADDRESS(YY6,YY6)","v":"$YY$675"},{"$f":"ADDRESS(YZ6,YZ6)","v":"$YZ$676"},{"$f":"ADDRESS(ZA6,ZA6)","v":"$ZA$677"},{"$f":"ADDRESS(ZB6,ZB6)","v":"$ZB$678"},{"$f":"ADDRESS(ZC6,ZC6)","v":"$ZC$679"},{"$f":"ADDRESS(ZD6,ZD6)","v":"$ZD$680"},{"$f":"ADDRESS(ZE6,ZE6)","v":"$ZE$681"},{"$f":"ADDRESS(ZF6,ZF6)","v":"$ZF$682"},{"$f":"ADDRESS(ZG6,ZG6)","v":"$ZG$683"},{"$f":"ADDRESS(ZH6,ZH6)","v":"$ZH$684"},{"$f":"ADDRESS(ZI6,ZI6)","v":"$ZI$685"},{"$f":"ADDRESS(ZJ6,ZJ6)","v":"$ZJ$686"},{"$f":"ADDRESS(ZK6,ZK6)","v":"$ZK$687"},{"$f":"ADDRESS(ZL6,ZL6)","v":"$ZL$688"},{"$f":"ADDRESS(ZM6,ZM6)","v":"$ZM$689"},{"$f":"ADDRESS(ZN6,ZN6)","v":"$ZN$690"},{"$f":"ADDRESS(ZO6,ZO6)","v":"$ZO$691"},{"$f":"ADDRESS(ZP6,ZP6)","v":"$ZP$692"},{"$f":"ADDRESS(ZQ6,ZQ6)","v":"$ZQ$693"},{"$f":"ADDRESS(ZR6,ZR6)","v":"$ZR$694"},{"$f":"ADDRESS(ZS6,ZS6)","v":"$ZS$695"},{"$f":"ADDRESS(ZT6,ZT6)","v":"$ZT$696"},{"$f":"ADDRESS(ZU6,ZU6)","v":"$ZU$697"},{"$f":"ADDRESS(ZV6,ZV6)","v":"$ZV$698"},{"$f":"ADDRESS(ZW6,ZW6)","v":"$ZW$699"},{"$f":"ADDRESS(ZX6,ZX6)","v":"$ZX$700"},{"$f":"ADDRESS(ZY6,ZY6)","v":"$ZY$701"},{"$f":"ADDRESS(ZZ6,ZZ6)","v":"$ZZ$702"},{"$f":"ADDRESS(AAA6,AAA6)","v":"$AAA$703"},{"$f":"ADDRESS(AAB6,AAB6)","v":"$AAB$704"},{"$f":"ADDRESS(AAC6,AAC6)","v":"$AAC$705"},{"$f":"ADDRESS(AAD6,AAD6)","v":"$AAD$706"},{"$f":"ADDRESS(AAE6,AAE6)","v":"$AAE$707"},{"$f":"ADDRESS(AAF6,AAF6)","v":"$AAF$708"},{"$f":"ADDRESS(AAG6,AAG6)","v":"$AAG$709"},{"$f":"ADDRESS(AAH6,AAH6)","v":"$AAH$710"},{"$f":"ADDRESS(AAI6,AAI6)","v":"$AAI$711"},{"$f":"ADDRESS(AAJ6,AAJ6)","v":"$AAJ$712"},{"$f":"ADDRESS(AAK6,AAK6)","v":"$AAK$713"},{"$f":"ADDRESS(AAL6,AAL6)","v":"$AAL$714"},{"$f":"ADDRESS(AAM6,AAM6)","v":"$AAM$715"},{"$f":"ADDRESS(AAN6,AAN6)","v":"$AAN$716"},{"$f":"ADDRESS(AAO6,AAO6)","v":"$AAO$717"},{"$f":"ADDRESS(AAP6,AAP6)","v":"$AAP$718"},{"$f":"ADDRESS(AAQ6,AAQ6)","v":"$AAQ$719"},{"$f":"ADDRESS(AAR6,AAR6)","v":"$AAR$720"},{"$f":"ADDRESS(AAS6,AAS6)","v":"$AAS$721"},{"$f":"ADDRESS(AAT6,AAT6)","v":"$AAT$722"},{"$f":"ADDRESS(AAU6,AAU6)","v":"$AAU$723"},{"$f":"ADDRESS(AAV6,AAV6)","v":"$AAV$724"},{"$f":"ADDRESS(AAW6,AAW6)","v":"$AAW$725"},{"$f":"ADDRESS(AAX6,AAX6)","v":"$AAX$726"},{"$f":"ADDRESS(AAY6,AAY6)","v":"$AAY$727"},{"$f":"ADDRESS(AAZ6,AAZ6)","v":"$AAZ$728"},{"$f":"ADDRESS(ABA6,ABA6)","v":"$ABA$729"},{"$f":"ADDRESS(ABB6,ABB6)","v":"$ABB$730"},{"$f":"ADDRESS(ABC6,ABC6)","v":"$ABC$731"}]
[null,"First $",{"$f":"FIND(\"$\",C7,1)","v":1},{"$f":"FIND(\"$\",D7,1)","v":1},1,1,1,{"$f":"FIND(\"$\",H7,1)","v":1},1,1,1,1,1,1,1,1,1,1,1,1,1,1,1,1,1,1,1,1,1,1,1,1,1,1,1,1,1,1,1,1,1,1,1,1,1,1,1,1,1,1,1,1,1,{"$f":"FIND(\"$\",BB7,1)","v":1},{"$f":"FIND(\"$\",BC7,1)","v":1},{"$f":"FIND(\"$\",BD7,1)","v":1},{"$f":"FIND(\"$\",BE7,1)","v":1},{"$f":"FIND(\"$\",BF7,1)","v":1},{"$f":"FIND(\"$\",BG7,1)","v":1},{"$f":"FIND(\"$\",BH7,1)","v":1},{"$f":"FIND(\"$\",BI7,1)","v":1},{"$f":"FIND(\"$\",BJ7,1)","v":1},{"$f":"FIND(\"$\",BK7,1)","v":1},{"$f":"FIND(\"$\",BL7,1)","v":1},{"$f":"FIND(\"$\",BM7,1)","v":1},{"$f":"FIND(\"$\",BN7,1)","v":1},{"$f":"FIND(\"$\",BO7,1)","v":1},{"$f":"FIND(\"$\",BP7,1)","v":1},{"$f":"FIND(\"$\",BQ7,1)","v":1},{"$f":"FIND(\"$\",BR7,1)","v":1},{"$f":"FIND(\"$\",BS7,1)","v":1},{"$f":"FIND(\"$\",BT7,1)","v":1},{"$f":"FIND(\"$\",BU7,1)","v":1},{"$f":"FIND(\"$\",BV7,1)","v":1},{"$f":"FIND(\"$\",BW7,1)","v":1},{"$f":"FIND(\"$\",BX7,1)","v":1},{"$f":"FIND(\"$\",BY7,1)","v":1},{"$f":"FIND(\"$\",BZ7,1)","v":1},{"$f":"FIND(\"$\",CA7,1)","v":1},{"$f":"FIND(\"$\",CB7,1)","v":1},{"$f":"FIND(\"$\",CC7,1)","v":1},{"$f":"FIND(\"$\",CD7,1)","v":1},{"$f":"FIND(\"$\",CE7,1)","v":1},{"$f":"FIND(\"$\",CF7,1)","v":1},{"$f":"FIND(\"$\",CG7,1)","v":1},{"$f":"FIND(\"$\",CH7,1)","v":1},{"$f":"FIND(\"$\",CI7,1)","v":1},{"$f":"FIND(\"$\",CJ7,1)","v":1},{"$f":"FIND(\"$\",CK7,1)","v":1},{"$f":"FIND(\"$\",CL7,1)","v":1},{"$f":"FIND(\"$\",CM7,1)","v":1},{"$f":"FIND(\"$\",CN7,1)","v":1},{"$f":"FIND(\"$\",CO7,1)","v":1},{"$f":"FIND(\"$\",CP7,1)","v":1},{"$f":"FIND(\"$\",CQ7,1)","v":1},{"$f":"FIND(\"$\",CR7,1)","v":1},{"$f":"FIND(\"$\",CS7,1)","v":1},{"$f":"FIND(\"$\",CT7,1)","v":1},{"$f":"FIND(\"$\",CU7,1)","v":1},{"$f":"FIND(\"$\",CV7,1)","v":1},{"$f":"FIND(\"$\",CW7,1)","v":1},{"$f":"FIND(\"$\",CX7,1)","v":1},{"$f":"FIND(\"$\",CY7,1)","v":1},{"$f":"FIND(\"$\",CZ7,1)","v":1},{"$f":"FIND(\"$\",DA7,1)","v":1},{"$f":"FIND(\"$\",DB7,1)","v":1},{"$f":"FIND(\"$\",DC7,1)","v":1},{"$f":"FIND(\"$\",DD7,1)","v":1},{"$f":"FIND(\"$\",DE7,1)","v":1},{"$f":"FIND(\"$\",DF7,1)","v":1},{"$f":"FIND(\"$\",DG7,1)","v":1},{"$f":"FIND(\"$\",DH7,1)","v":1},{"$f":"FIND(\"$\",DI7,1)","v":1},{"$f":"FIND(\"$\",DJ7,1)","v":1},{"$f":"FIND(\"$\",DK7,1)","v":1},{"$f":"FIND(\"$\",DL7,1)","v":1},{"$f":"FIND(\"$\",DM7,1)","v":1},{"$f":"FIND(\"$\",DN7,1)","v":1},{"$f":"FIND(\"$\",DO7,1)","v":1},{"$f":"FIND(\"$\",DP7,1)","v":1},{"$f":"FIND(\"$\",DQ7,1)","v":1},{"$f":"FIND(\"$\",DR7,1)","v":1},{"$f":"FIND(\"$\",DS7,1)","v":1},{"$f":"FIND(\"$\",DT7,1)","v":1},{"$f":"FIND(\"$\",DU7,1)","v":1},{"$f":"FIND(\"$\",DV7,1)","v":1},{"$f":"FIND(\"$\",DW7,1)","v":1},{"$f":"FIND(\"$\",DX7,1)","v":1},{"$f":"FIND(\"$\",DY7,1)","v":1},{"$f":"FIND(\"$\",DZ7,1)","v":1},{"$f":"FIND(\"$\",EA7,1)","v":1},{"$f":"FIND(\"$\",EB7,1)","v":1},{"$f":"FIND(\"$\",EC7,1)","v":1},{"$f":"FIND(\"$\",ED7,1)","v":1},{"$f":"FIND(\"$\",EE7,1)","v":1},{"$f":"FIND(\"$\",EF7,1)","v":1},{"$f":"FIND(\"$\",EG7,1)","v":1},{"$f":"FIND(\"$\",EH7,1)","v":1},{"$f":"FIND(\"$\",EI7,1)","v":1},{"$f":"FIND(\"$\",EJ7,1)","v":1},{"$f":"FIND(\"$\",EK7,1)","v":1},{"$f":"FIND(\"$\",EL7,1)","v":1},{"$f":"FIND(\"$\",EM7,1)","v":1},{"$f":"FIND(\"$\",EN7,1)","v":1},{"$f":"FIND(\"$\",EO7,1)","v":1},{"$f":"FIND(\"$\",EP7,1)","v":1},{"$f":"FIND(\"$\",EQ7,1)","v":1},{"$f":"FIND(\"$\",ER7,1)","v":1},{"$f":"FIND(\"$\",ES7,1)","v":1},{"$f":"FIND(\"$\",ET7,1)","v":1},{"$f":"FIND(\"$\",EU7,1)","v":1},{"$f":"FIND(\"$\",EV7,1)","v":1},{"$f":"FIND(\"$\",EW7,1)","v":1},{"$f":"FIND(\"$\",EX7,1)","v":1},{"$f":"FIND(\"$\",EY7,1)","v":1},{"$f":"FIND(\"$\",EZ7,1)","v":1},{"$f":"FIND(\"$\",FA7,1)","v":1},{"$f":"FIND(\"$\",FB7,1)","v":1},{"$f":"FIND(\"$\",FC7,1)","v":1},{"$f":"FIND(\"$\",FD7,1)","v":1},{"$f":"FIND(\"$\",FE7,1)","v":1},{"$f":"FIND(\"$\",FF7,1)","v":1},{"$f":"FIND(\"$\",FG7,1)","v":1},{"$f":"FIND(\"$\",FH7,1)","v":1},{"$f":"FIND(\"$\",FI7,1)","v":1},{"$f":"FIND(\"$\",FJ7,1)","v":1},{"$f":"FIND(\"$\",FK7,1)","v":1},{"$f":"FIND(\"$\",FL7,1)","v":1},{"$f":"FIND(\"$\",FM7,1)","v":1},{"$f":"FIND(\"$\",FN7,1)","v":1},{"$f":"FIND(\"$\",FO7,1)","v":1},{"$f":"FIND(\"$\",FP7,1)","v":1},{"$f":"FIND(\"$\",FQ7,1)","v":1},{"$f":"FIND(\"$\",FR7,1)","v":1},{"$f":"FIND(\"$\",FS7,1)","v":1},{"$f":"FIND(\"$\",FT7,1)","v":1},{"$f":"FIND(\"$\",FU7,1)","v":1},{"$f":"FIND(\"$\",FV7,1)","v":1},{"$f":"FIND(\"$\",FW7,1)","v":1},{"$f":"FIND(\"$\",FX7,1)","v":1},{"$f":"FIND(\"$\",FY7,1)","v":1},{"$f":"FIND(\"$\",FZ7,1)","v":1},{"$f":"FIND(\"$\",GA7,1)","v":1},{"$f":"FIND(\"$\",GB7,1)","v":1},{"$f":"FIND(\"$\",GC7,1)","v":1},{"$f":"FIND(\"$\",GD7,1)","v":1},{"$f":"FIND(\"$\",GE7,1)","v":1},{"$f":"FIND(\"$\",GF7,1)","v":1},{"$f":"FIND(\"$\",GG7,1)","v":1},{"$f":"FIND(\"$\",GH7,1)","v":1},{"$f":"FIND(\"$\",GI7,1)","v":1},{"$f":"FIND(\"$\",GJ7,1)","v":1},{"$f":"FIND(\"$\",GK7,1)","v":1},{"$f":"FIND(\"$\",GL7,1)","v":1},{"$f":"FIND(\"$\",GM7,1)","v":1},{"$f":"FIND(\"$\",GN7,1)","v":1},{"$f":"FIND(\"$\",GO7,1)","v":1},{"$f":"FIND(\"$\",GP7,1)","v":1},{"$f":"FIND(\"$\",GQ7,1)","v":1},{"$f":"FIND(\"$\",GR7,1)","v":1},{"$f":"FIND(\"$\",GS7,1)","v":1},{"$f":"FIND(\"$\",GT7,1)","v":1},{"$f":"FIND(\"$\",GU7,1)","v":1},{"$f":"FIND(\"$\",GV7,1)","v":1},{"$f":"FIND(\"$\",GW7,1)","v":1},{"$f":"FIND(\"$\",GX7,1)","v":1},{"$f":"FIND(\"$\",GY7,1)","v":1},{"$f":"FIND(\"$\",GZ7,1)","v":1},{"$f":"FIND(\"$\",HA7,1)","v":1},{"$f":"FIND(\"$\",HB7,1)","v":1},{"$f":"FIND(\"$\",HC7,1)","v":1},{"$f":"FIND(\"$\",HD7,1)","v":1},{"$f":"FIND(\"$\",HE7,1)","v":1},{"$f":"FIND(\"$\",HF7,1)","v":1},{"$f":"FIND(\"$\",HG7,1)","v":1},{"$f":"FIND(\"$\",HH7,1)","v":1},{"$f":"FIND(\"$\",HI7,1)","v":1},{"$f":"FIND(\"$\",HJ7,1)","v":1},{"$f":"FIND(\"$\",HK7,1)","v":1},{"$f":"FIND(\"$\",HL7,1)","v":1},{"$f":"FIND(\"$\",HM7,1)","v":1},{"$f":"FIND(\"$\",HN7,1)","v":1},{"$f":"FIND(\"$\",HO7,1)","v":1},{"$f":"FIND(\"$\",HP7,1)","v":1},{"$f":"FIND(\"$\",HQ7,1)","v":1},{"$f":"FIND(\"$\",HR7,1)","v":1},{"$f":"FIND(\"$\",HS7,1)","v":1},{"$f":"FIND(\"$\",HT7,1)","v":1},{"$f":"FIND(\"$\",HU7,1)","v":1},{"$f":"FIND(\"$\",HV7,1)","v":1},{"$f":"FIND(\"$\",HW7,1)","v":1},{"$f":"FIND(\"$\",HX7,1)","v":1},{"$f":"FIND(\"$\",HY7,1)","v":1},{"$f":"FIND(\"$\",HZ7,1)","v":1},{"$f":"FIND(\"$\",IA7,1)","v":1},{"$f":"FIND(\"$\",IB7,1)","v":1},{"$f":"FIND(\"$\",IC7,1)","v":1},{"$f":"FIND(\"$\",ID7,1)","v":1},{"$f":"FIND(\"$\",IE7,1)","v":1},{"$f":"FIND(\"$\",IF7,1)","v":1},{"$f":"FIND(\"$\",IG7,1)","v":1},{"$f":"FIND(\"$\",IH7,1)","v":1},{"$f":"FIND(\"$\",II7,1)","v":1},{"$f":"FIND(\"$\",IJ7,1)","v":1},{"$f":"FIND(\"$\",IK7,1)","v":1},{"$f":"FIND(\"$\",IL7,1)","v":1},{"$f":"FIND(\"$\",IM7,1)","v":1},{"$f":"FIND(\"$\",IN7,1)","v":1},{"$f":"FIND(\"$\",IO7,1)","v":1},{"$f":"FIND(\"$\",IP7,1)","v":1},{"$f":"FIND(\"$\",IQ7,1)","v":1},{"$f":"FIND(\"$\",IR7,1)","v":1},{"$f":"FIND(\"$\",IS7,1)","v":1},{"$f":"FIND(\"$\",IT7,1)","v":1},{"$f":"FIND(\"$\",IU7,1)","v":1},{"$f":"FIND(\"$\",IV7,1)","v":1},{"$f":"FIND(\"$\",IW7,1)","v":1},{"$f":"FIND(\"$\",IX7,1)","v":1},{"$f":"FIND(\"$\",IY7,1)","v":1},{"$f":"FIND(\"$\",IZ7,1)","v":1},{"$f":"FIND(\"$\",JA7,1)","v":1},{"$f":"FIND(\"$\",JB7,1)","v":1},{"$f":"FIND(\"$\",JC7,1)","v":1},{"$f":"FIND(\"$\",JD7,1)","v":1},{"$f":"FIND(\"$\",JE7,1)","v":1},{"$f":"FIND(\"$\",JF7,1)","v":1},{"$f":"FIND(\"$\",JG7,1)","v":1},{"$f":"FIND(\"$\",JH7,1)","v":1},{"$f":"FIND(\"$\",JI7,1)","v":1},{"$f":"FIND(\"$\",JJ7,1)","v":1},{"$f":"FIND(\"$\",JK7,1)","v":1},{"$f":"FIND(\"$\",JL7,1)","v":1},{"$f":"FIND(\"$\",JM7,1)","v":1},{"$f":"FIND(\"$\",JN7,1)","v":1},{"$f":"FIND(\"$\",JO7,1)","v":1},{"$f":"FIND(\"$\",JP7,1)","v":1},{"$f":"FIND(\"$\",JQ7,1)","v":1},{"$f":"FIND(\"$\",JR7,1)","v":1},{"$f":"FIND(\"$\",JS7,1)","v":1},{"$f":"FIND(\"$\",JT7,1)","v":1},{"$f":"FIND(\"$\",JU7,1)","v":1},{"$f":"FIND(\"$\",JV7,1)","v":1},{"$f":"FIND(\"$\",JW7,1)","v":1},{"$f":"FIND(\"$\",JX7,1)","v":1},{"$f":"FIND(\"$\",JY7,1)","v":1},{"$f":"FIND(\"$\",JZ7,1)","v":1},{"$f":"FIND(\"$\",KA7,1)","v":1},{"$f":"FIND(\"$\",KB7,1)","v":1},{"$f":"FIND(\"$\",KC7,1)","v":1},{"$f":"FIND(\"$\",KD7,1)","v":1},{"$f":"FIND(\"$\",KE7,1)","v":1},{"$f":"FIND(\"$\",KF7,1)","v":1},{"$f":"FIND(\"$\",KG7,1)","v":1},{"$f":"FIND(\"$\",KH7,1)","v":1},{"$f":"FIND(\"$\",KI7,1)","v":1},{"$f":"FIND(\"$\",KJ7,1)","v":1},{"$f":"FIND(\"$\",KK7,1)","v":1},{"$f":"FIND(\"$\",KL7,1)","v":1},{"$f":"FIND(\"$\",KM7,1)","v":1},{"$f":"FIND(\"$\",KN7,1)","v":1},{"$f":"FIND(\"$\",KO7,1)","v":1},{"$f":"FIND(\"$\",KP7,1)","v":1},{"$f":"FIND(\"$\",KQ7,1)","v":1},{"$f":"FIND(\"$\",KR7,1)","v":1},{"$f":"FIND(\"$\",KS7,1)","v":1},{"$f":"FIND(\"$\",KT7,1)","v":1},{"$f":"FIND(\"$\",KU7,1)","v":1},{"$f":"FIND(\"$\",KV7,1)","v":1},{"$f":"FIND(\"$\",KW7,1)","v":1},{"$f":"FIND(\"$\",KX7,1)","v":1},{"$f":"FIND(\"$\",KY7,1)","v":1},{"$f":"FIND(\"$\",KZ7,1)","v":1},{"$f":"FIND(\"$\",LA7,1)","v":1},{"$f":"FIND(\"$\",LB7,1)","v":1},{"$f":"FIND(\"$\",LC7,1)","v":1},{"$f":"FIND(\"$\",LD7,1)","v":1},{"$f":"FIND(\"$\",LE7,1)","v":1},{"$f":"FIND(\"$\",LF7,1)","v":1},{"$f":"FIND(\"$\",LG7,1)","v":1},{"$f":"FIND(\"$\",LH7,1)","v":1},{"$f":"FIND(\"$\",LI7,1)","v":1},{"$f":"FIND(\"$\",LJ7,1)","v":1},{"$f":"FIND(\"$\",LK7,1)","v":1},{"$f":"FIND(\"$\",LL7,1)","v":1},{"$f":"FIND(\"$\",LM7,1)","v":1},{"$f":"FIND(\"$\",LN7,1)","v":1},{"$f":"FIND(\"$\",LO7,1)","v":1},{"$f":"FIND(\"$\",LP7,1)","v":1},{"$f":"FIND(\"$\",LQ7,1)","v":1},{"$f":"FIND(\"$\",LR7,1)","v":1},{"$f":"FIND(\"$\",LS7,1)","v":1},{"$f":"FIND(\"$\",LT7,1)","v":1},{"$f":"FIND(\"$\",LU7,1)","v":1},{"$f":"FIND(\"$\",LV7,1)","v":1},{"$f":"FIND(\"$\",LW7,1)","v":1},{"$f":"FIND(\"$\",LX7,1)","v":1},{"$f":"FIND(\"$\",LY7,1)","v":1},{"$f":"FIND(\"$\",LZ7,1)","v":1},{"$f":"FIND(\"$\",MA7,1)","v":1},{"$f":"FIND(\"$\",MB7,1)","v":1},{"$f":"FIND(\"$\",MC7,1)","v":1},{"$f":"FIND(\"$\",MD7,1)","v":1},{"$f":"FIND(\"$\",ME7,1)","v":1},{"$f":"FIND(\"$\",MF7,1)","v":1},{"$f":"FIND(\"$\",MG7,1)","v":1},{"$f":"FIND(\"$\",MH7,1)","v":1},{"$f":"FIND(\"$\",MI7,1)","v":1},{"$f":"FIND(\"$\",MJ7,1)","v":1},{"$f":"FIND(\"$\",MK7,1)","v":1},{"$f":"FIND(\"$\",ML7,1)","v":1},{"$f":"FIND(\"$\",MM7,1)","v":1},{"$f":"FIND(\"$\",MN7,1)","v":1},{"$f":"FIND(\"$\",MO7,1)","v":1},{"$f":"FIND(\"$\",MP7,1)","v":1},{"$f":"FIND(\"$\",MQ7,1)","v":1},{"$f":"FIND(\"$\",MR7,1)","v":1},{"$f":"FIND(\"$\",MS7,1)","v":1},{"$f":"FIND(\"$\",MT7,1)","v":1},{"$f":"FIND(\"$\",MU7,1)","v":1},{"$f":"FIND(\"$\",MV7,1)","v":1},{"$f":"FIND(\"$\",MW7,1)","v":1},{"$f":"FIND(\"$\",MX7,1)","v":1},{"$f":"FIND(\"$\",MY7,1)","v":1},{"$f":"FIND(\"$\",MZ7,1)","v":1},{"$f":"FIND(\"$\",NA7,1)","v":1},{"$f":"FIND(\"$\",NB7,1)","v":1},{"$f":"FIND(\"$\",NC7,1)","v":1},{"$f":"FIND(\"$\",ND7,1)","v":1},{"$f":"FIND(\"$\",NE7,1)","v":1},{"$f":"FIND(\"$\",NF7,1)","v":1},{"$f":"FIND(\"$\",NG7,1)","v":1},{"$f":"FIND(\"$\",NH7,1)","v":1},{"$f":"FIND(\"$\",NI7,1)","v":1},{"$f":"FIND(\"$\",NJ7,1)","v":1},{"$f":"FIND(\"$\",NK7,1)","v":1},{"$f":"FIND(\"$\",NL7,1)","v":1},{"$f":"FIND(\"$\",NM7,1)","v":1},{"$f":"FIND(\"$\",NN7,1)","v":1},{"$f":"FIND(\"$\",NO7,1)","v":1},{"$f":"FIND(\"$\",NP7,1)","v":1},{"$f":"FIND(\"$\",NQ7,1)","v":1},{"$f":"FIND(\"$\",NR7,1)","v":1},{"$f":"FIND(\"$\",NS7,1)","v":1},{"$f":"FIND(\"$\",NT7,1)","v":1},{"$f":"FIND(\"$\",NU7,1)","v":1},{"$f":"FIND(\"$\",NV7,1)","v":1},{"$f":"FIND(\"$\",NW7,1)","v":1},{"$f":"FIND(\"$\",NX7,1)","v":1},{"$f":"FIND(\"$\",NY7,1)","v":1},{"$f":"FIND(\"$\",NZ7,1)","v":1},{"$f":"FIND(\"$\",OA7,1)","v":1},{"$f":"FIND(\"$\",OB7,1)","v":1},{"$f":"FIND(\"$\",OC7,1)","v":1},{"$f":"FIND(\"$\",OD7,1)","v":1},{"$f":"FIND(\"$\",OE7,1)","v":1},{"$f":"FIND(\"$\",OF7,1)","v":1},{"$f":"FIND(\"$\",OG7,1)","v":1},{"$f":"FIND(\"$\",OH7,1)","v":1},{"$f":"FIND(\"$\",OI7,1)","v":1},{"$f":"FIND(\"$\",OJ7,1)","v":1},{"$f":"FIND(\"$\",OK7,1)","v":1},{"$f":"FIND(\"$\",OL7,1)","v":1},{"$f":"FIND(\"$\",OM7,1)","v":1},{"$f":"FIND(\"$\",ON7,1)","v":1},{"$f":"FIND(\"$\",OO7,1)","v":1},{"$f":"FIND(\"$\",OP7,1)","v":1},{"$f":"FIND(\"$\",OQ7,1)","v":1},{"$f":"FIND(\"$\",OR7,1)","v":1},{"$f":"FIND(\"$\",OS7,1)","v":1},{"$f":"FIND(\"$\",OT7,1)","v":1},{"$f":"FIND(\"$\",OU7,1)","v":1},{"$f":"FIND(\"$\",OV7,1)","v":1},{"$f":"FIND(\"$\",OW7,1)","v":1},{"$f":"FIND(\"$\",OX7,1)","v":1},{"$f":"FIND(\"$\",OY7,1)","v":1},{"$f":"FIND(\"$\",OZ7,1)","v":1},{"$f":"FIND(\"$\",PA7,1)","v":1},{"$f":"FIND(\"$\",PB7,1)","v":1},{"$f":"FIND(\"$\",PC7,1)","v":1},{"$f":"FIND(\"$\",PD7,1)","v":1},{"$f":"FIND(\"$\",PE7,1)","v":1},{"$f":"FIND(\"$\",PF7,1)","v":1},{"$f":"FIND(\"$\",PG7,1)","v":1},{"$f":"FIND(\"$\",PH7,1)","v":1},{"$f":"FIND(\"$\",PI7,1)","v":1},{"$f":"FIND(\"$\",PJ7,1)","v":1},{"$f":"FIND(\"$\",PK7,1)","v":1},{"$f":"FIND(\"$\",PL7,1)","v":1},{"$f":"FIND(\"$\",PM7,1)","v":1},{"$f":"FIND(\"$\",PN7,1)","v":1},{"$f":"FIND(\"$\",PO7,1)","v":1},{"$f":"FIND(\"$\",PP7,1)","v":1},{"$f":"FIND(\"$\",PQ7,1)","v":1},{"$f":"FIND(\"$\",PR7,1)","v":1},{"$f":"FIND(\"$\",PS7,1)","v":1},{"$f":"FIND(\"$\",PT7,1)","v":1},{"$f":"FIND(\"$\",PU7,1)","v":1},{"$f":"FIND(\"$\",PV7,1)","v":1},{"$f":"FIND(\"$\",PW7,1)","v":1},{"$f":"FIND(\"$\",PX7,1)","v":1},{"$f":"FIND(\"$\",PY7,1)","v":1},{"$f":"FIND(\"$\",PZ7,1)","v":1},{"$f":"FIND(\"$\",QA7,1)","v":1},{"$f":"FIND(\"$\",QB7,1)","v":1},{"$f":"FIND(\"$\",QC7,1)","v":1},{"$f":"FIND(\"$\",QD7,1)","v":1},{"$f":"FIND(\"$\",QE7,1)","v":1},{"$f":"FIND(\"$\",QF7,1)","v":1},{"$f":"FIND(\"$\",QG7,1)","v":1},{"$f":"FIND(\"$\",QH7,1)","v":1},{"$f":"FIND(\"$\",QI7,1)","v":1},{"$f":"FIND(\"$\",QJ7,1)","v":1},{"$f":"FIND(\"$\",QK7,1)","v":1},{"$f":"FIND(\"$\",QL7,1)","v":1},{"$f":"FIND(\"$\",QM7,1)","v":1},{"$f":"FIND(\"$\",QN7,1)","v":1},{"$f":"FIND(\"$\",QO7,1)","v":1},{"$f":"FIND(\"$\",QP7,1)","v":1},{"$f":"FIND(\"$\",QQ7,1)","v":1},{"$f":"FIND(\"$\",QR7,1)","v":1},{"$f":"FIND(\"$\",QS7,1)","v":1},{"$f":"FIND(\"$\",QT7,1)","v":1},{"$f":"FIND(\"$\",QU7,1)","v":1},{"$f":"FIND(\"$\",QV7,1)","v":1},{"$f":"FIND(\"$\",QW7,1)","v":1},{"$f":"FIND(\"$\",QX7,1)","v":1},{"$f":"FIND(\"$\",QY7,1)","v":1},{"$f":"FIND(\"$\",QZ7,1)","v":1},{"$f":"FIND(\"$\",RA7,1)","v":1},{"$f":"FIND(\"$\",RB7,1)","v":1},{"$f":"FIND(\"$\",RC7,1)","v":1},{"$f":"FIND(\"$\",RD7,1)","v":1},{"$f":"FIND(\"$\",RE7,1)","v":1},{"$f":"FIND(\"$\",RF7,1)","v":1},{"$f":"FIND(\"$\",RG7,1)","v":1},{"$f":"FIND(\"$\",RH7,1)","v":1},{"$f":"FIND(\"$\",RI7,1)","v":1},{"$f":"FIND(\"$\",RJ7,1)","v":1},{"$f":"FIND(\"$\",RK7,1)","v":1},{"$f":"FIND(\"$\",RL7,1)","v":1},{"$f":"FIND(\"$\",RM7,1)","v":1},{"$f":"FIND(\"$\",RN7,1)","v":1},{"$f":"FIND(\"$\",RO7,1)","v":1},{"$f":"FIND(\"$\",RP7,1)","v":1},{"$f":"FIND(\"$\",RQ7,1)","v":1},{"$f":"FIND(\"$\",RR7,1)","v":1},{"$f":"FIND(\"$\",RS7,1)","v":1},{"$f":"FIND(\"$\",RT7,1)","v":1},{"$f":"FIND(\"$\",RU7,1)","v":1},{"$f":"FIND(\"$\",RV7,1)","v":1},{"$f":"FIND(\"$\",RW7,1)","v":1},{"$f":"FIND(\"$\",RX7,1)","v":1},{"$f":"FIND(\"$\",RY7,1)","v":1},{"$f":"FIND(\"$\",RZ7,1)","v":1},{"$f":"FIND(\"$\",SA7,1)","v":1},{"$f":"FIND(\"$\",SB7,1)","v":1},{"$f":"FIND(\"$\",SC7,1)","v":1},{"$f":"FIND(\"$\",SD7,1)","v":1},{"$f":"FIND(\"$\",SE7,1)","v":1},{"$f":"FIND(\"$\",SF7,1)","v":1},{"$f":"FIND(\"$\",SG7,1)","v":1},{"$f":"FIND(\"$\",SH7,1)","v":1},{"$f":"FIND(\"$\",SI7,1)","v":1},{"$f":"FIND(\"$\",SJ7,1)","v":1},{"$f":"FIND(\"$\",SK7,1)","v":1},{"$f":"FIND(\"$\",SL7,1)","v":1},{"$f":"FIND(\"$\",SM7,1)","v":1},{"$f":"FIND(\"$\",SN7,1)","v":1},{"$f":"FIND(\"$\",SO7,1)","v":1},{"$f":"FIND(\"$\",SP7,1)","v":1},{"$f":"FIND(\"$\",SQ7,1)","v":1},{"$f":"FIND(\"$\",SR7,1)","v":1},{"$f":"FIND(\"$\",SS7,1)","v":1},{"$f":"FIND(\"$\",ST7,1)","v":1},{"$f":"FIND(\"$\",SU7,1)","v":1},{"$f":"FIND(\"$\",SV7,1)","v":1},{"$f":"FIND(\"$\",SW7,1)","v":1},{"$f":"FIND(\"$\",SX7,1)","v":1},{"$f":"FIND(\"$\",SY7,1)","v":1},{"$f":"FIND(\"$\",SZ7,1)","v":1},{"$f":"FIND(\"$\",TA7,1)","v":1},{"$f":"FIND(\"$\",TB7,1)","v":1},{"$f":"FIND(\"$\",TC7,1)","v":1},{"$f":"FIND(\"$\",TD7,1)","v":1},{"$f":"FIND(\"$\",TE7,1)","v":1},{"$f":"FIND(\"$\",TF7,1)","v":1},{"$f":"FIND(\"$\",TG7,1)","v":1},{"$f":"FIND(\"$\",TH7,1)","v":1},{"$f":"FIND(\"$\",TI7,1)","v":1},{"$f":"FIND(\"$\",TJ7,1)","v":1},{"$f":"FIND(\"$\",TK7,1)","v":1},{"$f":"FIND(\"$\",TL7,1)","v":1},{"$f":"FIND(\"$\",TM7,1)","v":1},{"$f":"FIND(\"$\",TN7,1)","v":1},{"$f":"FIND(\"$\",TO7,1)","v":1},{"$f":"FIND(\"$\",TP7,1)","v":1},{"$f":"FIND(\"$\",TQ7,1)","v":1},{"$f":"FIND(\"$\",TR7,1)","v":1},{"$f":"FIND(\"$\",TS7,1)","v":1},{"$f":"FIND(\"$\",TT7,1)","v":1},{"$f":"FIND(\"$\",TU7,1)","v":1},{"$f":"FIND(\"$\",TV7,1)","v":1},{"$f":"FIND(\"$\",TW7,1)","v":1},{"$f":"FIND(\"$\",TX7,1)","v":1},{"$f":"FIND(\"$\",TY7,1)","v":1},{"$f":"FIND(\"$\",TZ7,1)","v":1},{"$f":"FIND(\"$\",UA7,1)","v":1},{"$f":"FIND(\"$\",UB7,1)","v":1},{"$f":"FIND(\"$\",UC7,1)","v":1},{"$f":"FIND(\"$\",UD7,1)","v":1},{"$f":"FIND(\"$\",UE7,1)","v":1},{"$f":"FIND(\"$\",UF7,1)","v":1},{"$f":"FIND(\"$\",UG7,1)","v":1},{"$f":"FIND(\"$\",UH7,1)","v":1},{"$f":"FIND(\"$\",UI7,1)","v":1},{"$f":"FIND(\"$\",UJ7,1)","v":1},{"$f":"FIND(\"$\",UK7,1)","v":1},{"$f":"FIND(\"$\",UL7,1)","v":1},{"$f":"FIND(\"$\",UM7,1)","v":1},{"$f":"FIND(\"$\",UN7,1)","v":1},{"$f":"FIND(\"$\",UO7,1)","v":1},{"$f":"FIND(\"$\",UP7,1)","v":1},{"$f":"FIND(\"$\",UQ7,1)","v":1},{"$f":"FIND(\"$\",UR7,1)","v":1},{"$f":"FIND(\"$\",US7,1)","v":1},{"$f":"FIND(\"$\",UT7,1)","v":1},{"$f":"FIND(\"$\",UU7,1)","v":1},{"$f":"FIND(\"$\",UV7,1)","v":1},{"$f":"FIND(\"$\",UW7,1)","v":1},{"$f":"FIND(\"$\",UX7,1)","v":1},{"$f":"FIND(\"$\",UY7,1)","v":1},{"$f":"FIND(\"$\",UZ7,1)","v":1},{"$f":"FIND(\"$\",VA7,1)","v":1},{"$f":"FIND(\"$\",VB7,1)","v":1},{"$f":"FIND(\"$\",VC7,1)","v":1},{"$f":"FIND(\"$\",VD7,1)","v":1},{"$f":"FIND(\"$\",VE7,1)","v":1},{"$f":"FIND(\"$\",VF7,1)","v":1},{"$f":"FIND(\"$\",VG7,1)","v":1},{"$f":"FIND(\"$\",VH7,1)","v":1},{"$f":"FIND(\"$\",VI7,1)","v":1},{"$f":"FIND(\"$\",VJ7,1)","v":1},{"$f":"FIND(\"$\",VK7,1)","v":1},{"$f":"FIND(\"$\",VL7,1)","v":1},{"$f":"FIND(\"$\",VM7,1)","v":1},{"$f":"FIND(\"$\",VN7,1)","v":1},{"$f":"FIND(\"$\",VO7,1)","v":1},{"$f":"FIND(\"$\",VP7,1)","v":1},{"$f":"FIND(\"$\",VQ7,1)","v":1},{"$f":"FIND(\"$\",VR7,1)","v":1},{"$f":"FIND(\"$\",VS7,1)","v":1},{"$f":"FIND(\"$\",VT7,1)","v":1},{"$f":"FIND(\"$\",VU7,1)","v":1},{"$f":"FIND(\"$\",VV7,1)","v":1},{"$f":"FIND(\"$\",VW7,1)","v":1},{"$f":"FIND(\"$\",VX7,1)","v":1},{"$f":"FIND(\"$\",VY7,1)","v":1},{"$f":"FIND(\"$\",VZ7,1)","v":1},{"$f":"FIND(\"$\",WA7,1)","v":1},{"$f":"FIND(\"$\",WB7,1)","v":1},{"$f":"FIND(\"$\",WC7,1)","v":1},{"$f":"FIND(\"$\",WD7,1)","v":1},{"$f":"FIND(\"$\",WE7,1)","v":1},{"$f":"FIND(\"$\",WF7,1)","v":1},{"$f":"FIND(\"$\",WG7,1)","v":1},{"$f":"FIND(\"$\",WH7,1)","v":1},{"$f":"FIND(\"$\",WI7,1)","v":1},{"$f":"FIND(\"$\",WJ7,1)","v":1},{"$f":"FIND(\"$\",WK7,1)","v":1},{"$f":"FIND(\"$\",WL7,1)","v":1},{"$f":"FIND(\"$\",WM7,1)","v":1},{"$f":"FIND(\"$\",WN7,1)","v":1},{"$f":"FIND(\"$\",WO7,1)","v":1},{"$f":"FIND(\"$\",WP7,1)","v":1},{"$f":"FIND(\"$\",WQ7,1)","v":1},{"$f":"FIND(\"$\",WR7,1)","v":1},{"$f":"FIND(\"$\",WS7,1)","v":1},{"$f":"FIND(\"$\",WT7,1)","v":1},{"$f":"FIND(\"$\",WU7,1)","v":1},{"$f":"FIND(\"$\",WV7,1)","v":1},{"$f":"FIND(\"$\",WW7,1)","v":1},{"$f":"FIND(\"$\",WX7,1)","v":1},{"$f":"FIND(\"$\",WY7,1)","v":1},{"$f":"FIND(\"$\",WZ7,1)","v":1},{"$f":"FIND(\"$\",XA7,1)","v":1},{"$f":"FIND(\"$\",XB7,1)","v":1},{"$f":"FIND(\"$\",XC7,1)","v":1},{"$f":"FIND(\"$\",XD7,1)","v":1},{"$f":"FIND(\"$\",XE7,1)","v":1},{"$f":"FIND(\"$\",XF7,1)","v":1},{"$f":"FIND(\"$\",XG7,1)","v":1},{"$f":"FIND(\"$\",XH7,1)","v":1},{"$f":"FIND(\"$\",XI7,1)","v":1},{"$f":"FIND(\"$\",XJ7,1)","v":1},{"$f":"FIND(\"$\",XK7,1)","v":1},{"$f":"FIND(\"$\",XL7,1)","v":1},{"$f":"FIND(\"$\",XM7,1)","v":1},{"$f":"FIND(\"$\",XN7,1)","v":1},{"$f":"FIND(\"$\",XO7,1)","v":1},{"$f":"FIND(\"$\",XP7,1)","v":1},{"$f":"FIND(\"$\",XQ7,1)","v":1},{"$f":"FIND(\"$\",XR7,1)","v":1},{"$f":"FIND(\"$\",XS7,1)","v":1},{"$f":"FIND(\"$\",XT7,1)","v":1},{"$f":"FIND(\"$\",XU7,1)","v":1},{"$f":"FIND(\"$\",XV7,1)","v":1},{"$f":"FIND(\"$\",XW7,1)","v":1},{"$f":"FIND(\"$\",XX7,1)","v":1},{"$f":"FIND(\"$\",XY7,1)","v":1},{"$f":"FIND(\"$\",XZ7,1)","v":1},{"$f":"FIND(\"$\",YA7,1)","v":1},{"$f":"FIND(\"$\",YB7,1)","v":1},{"$f":"FIND(\"$\",YC7,1)","v":1},{"$f":"FIND(\"$\",YD7,1)","v":1},{"$f":"FIND(\"$\",YE7,1)","v":1},{"$f":"FIND(\"$\",YF7,1)","v":1},{"$f":"FIND(\"$\",YG7,1)","v":1},{"$f":"FIND(\"$\",YH7,1)","v":1},{"$f":"FIND(\"$\",YI7,1)","v":1},{"$f":"FIND(\"$\",YJ7,1)","v":1},{"$f":"FIND(\"$\",YK7,1)","v":1},{"$f":"FIND(\"$\",YL7,1)","v":1},{"$f":"FIND(\"$\",YM7,1)","v":1},{"$f":"FIND(\"$\",YN7,1)","v":1},{"$f":"FIND(\"$\",YO7,1)","v":1},{"$f":"FIND(\"$\",YP7,1)","v":1},{"$f":"FIND(\"$\",YQ7,1)","v":1},{"$f":"FIND(\"$\",YR7,1)","v":1},{"$f":"FIND(\"$\",YS7,1)","v":1},{"$f":"FIND(\"$\",YT7,1)","v":1},{"$f":"FIND(\"$\",YU7,1)","v":1},{"$f":"FIND(\"$\",YV7,1)","v":1},{"$f":"FIND(\"$\",YW7,1)","v":1},{"$f":"FIND(\"$\",YX7,1)","v":1},{"$f":"FIND(\"$\",YY7,1)","v":1},{"$f":"FIND(\"$\",YZ7,1)","v":1},{"$f":"FIND(\"$\",ZA7,1)","v":1},{"$f":"FIND(\"$\",ZB7,1)","v":1},{"$f":"FIND(\"$\",ZC7,1)","v":1},{"$f":"FIND(\"$\",ZD7,1)","v":1},{"$f":"FIND(\"$\",ZE7,1)","v":1},{"$f":"FIND(\"$\",ZF7,1)","v":1},{"$f":"FIND(\"$\",ZG7,1)","v":1},{"$f":"FIND(\"$\",ZH7,1)","v":1},{"$f":"FIND(\"$\",ZI7,1)","v":1},{"$f":"FIND(\"$\",ZJ7,1)","v":1},{"$f":"FIND(\"$\",ZK7,1)","v":1},{"$f":"FIND(\"$\",ZL7,1)","v":1},{"$f":"FIND(\"$\",ZM7,1)","v":1},{"$f":"FIND(\"$\",ZN7,1)","v":1},{"$f":"FIND(\"$\",ZO7,1)","v":1},{"$f":"FIND(\"$\",ZP7,1)","v":1},{"$f":"FIND(\"$\",ZQ7,1)","v":1},{"$f":"FIND(\"$\",ZR7,1)","v":1},{"$f":"FIND(\"$\",ZS7,1)","v":1},{"$f":"FIND(\"$\",ZT7,1)","v":1},{"$f":"FIND(\"$\",ZU7,1)","v":1},{"$f":"FIND(\"$\",ZV7,1)","v":1},{"$f":"FIND(\"$\",ZW7,1)","v":1},{"$f":"FIND(\"$\",ZX7,1)","v":1},{"$f":"FIND(\"$\",ZY7,1)","v":1},{"$f":"FIND(\"$\",ZZ7,1)","v":1},{"$f":"FIND(\"$\",AAA7,1)","v":1},{"$f":"FIND(\"$\",AAB7,1)","v":1},{"$f":"FIND(\"$\",AAC7,1)","v":1},{"$f":"FIND(\"$\",AAD7,1)","v":1},{"$f":"FIND(\"$\",AAE7,1)","v":1},{"$f":"FIND(\"$\",AAF7,1)","v":1},{"$f":"FIND(\"$\",AAG7,1)","v":1},{"$f":"FIND(\"$\",AAH7,1)","v":1},{"$f":"FIND(\"$\",AAI7,1)","v":1},{"$f":"FIND(\"$\",AAJ7,1)","v":1},{"$f":"FIND(\"$\",AAK7,1)","v":1},{"$f":"FIND(\"$\",AAL7,1)","v":1},{"$f":"FIND(\"$\",AAM7,1)","v":1},{"$f":"FIND(\"$\",AAN7,1)","v":1},{"$f":"FIND(\"$\",AAO7,1)","v":1},{"$f":"FIND(\"$\",AAP7,1)","v":1},{"$f":"FIND(\"$\",AAQ7,1)","v":1},{"$f":"FIND(\"$\",AAR7,1)","v":1},{"$f":"FIND(\"$\",AAS7,1)","v":1},{"$f":"FIND(\"$\",AAT7,1)","v":1},{"$f":"FIND(\"$\",AAU7,1)","v":1},{"$f":"FIND(\"$\",AAV7,1)","v":1},{"$f":"FIND(\"$\",AAW7,1)","v":1},{"$f":"FIND(\"$\",AAX7,1)","v":1},{"$f":"FIND(\"$\",AAY7,1)","v":1},{"$f":"FIND(\"$\",AAZ7,1)","v":1},{"$f":"FIND(\"$\",ABA7,1)","v":1},{"$f":"FIND(\"$\",ABB7,1)","v":1},{"$f":"FIND(\"$\",ABC7,1)","v":1}]
[null,"Second $",{"$f":"FIND(\"$\",C7,C8+1)","v":3},{"$f":"FIND(\"$\",D7,D8+1)","v":3},3,3,3,{"$f":"FIND(\"$\",H7,H8+1)","v":3},3,3,3,3,3,3,3,3,3,3,3,3,3,3,3,3,3,3,4,4,4,4,4,4,4,4,4,4,4,4,4,4,4,4,4,4,4,4,4,4,4,4,4,4,4,{"$f":"FIND(\"$\",BB7,BB8+1)","v":4},{"$f":"FIND(\"$\",BC7,BC8+1)","v":4},{"$f":"FIND(\"$\",BD7,BD8+1)","v":4},{"$f":"FIND(\"$\",BE7,BE8+1)","v":4},{"$f":"FIND(\"$\",BF7,BF8+1)","v":4},{"$f":"FIND(\"$\",BG7,BG8+1)","v":4},{"$f":"FIND(\"$\",BH7,BH8+1)","v":4},{"$f":"FIND(\"$\",BI7,BI8+1)","v":4},{"$f":"FIND(\"$\",BJ7,BJ8+1)","v":4},{"$f":"FIND(\"$\",BK7,BK8+1)","v":4},{"$f":"FIND(\"$\",BL7,BL8+1)","v":4},{"$f":"FIND(\"$\",BM7,BM8+1)","v":4},{"$f":"FIND(\"$\",BN7,BN8+1)","v":4},{"$f":"FIND(\"$\",BO7,BO8+1)","v":4},{"$f":"FIND(\"$\",BP7,BP8+1)","v":4},{"$f":"FIND(\"$\",BQ7,BQ8+1)","v":4},{"$f":"FIND(\"$\",BR7,BR8+1)","v":4},{"$f":"FIND(\"$\",BS7,BS8+1)","v":4},{"$f":"FIND(\"$\",BT7,BT8+1)","v":4},{"$f":"FIND(\"$\",BU7,BU8+1)","v":4},{"$f":"FIND(\"$\",BV7,BV8+1)","v":4},{"$f":"FIND(\"$\",BW7,BW8+1)","v":4},{"$f":"FIND(\"$\",BX7,BX8+1)","v":4},{"$f":"FIND(\"$\",BY7,BY8+1)","v":4},{"$f":"FIND(\"$\",BZ7,BZ8+1)","v":4},{"$f":"FIND(\"$\",CA7,CA8+1)","v":4},{"$f":"FIND(\"$\",CB7,CB8+1)","v":4},{"$f":"FIND(\"$\",CC7,CC8+1)","v":4},{"$f":"FIND(\"$\",CD7,CD8+1)","v":4},{"$f":"FIND(\"$\",CE7,CE8+1)","v":4},{"$f":"FIND(\"$\",CF7,CF8+1)","v":4},{"$f":"FIND(\"$\",CG7,CG8+1)","v":4},{"$f":"FIND(\"$\",CH7,CH8+1)","v":4},{"$f":"FIND(\"$\",CI7,CI8+1)","v":4},{"$f":"FIND(\"$\",CJ7,CJ8+1)","v":4},{"$f":"FIND(\"$\",CK7,CK8+1)","v":4},{"$f":"FIND(\"$\",CL7,CL8+1)","v":4},{"$f":"FIND(\"$\",CM7,CM8+1)","v":4},{"$f":"FIND(\"$\",CN7,CN8+1)","v":4},{"$f":"FIND(\"$\",CO7,CO8+1)","v":4},{"$f":"FIND(\"$\",CP7,CP8+1)","v":4},{"$f":"FIND(\"$\",CQ7,CQ8+1)","v":4},{"$f":"FIND(\"$\",CR7,CR8+1)","v":4},{"$f":"FIND(\"$\",CS7,CS8+1)","v":4},{"$f":"FIND(\"$\",CT7,CT8+1)","v":4},{"$f":"FIND(\"$\",CU7,CU8+1)","v":4},{"$f":"FIND(\"$\",CV7,CV8+1)","v":4},{"$f":"FIND(\"$\",CW7,CW8+1)","v":4},{"$f":"FIND(\"$\",CX7,CX8+1)","v":4},{"$f":"FIND(\"$\",CY7,CY8+1)","v":4},{"$f":"FIND(\"$\",CZ7,CZ8+1)","v":4},{"$f":"FIND(\"$\",DA7,DA8+1)","v":4},{"$f":"FIND(\"$\",DB7,DB8+1)","v":4},{"$f":"FIND(\"$\",DC7,DC8+1)","v":4},{"$f":"FIND(\"$\",DD7,DD8+1)","v":4},{"$f":"FIND(\"$\",DE7,DE8+1)","v":4},{"$f":"FIND(\"$\",DF7,DF8+1)","v":4},{"$f":"FIND(\"$\",DG7,DG8+1)","v":4},{"$f":"FIND(\"$\",DH7,DH8+1)","v":4},{"$f":"FIND(\"$\",DI7,DI8+1)","v":4},{"$f":"FIND(\"$\",DJ7,DJ8+1)","v":4},{"$f":"FIND(\"$\",DK7,DK8+1)","v":4},{"$f":"FIND(\"$\",DL7,DL8+1)","v":4},{"$f":"FIND(\"$\",DM7,DM8+1)","v":4},{"$f":"FIND(\"$\",DN7,DN8+1)","v":4},{"$f":"FIND(\"$\",DO7,DO8+1)","v":4},{"$f":"FIND(\"$\",DP7,DP8+1)","v":4},{"$f":"FIND(\"$\",DQ7,DQ8+1)","v":4},{"$f":"FIND(\"$\",DR7,DR8+1)","v":4},{"$f":"FIND(\"$\",DS7,DS8+1)","v":4},{"$f":"FIND(\"$\",DT7,DT8+1)","v":4},{"$f":"FIND(\"$\",DU7,DU8+1)","v":4},{"$f":"FIND(\"$\",DV7,DV8+1)","v":4},{"$f":"FIND(\"$\",DW7,DW8+1)","v":4},{"$f":"FIND(\"$\",DX7,DX8+1)","v":4},{"$f":"FIND(\"$\",DY7,DY8+1)","v":4},{"$f":"FIND(\"$\",DZ7,DZ8+1)","v":4},{"$f":"FIND(\"$\",EA7,EA8+1)","v":4},{"$f":"FIND(\"$\",EB7,EB8+1)","v":4},{"$f":"FIND(\"$\",EC7,EC8+1)","v":4},{"$f":"FIND(\"$\",ED7,ED8+1)","v":4},{"$f":"FIND(\"$\",EE7,EE8+1)","v":4},{"$f":"FIND(\"$\",EF7,EF8+1)","v":4},{"$f":"FIND(\"$\",EG7,EG8+1)","v":4},{"$f":"FIND(\"$\",EH7,EH8+1)","v":4},{"$f":"FIND(\"$\",EI7,EI8+1)","v":4},{"$f":"FIND(\"$\",EJ7,EJ8+1)","v":4},{"$f":"FIND(\"$\",EK7,EK8+1)","v":4},{"$f":"FIND(\"$\",EL7,EL8+1)","v":4},{"$f":"FIND(\"$\",EM7,EM8+1)","v":4},{"$f":"FIND(\"$\",EN7,EN8+1)","v":4},{"$f":"FIND(\"$\",EO7,EO8+1)","v":4},{"$f":"FIND(\"$\",EP7,EP8+1)","v":4},{"$f":"FIND(\"$\",EQ7,EQ8+1)","v":4},{"$f":"FIND(\"$\",ER7,ER8+1)","v":4},{"$f":"FIND(\"$\",ES7,ES8+1)","v":4},{"$f":"FIND(\"$\",ET7,ET8+1)","v":4},{"$f":"FIND(\"$\",EU7,EU8+1)","v":4},{"$f":"FIND(\"$\",EV7,EV8+1)","v":4},{"$f":"FIND(\"$\",EW7,EW8+1)","v":4},{"$f":"FIND(\"$\",EX7,EX8+1)","v":4},{"$f":"FIND(\"$\",EY7,EY8+1)","v":4},{"$f":"FIND(\"$\",EZ7,EZ8+1)","v":4},{"$f":"FIND(\"$\",FA7,FA8+1)","v":4},{"$f":"FIND(\"$\",FB7,FB8+1)","v":4},{"$f":"FIND(\"$\",FC7,FC8+1)","v":4},{"$f":"FIND(\"$\",FD7,FD8+1)","v":4},{"$f":"FIND(\"$\",FE7,FE8+1)","v":4},{"$f":"FIND(\"$\",FF7,FF8+1)","v":4},{"$f":"FIND(\"$\",FG7,FG8+1)","v":4},{"$f":"FIND(\"$\",FH7,FH8+1)","v":4},{"$f":"FIND(\"$\",FI7,FI8+1)","v":4},{"$f":"FIND(\"$\",FJ7,FJ8+1)","v":4},{"$f":"FIND(\"$\",FK7,FK8+1)","v":4},{"$f":"FIND(\"$\",FL7,FL8+1)","v":4},{"$f":"FIND(\"$\",FM7,FM8+1)","v":4},{"$f":"FIND(\"$\",FN7,FN8+1)","v":4},{"$f":"FIND(\"$\",FO7,FO8+1)","v":4},{"$f":"FIND(\"$\",FP7,FP8+1)","v":4},{"$f":"FIND(\"$\",FQ7,FQ8+1)","v":4},{"$f":"FIND(\"$\",FR7,FR8+1)","v":4},{"$f":"FIND(\"$\",FS7,FS8+1)","v":4},{"$f":"FIND(\"$\",FT7,FT8+1)","v":4},{"$f":"FIND(\"$\",FU7,FU8+1)","v":4},{"$f":"FIND(\"$\",FV7,FV8+1)","v":4},{"$f":"FIND(\"$\",FW7,FW8+1)","v":4},{"$f":"FIND(\"$\",FX7,FX8+1)","v":4},{"$f":"FIND(\"$\",FY7,FY8+1)","v":4},{"$f":"FIND(\"$\",FZ7,FZ8+1)","v":4},{"$f":"FIND(\"$\",GA7,GA8+1)","v":4},{"$f":"FIND(\"$\",GB7,GB8+1)","v":4},{"$f":"FIND(\"$\",GC7,GC8+1)","v":4},{"$f":"FIND(\"$\",GD7,GD8+1)","v":4},{"$f":"FIND(\"$\",GE7,GE8+1)","v":4},{"$f":"FIND(\"$\",GF7,GF8+1)","v":4},{"$f":"FIND(\"$\",GG7,GG8+1)","v":4},{"$f":"FIND(\"$\",GH7,GH8+1)","v":4},{"$f":"FIND(\"$\",GI7,GI8+1)","v":4},{"$f":"FIND(\"$\",GJ7,GJ8+1)","v":4},{"$f":"FIND(\"$\",GK7,GK8+1)","v":4},{"$f":"FIND(\"$\",GL7,GL8+1)","v":4},{"$f":"FIND(\"$\",GM7,GM8+1)","v":4},{"$f":"FIND(\"$\",GN7,GN8+1)","v":4},{"$f":"FIND(\"$\",GO7,GO8+1)","v":4},{"$f":"FIND(\"$\",GP7,GP8+1)","v":4},{"$f":"FIND(\"$\",GQ7,GQ8+1)","v":4},{"$f":"FIND(\"$\",GR7,GR8+1)","v":4},{"$f":"FIND(\"$\",GS7,GS8+1)","v":4},{"$f":"FIND(\"$\",GT7,GT8+1)","v":4},{"$f":"FIND(\"$\",GU7,GU8+1)","v":4},{"$f":"FIND(\"$\",GV7,GV8+1)","v":4},{"$f":"FIND(\"$\",GW7,GW8+1)","v":4},{"$f":"FIND(\"$\",GX7,GX8+1)","v":4},{"$f":"FIND(\"$\",GY7,GY8+1)","v":4},{"$f":"FIND(\"$\",GZ7,GZ8+1)","v":4},{"$f":"FIND(\"$\",HA7,HA8+1)","v":4},{"$f":"FIND(\"$\",HB7,HB8+1)","v":4},{"$f":"FIND(\"$\",HC7,HC8+1)","v":4},{"$f":"FIND(\"$\",HD7,HD8+1)","v":4},{"$f":"FIND(\"$\",HE7,HE8+1)","v":4},{"$f":"FIND(\"$\",HF7,HF8+1)","v":4},{"$f":"FIND(\"$\",HG7,HG8+1)","v":4},{"$f":"FIND(\"$\",HH7,HH8+1)","v":4},{"$f":"FIND(\"$\",HI7,HI8+1)","v":4},{"$f":"FIND(\"$\",HJ7,HJ8+1)","v":4},{"$f":"FIND(\"$\",HK7,HK8+1)","v":4},{"$f":"FIND(\"$\",HL7,HL8+1)","v":4},{"$f":"FIND(\"$\",HM7,HM8+1)","v":4},{"$f":"FIND(\"$\",HN7,HN8+1)","v":4},{"$f":"FIND(\"$\",HO7,HO8+1)","v":4},{"$f":"FIND(\"$\",HP7,HP8+1)","v":4},{"$f":"FIND(\"$\",HQ7,HQ8+1)","v":4},{"$f":"FIND(\"$\",HR7,HR8+1)","v":4},{"$f":"FIND(\"$\",HS7,HS8+1)","v":4},{"$f":"FIND(\"$\",HT7,HT8+1)","v":4},{"$f":"FIND(\"$\",HU7,HU8+1)","v":4},{"$f":"FIND(\"$\",HV7,HV8+1)","v":4},{"$f":"FIND(\"$\",HW7,HW8+1)","v":4},{"$f":"FIND(\"$\",HX7,HX8+1)","v":4},{"$f":"FIND(\"$\",HY7,HY8+1)","v":4},{"$f":"FIND(\"$\",HZ7,HZ8+1)","v":4},{"$f":"FIND(\"$\",IA7,IA8+1)","v":4},{"$f":"FIND(\"$\",IB7,IB8+1)","v":4},{"$f":"FIND(\"$\",IC7,IC8+1)","v":4},{"$f":"FIND(\"$\",ID7,ID8+1)","v":4},{"$f":"FIND(\"$\",IE7,IE8+1)","v":4},{"$f":"FIND(\"$\",IF7,IF8+1)","v":4},{"$f":"FIND(\"$\",IG7,IG8+1)","v":4},{"$f":"FIND(\"$\",IH7,IH8+1)","v":4},{"$f":"FIND(\"$\",II7,II8+1)","v":4},{"$f":"FIND(\"$\",IJ7,IJ8+1)","v":4},{"$f":"FIND(\"$\",IK7,IK8+1)","v":4},{"$f":"FIND(\"$\",IL7,IL8+1)","v":4},{"$f":"FIND(\"$\",IM7,IM8+1)","v":4},{"$f":"FIND(\"$\",IN7,IN8+1)","v":4},{"$f":"FIND(\"$\",IO7,IO8+1)","v":4},{"$f":"FIND(\"$\",IP7,IP8+1)","v":4},{"$f":"FIND(\"$\",IQ7,IQ8+1)","v":4},{"$f":"FIND(\"$\",IR7,IR8+1)","v":4},{"$f":"FIND(\"$\",IS7,IS8+1)","v":4},{"$f":"FIND(\"$\",IT7,IT8+1)","v":4},{"$f":"FIND(\"$\",IU7,IU8+1)","v":4},{"$f":"FIND(\"$\",IV7,IV8+1)","v":4},{"$f":"FIND(\"$\",IW7,IW8+1)","v":4},{"$f":"FIND(\"$\",IX7,IX8+1)","v":4},{"$f":"FIND(\"$\",IY7,IY8+1)","v":4},{"$f":"FIND(\"$\",IZ7,IZ8+1)","v":4},{"$f":"FIND(\"$\",JA7,JA8+1)","v":4},{"$f":"FIND(\"$\",JB7,JB8+1)","v":4},{"$f":"FIND(\"$\",JC7,JC8+1)","v":4},{"$f":"FIND(\"$\",JD7,JD8+1)","v":4},{"$f":"FIND(\"$\",JE7,JE8+1)","v":4},{"$f":"FIND(\"$\",JF7,JF8+1)","v":4},{"$f":"FIND(\"$\",JG7,JG8+1)","v":4},{"$f":"FIND(\"$\",JH7,JH8+1)","v":4},{"$f":"FIND(\"$\",JI7,JI8+1)","v":4},{"$f":"FIND(\"$\",JJ7,JJ8+1)","v":4},{"$f":"FIND(\"$\",JK7,JK8+1)","v":4},{"$f":"FIND(\"$\",JL7,JL8+1)","v":4},{"$f":"FIND(\"$\",JM7,JM8+1)","v":4},{"$f":"FIND(\"$\",JN7,JN8+1)","v":4},{"$f":"FIND(\"$\",JO7,JO8+1)","v":4},{"$f":"FIND(\"$\",JP7,JP8+1)","v":4},{"$f":"FIND(\"$\",JQ7,JQ8+1)","v":4},{"$f":"FIND(\"$\",JR7,JR8+1)","v":4},{"$f":"FIND(\"$\",JS7,JS8+1)","v":4},{"$f":"FIND(\"$\",JT7,JT8+1)","v":4},{"$f":"FIND(\"$\",JU7,JU8+1)","v":4},{"$f":"FIND(\"$\",JV7,JV8+1)","v":4},{"$f":"FIND(\"$\",JW7,JW8+1)","v":4},{"$f":"FIND(\"$\",JX7,JX8+1)","v":4},{"$f":"FIND(\"$\",JY7,JY8+1)","v":4},{"$f":"FIND(\"$\",JZ7,JZ8+1)","v":4},{"$f":"FIND(\"$\",KA7,KA8+1)","v":4},{"$f":"FIND(\"$\",KB7,KB8+1)","v":4},{"$f":"FIND(\"$\",KC7,KC8+1)","v":4},{"$f":"FIND(\"$\",KD7,KD8+1)","v":4},{"$f":"FIND(\"$\",KE7,KE8+1)","v":4},{"$f":"FIND(\"$\",KF7,KF8+1)","v":4},{"$f":"FIND(\"$\",KG7,KG8+1)","v":4},{"$f":"FIND(\"$\",KH7,KH8+1)","v":4},{"$f":"FIND(\"$\",KI7,KI8+1)","v":4},{"$f":"FIND(\"$\",KJ7,KJ8+1)","v":4},{"$f":"FIND(\"$\",KK7,KK8+1)","v":4},{"$f":"FIND(\"$\",KL7,KL8+1)","v":4},{"$f":"FIND(\"$\",KM7,KM8+1)","v":4},{"$f":"FIND(\"$\",KN7,KN8+1)","v":4},{"$f":"FIND(\"$\",KO7,KO8+1)","v":4},{"$f":"FIND(\"$\",KP7,KP8+1)","v":4},{"$f":"FIND(\"$\",KQ7,KQ8+1)","v":4},{"$f":"FIND(\"$\",KR7,KR8+1)","v":4},{"$f":"FIND(\"$\",KS7,KS8+1)","v":4},{"$f":"FIND(\"$\",KT7,KT8+1)","v":4},{"$f":"FIND(\"$\",KU7,KU8+1)","v":4},{"$f":"FIND(\"$\",KV7,KV8+1)","v":4},{"$f":"FIND(\"$\",KW7,KW8+1)","v":4},{"$f":"FIND(\"$\",KX7,KX8+1)","v":4},{"$f":"FIND(\"$\",KY7,KY8+1)","v":4},{"$f":"FIND(\"$\",KZ7,KZ8+1)","v":4},{"$f":"FIND(\"$\",LA7,LA8+1)","v":4},{"$f":"FIND(\"$\",LB7,LB8+1)","v":4},{"$f":"FIND(\"$\",LC7,LC8+1)","v":4},{"$f":"FIND(\"$\",LD7,LD8+1)","v":4},{"$f":"FIND(\"$\",LE7,LE8+1)","v":4},{"$f":"FIND(\"$\",LF7,LF8+1)","v":4},{"$f":"FIND(\"$\",LG7,LG8+1)","v":4},{"$f":"FIND(\"$\",LH7,LH8+1)","v":4},{"$f":"FIND(\"$\",LI7,LI8+1)","v":4},{"$f":"FIND(\"$\",LJ7,LJ8+1)","v":4},{"$f":"FIND(\"$\",LK7,LK8+1)","v":4},{"$f":"FIND(\"$\",LL7,LL8+1)","v":4},{"$f":"FIND(\"$\",LM7,LM8+1)","v":4},{"$f":"FIND(\"$\",LN7,LN8+1)","v":4},{"$f":"FIND(\"$\",LO7,LO8+1)","v":4},{"$f":"FIND(\"$\",LP7,LP8+1)","v":4},{"$f":"FIND(\"$\",LQ7,LQ8+1)","v":4},{"$f":"FIND(\"$\",LR7,LR8+1)","v":4},{"$f":"FIND(\"$\",LS7,LS8+1)","v":4},{"$f":"FIND(\"$\",LT7,LT8+1)","v":4},{"$f":"FIND(\"$\",LU7,LU8+1)","v":4},{"$f":"FIND(\"$\",LV7,LV8+1)","v":4},{"$f":"FIND(\"$\",LW7,LW8+1)","v":4},{"$f":"FIND(\"$\",LX7,LX8+1)","v":4},{"$f":"FIND(\"$\",LY7,LY8+1)","v":4},{"$f":"FIND(\"$\",LZ7,LZ8+1)","v":4},{"$f":"FIND(\"$\",MA7,MA8+1)","v":4},{"$f":"FIND(\"$\",MB7,MB8+1)","v":4},{"$f":"FIND(\"$\",MC7,MC8+1)","v":4},{"$f":"FIND(\"$\",MD7,MD8+1)","v":4},{"$f":"FIND(\"$\",ME7,ME8+1)","v":4},{"$f":"FIND(\"$\",MF7,MF8+1)","v":4},{"$f":"FIND(\"$\",MG7,MG8+1)","v":4},{"$f":"FIND(\"$\",MH7,MH8+1)","v":4},{"$f":"FIND(\"$\",MI7,MI8+1)","v":4},{"$f":"FIND(\"$\",MJ7,MJ8+1)","v":4},{"$f":"FIND(\"$\",MK7,MK8+1)","v":4},{"$f":"FIND(\"$\",ML7,ML8+1)","v":4},{"$f":"FIND(\"$\",MM7,MM8+1)","v":4},{"$f":"FIND(\"$\",MN7,MN8+1)","v":4},{"$f":"FIND(\"$\",MO7,MO8+1)","v":4},{"$f":"FIND(\"$\",MP7,MP8+1)","v":4},{"$f":"FIND(\"$\",MQ7,MQ8+1)","v":4},{"$f":"FIND(\"$\",MR7,MR8+1)","v":4},{"$f":"FIND(\"$\",MS7,MS8+1)","v":4},{"$f":"FIND(\"$\",MT7,MT8+1)","v":4},{"$f":"FIND(\"$\",MU7,MU8+1)","v":4},{"$f":"FIND(\"$\",MV7,MV8+1)","v":4},{"$f":"FIND(\"$\",MW7,MW8+1)","v":4},{"$f":"FIND(\"$\",MX7,MX8+1)","v":4},{"$f":"FIND(\"$\",MY7,MY8+1)","v":4},{"$f":"FIND(\"$\",MZ7,MZ8+1)","v":4},{"$f":"FIND(\"$\",NA7,NA8+1)","v":4},{"$f":"FIND(\"$\",NB7,NB8+1)","v":4},{"$f":"FIND(\"$\",NC7,NC8+1)","v":4},{"$f":"FIND(\"$\",ND7,ND8+1)","v":4},{"$f":"FIND(\"$\",NE7,NE8+1)","v":4},{"$f":"FIND(\"$\",NF7,NF8+1)","v":4},{"$f":"FIND(\"$\",NG7,NG8+1)","v":4},{"$f":"FIND(\"$\",NH7,NH8+1)","v":4},{"$f":"FIND(\"$\",NI7,NI8+1)","v":4},{"$f":"FIND(\"$\",NJ7,NJ8+1)","v":4},{"$f":"FIND(\"$\",NK7,NK8+1)","v":4},{"$f":"FIND(\"$\",NL7,NL8+1)","v":4},{"$f":"FIND(\"$\",NM7,NM8+1)","v":4},{"$f":"FIND(\"$\",NN7,NN8+1)","v":4},{"$f":"FIND(\"$\",NO7,NO8+1)","v":4},{"$f":"FIND(\"$\",NP7,NP8+1)","v":4},{"$f":"FIND(\"$\",NQ7,NQ8+1)","v":4},{"$f":"FIND(\"$\",NR7,NR8+1)","v":4},{"$f":"FIND(\"$\",NS7,NS8+1)","v":4},{"$f":"FIND(\"$\",NT7,NT8+1)","v":4},{"$f":"FIND(\"$\",NU7,NU8+1)","v":4},{"$f":"FIND(\"$\",NV7,NV8+1)","v":4},{"$f":"FIND(\"$\",NW7,NW8+1)","v":4},{"$f":"FIND(\"$\",NX7,NX8+1)","v":4},{"$f":"FIND(\"$\",NY7,NY8+1)","v":4},{"$f":"FIND(\"$\",NZ7,NZ8+1)","v":4},{"$f":"FIND(\"$\",OA7,OA8+1)","v":4},{"$f":"FIND(\"$\",OB7,OB8+1)","v":4},{"$f":"FIND(\"$\",OC7,OC8+1)","v":4},{"$f":"FIND(\"$\",OD7,OD8+1)","v":4},{"$f":"FIND(\"$\",OE7,OE8+1)","v":4},{"$f":"FIND(\"$\",OF7,OF8+1)","v":4},{"$f":"FIND(\"$\",OG7,OG8+1)","v":4},{"$f":"FIND(\"$\",OH7,OH8+1)","v":4},{"$f":"FIND(\"$\",OI7,OI8+1)","v":4},{"$f":"FIND(\"$\",OJ7,OJ8+1)","v":4},{"$f":"FIND(\"$\",OK7,OK8+1)","v":4},{"$f":"FIND(\"$\",OL7,OL8+1)","v":4},{"$f":"FIND(\"$\",OM7,OM8+1)","v":4},{"$f":"FIND(\"$\",ON7,ON8+1)","v":4},{"$f":"FIND(\"$\",OO7,OO8+1)","v":4},{"$f":"FIND(\"$\",OP7,OP8+1)","v":4},{"$f":"FIND(\"$\",OQ7,OQ8+1)","v":4},{"$f":"FIND(\"$\",OR7,OR8+1)","v":4},{"$f":"FIND(\"$\",OS7,OS8+1)","v":4},{"$f":"FIND(\"$\",OT7,OT8+1)","v":4},{"$f":"FIND(\"$\",OU7,OU8+1)","v":4},{"$f":"FIND(\"$\",OV7,OV8+1)","v":4},{"$f":"FIND(\"$\",OW7,OW8+1)","v":4},{"$f":"FIND(\"$\",OX7,OX8+1)","v":4},{"$f":"FIND(\"$\",OY7,OY8+1)","v":4},{"$f":"FIND(\"$\",OZ7,OZ8+1)","v":4},{"$f":"FIND(\"$\",PA7,PA8+1)","v":4},{"$f":"FIND(\"$\",PB7,PB8+1)","v":4},{"$f":"FIND(\"$\",PC7,PC8+1)","v":4},{"$f":"FIND(\"$\",PD7,PD8+1)","v":4},{"$f":"FIND(\"$\",PE7,PE8+1)","v":4},{"$f":"FIND(\"$\",PF7,PF8+1)","v":4},{"$f":"FIND(\"$\",PG7,PG8+1)","v":4},{"$f":"FIND(\"$\",PH7,PH8+1)","v":4},{"$f":"FIND(\"$\",PI7,PI8+1)","v":4},{"$f":"FIND(\"$\",PJ7,PJ8+1)","v":4},{"$f":"FIND(\"$\",PK7,PK8+1)","v":4},{"$f":"FIND(\"$\",PL7,PL8+1)","v":4},{"$f":"FIND(\"$\",PM7,PM8+1)","v":4},{"$f":"FIND(\"$\",PN7,PN8+1)","v":4},{"$f":"FIND(\"$\",PO7,PO8+1)","v":4},{"$f":"FIND(\"$\",PP7,PP8+1)","v":4},{"$f":"FIND(\"$\",PQ7,PQ8+1)","v":4},{"$f":"FIND(\"$\",PR7,PR8+1)","v":4},{"$f":"FIND(\"$\",PS7,PS8+1)","v":4},{"$f":"FIND(\"$\",PT7,PT8+1)","v":4},{"$f":"FIND(\"$\",PU7,PU8+1)","v":4},{"$f":"FIND(\"$\",PV7,PV8+1)","v":4},{"$f":"FIND(\"$\",PW7,PW8+1)","v":4},{"$f":"FIND(\"$\",PX7,PX8+1)","v":4},{"$f":"FIND(\"$\",PY7,PY8+1)","v":4},{"$f":"FIND(\"$\",PZ7,PZ8+1)","v":4},{"$f":"FIND(\"$\",QA7,QA8+1)","v":4},{"$f":"FIND(\"$\",QB7,QB8+1)","v":4},{"$f":"FIND(\"$\",QC7,QC8+1)","v":4},{"$f":"FIND(\"$\",QD7,QD8+1)","v":4},{"$f":"FIND(\"$\",QE7,QE8+1)","v":4},{"$f":"FIND(\"$\",QF7,QF8+1)","v":4},{"$f":"FIND(\"$\",QG7,QG8+1)","v":4},{"$f":"FIND(\"$\",QH7,QH8+1)","v":4},{"$f":"FIND(\"$\",QI7,QI8+1)","v":4},{"$f":"FIND(\"$\",QJ7,QJ8+1)","v":4},{"$f":"FIND(\"$\",QK7,QK8+1)","v":4},{"$f":"FIND(\"$\",QL7,QL8+1)","v":4},{"$f":"FIND(\"$\",QM7,QM8+1)","v":4},{"$f":"FIND(\"$\",QN7,QN8+1)","v":4},{"$f":"FIND(\"$\",QO7,QO8+1)","v":4},{"$f":"FIND(\"$\",QP7,QP8+1)","v":4},{"$f":"FIND(\"$\",QQ7,QQ8+1)","v":4},{"$f":"FIND(\"$\",QR7,QR8+1)","v":4},{"$f":"FIND(\"$\",QS7,QS8+1)","v":4},{"$f":"FIND(\"$\",QT7,QT8+1)","v":4},{"$f":"FIND(\"$\",QU7,QU8+1)","v":4},{"$f":"FIND(\"$\",QV7,QV8+1)","v":4},{"$f":"FIND(\"$\",QW7,QW8+1)","v":4},{"$f":"FIND(\"$\",QX7,QX8+1)","v":4},{"$f":"FIND(\"$\",QY7,QY8+1)","v":4},{"$f":"FIND(\"$\",QZ7,QZ8+1)","v":4},{"$f":"FIND(\"$\",RA7,RA8+1)","v":4},{"$f":"FIND(\"$\",RB7,RB8+1)","v":4},{"$f":"FIND(\"$\",RC7,RC8+1)","v":4},{"$f":"FIND(\"$\",RD7,RD8+1)","v":4},{"$f":"FIND(\"$\",RE7,RE8+1)","v":4},{"$f":"FIND(\"$\",RF7,RF8+1)","v":4},{"$f":"FIND(\"$\",RG7,RG8+1)","v":4},{"$f":"FIND(\"$\",RH7,RH8+1)","v":4},{"$f":"FIND(\"$\",RI7,RI8+1)","v":4},{"$f":"FIND(\"$\",RJ7,RJ8+1)","v":4},{"$f":"FIND(\"$\",RK7,RK8+1)","v":4},{"$f":"FIND(\"$\",RL7,RL8+1)","v":4},{"$f":"FIND(\"$\",RM7,RM8+1)","v":4},{"$f":"FIND(\"$\",RN7,RN8+1)","v":4},{"$f":"FIND(\"$\",RO7,RO8+1)","v":4},{"$f":"FIND(\"$\",RP7,RP8+1)","v":4},{"$f":"FIND(\"$\",RQ7,RQ8+1)","v":4},{"$f":"FIND(\"$\",RR7,RR8+1)","v":4},{"$f":"FIND(\"$\",RS7,RS8+1)","v":4},{"$f":"FIND(\"$\",RT7,RT8+1)","v":4},{"$f":"FIND(\"$\",RU7,RU8+1)","v":4},{"$f":"FIND(\"$\",RV7,RV8+1)","v":4},{"$f":"FIND(\"$\",RW7,RW8+1)","v":4},{"$f":"FIND(\"$\",RX7,RX8+1)","v":4},{"$f":"FIND(\"$\",RY7,RY8+1)","v":4},{"$f":"FIND(\"$\",RZ7,RZ8+1)","v":4},{"$f":"FIND(\"$\",SA7,SA8+1)","v":4},{"$f":"FIND(\"$\",SB7,SB8+1)","v":4},{"$f":"FIND(\"$\",SC7,SC8+1)","v":4},{"$f":"FIND(\"$\",SD7,SD8+1)","v":4},{"$f":"FIND(\"$\",SE7,SE8+1)","v":4},{"$f":"FIND(\"$\",SF7,SF8+1)","v":4},{"$f":"FIND(\"$\",SG7,SG8+1)","v":4},{"$f":"FIND(\"$\",SH7,SH8+1)","v":4},{"$f":"FIND(\"$\",SI7,SI8+1)","v":4},{"$f":"FIND(\"$\",SJ7,SJ8+1)","v":4},{"$f":"FIND(\"$\",SK7,SK8+1)","v":4},{"$f":"FIND(\"$\",SL7,SL8+1)","v":4},{"$f":"FIND(\"$\",SM7,SM8+1)","v":4},{"$f":"FIND(\"$\",SN7,SN8+1)","v":4},{"$f":"FIND(\"$\",SO7,SO8+1)","v":4},{"$f":"FIND(\"$\",SP7,SP8+1)","v":4},{"$f":"FIND(\"$\",SQ7,SQ8+1)","v":4},{"$f":"FIND(\"$\",SR7,SR8+1)","v":4},{"$f":"FIND(\"$\",SS7,SS8+1)","v":4},{"$f":"FIND(\"$\",ST7,ST8+1)","v":4},{"$f":"FIND(\"$\",SU7,SU8+1)","v":4},{"$f":"FIND(\"$\",SV7,SV8+1)","v":4},{"$f":"FIND(\"$\",SW7,SW8+1)","v":4},{"$f":"FIND(\"$\",SX7,SX8+1)","v":4},{"$f":"FIND(\"$\",SY7,SY8+1)","v":4},{"$f":"FIND(\"$\",SZ7,SZ8+1)","v":4},{"$f":"FIND(\"$\",TA7,TA8+1)","v":4},{"$f":"FIND(\"$\",TB7,TB8+1)","v":4},{"$f":"FIND(\"$\",TC7,TC8+1)","v":4},{"$f":"FIND(\"$\",TD7,TD8+1)","v":4},{"$f":"FIND(\"$\",TE7,TE8+1)","v":4},{"$f":"FIND(\"$\",TF7,TF8+1)","v":4},{"$f":"FIND(\"$\",TG7,TG8+1)","v":4},{"$f":"FIND(\"$\",TH7,TH8+1)","v":4},{"$f":"FIND(\"$\",TI7,TI8+1)","v":4},{"$f":"FIND(\"$\",TJ7,TJ8+1)","v":4},{"$f":"FIND(\"$\",TK7,TK8+1)","v":4},{"$f":"FIND(\"$\",TL7,TL8+1)","v":4},{"$f":"FIND(\"$\",TM7,TM8+1)","v":4},{"$f":"FIND(\"$\",TN7,TN8+1)","v":4},{"$f":"FIND(\"$\",TO7,TO8+1)","v":4},{"$f":"FIND(\"$\",TP7,TP8+1)","v":4},{"$f":"FIND(\"$\",TQ7,TQ8+1)","v":4},{"$f":"FIND(\"$\",TR7,TR8+1)","v":4},{"$f":"FIND(\"$\",TS7,TS8+1)","v":4},{"$f":"FIND(\"$\",TT7,TT8+1)","v":4},{"$f":"FIND(\"$\",TU7,TU8+1)","v":4},{"$f":"FIND(\"$\",TV7,TV8+1)","v":4},{"$f":"FIND(\"$\",TW7,TW8+1)","v":4},{"$f":"FIND(\"$\",TX7,TX8+1)","v":4},{"$f":"FIND(\"$\",TY7,TY8+1)","v":4},{"$f":"FIND(\"$\",TZ7,TZ8+1)","v":4},{"$f":"FIND(\"$\",UA7,UA8+1)","v":4},{"$f":"FIND(\"$\",UB7,UB8+1)","v":4},{"$f":"FIND(\"$\",UC7,UC8+1)","v":4},{"$f":"FIND(\"$\",UD7,UD8+1)","v":4},{"$f":"FIND(\"$\",UE7,UE8+1)","v":4},{"$f":"FIND(\"$\",UF7,UF8+1)","v":4},{"$f":"FIND(\"$\",UG7,UG8+1)","v":4},{"$f":"FIND(\"$\",UH7,UH8+1)","v":4},{"$f":"FIND(\"$\",UI7,UI8+1)","v":4},{"$f":"FIND(\"$\",UJ7,UJ8+1)","v":4},{"$f":"FIND(\"$\",UK7,UK8+1)","v":4},{"$f":"FIND(\"$\",UL7,UL8+1)","v":4},{"$f":"FIND(\"$\",UM7,UM8+1)","v":4},{"$f":"FIND(\"$\",UN7,UN8+1)","v":4},{"$f":"FIND(\"$\",UO7,UO8+1)","v":4},{"$f":"FIND(\"$\",UP7,UP8+1)","v":4},{"$f":"FIND(\"$\",UQ7,UQ8+1)","v":4},{"$f":"FIND(\"$\",UR7,UR8+1)","v":4},{"$f":"FIND(\"$\",US7,US8+1)","v":4},{"$f":"FIND(\"$\",UT7,UT8+1)","v":4},{"$f":"FIND(\"$\",UU7,UU8+1)","v":4},{"$f":"FIND(\"$\",UV7,UV8+1)","v":4},{"$f":"FIND(\"$\",UW7,UW8+1)","v":4},{"$f":"FIND(\"$\",UX7,UX8+1)","v":4},{"$f":"FIND(\"$\",UY7,UY8+1)","v":4},{"$f":"FIND(\"$\",UZ7,UZ8+1)","v":4},{"$f":"FIND(\"$\",VA7,VA8+1)","v":4},{"$f":"FIND(\"$\",VB7,VB8+1)","v":4},{"$f":"FIND(\"$\",VC7,VC8+1)","v":4},{"$f":"FIND(\"$\",VD7,VD8+1)","v":4},{"$f":"FIND(\"$\",VE7,VE8+1)","v":4},{"$f":"FIND(\"$\",VF7,VF8+1)","v":4},{"$f":"FIND(\"$\",VG7,VG8+1)","v":4},{"$f":"FIND(\"$\",VH7,VH8+1)","v":4},{"$f":"FIND(\"$\",VI7,VI8+1)","v":4},{"$f":"FIND(\"$\",VJ7,VJ8+1)","v":4},{"$f":"FIND(\"$\",VK7,VK8+1)","v":4},{"$f":"FIND(\"$\",VL7,VL8+1)","v":4},{"$f":"FIND(\"$\",VM7,VM8+1)","v":4},{"$f":"FIND(\"$\",VN7,VN8+1)","v":4},{"$f":"FIND(\"$\",VO7,VO8+1)","v":4},{"$f":"FIND(\"$\",VP7,VP8+1)","v":4},{"$f":"FIND(\"$\",VQ7,VQ8+1)","v":4},{"$f":"FIND(\"$\",VR7,VR8+1)","v":4},{"$f":"FIND(\"$\",VS7,VS8+1)","v":4},{"$f":"FIND(\"$\",VT7,VT8+1)","v":4},{"$f":"FIND(\"$\",VU7,VU8+1)","v":4},{"$f":"FIND(\"$\",VV7,VV8+1)","v":4},{"$f":"FIND(\"$\",VW7,VW8+1)","v":4},{"$f":"FIND(\"$\",VX7,VX8+1)","v":4},{"$f":"FIND(\"$\",VY7,VY8+1)","v":4},{"$f":"FIND(\"$\",VZ7,VZ8+1)","v":4},{"$f":"FIND(\"$\",WA7,WA8+1)","v":4},{"$f":"FIND(\"$\",WB7,WB8+1)","v":4},{"$f":"FIND(\"$\",WC7,WC8+1)","v":4},{"$f":"FIND(\"$\",WD7,WD8+1)","v":4},{"$f":"FIND(\"$\",WE7,WE8+1)","v":4},{"$f":"FIND(\"$\",WF7,WF8+1)","v":4},{"$f":"FIND(\"$\",WG7,WG8+1)","v":4},{"$f":"FIND(\"$\",WH7,WH8+1)","v":4},{"$f":"FIND(\"$\",WI7,WI8+1)","v":4},{"$f":"FIND(\"$\",WJ7,WJ8+1)","v":4},{"$f":"FIND(\"$\",WK7,WK8+1)","v":4},{"$f":"FIND(\"$\",WL7,WL8+1)","v":4},{"$f":"FIND(\"$\",WM7,WM8+1)","v":4},{"$f":"FIND(\"$\",WN7,WN8+1)","v":4},{"$f":"FIND(\"$\",WO7,WO8+1)","v":4},{"$f":"FIND(\"$\",WP7,WP8+1)","v":4},{"$f":"FIND(\"$\",WQ7,WQ8+1)","v":4},{"$f":"FIND(\"$\",WR7,WR8+1)","v":4},{"$f":"FIND(\"$\",WS7,WS8+1)","v":4},{"$f":"FIND(\"$\",WT7,WT8+1)","v":4},{"$f":"FIND(\"$\",WU7,WU8+1)","v":4},{"$f":"FIND(\"$\",WV7,WV8+1)","v":4},{"$f":"FIND(\"$\",WW7,WW8+1)","v":4},{"$f":"FIND(\"$\",WX7,WX8+1)","v":4},{"$f":"FIND(\"$\",WY7,WY8+1)","v":4},{"$f":"FIND(\"$\",WZ7,WZ8+1)","v":4},{"$f":"FIND(\"$\",XA7,XA8+1)","v":4},{"$f":"FIND(\"$\",XB7,XB8+1)","v":4},{"$f":"FIND(\"$\",XC7,XC8+1)","v":4},{"$f":"FIND(\"$\",XD7,XD8+1)","v":4},{"$f":"FIND(\"$\",XE7,XE8+1)","v":4},{"$f":"FIND(\"$\",XF7,XF8+1)","v":4},{"$f":"FIND(\"$\",XG7,XG8+1)","v":4},{"$f":"FIND(\"$\",XH7,XH8+1)","v":4},{"$f":"FIND(\"$\",XI7,XI8+1)","v":4},{"$f":"FIND(\"$\",XJ7,XJ8+1)","v":4},{"$f":"FIND(\"$\",XK7,XK8+1)","v":4},{"$f":"FIND(\"$\",XL7,XL8+1)","v":4},{"$f":"FIND(\"$\",XM7,XM8+1)","v":4},{"$f":"FIND(\"$\",XN7,XN8+1)","v":4},{"$f":"FIND(\"$\",XO7,XO8+1)","v":4},{"$f":"FIND(\"$\",XP7,XP8+1)","v":4},{"$f":"FIND(\"$\",XQ7,XQ8+1)","v":4},{"$f":"FIND(\"$\",XR7,XR8+1)","v":4},{"$f":"FIND(\"$\",XS7,XS8+1)","v":4},{"$f":"FIND(\"$\",XT7,XT8+1)","v":4},{"$f":"FIND(\"$\",XU7,XU8+1)","v":4},{"$f":"FIND(\"$\",XV7,XV8+1)","v":4},{"$f":"FIND(\"$\",XW7,XW8+1)","v":4},{"$f":"FIND(\"$\",XX7,XX8+1)","v":4},{"$f":"FIND(\"$\",XY7,XY8+1)","v":4},{"$f":"FIND(\"$\",XZ7,XZ8+1)","v":4},{"$f":"FIND(\"$\",YA7,YA8+1)","v":4},{"$f":"FIND(\"$\",YB7,YB8+1)","v":4},{"$f":"FIND(\"$\",YC7,YC8+1)","v":4},{"$f":"FIND(\"$\",YD7,YD8+1)","v":4},{"$f":"FIND(\"$\",YE7,YE8+1)","v":4},{"$f":"FIND(\"$\",YF7,YF8+1)","v":4},{"$f":"FIND(\"$\",YG7,YG8+1)","v":4},{"$f":"FIND(\"$\",YH7,YH8+1)","v":4},{"$f":"FIND(\"$\",YI7,YI8+1)","v":4},{"$f":"FIND(\"$\",YJ7,YJ8+1)","v":4},{"$f":"FIND(\"$\",YK7,YK8+1)","v":4},{"$f":"FIND(\"$\",YL7,YL8+1)","v":4},{"$f":"FIND(\"$\",YM7,YM8+1)","v":4},{"$f":"FIND(\"$\",YN7,YN8+1)","v":4},{"$f":"FIND(\"$\",YO7,YO8+1)","v":4},{"$f":"FIND(\"$\",YP7,YP8+1)","v":4},{"$f":"FIND(\"$\",YQ7,YQ8+1)","v":4},{"$f":"FIND(\"$\",YR7,YR8+1)","v":4},{"$f":"FIND(\"$\",YS7,YS8+1)","v":4},{"$f":"FIND(\"$\",YT7,YT8+1)","v":4},{"$f":"FIND(\"$\",YU7,YU8+1)","v":4},{"$f":"FIND(\"$\",YV7,YV8+1)","v":4},{"$f":"FIND(\"$\",YW7,YW8+1)","v":4},{"$f":"FIND(\"$\",YX7,YX8+1)","v":4},{"$f":"FIND(\"$\",YY7,YY8+1)","v":4},{"$f":"FIND(\"$\",YZ7,YZ8+1)","v":4},{"$f":"FIND(\"$\",ZA7,ZA8+1)","v":4},{"$f":"FIND(\"$\",ZB7,ZB8+1)","v":4},{"$f":"FIND(\"$\",ZC7,ZC8+1)","v":4},{"$f":"FIND(\"$\",ZD7,ZD8+1)","v":4},{"$f":"FIND(\"$\",ZE7,ZE8+1)","v":4},{"$f":"FIND(\"$\",ZF7,ZF8+1)","v":4},{"$f":"FIND(\"$\",ZG7,ZG8+1)","v":4},{"$f":"FIND(\"$\",ZH7,ZH8+1)","v":4},{"$f":"FIND(\"$\",ZI7,ZI8+1)","v":4},{"$f":"FIND(\"$\",ZJ7,ZJ8+1)","v":4},{"$f":"FIND(\"$\",ZK7,ZK8+1)","v":4},{"$f":"FIND(\"$\",ZL7,ZL8+1)","v":4},{"$f":"FIND(\"$\",ZM7,ZM8+1)","v":4},{"$f":"FIND(\"$\",ZN7,ZN8+1)","v":4},{"$f":"FIND(\"$\",ZO7,ZO8+1)","v":4},{"$f":"FIND(\"$\",ZP7,ZP8+1)","v":4},{"$f":"FIND(\"$\",ZQ7,ZQ8+1)","v":4},{"$f":"FIND(\"$\",ZR7,ZR8+1)","v":4},{"$f":"FIND(\"$\",ZS7,ZS8+1)","v":4},{"$f":"FIND(\"$\",ZT7,ZT8+1)","v":4},{"$f":"FIND(\"$\",ZU7,ZU8+1)","v":4},{"$f":"FIND(\"$\",ZV7,ZV8+1)","v":4},{"$f":"FIND(\"$\",ZW7,ZW8+1)","v":4},{"$f":"FIND(\"$\",ZX7,ZX8+1)","v":4},{"$f":"FIND(\"$\",ZY7,ZY8+1)","v":4},{"$f":"FIND(\"$\",ZZ7,ZZ8+1)","v":4},{"$f":"FIND(\"$\",AAA7,AAA8+1)","v":5},{"$f":"FIND(\"$\",AAB7,AAB8+1)","v":5},{"$f":"FIND(\"$\",AAC7,AAC8+1)","v":5},{"$f":"FIND(\"$\",AAD7,AAD8+1)","v":5},{"$f":"FIND(\"$\",AAE7,AAE8+1)","v":5},{"$f":"FIND(\"$\",AAF7,AAF8+1)","v":5},{"$f":"FIND(\"$\",AAG7,AAG8+1)","v":5},{"$f":"FIND(\"$\",AAH7,AAH8+1)","v":5},{"$f":"FIND(\"$\",AAI7,AAI8+1)","v":5},{"$f":"FIND(\"$\",AAJ7,AAJ8+1)","v":5},{"$f":"FIND(\"$\",AAK7,AAK8+1)","v":5},{"$f":"FIND(\"$\",AAL7,AAL8+1)","v":5},{"$f":"FIND(\"$\",AAM7,AAM8+1)","v":5},{"$f":"FIND(\"$\",AAN7,AAN8+1)","v":5},{"$f":"FIND(\"$\",AAO7,AAO8+1)","v":5},{"$f":"FIND(\"$\",AAP7,AAP8+1)","v":5},{"$f":"FIND(\"$\",AAQ7,AAQ8+1)","v":5},{"$f":"FIND(\"$\",AAR7,AAR8+1)","v":5},{"$f":"FIND(\"$\",AAS7,AAS8+1)","v":5},{"$f":"FIND(\"$\",AAT7,AAT8+1)","v":5},{"$f":"FIND(\"$\",AAU7,AAU8+1)","v":5},{"$f":"FIND(\"$\",AAV7,AAV8+1)","v":5},{"$f":"FIND(\"$\",AAW7,AAW8+1)","v":5},{"$f":"FIND(\"$\",AAX7,AAX8+1)","v":5},{"$f":"FIND(\"$\",AAY7,AAY8+1)","v":5},{"$f":"FIND(\"$\",AAZ7,AAZ8+1)","v":5},{"$f":"FIND(\"$\",ABA7,ABA8+1)","v":5},{"$f":"FIND(\"$\",ABB7,ABB8+1)","v":5},{"$f":"FIND(\"$\",ABC7,ABC8+1)","v":5}]
[null,"Column Name",{"$f":"MID(C7,C8+1,C9-C8-1)","v":"C"},{"$f":"MID(D7,D8+1,D9-D8-1)","v":"D"},"E","F","G",{"$f":"MID(H7,H8+1,H9-H8-1)","v":"H"},"I","J","K","L","M","N","O","P","Q","R","S","T","U","V","W","X","Y","Z","AA","AB","AC","AD","AE","AF","AG","AH","AI","AJ","AK","AL","AM","AN","AO","AP","AQ","AR","AS","AT","AU","AV","AW","AX","AY","AZ","BA",{"$f":"MID(BB7,BB8+1,BB9-BB8-1)","v":"BB"},{"$f":"MID(BC7,BC8+1,BC9-BC8-1)","v":"BC"},{"$f":"MID(BD7,BD8+1,BD9-BD8-1)","v":"BD"},{"$f":"MID(BE7,BE8+1,BE9-BE8-1)","v":"BE"},{"$f":"MID(BF7,BF8+1,BF9-BF8-1)","v":"BF"},{"$f":"MID(BG7,BG8+1,BG9-BG8-1)","v":"BG"},{"$f":"MID(BH7,BH8+1,BH9-BH8-1)","v":"BH"},{"$f":"MID(BI7,BI8+1,BI9-BI8-1)","v":"BI"},{"$f":"MID(BJ7,BJ8+1,BJ9-BJ8-1)","v":"BJ"},{"$f":"MID(BK7,BK8+1,BK9-BK8-1)","v":"BK"},{"$f":"MID(BL7,BL8+1,BL9-BL8-1)","v":"BL"},{"$f":"MID(BM7,BM8+1,BM9-BM8-1)","v":"BM"},{"$f":"MID(BN7,BN8+1,BN9-BN8-1)","v":"BN"},{"$f":"MID(BO7,BO8+1,BO9-BO8-1)","v":"BO"},{"$f":"MID(BP7,BP8+1,BP9-BP8-1)","v":"BP"},{"$f":"MID(BQ7,BQ8+1,BQ9-BQ8-1)","v":"BQ"},{"$f":"MID(BR7,BR8+1,BR9-BR8-1)","v":"BR"},{"$f":"MID(BS7,BS8+1,BS9-BS8-1)","v":"BS"},{"$f":"MID(BT7,BT8+1,BT9-BT8-1)","v":"BT"},{"$f":"MID(BU7,BU8+1,BU9-BU8-1)","v":"BU"},{"$f":"MID(BV7,BV8+1,BV9-BV8-1)","v":"BV"},{"$f":"MID(BW7,BW8+1,BW9-BW8-1)","v":"BW"},{"$f":"MID(BX7,BX8+1,BX9-BX8-1)","v":"BX"},{"$f":"MID(BY7,BY8+1,BY9-BY8-1)","v":"BY"},{"$f":"MID(BZ7,BZ8+1,BZ9-BZ8-1)","v":"BZ"},{"$f":"MID(CA7,CA8+1,CA9-CA8-1)","v":"CA"},{"$f":"MID(CB7,CB8+1,CB9-CB8-1)","v":"CB"},{"$f":"MID(CC7,CC8+1,CC9-CC8-1)","v":"CC"},{"$f":"MID(CD7,CD8+1,CD9-CD8-1)","v":"CD"},{"$f":"MID(CE7,CE8+1,CE9-CE8-1)","v":"CE"},{"$f":"MID(CF7,CF8+1,CF9-CF8-1)","v":"CF"},{"$f":"MID(CG7,CG8+1,CG9-CG8-1)","v":"CG"},{"$f":"MID(CH7,CH8+1,CH9-CH8-1)","v":"CH"},{"$f":"MID(CI7,CI8+1,CI9-CI8-1)","v":"CI"},{"$f":"MID(CJ7,CJ8+1,CJ9-CJ8-1)","v":"CJ"},{"$f":"MID(CK7,CK8+1,CK9-CK8-1)","v":"CK"},{"$f":"MID(CL7,CL8+1,CL9-CL8-1)","v":"CL"},{"$f":"MID(CM7,CM8+1,CM9-CM8-1)","v":"CM"},{"$f":"MID(CN7,CN8+1,CN9-CN8-1)","v":"CN"},{"$f":"MID(CO7,CO8+1,CO9-CO8-1)","v":"CO"},{"$f":"MID(CP7,CP8+1,CP9-CP8-1)","v":"CP"},{"$f":"MID(CQ7,CQ8+1,CQ9-CQ8-1)","v":"CQ"},{"$f":"MID(CR7,CR8+1,CR9-CR8-1)","v":"CR"},{"$f":"MID(CS7,CS8+1,CS9-CS8-1)","v":"CS"},{"$f":"MID(CT7,CT8+1,CT9-CT8-1)","v":"CT"},{"$f":"MID(CU7,CU8+1,CU9-CU8-1)","v":"CU"},{"$f":"MID(CV7,CV8+1,CV9-CV8-1)","v":"CV"},{"$f":"MID(CW7,CW8+1,CW9-CW8-1)","v":"CW"},{"$f":"MID(CX7,CX8+1,CX9-CX8-1)","v":"CX"},{"$f":"MID(CY7,CY8+1,CY9-CY8-1)","v":"CY"},{"$f":"MID(CZ7,CZ8+1,CZ9-CZ8-1)","v":"CZ"},{"$f":"MID(DA7,DA8+1,DA9-DA8-1)","v":"DA"},{"$f":"MID(DB7,DB8+1,DB9-DB8-1)","v":"DB"},{"$f":"MID(DC7,DC8+1,DC9-DC8-1)","v":"DC"},{"$f":"MID(DD7,DD8+1,DD9-DD8-1)","v":"DD"},{"$f":"MID(DE7,DE8+1,DE9-DE8-1)","v":"DE"},{"$f":"MID(DF7,DF8+1,DF9-DF8-1)","v":"DF"},{"$f":"MID(DG7,DG8+1,DG9-DG8-1)","v":"DG"},{"$f":"MID(DH7,DH8+1,DH9-DH8-1)","v":"DH"},{"$f":"MID(DI7,DI8+1,DI9-DI8-1)","v":"DI"},{"$f":"MID(DJ7,DJ8+1,DJ9-DJ8-1)","v":"DJ"},{"$f":"MID(DK7,DK8+1,DK9-DK8-1)","v":"DK"},{"$f":"MID(DL7,DL8+1,DL9-DL8-1)","v":"DL"},{"$f":"MID(DM7,DM8+1,DM9-DM8-1)","v":"DM"},{"$f":"MID(DN7,DN8+1,DN9-DN8-1)","v":"DN"},{"$f":"MID(DO7,DO8+1,DO9-DO8-1)","v":"DO"},{"$f":"MID(DP7,DP8+1,DP9-DP8-1)","v":"DP"},{"$f":"MID(DQ7,DQ8+1,DQ9-DQ8-1)","v":"DQ"},{"$f":"MID(DR7,DR8+1,DR9-DR8-1)","v":"DR"},{"$f":"MID(DS7,DS8+1,DS9-DS8-1)","v":"DS"},{"$f":"MID(DT7,DT8+1,DT9-DT8-1)","v":"DT"},{"$f":"MID(DU7,DU8+1,DU9-DU8-1)","v":"DU"},{"$f":"MID(DV7,DV8+1,DV9-DV8-1)","v":"DV"},{"$f":"MID(DW7,DW8+1,DW9-DW8-1)","v":"DW"},{"$f":"MID(DX7,DX8+1,DX9-DX8-1)","v":"DX"},{"$f":"MID(DY7,DY8+1,DY9-DY8-1)","v":"DY"},{"$f":"MID(DZ7,DZ8+1,DZ9-DZ8-1)","v":"DZ"},{"$f":"MID(EA7,EA8+1,EA9-EA8-1)","v":"EA"},{"$f":"MID(EB7,EB8+1,EB9-EB8-1)","v":"EB"},{"$f":"MID(EC7,EC8+1,EC9-EC8-1)","v":"EC"},{"$f":"MID(ED7,ED8+1,ED9-ED8-1)","v":"ED"},{"$f":"MID(EE7,EE8+1,EE9-EE8-1)","v":"EE"},{"$f":"MID(EF7,EF8+1,EF9-EF8-1)","v":"EF"},{"$f":"MID(EG7,EG8+1,EG9-EG8-1)","v":"EG"},{"$f":"MID(EH7,EH8+1,EH9-EH8-1)","v":"EH"},{"$f":"MID(EI7,EI8+1,EI9-EI8-1)","v":"EI"},{"$f":"MID(EJ7,EJ8+1,EJ9-EJ8-1)","v":"EJ"},{"$f":"MID(EK7,EK8+1,EK9-EK8-1)","v":"EK"},{"$f":"MID(EL7,EL8+1,EL9-EL8-1)","v":"EL"},{"$f":"MID(EM7,EM8+1,EM9-EM8-1)","v":"EM"},{"$f":"MID(EN7,EN8+1,EN9-EN8-1)","v":"EN"},{"$f":"MID(EO7,EO8+1,EO9-EO8-1)","v":"EO"},{"$f":"MID(EP7,EP8+1,EP9-EP8-1)","v":"EP"},{"$f":"MID(EQ7,EQ8+1,EQ9-EQ8-1)","v":"EQ"},{"$f":"MID(ER7,ER8+1,ER9-ER8-1)","v":"ER"},{"$f":"MID(ES7,ES8+1,ES9-ES8-1)","v":"ES"},{"$f":"MID(ET7,ET8+1,ET9-ET8-1)","v":"ET"},{"$f":"MID(EU7,EU8+1,EU9-EU8-1)","v":"EU"},{"$f":"MID(EV7,EV8+1,EV9-EV8-1)","v":"EV"},{"$f":"MID(EW7,EW8+1,EW9-EW8-1)","v":"EW"},{"$f":"MID(EX7,EX8+1,EX9-EX8-1)","v":"EX"},{"$f":"MID(EY7,EY8+1,EY9-EY8-1)","v":"EY"},{"$f":"MID(EZ7,EZ8+1,EZ9-EZ8-1)","v":"EZ"},{"$f":"MID(FA7,FA8+1,FA9-FA8-1)","v":"FA"},{"$f":"MID(FB7,FB8+1,FB9-FB8-1)","v":"FB"},{"$f":"MID(FC7,FC8+1,FC9-FC8-1)","v":"FC"},{"$f":"MID(FD7,FD8+1,FD9-FD8-1)","v":"FD"},{"$f":"MID(FE7,FE8+1,FE9-FE8-1)","v":"FE"},{"$f":"MID(FF7,FF8+1,FF9-FF8-1)","v":"FF"},{"$f":"MID(FG7,FG8+1,FG9-FG8-1)","v":"FG"},{"$f":"MID(FH7,FH8+1,FH9-FH8-1)","v":"FH"},{"$f":"MID(FI7,FI8+1,FI9-FI8-1)","v":"FI"},{"$f":"MID(FJ7,FJ8+1,FJ9-FJ8-1)","v":"FJ"},{"$f":"MID(FK7,FK8+1,FK9-FK8-1)","v":"FK"},{"$f":"MID(FL7,FL8+1,FL9-FL8-1)","v":"FL"},{"$f":"MID(FM7,FM8+1,FM9-FM8-1)","v":"FM"},{"$f":"MID(FN7,FN8+1,FN9-FN8-1)","v":"FN"},{"$f":"MID(FO7,FO8+1,FO9-FO8-1)","v":"FO"},{"$f":"MID(FP7,FP8+1,FP9-FP8-1)","v":"FP"},{"$f":"MID(FQ7,FQ8+1,FQ9-FQ8-1)","v":"FQ"},{"$f":"MID(FR7,FR8+1,FR9-FR8-1)","v":"FR"},{"$f":"MID(FS7,FS8+1,FS9-FS8-1)","v":"FS"},{"$f":"MID(FT7,FT8+1,FT9-FT8-1)","v":"FT"},{"$f":"MID(FU7,FU8+1,FU9-FU8-1)","v":"FU"},{"$f":"MID(FV7,FV8+1,FV9-FV8-1)","v":"FV"},{"$f":"MID(FW7,FW8+1,FW9-FW8-1)","v":"FW"},{"$f":"MID(FX7,FX8+1,FX9-FX8-1)","v":"FX"},{"$f":"MID(FY7,FY8+1,FY9-FY8-1)","v":"FY"},{"$f":"MID(FZ7,FZ8+1,FZ9-FZ8-1)","v":"FZ"},{"$f":"MID(GA7,GA8+1,GA9-GA8-1)","v":"GA"},{"$f":"MID(GB7,GB8+1,GB9-GB8-1)","v":"GB"},{"$f":"MID(GC7,GC8+1,GC9-GC8-1)","v":"GC"},{"$f":"MID(GD7,GD8+1,GD9-GD8-1)","v":"GD"},{"$f":"MID(GE7,GE8+1,GE9-GE8-1)","v":"GE"},{"$f":"MID(GF7,GF8+1,GF9-GF8-1)","v":"GF"},{"$f":"MID(GG7,GG8+1,GG9-GG8-1)","v":"GG"},{"$f":"MID(GH7,GH8+1,GH9-GH8-1)","v":"GH"},{"$f":"MID(GI7,GI8+1,GI9-GI8-1)","v":"GI"},{"$f":"MID(GJ7,GJ8+1,GJ9-GJ8-1)","v":"GJ"},{"$f":"MID(GK7,GK8+1,GK9-GK8-1)","v":"GK"},{"$f":"MID(GL7,GL8+1,GL9-GL8-1)","v":"GL"},{"$f":"MID(GM7,GM8+1,GM9-GM8-1)","v":"GM"},{"$f":"MID(GN7,GN8+1,GN9-GN8-1)","v":"GN"},{"$f":"MID(GO7,GO8+1,GO9-GO8-1)","v":"GO"},{"$f":"MID(GP7,GP8+1,GP9-GP8-1)","v":"GP"},{"$f":"MID(GQ7,GQ8+1,GQ9-GQ8-1)","v":"GQ"},{"$f":"MID(GR7,GR8+1,GR9-GR8-1)","v":"GR"},{"$f":"MID(GS7,GS8+1,GS9-GS8-1)","v":"GS"},{"$f":"MID(GT7,GT8+1,GT9-GT8-1)","v":"GT"},{"$f":"MID(GU7,GU8+1,GU9-GU8-1)","v":"GU"},{"$f":"MID(GV7,GV8+1,GV9-GV8-1)","v":"GV"},{"$f":"MID(GW7,GW8+1,GW9-GW8-1)","v":"GW"},{"$f":"MID(GX7,GX8+1,GX9-GX8-1)","v":"GX"},{"$f":"MID(GY7,GY8+1,GY9-GY8-1)","v":"GY"},{"$f":"MID(GZ7,GZ8+1,GZ9-GZ8-1)","v":"GZ"},{"$f":"MID(HA7,HA8+1,HA9-HA8-1)","v":"HA"},{"$f":"MID(HB7,HB8+1,HB9-HB8-1)","v":"HB"},{"$f":"MID(HC7,HC8+1,HC9-HC8-1)","v":"HC"},{"$f":"MID(HD7,HD8+1,HD9-HD8-1)","v":"HD"},{"$f":"MID(HE7,HE8+1,HE9-HE8-1)","v":"HE"},{"$f":"MID(HF7,HF8+1,HF9-HF8-1)","v":"HF"},{"$f":"MID(HG7,HG8+1,HG9-HG8-1)","v":"HG"},{"$f":"MID(HH7,HH8+1,HH9-HH8-1)","v":"HH"},{"$f":"MID(HI7,HI8+1,HI9-HI8-1)","v":"HI"},{"$f":"MID(HJ7,HJ8+1,HJ9-HJ8-1)","v":"HJ"},{"$f":"MID(HK7,HK8+1,HK9-HK8-1)","v":"HK"},{"$f":"MID(HL7,HL8+1,HL9-HL8-1)","v":"HL"},{"$f":"MID(HM7,HM8+1,HM9-HM8-1)","v":"HM"},{"$f":"MID(HN7,HN8+1,HN9-HN8-1)","v":"HN"},{"$f":"MID(HO7,HO8+1,HO9-HO8-1)","v":"HO"},{"$f":"MID(HP7,HP8+1,HP9-HP8-1)","v":"HP"},{"$f":"MID(HQ7,HQ8+1,HQ9-HQ8-1)","v":"HQ"},{"$f":"MID(HR7,HR8+1,HR9-HR8-1)","v":"HR"},{"$f":"MID(HS7,HS8+1,HS9-HS8-1)","v":"HS"},{"$f":"MID(HT7,HT8+1,HT9-HT8-1)","v":"HT"},{"$f":"MID(HU7,HU8+1,HU9-HU8-1)","v":"HU"},{"$f":"MID(HV7,HV8+1,HV9-HV8-1)","v":"HV"},{"$f":"MID(HW7,HW8+1,HW9-HW8-1)","v":"HW"},{"$f":"MID(HX7,HX8+1,HX9-HX8-1)","v":"HX"},{"$f":"MID(HY7,HY8+1,HY9-HY8-1)","v":"HY"},{"$f":"MID(HZ7,HZ8+1,HZ9-HZ8-1)","v":"HZ"},{"$f":"MID(IA7,IA8+1,IA9-IA8-1)","v":"IA"},{"$f":"MID(IB7,IB8+1,IB9-IB8-1)","v":"IB"},{"$f":"MID(IC7,IC8+1,IC9-IC8-1)","v":"IC"},{"$f":"MID(ID7,ID8+1,ID9-ID8-1)","v":"ID"},{"$f":"MID(IE7,IE8+1,IE9-IE8-1)","v":"IE"},{"$f":"MID(IF7,IF8+1,IF9-IF8-1)","v":"IF"},{"$f":"MID(IG7,IG8+1,IG9-IG8-1)","v":"IG"},{"$f":"MID(IH7,IH8+1,IH9-IH8-1)","v":"IH"},{"$f":"MID(II7,II8+1,II9-II8-1)","v":"II"},{"$f":"MID(IJ7,IJ8+1,IJ9-IJ8-1)","v":"IJ"},{"$f":"MID(IK7,IK8+1,IK9-IK8-1)","v":"IK"},{"$f":"MID(IL7,IL8+1,IL9-IL8-1)","v":"IL"},{"$f":"MID(IM7,IM8+1,IM9-IM8-1)","v":"IM"},{"$f":"MID(IN7,IN8+1,IN9-IN8-1)","v":"IN"},{"$f":"MID(IO7,IO8+1,IO9-IO8-1)","v":"IO"},{"$f":"MID(IP7,IP8+1,IP9-IP8-1)","v":"IP"},{"$f":"MID(IQ7,IQ8+1,IQ9-IQ8-1)","v":"IQ"},{"$f":"MID(IR7,IR8+1,IR9-IR8-1)","v":"IR"},{"$f":"MID(IS7,IS8+1,IS9-IS8-1)","v":"IS"},{"$f":"MID(IT7,IT8+1,IT9-IT8-1)","v":"IT"},{"$f":"MID(IU7,IU8+1,IU9-IU8-1)","v":"IU"},{"$f":"MID(IV7,IV8+1,IV9-IV8-1)","v":"IV"},{"$f":"MID(IW7,IW8+1,IW9-IW8-1)","v":"IW"},{"$f":"MID(IX7,IX8+1,IX9-IX8-1)","v":"IX"},{"$f":"MID(IY7,IY8+1,IY9-IY8-1)","v":"IY"},{"$f":"MID(IZ7,IZ8+1,IZ9-IZ8-1)","v":"IZ"},{"$f":"MID(JA7,JA8+1,JA9-JA8-1)","v":"JA"},{"$f":"MID(JB7,JB8+1,JB9-JB8-1)","v":"JB"},{"$f":"MID(JC7,JC8+1,JC9-JC8-1)","v":"JC"},{"$f":"MID(JD7,JD8+1,JD9-JD8-1)","v":"JD"},{"$f":"MID(JE7,JE8+1,JE9-JE8-1)","v":"JE"},{"$f":"MID(JF7,JF8+1,JF9-JF8-1)","v":"JF"},{"$f":"MID(JG7,JG8+1,JG9-JG8-1)","v":"JG"},{"$f":"MID(JH7,JH8+1,JH9-JH8-1)","v":"JH"},{"$f":"MID(JI7,JI8+1,JI9-JI8-1)","v":"JI"},{"$f":"MID(JJ7,JJ8+1,JJ9-JJ8-1)","v":"JJ"},{"$f":"MID(JK7,JK8+1,JK9-JK8-1)","v":"JK"},{"$f":"MID(JL7,JL8+1,JL9-JL8-1)","v":"JL"},{"$f":"MID(JM7,JM8+1,JM9-JM8-1)","v":"JM"},{"$f":"MID(JN7,JN8+1,JN9-JN8-1)","v":"JN"},{"$f":"MID(JO7,JO8+1,JO9-JO8-1)","v":"JO"},{"$f":"MID(JP7,JP8+1,JP9-JP8-1)","v":"JP"},{"$f":"MID(JQ7,JQ8+1,JQ9-JQ8-1)","v":"JQ"},{"$f":"MID(JR7,JR8+1,JR9-JR8-1)","v":"JR"},{"$f":"MID(JS7,JS8+1,JS9-JS8-1)","v":"JS"},{"$f":"MID(JT7,JT8+1,JT9-JT8-1)","v":"JT"},{"$f":"MID(JU7,JU8+1,JU9-JU8-1)","v":"JU"},{"$f":"MID(JV7,JV8+1,JV9-JV8-1)","v":"JV"},{"$f":"MID(JW7,JW8+1,JW9-JW8-1)","v":"JW"},{"$f":"MID(JX7,JX8+1,JX9-JX8-1)","v":"JX"},{"$f":"MID(JY7,JY8+1,JY9-JY8-1)","v":"JY"},{"$f":"MID(JZ7,JZ8+1,JZ9-JZ8-1)","v":"JZ"},{"$f":"MID(KA7,KA8+1,KA9-KA8-1)","v":"KA"},{"$f":"MID(KB7,KB8+1,KB9-KB8-1)","v":"KB"},{"$f":"MID(KC7,KC8+1,KC9-KC8-1)","v":"KC"},{"$f":"MID(KD7,KD8+1,KD9-KD8-1)","v":"KD"},{"$f":"MID(KE7,KE8+1,KE9-KE8-1)","v":"KE"},{"$f":"MID(KF7,KF8+1,KF9-KF8-1)","v":"KF"},{"$f":"MID(KG7,KG8+1,KG9-KG8-1)","v":"KG"},{"$f":"MID(KH7,KH8+1,KH9-KH8-1)","v":"KH"},{"$f":"MID(KI7,KI8+1,KI9-KI8-1)","v":"KI"},{"$f":"MID(KJ7,KJ8+1,KJ9-KJ8-1)","v":"KJ"},{"$f":"MID(KK7,KK8+1,KK9-KK8-1)","v":"KK"},{"$f":"MID(KL7,KL8+1,KL9-KL8-1)","v":"KL"},{"$f":"MID(KM7,KM8+1,KM9-KM8-1)","v":"KM"},{"$f":"MID(KN7,KN8+1,KN9-KN8-1)","v":"KN"},{"$f":"MID(KO7,KO8+1,KO9-KO8-1)","v":"KO"},{"$f":"MID(KP7,KP8+1,KP9-KP8-1)","v":"KP"},{"$f":"MID(KQ7,KQ8+1,KQ9-KQ8-1)","v":"KQ"},{"$f":"MID(KR7,KR8+1,KR9-KR8-1)","v":"KR"},{"$f":"MID(KS7,KS8+1,KS9-KS8-1)","v":"KS"},{"$f":"MID(KT7,KT8+1,KT9-KT8-1)","v":"KT"},{"$f":"MID(KU7,KU8+1,KU9-KU8-1)","v":"KU"},{"$f":"MID(KV7,KV8+1,KV9-KV8-1)","v":"KV"},{"$f":"MID(KW7,KW8+1,KW9-KW8-1)","v":"KW"},{"$f":"MID(KX7,KX8+1,KX9-KX8-1)","v":"KX"},{"$f":"MID(KY7,KY8+1,KY9-KY8-1)","v":"KY"},{"$f":"MID(KZ7,KZ8+1,KZ9-KZ8-1)","v":"KZ"},{"$f":"MID(LA7,LA8+1,LA9-LA8-1)","v":"LA"},{"$f":"MID(LB7,LB8+1,LB9-LB8-1)","v":"LB"},{"$f":"MID(LC7,LC8+1,LC9-LC8-1)","v":"LC"},{"$f":"MID(LD7,LD8+1,LD9-LD8-1)","v":"LD"},{"$f":"MID(LE7,LE8+1,LE9-LE8-1)","v":"LE"},{"$f":"MID(LF7,LF8+1,LF9-LF8-1)","v":"LF"},{"$f":"MID(LG7,LG8+1,LG9-LG8-1)","v":"LG"},{"$f":"MID(LH7,LH8+1,LH9-LH8-1)","v":"LH"},{"$f":"MID(LI7,LI8+1,LI9-LI8-1)","v":"LI"},{"$f":"MID(LJ7,LJ8+1,LJ9-LJ8-1)","v":"LJ"},{"$f":"MID(LK7,LK8+1,LK9-LK8-1)","v":"LK"},{"$f":"MID(LL7,LL8+1,LL9-LL8-1)","v":"LL"},{"$f":"MID(LM7,LM8+1,LM9-LM8-1)","v":"LM"},{"$f":"MID(LN7,LN8+1,LN9-LN8-1)","v":"LN"},{"$f":"MID(LO7,LO8+1,LO9-LO8-1)","v":"LO"},{"$f":"MID(LP7,LP8+1,LP9-LP8-1)","v":"LP"},{"$f":"MID(LQ7,LQ8+1,LQ9-LQ8-1)","v":"LQ"},{"$f":"MID(LR7,LR8+1,LR9-LR8-1)","v":"LR"},{"$f":"MID(LS7,LS8+1,LS9-LS8-1)","v":"LS"},{"$f":"MID(LT7,LT8+1,LT9-LT8-1)","v":"LT"},{"$f":"MID(LU7,LU8+1,LU9-LU8-1)","v":"LU"},{"$f":"MID(LV7,LV8+1,LV9-LV8-1)","v":"LV"},{"$f":"MID(LW7,LW8+1,LW9-LW8-1)","v":"LW"},{"$f":"MID(LX7,LX8+1,LX9-LX8-1)","v":"LX"},{"$f":"MID(LY7,LY8+1,LY9-LY8-1)","v":"LY"},{"$f":"MID(LZ7,LZ8+1,LZ9-LZ8-1)","v":"LZ"},{"$f":"MID(MA7,MA8+1,MA9-MA8-1)","v":"MA"},{"$f":"MID(MB7,MB8+1,MB9-MB8-1)","v":"MB"},{"$f":"MID(MC7,MC8+1,MC9-MC8-1)","v":"MC"},{"$f":"MID(MD7,MD8+1,MD9-MD8-1)","v":"MD"},{"$f":"MID(ME7,ME8+1,ME9-ME8-1)","v":"ME"},{"$f":"MID(MF7,MF8+1,MF9-MF8-1)","v":"MF"},{"$f":"MID(MG7,MG8+1,MG9-MG8-1)","v":"MG"},{"$f":"MID(MH7,MH8+1,MH9-MH8-1)","v":"MH"},{"$f":"MID(MI7,MI8+1,MI9-MI8-1)","v":"MI"},{"$f":"MID(MJ7,MJ8+1,MJ9-MJ8-1)","v":"MJ"},{"$f":"MID(MK7,MK8+1,MK9-MK8-1)","v":"MK"},{"$f":"MID(ML7,ML8+1,ML9-ML8-1)","v":"ML"},{"$f":"MID(MM7,MM8+1,MM9-MM8-1)","v":"MM"},{"$f":"MID(MN7,MN8+1,MN9-MN8-1)","v":"MN"},{"$f":"MID(MO7,MO8+1,MO9-MO8-1)","v":"MO"},{"$f":"MID(MP7,MP8+1,MP9-MP8-1)","v":"MP"},{"$f":"MID(MQ7,MQ8+1,MQ9-MQ8-1)","v":"MQ"},{"$f":"MID(MR7,MR8+1,MR9-MR8-1)","v":"MR"},{"$f":"MID(MS7,MS8+1,MS9-MS8-1)","v":"MS"},{"$f":"MID(MT7,MT8+1,MT9-MT8-1)","v":"MT"},{"$f":"MID(MU7,MU8+1,MU9-MU8-1)","v":"MU"},{"$f":"MID(MV7,MV8+1,MV9-MV8-1)","v":"MV"},{"$f":"MID(MW7,MW8+1,MW9-MW8-1)","v":"MW"},{"$f":"MID(MX7,MX8+1,MX9-MX8-1)","v":"MX"},{"$f":"MID(MY7,MY8+1,MY9-MY8-1)","v":"MY"},{"$f":"MID(MZ7,MZ8+1,MZ9-MZ8-1)","v":"MZ"},{"$f":"MID(NA7,NA8+1,NA9-NA8-1)","v":"NA"},{"$f":"MID(NB7,NB8+1,NB9-NB8-1)","v":"NB"},{"$f":"MID(NC7,NC8+1,NC9-NC8-1)","v":"NC"},{"$f":"MID(ND7,ND8+1,ND9-ND8-1)","v":"ND"},{"$f":"MID(NE7,NE8+1,NE9-NE8-1)","v":"NE"},{"$f":"MID(NF7,NF8+1,NF9-NF8-1)","v":"NF"},{"$f":"MID(NG7,NG8+1,NG9-NG8-1)","v":"NG"},{"$f":"MID(NH7,NH8+1,NH9-NH8-1)","v":"NH"},{"$f":"MID(NI7,NI8+1,NI9-NI8-1)","v":"NI"},{"$f":"MID(NJ7,NJ8+1,NJ9-NJ8-1)","v":"NJ"},{"$f":"MID(NK7,NK8+1,NK9-NK8-1)","v":"NK"},{"$f":"MID(NL7,NL8+1,NL9-NL8-1)","v":"NL"},{"$f":"MID(NM7,NM8+1,NM9-NM8-1)","v":"NM"},{"$f":"MID(NN7,NN8+1,NN9-NN8-1)","v":"NN"},{"$f":"MID(NO7,NO8+1,NO9-NO8-1)","v":"NO"},{"$f":"MID(NP7,NP8+1,NP9-NP8-1)","v":"NP"},{"$f":"MID(NQ7,NQ8+1,NQ9-NQ8-1)","v":"NQ"},{"$f":"MID(NR7,NR8+1,NR9-NR8-1)","v":"NR"},{"$f":"MID(NS7,NS8+1,NS9-NS8-1)","v":"NS"},{"$f":"MID(NT7,NT8+1,NT9-NT8-1)","v":"NT"},{"$f":"MID(NU7,NU8+1,NU9-NU8-1)","v":"NU"},{"$f":"MID(NV7,NV8+1,NV9-NV8-1)","v":"NV"},{"$f":"MID(NW7,NW8+1,NW9-NW8-1)","v":"NW"},{"$f":"MID(NX7,NX8+1,NX9-NX8-1)","v":"NX"},{"$f":"MID(NY7,NY8+1,NY9-NY8-1)","v":"NY"},{"$f":"MID(NZ7,NZ8+1,NZ9-NZ8-1)","v":"NZ"},{"$f":"MID(OA7,OA8+1,OA9-OA8-1)","v":"OA"},{"$f":"MID(OB7,OB8+1,OB9-OB8-1)","v":"OB"},{"$f":"MID(OC7,OC8+1,OC9-OC8-1)","v":"OC"},{"$f":"MID(OD7,OD8+1,OD9-OD8-1)","v":"OD"},{"$f":"MID(OE7,OE8+1,OE9-OE8-1)","v":"OE"},{"$f":"MID(OF7,OF8+1,OF9-OF8-1)","v":"OF"},{"$f":"MID(OG7,OG8+1,OG9-OG8-1)","v":"OG"},{"$f":"MID(OH7,OH8+1,OH9-OH8-1)","v":"OH"},{"$f":"MID(OI7,OI8+1,OI9-OI8-1)","v":"OI"},{"$f":"MID(OJ7,OJ8+1,OJ9-OJ8-1)","v":"OJ"},{"$f":"MID(OK7,OK8+1,OK9-OK8-1)","v":"OK"},{"$f":"MID(OL7,OL8+1,OL9-OL8-1)","v":"OL"},{"$f":"MID(OM7,OM8+1,OM9-OM8-1)","v":"OM"},{"$f":"MID(ON7,ON8+1,ON9-ON8-1)","v":"ON"},{"$f":"MID(OO7,OO8+1,OO9-OO8-1)","v":"OO"},{"$f":"MID(OP7,OP8+1,OP9-OP8-1)","v":"OP"},{"$f":"MID(OQ7,OQ8+1,OQ9-OQ8-1)","v":"OQ"},{"$f":"MID(OR7,OR8+1,OR9-OR8-1)","v":"OR"},{"$f":"MID(OS7,OS8+1,OS9-OS8-1)","v":"OS"},{"$f":"MID(OT7,OT8+1,OT9-OT8-1)","v":"OT"},{"$f":"MID(OU7,OU8+1,OU9-OU8-1)","v":"OU"},{"$f":"MID(OV7,OV8+1,OV9-OV8-1)","v":"OV"},{"$f":"MID(OW7,OW8+1,OW9-OW8-1)","v":"OW"},{"$f":"MID(OX7,OX8+1,OX9-OX8-1)","v":"OX"},{"$f":"MID(OY7,OY8+1,OY9-OY8-1)","v":"OY"},{"$f":"MID(OZ7,OZ8+1,OZ9-OZ8-1)","v":"OZ"},{"$f":"MID(PA7,PA8+1,PA9-PA8-1)","v":"PA"},{"$f":"MID(PB7,PB8+1,PB9-PB8-1)","v":"PB"},{"$f":"MID(PC7,PC8+1,PC9-PC8-1)","v":"PC"},{"$f":"MID(PD7,PD8+1,PD9-PD8-1)","v":"PD"},{"$f":"MID(PE7,PE8+1,PE9-PE8-1)","v":"PE"},{"$f":"MID(PF7,PF8+1,PF9-PF8-1)","v":"PF"},{"$f":"MID(PG7,PG8+1,PG9-PG8-1)","v":"PG"},{"$f":"MID(PH7,PH8+1,PH9-PH8-1)","v":"PH"},{"$f":"MID(PI7,PI8+1,PI9-PI8-1)","v":"PI"},{"$f":"MID(PJ7,PJ8+1,PJ9-PJ8-1)","v":"PJ"},{"$f":"MID(PK7,PK8+1,PK9-PK8-1)","v":"PK"},{"$f":"MID(PL7,PL8+1,PL9-PL8-1)","v":"PL"},{"$f":"MID(PM7,PM8+1,PM9-PM8-1)","v":"PM"},{"$f":"MID(PN7,PN8+1,PN9-PN8-1)","v":"PN"},{"$f":"MID(PO7,PO8+1,PO9-PO8-1)","v":"PO"},{"$f":"MID(PP7,PP8+1,PP9-PP8-1)","v":"PP"},{"$f":"MID(PQ7,PQ8+1,PQ9-PQ8-1)","v":"PQ"},{"$f":"MID(PR7,PR8+1,PR9-PR8-1)","v":"PR"},{"$f":"MID(PS7,PS8+1,PS9-PS8-1)","v":"PS"},{"$f":"MID(PT7,PT8+1,PT9-PT8-1)","v":"PT"},{"$f":"MID(PU7,PU8+1,PU9-PU8-1)","v":"PU"},{"$f":"MID(PV7,PV8+1,PV9-PV8-1)","v":"PV"},{"$f":"MID(PW7,PW8+1,PW9-PW8-1)","v":"PW"},{"$f":"MID(PX7,PX8+1,PX9-PX8-1)","v":"PX"},{"$f":"MID(PY7,PY8+1,PY9-PY8-1)","v":"PY"},{"$f":"MID(PZ7,PZ8+1,PZ9-PZ8-1)","v":"PZ"},{"$f":"MID(QA7,QA8+1,QA9-QA8-1)","v":"QA"},{"$f":"MID(QB7,QB8+1,QB9-QB8-1)","v":"QB"},{"$f":"MID(QC7,QC8+1,QC9-QC8-1)","v":"QC"},{"$f":"MID(QD7,QD8+1,QD9-QD8-1)","v":"QD"},{"$f":"MID(QE7,QE8+1,QE9-QE8-1)","v":"QE"},{"$f":"MID(QF7,QF8+1,QF9-QF8-1)","v":"QF"},{"$f":"MID(QG7,QG8+1,QG9-QG8-1)","v":"QG"},{"$f":"MID(QH7,QH8+1,QH9-QH8-1)","v":"QH"},{"$f":"MID(QI7,QI8+1,QI9-QI8-1)","v":"QI"},{"$f":"MID(QJ7,QJ8+1,QJ9-QJ8-1)","v":"QJ"},{"$f":"MID(QK7,QK8+1,QK9-QK8-1)","v":"QK"},{"$f":"MID(QL7,QL8+1,QL9-QL8-1)","v":"QL"},{"$f":"MID(QM7,QM8+1,QM9-QM8-1)","v":"QM"},{"$f":"MID(QN7,QN8+1,QN9-QN8-1)","v":"QN"},{"$f":"MID(QO7,QO8+1,QO9-QO8-1)","v":"QO"},{"$f":"MID(QP7,QP8+1,QP9-QP8-1)","v":"QP"},{"$f":"MID(QQ7,QQ8+1,QQ9-QQ8-1)","v":"QQ"},{"$f":"MID(QR7,QR8+1,QR9-QR8-1)","v":"QR"},{"$f":"MID(QS7,QS8+1,QS9-QS8-1)","v":"QS"},{"$f":"MID(QT7,QT8+1,QT9-QT8-1)","v":"QT"},{"$f":"MID(QU7,QU8+1,QU9-QU8-1)","v":"QU"},{"$f":"MID(QV7,QV8+1,QV9-QV8-1)","v":"QV"},{"$f":"MID(QW7,QW8+1,QW9-QW8-1)","v":"QW"},{"$f":"MID(QX7,QX8+1,QX9-QX8-1)","v":"QX"},{"$f":"MID(QY7,QY8+1,QY9-QY8-1)","v":"QY"},{"$f":"MID(QZ7,QZ8+1,QZ9-QZ8-1)","v":"QZ"},{"$f":"MID(RA7,RA8+1,RA9-RA8-1)","v":"RA"},{"$f":"MID(RB7,RB8+1,RB9-RB8-1)","v":"RB"},{"$f":"MID(RC7,RC8+1,RC9-RC8-1)","v":"RC"},{"$f":"MID(RD7,RD8+1,RD9-RD8-1)","v":"RD"},{"$f":"MID(RE7,RE8+1,RE9-RE8-1)","v":"RE"},{"$f":"MID(RF7,RF8+1,RF9-RF8-1)","v":"RF"},{"$f":"MID(RG7,RG8+1,RG9-RG8-1)","v":"RG"},{"$f":"MID(RH7,RH8+1,RH9-RH8-1)","v":"RH"},{"$f":"MID(RI7,RI8+1,RI9-RI8-1)","v":"RI"},{"$f":"MID(RJ7,RJ8+1,RJ9-RJ8-1)","v":"RJ"},{"$f":"MID(RK7,RK8+1,RK9-RK8-1)","v":"RK"},{"$f":"MID(RL7,RL8+1,RL9-RL8-1)","v":"RL"},{"$f":"MID(RM7,RM8+1,RM9-RM8-1)","v":"RM"},{"$f":"MID(RN7,RN8+1,RN9-RN8-1)","v":"RN"},{"$f":"MID(RO7,RO8+1,RO9-RO8-1)","v":"RO"},{"$f":"MID(RP7,RP8+1,RP9-RP8-1)","v":"RP"},{"$f":"MID(RQ7,RQ8+1,RQ9-RQ8-1)","v":"RQ"},{"$f":"MID(RR7,RR8+1,RR9-RR8-1)","v":"RR"},{"$f":"MID(RS7,RS8+1,RS9-RS8-1)","v":"RS"},{"$f":"MID(RT7,RT8+1,RT9-RT8-1)","v":"RT"},{"$f":"MID(RU7,RU8+1,RU9-RU8-1)","v":"RU"},{"$f":"MID(RV7,RV8+1,RV9-RV8-1)","v":"RV"},{"$f":"MID(RW7,RW8+1,RW9-RW8-1)","v":"RW"},{"$f":"MID(RX7,RX8+1,RX9-RX8-1)","v":"RX"},{"$f":"MID(RY7,RY8+1,RY9-RY8-1)","v":"RY"},{"$f":"MID(RZ7,RZ8+1,RZ9-RZ8-1)","v":"RZ"},{"$f":"MID(SA7,SA8+1,SA9-SA8-1)","v":"SA"},{"$f":"MID(SB7,SB8+1,SB9-SB8-1)","v":"SB"},{"$f":"MID(SC7,SC8+1,SC9-SC8-1)","v":"SC"},{"$f":"MID(SD7,SD8+1,SD9-SD8-1)","v":"SD"},{"$f":"MID(SE7,SE8+1,SE9-SE8-1)","v":"SE"},{"$f":"MID(SF7,SF8+1,SF9-SF8-1)","v":"SF"},{"$f":"MID(SG7,SG8+1,SG9-SG8-1)","v":"SG"},{"$f":"MID(SH7,SH8+1,SH9-SH8-1)","v":"SH"},{"$f":"MID(SI7,SI8+1,SI9-SI8-1)","v":"SI"},{"$f":"MID(SJ7,SJ8+1,SJ9-SJ8-1)","v":"SJ"},{"$f":"MID(SK7,SK8+1,SK9-SK8-1)","v":"SK"},{"$f":"MID(SL7,SL8+1,SL9-SL8-1)","v":"SL"},{"$f":"MID(SM7,SM8+1,SM9-SM8-1)","v":"SM"},{"$f":"MID(SN7,SN8+1,SN9-SN8-1)","v":"SN"},{"$f":"MID(SO7,SO8+1,SO9-SO8-1)","v":"SO"},{"$f":"MID(SP7,SP8+1,SP9-SP8-1)","v":"SP"},{"$f":"MID(SQ7,SQ8+1,SQ9-SQ8-1)","v":"SQ"},{"$f":"MID(SR7,SR8+1,SR9-SR8-1)","v":"SR"},{"$f":"MID(SS7,SS8+1,SS9-SS8-1)","v":"SS"},{"$f":"MID(ST7,ST8+1,ST9-ST8-1)","v":"ST"},{"$f":"MID(SU7,SU8+1,SU9-SU8-1)","v":"SU"},{"$f":"MID(SV7,SV8+1,SV9-SV8-1)","v":"SV"},{"$f":"MID(SW7,SW8+1,SW9-SW8-1)","v":"SW"},{"$f":"MID(SX7,SX8+1,SX9-SX8-1)","v":"SX"},{"$f":"MID(SY7,SY8+1,SY9-SY8-1)","v":"SY"},{"$f":"MID(SZ7,SZ8+1,SZ9-SZ8-1)","v":"SZ"},{"$f":"MID(TA7,TA8+1,TA9-TA8-1)","v":"TA"},{"$f":"MID(TB7,TB8+1,TB9-TB8-1)","v":"TB"},{"$f":"MID(TC7,TC8+1,TC9-TC8-1)","v":"TC"},{"$f":"MID(TD7,TD8+1,TD9-TD8-1)","v":"TD"},{"$f":"MID(TE7,TE8+1,TE9-TE8-1)","v":"TE"},{"$f":"MID(TF7,TF8+1,TF9-TF8-1)","v":"TF"},{"$f":"MID(TG7,TG8+1,TG9-TG8-1)","v":"TG"},{"$f":"MID(TH7,TH8+1,TH9-TH8-1)","v":"TH"},{"$f":"MID(TI7,TI8+1,TI9-TI8-1)","v":"TI"},{"$f":"MID(TJ7,TJ8+1,TJ9-TJ8-1)","v":"TJ"},{"$f":"MID(TK7,TK8+1,TK9-TK8-1)","v":"TK"},{"$f":"MID(TL7,TL8+1,TL9-TL8-1)","v":"TL"},{"$f":"MID(TM7,TM8+1,TM9-TM8-1)","v":"TM"},{"$f":"MID(TN7,TN8+1,TN9-TN8-1)","v":"TN"},{"$f":"MID(TO7,TO8+1,TO9-TO8-1)","v":"TO"},{"$f":"MID(TP7,TP8+1,TP9-TP8-1)","v":"TP"},{"$f":"MID(TQ7,TQ8+1,TQ9-TQ8-1)","v":"TQ"},{"$f":"MID(TR7,TR8+1,TR9-TR8-1)","v":"TR"},{"$f":"MID(TS7,TS8+1,TS9-TS8-1)","v":"TS"},{"$f":"MID(TT7,TT8+1,TT9-TT8-1)","v":"TT"},{"$f":"MID(TU7,TU8+1,TU9-TU8-1)","v":"TU"},{"$f":"MID(TV7,TV8+1,TV9-TV8-1)","v":"TV"},{"$f":"MID(TW7,TW8+1,TW9-TW8-1)","v":"TW"},{"$f":"MID(TX7,TX8+1,TX9-TX8-1)","v":"TX"},{"$f":"MID(TY7,TY8+1,TY9-TY8-1)","v":"TY"},{"$f":"MID(TZ7,TZ8+1,TZ9-TZ8-1)","v":"TZ"},{"$f":"MID(UA7,UA8+1,UA9-UA8-1)","v":"UA"},{"$f":"MID(UB7,UB8+1,UB9-UB8-1)","v":"UB"},{"$f":"MID(UC7,UC8+1,UC9-UC8-1)","v":"UC"},{"$f":"MID(UD7,UD8+1,UD9-UD8-1)","v":"UD"},{"$f":"MID(UE7,UE8+1,UE9-UE8-1)","v":"UE"},{"$f":"MID(UF7,UF8+1,UF9-UF8-1)","v":"UF"},{"$f":"MID(UG7,UG8+1,UG9-UG8-1)","v":"UG"},{"$f":"MID(UH7,UH8+1,UH9-UH8-1)","v":"UH"},{"$f":"MID(UI7,UI8+1,UI9-UI8-1)","v":"UI"},{"$f":"MID(UJ7,UJ8+1,UJ9-UJ8-1)","v":"UJ"},{"$f":"MID(UK7,UK8+1,UK9-UK8-1)","v":"UK"},{"$f":"MID(UL7,UL8+1,UL9-UL8-1)","v":"UL"},{"$f":"MID(UM7,UM8+1,UM9-UM8-1)","v":"UM"},{"$f":"MID(UN7,UN8+1,UN9-UN8-1)","v":"UN"},{"$f":"MID(UO7,UO8+1,UO9-UO8-1)","v":"UO"},{"$f":"MID(UP7,UP8+1,UP9-UP8-1)","v":"UP"},{"$f":"MID(UQ7,UQ8+1,UQ9-UQ8-1)","v":"UQ"},{"$f":"MID(UR7,UR8+1,UR9-UR8-1)","v":"UR"},{"$f":"MID(US7,US8+1,US9-US8-1)","v":"US"},{"$f":"MID(UT7,UT8+1,UT9-UT8-1)","v":"UT"},{"$f":"MID(UU7,UU8+1,UU9-UU8-1)","v":"UU"},{"$f":"MID(UV7,UV8+1,UV9-UV8-1)","v":"UV"},{"$f":"MID(UW7,UW8+1,UW9-UW8-1)","v":"UW"},{"$f":"MID(UX7,UX8+1,UX9-UX8-1)","v":"UX"},{"$f":"MID(UY7,UY8+1,UY9-UY8-1)","v":"UY"},{"$f":"MID(UZ7,UZ8+1,UZ9-UZ8-1)","v":"UZ"},{"$f":"MID(VA7,VA8+1,VA9-VA8-1)","v":"VA"},{"$f":"MID(VB7,VB8+1,VB9-VB8-1)","v":"VB"},{"$f":"MID(VC7,VC8+1,VC9-VC8-1)","v":"VC"},{"$f":"MID(VD7,VD8+1,VD9-VD8-1)","v":"VD"},{"$f":"MID(VE7,VE8+1,VE9-VE8-1)","v":"VE"},{"$f":"MID(VF7,VF8+1,VF9-VF8-1)","v":"VF"},{"$f":"MID(VG7,VG8+1,VG9-VG8-1)","v":"VG"},{"$f":"MID(VH7,VH8+1,VH9-VH8-1)","v":"VH"},{"$f":"MID(VI7,VI8+1,VI9-VI8-1)","v":"VI"},{"$f":"MID(VJ7,VJ8+1,VJ9-VJ8-1)","v":"VJ"},{"$f":"MID(VK7,VK8+1,VK9-VK8-1)","v":"VK"},{"$f":"MID(VL7,VL8+1,VL9-VL8-1)","v":"VL"},{"$f":"MID(VM7,VM8+1,VM9-VM8-1)","v":"VM"},{"$f":"MID(VN7,VN8+1,VN9-VN8-1)","v":"VN"},{"$f":"MID(VO7,VO8+1,VO9-VO8-1)","v":"VO"},{"$f":"MID(VP7,VP8+1,VP9-VP8-1)","v":"VP"},{"$f":"MID(VQ7,VQ8+1,VQ9-VQ8-1)","v":"VQ"},{"$f":"MID(VR7,VR8+1,VR9-VR8-1)","v":"VR"},{"$f":"MID(VS7,VS8+1,VS9-VS8-1)","v":"VS"},{"$f":"MID(VT7,VT8+1,VT9-VT8-1)","v":"VT"},{"$f":"MID(VU7,VU8+1,VU9-VU8-1)","v":"VU"},{"$f":"MID(VV7,VV8+1,VV9-VV8-1)","v":"VV"},{"$f":"MID(VW7,VW8+1,VW9-VW8-1)","v":"VW"},{"$f":"MID(VX7,VX8+1,VX9-VX8-1)","v":"VX"},{"$f":"MID(VY7,VY8+1,VY9-VY8-1)","v":"VY"},{"$f":"MID(VZ7,VZ8+1,VZ9-VZ8-1)","v":"VZ"},{"$f":"MID(WA7,WA8+1,WA9-WA8-1)","v":"WA"},{"$f":"MID(WB7,WB8+1,WB9-WB8-1)","v":"WB"},{"$f":"MID(WC7,WC8+1,WC9-WC8-1)","v":"WC"},{"$f":"MID(WD7,WD8+1,WD9-WD8-1)","v":"WD"},{"$f":"MID(WE7,WE8+1,WE9-WE8-1)","v":"WE"},{"$f":"MID(WF7,WF8+1,WF9-WF8-1)","v":"WF"},{"$f":"MID(WG7,WG8+1,WG9-WG8-1)","v":"WG"},{"$f":"MID(WH7,WH8+1,WH9-WH8-1)","v":"WH"},{"$f":"MID(WI7,WI8+1,WI9-WI8-1)","v":"WI"},{"$f":"MID(WJ7,WJ8+1,WJ9-WJ8-1)","v":"WJ"},{"$f":"MID(WK7,WK8+1,WK9-WK8-1)","v":"WK"},{"$f":"MID(WL7,WL8+1,WL9-WL8-1)","v":"WL"},{"$f":"MID(WM7,WM8+1,WM9-WM8-1)","v":"WM"},{"$f":"MID(WN7,WN8+1,WN9-WN8-1)","v":"WN"},{"$f":"MID(WO7,WO8+1,WO9-WO8-1)","v":"WO"},{"$f":"MID(WP7,WP8+1,WP9-WP8-1)","v":"WP"},{"$f":"MID(WQ7,WQ8+1,WQ9-WQ8-1)","v":"WQ"},{"$f":"MID(WR7,WR8+1,WR9-WR8-1)","v":"WR"},{"$f":"MID(WS7,WS8+1,WS9-WS8-1)","v":"WS"},{"$f":"MID(WT7,WT8+1,WT9-WT8-1)","v":"WT"},{"$f":"MID(WU7,WU8+1,WU9-WU8-1)","v":"WU"},{"$f":"MID(WV7,WV8+1,WV9-WV8-1)","v":"WV"},{"$f":"MID(WW7,WW8+1,WW9-WW8-1)","v":"WW"},{"$f":"MID(WX7,WX8+1,WX9-WX8-1)","v":"WX"},{"$f":"MID(WY7,WY8+1,WY9-WY8-1)","v":"WY"},{"$f":"MID(WZ7,WZ8+1,WZ9-WZ8-1)","v":"WZ"},{"$f":"MID(XA7,XA8+1,XA9-XA8-1)","v":"XA"},{"$f":"MID(XB7,XB8+1,XB9-XB8-1)","v":"XB"},{"$f":"MID(XC7,XC8+1,XC9-XC8-1)","v":"XC"},{"$f":"MID(XD7,XD8+1,XD9-XD8-1)","v":"XD"},{"$f":"MID(XE7,XE8+1,XE9-XE8-1)","v":"XE"},{"$f":"MID(XF7,XF8+1,XF9-XF8-1)","v":"XF"},{"$f":"MID(XG7,XG8+1,XG9-XG8-1)","v":"XG"},{"$f":"MID(XH7,XH8+1,XH9-XH8-1)","v":"XH"},{"$f":"MID(XI7,XI8+1,XI9-XI8-1)","v":"XI"},{"$f":"MID(XJ7,XJ8+1,XJ9-XJ8-1)","v":"XJ"},{"$f":"MID(XK7,XK8+1,XK9-XK8-1)","v":"XK"},{"$f":"MID(XL7,XL8+1,XL9-XL8-1)","v":"XL"},{"$f":"MID(XM7,XM8+1,XM9-XM8-1)","v":"XM"},{"$f":"MID(XN7,XN8+1,XN9-XN8-1)","v":"XN"},{"$f":"MID(XO7,XO8+1,XO9-XO8-1)","v":"XO"},{"$f":"MID(XP7,XP8+1,XP9-XP8-1)","v":"XP"},{"$f":"MID(XQ7,XQ8+1,XQ9-XQ8-1)","v":"XQ"},{"$f":"MID(XR7,XR8+1,XR9-XR8-1)","v":"XR"},{"$f":"MID(XS7,XS8+1,XS9-XS8-1)","v":"XS"},{"$f":"MID(XT7,XT8+1,XT9-XT8-1)","v":"XT"},{"$f":"MID(XU7,XU8+1,XU9-XU8-1)","v":"XU"},{"$f":"MID(XV7,XV8+1,XV9-XV8-1)","v":"XV"},{"$f":"MID(XW7,XW8+1,XW9-XW8-1)","v":"XW"},{"$f":"MID(XX7,XX8+1,XX9-XX8-1)","v":"XX"},{"$f":"MID(XY7,XY8+1,XY9-XY8-1)","v":"XY"},{"$f":"MID(XZ7,XZ8+1,XZ9-XZ8-1)","v":"XZ"},{"$f":"MID(YA7,YA8+1,YA9-YA8-1)","v":"YA"},{"$f":"MID(YB7,YB8+1,YB9-YB8-1)","v":"YB"},{"$f":"MID(YC7,YC8+1,YC9-YC8-1)","v":"YC"},{"$f":"MID(YD7,YD8+1,YD9-YD8-1)","v":"YD"},{"$f":"MID(YE7,YE8+1,YE9-YE8-1)","v":"YE"},{"$f":"MID(YF7,YF8+1,YF9-YF8-1)","v":"YF"},{"$f":"MID(YG7,YG8+1,YG9-YG8-1)","v":"YG"},{"$f":"MID(YH7,YH8+1,YH9-YH8-1)","v":"YH"},{"$f":"MID(YI7,YI8+1,YI9-YI8-1)","v":"YI"},{"$f":"MID(YJ7,YJ8+1,YJ9-YJ8-1)","v":"YJ"},{"$f":"MID(YK7,YK8+1,YK9-YK8-1)","v":"YK"},{"$f":"MID(YL7,YL8+1,YL9-YL8-1)","v":"YL"},{"$f":"MID(YM7,YM8+1,YM9-YM8-1)","v":"YM"},{"$f":"MID(YN7,YN8+1,YN9-YN8-1)","v":"YN"},{"$f":"MID(YO7,YO8+1,YO9-YO8-1)","v":"YO"},{"$f":"MID(YP7,YP8+1,YP9-YP8-1)","v":"YP"},{"$f":"MID(YQ7,YQ8+1,YQ9-YQ8-1)","v":"YQ"},{"$f":"MID(YR7,YR8+1,YR9-YR8-1)","v":"YR"},{"$f":"MID(YS7,YS8+1,YS9-YS8-1)","v":"YS"},{"$f":"MID(YT7,YT8+1,YT9-YT8-1)","v":"YT"},{"$f":"MID(YU7,YU8+1,YU9-YU8-1)","v":"YU"},{"$f":"MID(YV7,YV8+1,YV9-YV8-1)","v":"YV"},{"$f":"MID(YW7,YW8+1,YW9-YW8-1)","v":"YW"},{"$f":"MID(YX7,YX8+1,YX9-YX8-1)","v":"YX"},{"$f":"MID(YY7,YY8+1,YY9-YY8-1)","v":"YY"},{"$f":"MID(YZ7,YZ8+1,YZ9-YZ8-1)","v":"YZ"},{"$f":"MID(ZA7,ZA8+1,ZA9-ZA8-1)","v":"ZA"},{"$f":"MID(ZB7,ZB8+1,ZB9-ZB8-1)","v":"ZB"},{"$f":"MID(ZC7,ZC8+1,ZC9-ZC8-1)","v":"ZC"},{"$f":"MID(ZD7,ZD8+1,ZD9-ZD8-1)","v":"ZD"},{"$f":"MID(ZE7,ZE8+1,ZE9-ZE8-1)","v":"ZE"},{"$f":"MID(ZF7,ZF8+1,ZF9-ZF8-1)","v":"ZF"},{"$f":"MID(ZG7,ZG8+1,ZG9-ZG8-1)","v":"ZG"},{"$f":"MID(ZH7,ZH8+1,ZH9-ZH8-1)","v":"ZH"},{"$f":"MID(ZI7,ZI8+1,ZI9-ZI8-1)","v":"ZI"},{"$f":"MID(ZJ7,ZJ8+1,ZJ9-ZJ8-1)","v":"ZJ"},{"$f":"MID(ZK7,ZK8+1,ZK9-ZK8-1)","v":"ZK"},{"$f":"MID(ZL7,ZL8+1,ZL9-ZL8-1)","v":"ZL"},{"$f":"MID(ZM7,ZM8+1,ZM9-ZM8-1)","v":"ZM"},{"$f":"MID(ZN7,ZN8+1,ZN9-ZN8-1)","v":"ZN"},{"$f":"MID(ZO7,ZO8+1,ZO9-ZO8-1)","v":"ZO"},{"$f":"MID(ZP7,ZP8+1,ZP9-ZP8-1)","v":"ZP"},{"$f":"MID(ZQ7,ZQ8+1,ZQ9-ZQ8-1)","v":"ZQ"},{"$f":"MID(ZR7,ZR8+1,ZR9-ZR8-1)","v":"ZR"},{"$f":"MID(ZS7,ZS8+1,ZS9-ZS8-1)","v":"ZS"},{"$f":"MID(ZT7,ZT8+1,ZT9-ZT8-1)","v":"ZT"},{"$f":"MID(ZU7,ZU8+1,ZU9-ZU8-1)","v":"ZU"},{"$f":"MID(ZV7,ZV8+1,ZV9-ZV8-1)","v":"ZV"},{"$f":"MID(ZW7,ZW8+1,ZW9-ZW8-1)","v":"ZW"},{"$f":"MID(ZX7,ZX8+1,ZX9-ZX8-1)","v":"ZX"},{"$f":"MID(ZY7,ZY8+1,ZY9-ZY8-1)","v":"ZY"},{"$f":"MID(ZZ7,ZZ8+1,ZZ9-ZZ8-1)","v":"ZZ"},{"$f":"MID(AAA7,AAA8+1,AAA9-AAA8-1)","v":"AAA"},{"$f":"MID(AAB7,AAB8+1,AAB9-AAB8-1)","v":"AAB"},{"$f":"MID(AAC7,AAC8+1,AAC9-AAC8-1)","v":"AAC"},{"$f":"MID(AAD7,AAD8+1,AAD9-AAD8-1)","v":"AAD"},{"$f":"MID(AAE7,AAE8+1,AAE9-AAE8-1)","v":"AAE"},{"$f":"MID(AAF7,AAF8+1,AAF9-AAF8-1)","v":"AAF"},{"$f":"MID(AAG7,AAG8+1,AAG9-AAG8-1)","v":"AAG"},{"$f":"MID(AAH7,AAH8+1,AAH9-AAH8-1)","v":"AAH"},{"$f":"MID(AAI7,AAI8+1,AAI9-AAI8-1)","v":"AAI"},{"$f":"MID(AAJ7,AAJ8+1,AAJ9-AAJ8-1)","v":"AAJ"},{"$f":"MID(AAK7,AAK8+1,AAK9-AAK8-1)","v":"AAK"},{"$f":"MID(AAL7,AAL8+1,AAL9-AAL8-1)","v":"AAL"},{"$f":"MID(AAM7,AAM8+1,AAM9-AAM8-1)","v":"AAM"},{"$f":"MID(AAN7,AAN8+1,AAN9-AAN8-1)","v":"AAN"},{"$f":"MID(AAO7,AAO8+1,AAO9-AAO8-1)","v":"AAO"},{"$f":"MID(AAP7,AAP8+1,AAP9-AAP8-1)","v":"AAP"},{"$f":"MID(AAQ7,AAQ8+1,AAQ9-AAQ8-1)","v":"AAQ"},{"$f":"MID(AAR7,AAR8+1,AAR9-AAR8-1)","v":"AAR"},{"$f":"MID(AAS7,AAS8+1,AAS9-AAS8-1)","v":"AAS"},{"$f":"MID(AAT7,AAT8+1,AAT9-AAT8-1)","v":"AAT"},{"$f":"MID(AAU7,AAU8+1,AAU9-AAU8-1)","v":"AAU"},{"$f":"MID(AAV7,AAV8+1,AAV9-AAV8-1)","v":"AAV"},{"$f":"MID(AAW7,AAW8+1,AAW9-AAW8-1)","v":"AAW"},{"$f":"MID(AAX7,AAX8+1,AAX9-AAX8-1)","v":"AAX"},{"$f":"MID(AAY7,AAY8+1,AAY9-AAY8-1)","v":"AAY"},{"$f":"MID(AAZ7,AAZ8+1,AAZ9-AAZ8-1)","v":"AAZ"},{"$f":"MID(ABA7,ABA8+1,ABA9-ABA8-1)","v":"ABA"},{"$f":"MID(ABB7,ABB8+1,ABB9-ABB8-1)","v":"ABB"},{"$f":"MID(ABC7,ABC8+1,ABC9-ABC8-1)","v":"ABC"}]

{"sheet":"Find Sheet Name","index":10,"n_rows":22,"n_cols":5,"rows_kept":22,"cut":false,"hidden":false,"merged":[]}
["Table of Contents"]
[]
[null,null,"This shows how to find the sheet name",null,{"$f":"UPPER(RIGHT(CELL(\"filename\",E3),LEN(CELL(\"filename\",E3))-SEARCH(\"]\",CELL(\"filename\",E3))))","v":"FIND SHEET NAME"}]
[]
[null,null,null,null,"PRESS F2 Key if N/A is in Cells"]
[]
[null,null," =CELL(\"filename\")-->",null,{"$f":"CELL(\"filename\")","v":"https://d.docs.live.net/f82d64a42721f930/Documents/[Generic-Macros.xlsm]Introduction"}]
[null,null," =MID(CELL(\"filename\"),FIND(\"]\",CELL(\"filename\"),1)+1,250)-->",null,{"$f":"MID(CELL(\"filename\"),FIND(\"]\",CELL(\"filename\"),1)+1,250)","v":"Introduction"}]
[]
[null,null," =FIND(\"]\",E4,1)-->",null,{"$f":"FIND(\"]\",E7,1)","v":72}]
[]
[null,null," =MID(E4,E6+1,50)-->",null,{"$f":"MID(E7,E10+1,50)","v":"Introduction"}]
[]
[]
[null,null,{"$f":"sheet_name()","v":{"$error":"#VALUE!"}}]
[]
[null,null," =FIND(\"]\",CELL(\"filename\"),1)-->",null,{"$f":"FIND(\"]\",CELL(\"filename\"),1)","v":72}]
[]
[]
[null,null," =MID(CELL(\"filename\"),FIND(\"]\",CELL(\"filename\"),1)+1,250)-->",null,{"$f":"MID(CELL(\"filename\"),FIND(\"]\",CELL(\"filename\"),1)+1,250)","v":"Introduction"}]
[]
[null,null,"File Size",null,{"$f":"filesize()","v":{"$error":"#VALUE!"}}]

{"sheet":"Shift Cntl S","index":11,"n_rows":21,"n_cols":17,"rows_kept":21,"cut":false,"hidden":false,"merged":[]}
["          "]
[]
[null,null,1,2,3,4,5,6,7,8,9,10,11,12,13,14,15]
[]
[null,null,100,100,100,100,100,100,100,100,100,100,100,100,100,100,100]
[null,null,200,200,200,200,200,200,200,200,200,200,200,200,200,200,200]
[null,null,{"$f":"SUM(C5:C6)","v":300},300,300,300,300,300,300,300,300,300,300,300,300,300,300]
[]
[null,null,"First time in blank row does not work"]
[null,null,"Over-write does work"]
[]
[null,null,200,100,100,100,100,100,100,100,100,100,100,100,100,100,100]
[]
[null,null,100,100,100,100,100,100,100,100,100,100,100,100,100,100,100]
[]
[null,null,300,300,300,300,300,300,300,300,300,300,300,300,300,300,300]
[]
[null,null,500,500,500,500,500,500,500,500,500,500,500,500,500,500,500]
[null,null,1000,1000,1000,1000,1000,1000,1000,1000,1000,1000,1000,1000,1000,1000,1000]
[]
[null,null,2000,2000,2000,2000,2000,2000,2000,2000,2000,2000,2000,2000,2000,2000,2000]

{"sheet":"Shortcuts List","index":12,"n_rows":1014,"n_cols":10,"rows_kept":1014,"cut":false,"hidden":false,"merged":[]}
["Table of Contents"]
[null,"Keyboard shortcuts"]
[]
[]
["Work with worksheets"]
[]
[null,"SHIFT+F11 or ALT+SHIFT+F1",null,null,null,"Better than using Insert sheet and then F4.  Use ALT+SHIFT+F1 rather than SHIFT+F11"]
[null,"Insert a new worksheet."]
[null,"CTRL+PAGE DOWN",null,null,null,"This is good for moving between pages"]
[null,"Move to the next sheet in the workbook."]
[null,"CTRL+PAGE UP"]
[null,"Move to the previous sheet in the workbook."]
[null,"SHIFT+CTRL+PAGE DOWN"]
[null,"Select the current and next sheet. To cancel selection of multiple sheets, press CTRL+PAGE DOWN or, to select a different sheet, press CTRL+PAGE UP."]
[null,"SHIFT+CTRL+PAGE UP"]
[null,"Select the current and previous sheet."]
[null,"ALT+O H R"]
[null,"Rename the current sheet (Format menu, Sheet submenu, Rename command)."]
[null,"ALT+E M"]
[null,"Move or copy the current sheet (Edit menu, Move or Copy Sheet command)."]
[null,"ALT+E L"]
[null,"Delete the current sheet (Edit menu, Delete Sheet command)."]
[]
["Move and scroll within worksheets"]
[]
[null,"Arrow keys"]
[null,"Move one cell up, down, left, or right."]
[null,"CTRL+arrow key",null,null,null,null,"This is good with the F8 key and long lists"]
[null,"Move to the edge of the current data region (data region: A range of cells that contains data and that is bounded by empty cells or worksheet borders.)."]
[null,"HOME"]
[null,"Move to the beginning of the row."]
[null,"CTRL+HOME"]
[null,"Move to the beginning of the worksheet."]
[null,"CTRL+END"]
[null,"Move to the last cell on the worksheet, in the bottom-most used row of the rightmost used column."]
[null,"PAGE DOWN"]
[null,"Move down one screen."]
[null,"PAGE UP"]
[null,"Move up one screen."]
[null,"ALT+PAGE DOWN"]
[null,"Move one screen to the right."]
[null,"ALT+PAGE UP"]
[null,"Move one screen to the left."]
[null,"F6"]
[null,"Switch to the next pane in a worksheet that has been split (Window menu, Split command)."]
[null,"SHIFT+F6"]
[null,"Switch to the previous pane in a worksheet that has been split."]
[null,"CTRL+BACKSPACE"]
[null,"Scroll to display the active cell."]
[null,"F5",null,null,null,"This can be used to mark all of the inputs when using the special feature"]
[null,"Display the Go To dialog box."]
[null,"SHIFT+F5"]
[null,"Display the Find dialog box."]
[null,"SHIFT+F4"]
[null,"Repeat the last Find action (same as Find Next)."]
[null,"TAB"]
[null,"Move between unlocked cells on a protected worksheet."]
["Select cells, rows and columns, and objects (from anywhere in the sheet)"]
[]
[null,"CTRL+SPACEBAR",null,null,null,"This is good for inserting and deleting rows"]
[null,"Select the entire column."]
[null,"SHIFT+SPACEBAR"]
[null,"Select the entire row."]
[null,"CTRL+A",null,null,null,"Press a couple of times to get the entire sheet"]
[null,"Select the entire worksheet."]
[null,"SHIFT+BACKSPACE"]
[null,"With multiple cells selected, select only the active cell."]
[null,"CTRL+SHIFT+SPACEBAR",null,null,null,"Can delete internet stuff"]
[null,"With an object selected, select all objects on a sheet."]
[null,"CTRL+6"]
[null,"Alternate between hiding objects, displaying objects, and displaying placeholders for objects."]
[]
["Select cells with specific characteristics"]
[]
[null,"CTRL+SHIFT+* (asterisk)"]
[null,"Select the current region around the active cell (the data area enclosed by blank rows and blank columns). In a PivotTable report, select the entire PivotTable report."]
[null,"CTRL+/"]
[null,"Select the array (array: Used to build single formulas that produce multiple results or that operate on a group of arguments that are arranged in rows and columns. An array range shares a common formula; an array constant is a group of constants used as an argument.) containing the active cell."]
[null,"CTRL+SHIFT+O (the letter O)"]
[null,"Select all cells that contain comments."]
[null,"CTRL+\\"]
[null,"In a selected row, select the cells that don't match the value in the active cell."]
[null,"CTRL+SHIFT+|"]
[null,"In a selected column, select the cells that don't match the value in the active cell."]
[null,"CTRL+[ (opening bracket)"]
[null,"Select all cells directly referenced by formulas in the selection."]
[null,"CTRL+SHIFT+{ (opening brace)"]
[null,"Select all cells directly or indirectly referenced by formulas in the selection."]
[null,"CTRL+] (closing bracket)"]
[null,"Select cells that contain formulas that directly reference the active cell."]
[null,"CTRL+SHIFT+} (closing brace)"]
[null,"Select cells that contain formulas that directly or indirectly reference the active cell."]
[null,"ALT+; (semicolon)"]
[null,"Select the visible cells in the current selection."]
[]
["Extend a selection"]
[]
[null,"F8"]
[null,"Turn extend mode on or off. In extend mode, EXT appears in the status line, and the arrow keys extend the selection."]
[null,"SHIFT+F8"]
[null,"Add another range of cells to the selection; or use the arrow keys to move to the start of the range you want to add, and then press F8 and the arrow keys to select the next range."]
[null,"SHIFT+arrow key"]
[null,"Extend the selection by one cell."]
[null,"CTRL+SHIFT+arrow key",null,null,null,"Important - Use together with hiding remaining rows or columns"]
[null,"Extend the selection to the last nonblank cell in the same column or row as the active cell."]
[null,"SHIFT+HOME"]
[null,"Extend the selection to the beginning of the row."]
[null,"CTRL+SHIFT+HOME"]
[null,"Extend the selection to the beginning of the worksheet."]
[null,"CTRL+SHIFT+END"]
[null,"Extend the selection to the last used cell on the worksheet (lower-right corner)."]
[null,"SHIFT+PAGE DOWN"]
[null,"Extend the selection down one screen."]
[null,"SHIFT+PAGE UP"]
[null,"Extend the selection up one screen."]
[null,"END+SHIFT+arrow key"]
[null,"Extend the selection to the last nonblank cell in the same column or row as the active cell."]
[null,"END+SHIFT+HOME"]
[null,"Extend the selection to the last used cell on the worksheet (lower-right corner)."]
[null,"END+SHIFT+ENTER"]
[null,"Extend the selection to the last cell in the current row. This key sequence does not work if you have turned on transition navigation keys (Tools menu, Options command, Transition tab)."]
[null,"SCROLL LOCK+SHIFT+HOME"]
[null,"Extend the selection to the cell in the upper-left corner of the window."]
[null,"SCROLL LOCK+SHIFT+END"]
[null,"Extend the selection to the cell in the lower-right corner of the window."]
[]
[null,"Keys for entering, editing, formatting, and calculating data"]
[]
["Enter data"]
[]
[null,"ENTER"]
[null,"Complete a cell entry and select the cell below."]
[null,"ALT+ENTER"]
[null,"Start a new line in the same cell."]
[null,"CTRL+ENTER"]
[null,"Fill the selected cell range with the current entry."]
[null,"SHIFT+ENTER"]
[null,"Complete a cell entry and select the previous cell above."]
[null,"TAB"]
[null,"Complete a cell entry and select the next cell to the right."]
[null,"SHIFT+TAB"]
[null,"Complete a cell entry and select the previous cell to the left."]
[null,"ESC"]
[null,"Cancel a cell entry."]
[null,"Arrow keys"]
[null,"Move one character up, down, left, or right."]
[null,"HOME"]
[null,"Move to the beginning of the line."]
[null,"F4 or CTRL+Y"]
[null,"Repeat the last action."]
[null,"CTRL+SHIFT+F3"]
[null,"Create names (name: A word or string of characters that represents a cell, range of cells, formula, or constant value. Use easy-to-understand names, such as Products, to refer to hard to understand ranges, such as Sales!C20:C30.) from row and column labels."]
[null,"CTRL+D"]
[null,"Fill down."]
[null,"CTRL+R",null,null,null,"Use with SHIFT, CNTL, --->"]
[null,"Fill to the right."]
[null,"CTRL+F3",null,null,null,"Same as Insert, Name, Define"]
[null,"Define a name."]
[null,"CTRL+K",null,null,null,"This can help  a lot"]
[null,"Insert a hyperlink (hyperlink: Colored and underlined text or a graphic that you click to go to a file, a location in a file, a Web page on the World Wide Web, or a Web page on an intranet. Hyperlinks can also go to newsgroups and to Gopher, Telnet, and FTP sites.)."]
[null,"CTRL+; (semicolon)",null,null,null,"Cool -- today's date"]
[null,"Enter the date."]
[null,"CTRL+SHIFT+: (colon)"]
[null,"Enter the time."]
[null,"ALT+DOWN ARROW"]
[null,"Display a drop-down list of the values in the current column of a range."]
[null,"CTRL+Z"]
[null,"Undo the last action."]
[]
["Enter special characters"]
[]
[null,"Press F2 to edit the cell, turn on NUM LOCK, and then press the following keys by using the numeric key pad:"]
[]
[null,"ALT+0162"]
[null,"Enters the cent character ¢."]
[null,"ALT+0163"]
[null,"Enters the pound sterling character £."]
[null,"ALT+0165"]
[null,"Enters the yen symbol ¥."]
[null,"ALT+0128"]
[null,"Enters the euro symbol €.",null,null,1,null,"I cannot get this to work"]
[]
["Enter and calculate formulas"]
[]
[null,"Start a formula."]
[null,"F2"]
[null,"Move the insertion point into the Formula Bar when editing in a cell is turned off."]
[null,"BACKSPACE"]
[null,"In the Formula Bar, delete one character to the left."]
[null,"ENTER"]
[null,"Complete a cell entry from the cell or Formula Bar."]
[null,"CTRL+SHIFT+ENTER"]
[null,"Enter a formula as an array formula (array formula: A formula that performs multiple calculations on one or more sets of values, and then returns either a single result or multiple results. Array formulas are enclosed between braces { } and are entered by pressing CTRL+SHIFT+ENTER.)."]
[null,"ESC"]
[null,"Cancel an entry in the cell or Formula Bar."]
[null,"SHIFT+F3",null,null,null,null,"This is cool; you must first use the F2 key"]
[null,"In a formula, display the Insert Function dialog box.",null,null,null,null,{"$f":"SUM(G196:H196)","v":0},"test_range"]
[null,"CTRL+A",null,{"$f":"NPV(F198,G198:I198)","v":0}]
[null,"When the insertion point is to the right of a function name in a formula, display the Function Arguments dialog box."]
[null,"CTRL+SHIFT+A"]
[null,"When the insertion point is to the right of a function name in a formula, insert the argument names and parentheses."]
[null,"F3"]
[null,"Paste a defined name (name: A word or string of characters that represents a cell, range of cells, formula, or constant value. Use easy-to-understand names, such as Products, to refer to hard to understand ranges, such as Sales!C20:C30.) into a formula."]
[null,"ALT+= (equal sign)"]
[null,"Insert an AutoSum formula with the SUM function."]
[null,"CTRL+SHIFT+\" (quotation mark)"]
[null,"Copy the value from the cell above the active cell into the cell or the Formula Bar."]
[null,"CTRL+' (apostrophe)"]
[null,"Copies a formula from the cell above the active cell into the cell or the Formula Bar."]
[null,"CTRL+` (single left quotation mark)"]
[null,"Alternate between displaying cell values and displaying formulas."]
[null,"F9"]
[null,"Calculate all worksheets in all open workbooks."]
[null,"When a portion of a formula is selected, calculate the selected portion. You can then press ENTER or CTRL+SHIFT+ENTER (for array formulas) to replace the selected portion with the calculated value."]
[null,"SHIFT+F9"]
[null,"Calculate the active worksheet."]
[null,"CTRL+ALT+F9"]
[null,"Calculate all worksheets in all open workbooks, regardless of whether they have changed since the last calculation."]
[null,"CTRL+ALT+SHIFT+F9"]
[null,"Rechecks dependent formulas and then calculates all cells in all open workbooks, including cells not marked as needing to be calculated."]
[]
[null,"Edit data"]
[]
[null,"F2"]
[null,"Edit the active cell and position the insertion point at the end of the cell contents."]
[null,"ALT+ENTER"]
[null,"Start a new line in the same cell."]
[null,"BACKSPACE"]
[null,"Edit the active cell and then clear it, or delete the preceding character in the active cell as you edit cell contents."]
[null,"DELETE"]
[null,"Delete the character to the right of the insertion point, or delete the selection."]
[null,"CTRL+DELETE"]
[null,"Delete text to the end of the line."]
[null,"F7"]
[null,"Display the Spelling dialog box."]
[null,"SHIFT+F2"]
[null,"Edit and/or create a cell comment."]
[null,"ENTER"]
[null,"Complete a cell entry and select the next cell below."]
[null,"CTRL+Z"]
[null,"Undo the last action."]
[null,"ESC"]
[null,"Cancel a cell entry."]
[null,"CTRL+SHIFT+Z"]
[null,"When the AutoCorrect Smart Tags is displayed, undo or redo the last automatic correction."]
[]
[null,"Insert, delete, and copy cells"]
[]
[null,"CTRL+C"]
[null,"Copy the selected cells."]
[null,"CTRL+C, immediately followed by another CTRL+C"]
[null,"Display the Microsoft Office Clipboard (multiple copy and paste)."]
[null,"CTRL+X"]
[null,"Cut the selected cells."]
[null,"CTRL+V"]
[null,"Paste copied cells."]
[null,"DELETE"]
[null,"Clear the contents of the selected cells."]
[null,"CTRL+HYPHEN"]
[null,"Delete the selected cells."]
[null,"CTRL+SHIFT+PLUS SIGN"]
[null,"Insert blank cells."]
[]
[null,"Format data"]
[]
[null,"ALT+' (apostrophe)"]
[null,"Display the Style dialog box.",null,null,null,null,2000,2000,2000]
[null,"CTRL+1"]
[null,"Display the Format Cells dialog box."]
[null,"CTRL+SHIFT+~",null,null,"Good for Dates"]
[null,"Apply the General number format."]
[null,"CTRL+SHIFT+$"]
[null,"Apply the Currency format with two decimal places (negative numbers in parentheses)."]
[null,"CTRL+SHIFT+%"]
[null,"Apply the Percentage format with no decimal places."]
[null,"CTRL+SHIFT+^"]
[null,"Apply the Exponential number format with two decimal places."]
[null,"CTRL+SHIFT+#"]
[null,"Apply the Date format with the day, month, and year."]
[null,"CTRL+SHIFT+@"]
[null,"Apply the Time format with the hour and minute, and AM or PM."]
[null,"CTRL+SHIFT+!"]
[null,"Apply the Number format with two decimal places, thousands separator, and minus sign (–) for negative values."]
[null,"CTRL+B"]
[null,"Apply or remove bold formatting."]
[null,"CTRL+I"]
[null,"Apply or remove italic formatting."]
[null,"CTRL+U"]
[null,"Apply or remove underlining."]
[null,"CTRL+5"]
[null,"Apply or remove strikethrough."]
[null,"CTRL+9"]
[null,"Hide the selected rows."]
[null,"CTRL+SHIFT+( (opening parenthesis)"]
[null,"Unhide any hidden rows within the selection."]
[null,"CTRL+0 (zero)",null,null,null,null,"Use with Alt H, C to find all columns"]
[null,"Hide the selected columns."]
[null,"CTRL+SHIFT+) (closing parenthesis)"]
[null,"Unhide any hidden columns within the selection."]
[null,"CTRL+SHIFT+&"]
[null,"Apply the outline border to the selected cells."]
[null,"CTRL+SHIFT+_"]
[null,"Remove the outline border from the selected cells."]
[]
[null,"Use the Border tab in the Format Cells dialog box"]
[]
[null,"Press CTRL+1 to display this dialog box."]
[]
[null,"ALT+T"]
[null,"Apply or remove the top border.",null,null,null,null,null,null,null,"Must press CNTL 1 first and then press ok"]
[null,"ALT+B"]
[null,"Apply or remove the bottom border."]
[null,"ALT+L"]
[null,"Apply or remove the left border."]
[null,"ALT+R"]
[null,"Apply or remove the right border."]
[null,"ALT+H"]
[null,"If cells in multiple rows are selected, apply or remove the horizontal divider."]
[null,"ALT+V"]
[null,"If cells in multiple columns are selected, apply or remove the vertical divider."]
[null,"ALT+D"]
[null,"Apply or remove the downward diagonal border."]
[null,"ALT+U"]
[null,"Apply or remove the upward diagonal border."]
[]
[null,"Keys for filtering, outlining, and managing ranges"]
[]
[null,"Use data forms (Data menu, Form command)"]
[]
[null,"DOWN ARROW"]
[null,"Move to the same field in the next record."]
[null,"UP ARROW"]
[null,"Move to the same field in the previous record."]
[null,"TAB and SHIFT+TAB"]
[null,"Move to each field in the record, then to each command button."]
[null,"ENTER"]
[null,"Move to the first field in the next record."]
[null,"SHIFT+ENTER"]
[null,"Move to the first field in the previous record."]
[null,"PAGE DOWN"]
[null,"Move to the same field 10 records forward."]
[null,"CTRL+PAGE DOWN"]
[null,"Start a new, blank record."]
[null,"PAGE UP"]
[null,"Move to the same field 10 records back."]
[null,"CTRL+PAGE UP"]
[null,"Move to the first record."]
[null,"HOME or END"]
[null,"Move to the beginning or end of a field."]
[null,"SHIFT+END"]
[null,"Extend selection to the end of a field."]
[null,"SHIFT+HOME"]
[null,"Extend selection to the beginning of a field."]
[null,"LEFT ARROW or RIGHT ARROW"]
[null,"Move one character left or right within a field."]
[null,"SHIFT+LEFT ARROW"]
[null,"Select the character to the left within a field."]
[null,"SHIFT+RIGHT ARROW"]
[null,"Select the character to the right within a field."]
[]
[null,"Filter ranges (Data menu, AutoFilter command)"]
[]
[null,"ALT+DOWN ARROW"]
[null,"In the cell that contains the drop-down arrow, displays the AutoFilter list for the current column."]
[null,"DOWN ARROW"]
[null,"Selects the next item in the AutoFilter list."]
[null,"UP ARROW"]
[null,"Selects the previous item in the AutoFilter list."]
[null,"ALT+UP ARROW"]
[null,"Closes the AutoFilter list for the current column."]
[null,"HOME"]
[null,"Selects the first item (All) in the AutoFilter list."]
[null,"END"]
[null,"Selects the last item in the AutoFilter list."]
[null,"ENTER"]
[null,"Filters the range based on the item selected from the AutoFilter list."]
[]
[null,"Show, hide, and outline data"]
[]
[null,"ALT+SHIFT+RIGHT ARROW",null,null,"This is very neat -- for moving stuff to powerpoint"]
[null,"Groups rows or columns."]
[null,"ALT+SHIFT+LEFT ARROW"]
[null,"Ungroups rows or columns."]
[null,"CTRL+8",null,null,"This is good for quickly removing outlines"]
[null,"Displays or hides the outline symbols."]
[null,"CTRL+9",null,null,"Like CNTL 0 for Columns"]
[null,"Hides the selected rows."]
[null,"CTRL+SHIFT+( (opening parenthesis)"]
[null,"Unhides any hidden rows within the selection."]
[null,"CTRL+0 (zero)",null,null,"Repeat -- But very good for setting up model"]
[null,"Hides the selected columns."]
[null,"CTRL+SHIFT+) (closing parenthesis)"]
[null,"Unhides any hidden columns within the selection."]
[]
[null,"Keys for PivotTable and PivotChart reports"]
[]
[null,"Lay out a report onscreen"]
[]
[null,"1.      Press F10 to make the menu bar active."]
[]
[null,"2.      Press CTRL+TAB or CTRL+SHIFT+TAB to make the PivotTable Field List active."]
[]
[null,"3.      Press the DOWN ARROW or UP ARROW key to select the field you want. Press RIGHT ARROW or LEFT ARROW to open or close a field that can be expanded."]
[]
[null,"4.      Press TAB to select the Add To list, and then press DOWN ARROW to open the list."]
[]
[null,"5.      Press DOWN ARROW or UP ARROW to select the area where you want to move the field, and then press ENTER."]
[]
[null,"6.      Press TAB to select the Add To button, and then press ENTER."]
[]
[null,"Use the PivotTable and PivotChart Wizard – Layout dialog box"]
[]
[null,"To display this dialog box, press TAB until Layout is selected in Step 3 of the PivotTable and PivotChart Wizard."]
[]
[null,"UP ARROW or DOWN ARROW"]
[null,"Selects the previous or next field button in the list on the right."]
[null,"LEFT ARROW or RIGHT ARROW"]
[null,"With two or more columns of field buttons, selects the button to the left or right."]
[null,"ALT+R"]
[null,"Moves the selected field into the Row area."]
[null,"ALT+C"]
[null,"Moves the selected field into the Column area."]
[null,"ALT+D"]
[null,"Moves the selected field into the Data area."]
[null,"ALT+P"]
[null,"Moves the selected field into the Page area."]
[null,"ALT+L"]
[null,"Displays the PivotTable Field dialog box for the selected field."]
[]
[null,"Display and hide items in a field"]
[]
[null,"ALT+DOWN ARROW"]
[null,"Displays the drop-down list for a field in a PivotTable or PivotChart report. Use the arrow keys to select the field."]
[null,"UP ARROW"]
[null,"Selects the previous item in the range."]
[null,"DOWN ARROW"]
[null,"Selects the next item in the range."]
[null,"RIGHT ARROW"]
[null,"For an item that has lower-level items available, displays the lower-level items."]
[null,"LEFT ARROW"]
[null,"For an item that has lower-level items displayed, hides the lower-level items."]
[null,"HOME"]
[null,"Selects the first visible item in the list."]
[null,"END"]
[null,"Selects the last visible item in the list."]
[null,"ENTER"]
[null,"Closes the list and displays the selected items."]
[null,"SPACEBAR"]
[null,"Checks, double-checks, or clears a check box in the list. Double-check selects both an item and all of its llower-level items."]
[null,"TAB"]
[null,"Switches between the list, the OK button, and the Cancel button."]
[]
[null,"Change the layout of a report"]
[]
[null,"CTRL+SHIFT+* (asterisk)"]
[null,"Selects an entire PivotTable report."]
[null,"ALT+SHIFT+RIGHT ARROW"]
[null,"Groups the selected items in a PivotTable field."]
[null,"ALT+SHIFT+LEFT ARROW"]
[null,"Ungroups grouped items in a PivotTable field."]
[]
[null,"Keys for charts"]
[]
[null,"Create charts and select chart elements"]
[]
[null,"F11 or ALT+F1",null,null,null,"Alt+F1 is great if you want lables in the X-axis"]
[null,"Creates a chart of the data in the current range."]
[null,"CTRL+PAGE DOWN"]
[null,"Selects a chart sheet: selects the next sheet in the workbook, until the chart sheet you want is selected."]
[null,"CTRL+PAGE UP"]
[null,"Selects a chart sheet: selects the previous sheet in the workbook, until the chart sheet you want is selected."]
[null,"DOWN ARROW"]
[null,"Select the previous group of elements in a chart."]
[null,"UP ARROW"]
[null,"Selects the next group of elements in a chart."]
[null,"RIGHT ARROW"]
[null,"Selects the next element within a group."]
[null,"LEFT ARROW"]
[null,"Selects the previous element within a group."]
[]
[null,"Select an embedded chart"]
[]
[null,"1. Display the Drawing toolbar: Press ALT+V, press T, press DOWN ARROW until Drawing is selected, and then press ENTER."]
[null,"2. Press F10 to make the menu bar active."]
[null,"3. Press CTRL+TAB or CTRL+SHIFT+TAB to select the Drawing toolbar."]
[null,"4. Press the RIGHT ARROW key to select the Select Objects"]
[null,"button on the Drawing toolbar."]
[null,"5. Press CTRL+ENTER to select the first object."]
[null,"6. Press the TAB key to cycle forward (or SHIFT+TAB to cycle backward) through the objects until round sizing handles (sizing handle: One of the small circles or squares that appears at the corners and sides of a selected object. You drag these handles to change the size of the object.) appear on the embedded chart you want to select."]
[null,"7. Press CTRL+ENTER to make the chart active so that you can select elements within it."]
[]
[null,"Keys for drawing objects and other objects"]
[]
[null,"When both the Reviewing and Drawing toolbars are onscreen, ALT+U switches between the Review command and the AutoShapes command, and ENTER performs the selected command."]
[]
[null,"Select a drawing object"]
[]
[null,"When you're editing text in a drawing object, you can select the next or previous object by pressing TAB or SHIFT+TAB. Starting from a worksheet, do the following:"]
[]
[null,"1. Press F10, press CTRL+TAB to select the Drawing toolbar, and then press RIGHT ARROW to select the Select Objects"]
[null,"button."]
[null,"2. Press CTRL+ENTER to select the first drawing object."]
[null,"3. Press the TAB key to cycle forward (or SHIFT+TAB to cycle backward) through the objects until sizing handles appear on the object you want to select."]
[]
[null,"If an object is grouped, TAB selects the group, then each object within the group, and then the next object."]
[]
[null,"4. To switch back to the worksheet when an object is selected, press ESC."]
[]
[null,"Insert an AutoShape"]
[]
[null,"1. Press ALT+U to select the AutoShapes menu on the Drawing toolbar."]
[null,"2. Use the arrow keys to move to the category of AutoShapes you want, and then press the RIGHT ARROW key."]
[null,"3. Use the arrow keys to select the AutoShape you want."]
[null,"4. Press CTRL+ENTER."]
[null,"5. To format the AutoShape, press CTRL+1 to display the Format AutoShape dialog box."]
[]
[null,"Insert a text box"]
[]
[null,"1. Press F10, press CTRL+TAB to select the Drawing toolbar, and then press RIGHT ARROW to select the Text Box"]
[null,"button."]
[null,"2. Press CTRL+ENTER."]
[null,"3. Type the text you want in the text box."]
[null,"4. Do one of the following:"]
[]
[null,"To return to the worksheet when you are finished typing, press ESC twice."]
[]
[null,"To format the text box, press ESC, and then press CTRL+1 to display the Format Text Box dialog box. When you finish formatting, press ENTER, and then press ESC to return to the worksheet."]
[]
[null,"Insert WordArt"]
[]
[null,"1. Press ALT+I, then press P, then press W (Insert menu, Picture submenu, WordArt command)."]
[null,"2. Use the arrow keys to select the WordArt style you want, and then press ENTER."]
[null,"3. Type the text you want, and then use the TAB key to select other options in the dialog box."]
[null,"4. Press ENTER to insert the WordArt object."]
[null,"5. To format the WordArt object, use the tools on the Word Art toolbar, or press CTRL+1 to display the Format WordArt dialog box."]
[]
[null,"Rotate a drawing object"]
[]
[null,"1. Select the drawing object you want to rotate."]
[null,"2. Press CTRL+1 to display the Format menu for the object, and then press CTRL+TAB to select the Size tab."]
[null,"3. Press ALT+T to select the Rotation box."]
[null,"4. Use the arrow keys to select the amount of rotation you want."]
[]
[null,"Change the size of a drawing object"]
[]
[null,"1. Select the drawing object you want to resize."]
[null,"2. Press CTRL+1 to display the Format menu for the object, and then press CTRL+TAB to select the Size tab."]
[null,"3. Select the options you want to change the size."]
[]
[null,"Move a drawing object"]
[]
[null,"1. Select the drawing object you want to move."]
[null,"2. Press the arrow keys to move the object."]
[null,"3. To position the object precisely, press CTRL+ an arrow key to move the object in one-pixel increments."]
[]
[null,"Copy drawing objects and their attributes"]
[]
[null,"To make a copy of a drawing object, select the object and press CTRL+D. To copy attributes such as fill color and line style from one object to another, do the following:"]
[]
[null,"1. Select the drawing object with the attributes you want to copy."]
[]
[null,"For AutoShapes with text, the text format is copied along with the other attributes."]
[]
[null,"2. Press CTRL+SHIFT+C to copy the object attributes."]
[null,"3. Press TAB or SHIFT+TAB to select the object you want to copy the attributes to."]
[null,"4. Press CTRL+SHIFT+V to copy the attributes to the object."]
[]
[null,"Keys for use with speech, e-mail, macros, and other languages"]
[]
[null,"Use speech recognition and text-to-speech"]
[]
[null,"CTRL"]
[null,"Switches between command mode and dictation mode."]
[null,"ESC"]
[null,"Stops reading when text is being read aloud."]
[]
[null,"Send e-mail messages"]
[]
[null,"To use keys to send e-mail messages, you must configure Microsoft Outlook as your default e-mail program. Most of these keys do not work with Outlook Express."]
[]
[null,"SHIFT+TAB"]
[null,"When cell A1 is selected, moves to the Introduction box in the e-mail message header. In the message header, moves to the Subject, Bcc (if displayed), Cc, To, and From (if displayed) boxes, then to the address book for the Bcc, Cc, To, and From boxes, and then to cell A1."]
[null,"ALT+S"]
[null,"Sends the e-mail message."]
[null,"CTRL+SHIFT+B"]
[null,"Opens the Address Book."]
[null,"ALT+O"]
[null,"Opens the Options menu for access to the Options, Bcc Field, and From Field commands."]
[null,"ALT+P"]
[null,"Opens the Outlook Message Options dialog box (Options menu, Options command)."]
[null,"ALT+K"]
[null,"Checks the names in the To, Cc, and Bcc boxes against the Address Book."]
[null,"ALT+PERIOD"]
[null,"Opens the Address Book for the To box."]
[null,"ALT+C"]
[null,"Opens the Address Book for the Cc box."]
[null,"ALT+B"]
[null,"If the Bcc box is displayed, opens the Address Book for the Bcc box."]
[null,"ALT+J"]
[null,"Goes to the Subject box."]
[null,"CTRL+SHIFT+G"]
[null,"Creates a message flag."]
[null,"ALT+A"]
[null,"Adds interactivity to the range or sheet being sent."]
[]
[null,"Work with macros"]
[]
[null,"ALT+F8"]
[null,"Displays the Macro dialog box."]
[null,"ALT+F11"]
[null,"Displays the Visual Basic Editor."]
[null,"CTRL+F11"]
[null,"Inserts a Microsoft Excel 4.0 macro sheet."]
[]
[null,"Work with multiple national languages"]
[]
[null,"CTRL+RIGHT SHIFT"]
[null,"Switches to right-to-left paragraph direction (the text must contain only neutral characters (neutral characters: Characters that do not have strong right-to-left or left-to-right language attributes. Numerals are an example of neutral characters.))."]
[null,"CTRL+LEFT SHIFT"]
[null,"Switches to left-to-right paragraph direction (the text must contain only neutral characters)."]
[null,"ALT+SHIFT+UP ARROW"]
[null,"In Japanese text for which you've displayed phonetic guides, moves the pointer into the phonetic guides."]
[null,"ALT+SHIFT+DOWN ARROW"]
[null,"Moves the pointer from the phonetic guides back to the parent string of characters."]
[null,"NUM LOCK, ALT+numeric pad numbers"]
[null,"Enter a unicode character."]
[null,"ALT+X"]
[null,"Pressed immediately after typing the hexadecimal code for a unicode character, converts the numbers to the character."]
[null,"Pressed immediately following a unicode character, converts the character to its hexadecimal code."]
[]
[]
[null,"Move within a selected range -- (Must be in a hilighted range)"]
[]
[null,"ENTER"]
[null,"Move from top to bottom within the selected range."]
[null,"SHIFT+ENTER"]
[null,"Move from bottom to top within the selected range."]
[null,"TAB"]
[null,"Move from left to right within the selected range. If cells in a single column are selected, move down."]
[null,"SHIFT+TAB"]
[null,"Move from right to left within the selected range. If cells in a single column are selected, move up."]
[null,"CTRL+PERIOD"]
[null,"Move clockwise to the next corner of the selected range."]
[null,"CTRL+ALT+RIGHT ARROW"]
[null,"In nonadjacent selections, switch to the next selection to the right."]
[null,"CTRL+ALT+LEFT ARROW"]
[null,"Switch to the next nonadjacent selection to the left."]
[]
[null,"Note  You can change the direction of movement after pressing ENTER or SHIFT+ENTER: press ALT+T and then O (Tools menu, Options command), press CTRL+TAB until the Edit tab is selected, and then change the Move selection after Enter settings."]
[]
[null,"Move and scroll in End mode"]
[]
[null,"END appears in the status bar when End mode is selected."]
[]
[null,"END key"]
[null,"Turn End mode on or off."]
[null,"END+arrow key"]
[null,"Move by one block of data within a row or column."]
[null,"END+HOME"]
[null,"Move to the last cell on the worksheet, in the bottom-most used row of the rightmost used column."]
[null,"END+ENTER"]
[null,"Move to the rightmost nonblank cell in the current row. This key sequence does not work if you have turned on transition navigation keys (Tools menu, Options command, Transition tab)."]
[]
[null,"Move and scroll with SCROLL LOCK on"]
[]
[null,"When you use scrolling keys (such as PAGE UP and PAGE DOWN) with SCROLL LOCK off, cell selection moves the distance you scroll. To scroll without changing which cells are selected , turn on SCROLL LOCK first."]
[]
[null,"SCROLL LOCK"]
[null,"Turn SCROLL LOCK on or off."]
[null,"HOME"]
[null,"Move to the cell in the upper-left corner of the window."]
[null,"END"]
[null,"Move to the cell in the lower-right corner of the window."]
[null,"UP ARROW or DOWN ARROW"]
[null,"Scroll one row up or down."]
[null,"LEFT ARROW or RIGHT ARROW"]
[null,"Scroll one column left or right."]
[]
[null,"Keys for selecting data and cells"]
[]
[]
[]
[]
[]
[]
[]
[]
[]
[]
[]
[]
[null,"In the Help task pane"]
[]
[null,"F1"]
[null,"Display the Help task pane."]
[null,"F6"]
[null,"Switch between the Help task pane and the active application."]
[null,"TAB"]
[null,"Select the next item in the Help task pane."]
[null,"SHIFT+TAB"]
[null,"Select the previous item in the Help task pane."]
[null,"ENTER"]
[null,"Perform the action for the selected item."]
[null,"DOWN ARROW and UP ARROW"]
[null,"In a Table of Contents, select the next and previous item, respectively."]
[null,"RIGHT ARROW and LEFT ARROW"]
[null,"In a Table of Contents, expand and collapse the selected item, respectively."]
[null,"ALT+LEFT ARROW"]
[null,"Move back to the previous task Pane."]
[null,"ALT+RIGHT ARROW"]
[null,"Move forward to the next task Pane."]
[null,"CTRL+SPACEBAR"]
[null,"Open the menu of Pane options."]
[null,"CTRL+F1"]
[null,"Close and reopen the current task pane."]
[null,"RIGHT ARROW"]
[null,"Expand a +/- list."]
[null,"LEFT ARROW"]
[null,"Collapse a +/- list."]
[]
[null,"In the Help window"]
[]
[null,"TAB"]
[null,"Select the next hidden text or hyperlink, or Show All or Hide All at the top of a topic"]
[null,"SHIFT+TAB"]
[null,"Select the previous hidden text or hyperlink, or the Browser View button at the top of a Microsoft Office Web site article"]
[null,"ENTER"]
[null,"Perform the action for the selected Show All, Hide All, hidden text, or hyperlink"]
[null,"ALT+LEFT ARROW"]
[null,"Move back to the previous Help topic."]
[null,"ALT+RIGHT ARROW"]
[null,"Move forward to the next Help topic."]
[null,"CTRL+P"]
[null,"Print the current Help topic."]
[null,"UP ARROW AND DOWN ARROW"]
[null,"Scroll small amounts up and down, respectively, within the currently-displayed Help topic."]
[null,"PAGE UP AND PAGE DOWN"]
[null,"Scroll larger amounts up and down, respectively, within the currently-displayed Help topic."]
[null,"ALT+U"]
[null,"Change whether the Help window appears connected to (tiled) or separate from (untiled) the active application."]
[null,"SHIFT+F10"]
[null,"Display a menu of commands for the Help window; requires that the Help window have active focus (click an item in the Help window)."]
[]
[null,"Keys for the Office interface"]
[]
[null,"Display and use windows"]
[]
[null,"ALT+TAB"]
[null,"Switch to the next program."]
[null,"ALT+SHIFT+TAB"]
[null,"Switch to the previous program."]
[null,"CTRL+ESC"]
[null,"Display the Windows Start menu."]
[null,"CTRL+W or CTRL+F4"]
[null,"Close the selected workbook window."]
[null,"CTRL+F5"]
[null,"Restore the window size of the selected workbook window."]
[null,"F6"]
[null,"Switch to the next pane in a worksheet that has been split (Window menu, Split command)."]
[null,"SHIFT+F6"]
[null,"Switch to the previous pane in a worksheet that has been split."]
[null,"CTRL+F6"]
[null,"When more than one workbook window is open, switch to the next workbook window."]
[null,"CTRL+SHIFT+F6"]
[null,"Switch to the previous workbook window."]
[null,"CTRL+F7"]
[null,"When a workbook window is not maximized, perform the Move command (on the Control menu for the workbook window). Use the arrow keys to move the window, and when finished press ESC."]
[null,"CTRL+F8"]
[null,"When a workbook window is not maximized, perform the Size command (on the Control menu for the workbook window). Use the arrow keys to resize the window, and when finished press ESC."]
[null,"CTRL+F9"]
[null,"Minimize a workbook window to an icon."]
[null,"CTRL+F10"]
[null,"Maximize or restore the selected workbook window."]
[null,"PRTSCR"]
[null,"Copy a picture of the screen to the Clipboard."]
[null,"ALT+PRINT SCREEN"]
[null,"Copy a picture of the selected window to the Clipboard."]
[]
[null,"Access and use smart tags"]
[]
[null,"ALT+SHIFT+F10"]
[null,"Display the menu or message for a smart tag. If more than one smart tag is present, switch to the next smart tag and display its menu or message."]
[null,"DOWN ARROW"]
[null,"Select the next item in a smart tag menu."]
[null,"UP ARROW"]
[null,"Select the previous item in a smart tag menu."]
[null,"ENTER"]
[null,"Perform the action for the selected item in a smart tag menu."]
[null,"ESC"]
[null,"Close the smart tag menu or message."]
[]
[null,"Tip"]
[]
[null,"You can ask to be notified by a sound whenever a smart tag appears. To hear audio cues, you must have a sound card. You must also have Microsoft Office Sounds installed on your computer."]
[]
[null,"If you have access to the World Wide Web, you can download Microsoft Office Sounds from the Microsoft Office Web site. On the Help menu, click Microsoft Office Online and search for \"Microsoft Office Sounds.\" After you've installed the sound files, you need to select the Provide feedback with sound check box on the General tab of the Options dialog box (Tools menu). When you select (or clear) this check box, the setting affects all Office programs that support sound."]
[]
[null,"Access and use task panes"]
[]
[null,"F6"]
[null,"Move to a task pane (task pane: A window within an Office application that provides commonly used commands. Its location and small size allow you to use these commands while still working on your files.) from another pane in the program window. (You may need to press F6 more than once.)"]
[]
[null,"Note  If pressing F6 doesn't display the task pane you want, try pressing ALT to place focus on the menu bar, and then pressing CTRL+TAB to move to the task pane."]
[]
[null,"CTRL+TAB"]
[null,"When a menu or toolbar (toolbar: A bar with buttons and options that you use to carry out commands. To display a toolbar, click Customize on the Tools menu, and then click the Toolbars tab.) is active, move to a task pane. (You may need to press CTRL+TAB more than once.)"]
[null,"TAB or SHIFT+TAB"]
[null,"When a task pane is active, select the next or previous option in the task pane"]
[null,"CTRL+SPACEBAR"]
[null,"Display the full set of commands on the task pane menu"]
[null,"DOWN ARROW or UP ARROW"]
[null,"Move among choices in a selected submenu; move among certain options in a group of options"]
[null,"SPACEBAR or ENTER"]
[null,"Open the selected menu, or perform the action assigned to the selected button"]
[null,"SHIFT+F10"]
[null,"Open a shortcut menu (shortcut menu: A menu that shows a list of commands relevant to a particular item. To display a shortcut menu, right-click an item or press SHIFT+F10.); open a drop-down menu for the selected gallery item"]
[null,"HOME or END"]
[null,"When a menu or submenu is visible, select the first or last command on the menu or submenu"]
[null,"PAGE UP or PAGE DOWN"]
[null,"Scroll up or down in the selected gallery list"]
[null,"CTRL+HOME or CTRL+END"]
[null,"Move to the top or bottom of the selected gallery list"]
[]
[null,"Access and use menus and toolbars"]
[]
[null,"F10 or ALT"]
[null,"Select the menu bar (menu bar: The horizontal bar below the title bar that contains the names of menus. A menu bar can be the built-in menu bar or a custom menu bar.), or close an open menu and submenu at the same time."]
[null,"TAB or SHIFT+TAB"]
[null,"When a toolbar is selected, select the next or previous button or menu on the toolbar."]
[null,"CTRL+TAB or CTRL+SHIFT+TAB"]
[null,"When a toolbar is selected, select the next or previous toolbar."]
[null,"ENTER"]
[null,"Open the selected menu, or perform the action for the selected button or command."]
[null,"SHIFT+F10"]
[null,"Display the shortcut menu (shortcut menu: A menu that shows a list of commands relevant to a particular item. To display a shortcut menu, right-click an item or press SHIFT+F10.) for the selected item."]
[null,"ALT+SPACEBAR"]
[null,"Display the Control menu for the Excel window."]
[null,"DOWN ARROW or UP ARROW"]
[null,"When a menu or submenu is open, select the next or previous command."]
[null,"LEFT ARROW or RIGHT ARROW"]
[null,"Select the menu to the left or right. When a submenu is open, switch between the main menu and the submenu."]
[null,"HOME or END"]
[null,"Select the first or last command on the menu or submenu."]
[null,"ESC"]
[null,"Close an open menu. When a submenu is open, close only the submenu."]
[null,"CTRL+DOWN ARROW"]
[null,"Display the full set of commands on a menu."]
[null,"CTRL+7"]
[null,"Show or hide the Standard toolbar."]
[]
[null,"Note  You can select any menu command on the menu bar or on a displayed toolbar with the keyboard. To select the menu bar, press ALT. Then to select a toolbar, press CTRL+TAB repeatedly until you select the toolbar you want. Press the underlined letter in the menu that contains the command you want. In the menu that appears, press the underlined letter in the command that you want."]
[]
[null,"Resize and move toolbars and task panes"]
[]
[null,"1.      Press ALT to select the menu bar (menu bar: The horizontal bar below the title bar that contains the names of menus. A menu bar can be the built-in menu bar or a custom menu bar.)."]
[]
[null,"2.      Press CTRL+TAB repeatedly to select the toolbar (toolbar: A bar with buttons and options that you use to carry out commands. To display a toolbar, click Customize on the Tools menu, and then click the Toolbars tab.) or task pane (task pane: A window within an Office application that provides commonly used commands. Its location and small size allow you to use these commands while still working on your files.) you want."]
[]
[null,"3.      Do one of the following:"]
[]
[null,"Resize a toolbar"]
[]
[null,"1.      In the toolbar, press CTRL+SPACE to display the Toolbar Options menu."]
[]
[null,"2.      Select the Size command, and then press ENTER."]
[]
[null,"3.      Use the arrow keys to resize the toolbar."]
[]
[null,"Move a toolbar"]
[]
[null,"4.      In the toolbar, press CTRL+SPACE to display the Toolbar Options menu."]
[]
[null,"5.      Select the Move command, and then press ENTER."]
[]
[null,"6.      Use the arrow keys to position the toolbar. Press CTRL+ the arrow keys to move one pixel at a time. To undock the toolbar, press DOWN ARROW repeatedly. To dock the toolbar vertically on the left or right side, press LEFT ARROW or RIGHT ARROW respectively when the toolbar is all the way to the left or right side."]
[]
[null,"Resize a task pane"]
[]
[null,"7.      In the task pane, press CTRL+SPACE to display a menu of additional commands."]
[]
[null,"8.      Use the DOWN ARROW key to select the Size command, and then press ENTER."]
[]
[null,"9.      Use the arrow keys to resize the task pane. Use CTRL+ the arrow keys to resize by one pixel at a time."]
[]
[null,"Move a task pane"]
[]
[null,"10.  In the task pane, press CTRL+SPACE to display a menu of additional commands."]
[]
[null,"11.  Use the DOWN ARROW key to select the Move command, and then press ENTER."]
[]
[null,"12.  Use the arrow keys to position the task pane. Use CTRL+ the arrow keys to move one pixel at a time."]
[]
[null,"4.      When you are finished moving or resizing, press ESC."]
[]
[null,"Use dialog boxes"]
[]
[null,"TAB"]
[null,"Move to the next option or option group."]
[null,"SHIFT+TAB"]
[null,"Move to the previous option or option group."]
[null,"CTRL+TAB or CTRL+PAGE DOWN"]
[null,"Switch to the next tab in a dialog box."]
[null,"CTRL+SHIFT+TAB or CTRL+PAGE UP"]
[null,"Switch to the previous tab in a dialog box."]
[null,"Arrow keys"]
[null,"Move between options in an open drop-down list, or between options in a group of options."]
[null,"SPACEBAR"]
[null,"Perform the action for the selected button, or select or clear the selected check box."]
[null,"First letter of an option in a drop-down list"]
[null,"Open the list if it is closed and move to that option in the list."]
[null,"ALT+ the underlined letter in an option"]
[null,"Select an option, or select or clear a check box."]
[null,"ALT+DOWN ARROW"]
[null,"Open the selected drop-down list."]
[null,"ENTER"]
[null,"Perform the action for the default command button in the dialog box (the button with the bold outline, often the OK button)."]
[null,"ESC"]
[null,"Cancel the command and close the dialog box."]
[]
[null,"Use edit boxes within dialog boxes"]
[]
[null,"An edit box is a blank in which you type or paste an entry, such as your user name or the path (path: The route that the operating system uses to locate a folder or file; for example, C:\\House finances\\March.doc.) to a folder."]
[]
[null,"HOME"]
[null,"Move to the beginning of the entry."]
[null,"END"]
[null,"Move to the end of the entry."]
[null,"LEFT ARROW or RIGHT ARROW"]
[null,"Move one character to the left or right."]
[null,"CTRL+LEFT ARROW"]
[null,"Move one word to the left."]
[null,"CTRL+RIGHT ARROW"]
[null,"Move one word to the right."]
[null,"SHIFT+LEFT ARROW"]
[null,"Select or unselect one character to the left."]
[null,"SHIFT+RIGHT ARROW"]
[null,"Select or unselect one character to the right."]
[null,"CTRL+SHIFT+LEFT ARROW"]
[null,"Select or unselect one word to the left."]
[null,"CTRL+SHIFT+RIGHT ARROW"]
[null,"Select or unselect one word to the right."]
[null,"SHIFT+HOME"]
[null,"Select from the insertion point to the beginning of the entry."]
[null,"SHIFT+END"]
[null,"Select from the insertion point to the end of the entry."]
[]
[null,"Use the Open, Save As, and Insert Picture dialog boxes"]
[]
[null,"The Open, Insert Picture, and Save As dialog boxes support standard dialog box keyboard shortcuts. (To view standard shortcuts for dialog boxes, refer to the Use Dialog Boxes and Use Edit Boxes Within Dialog Boxes sections in the main Keyboard Shortcuts topic.) These dialog boxes also support the shortcuts below."]
[]
[null,"ALT+1"]
[null,"Go to the previous folder"]
[]
[null,"ALT+2"]
[null,"Up One Level"]
[null,"button: open the folder up one level above the open folder"]
[null,"ALT+3"]
[null,"Search the Web"]
[null,"button: close the dialog box and open your Web search page (search page: A page from which you can find and go to other Internet sites or to documents on an intranet. Many search pages provide various ways to search, such as by topic, by keyword, or by matches to user queries.)"]
[null,"ALT+4"]
[null,"Delete"]
[null,"button: delete the selected folder or file"]
[null,"ALT+5"]
[null,"Create New Folder"]
[null,"button: create a new folder"]
[null,"ALT+6"]
[null,"Views"]
[null,"button: switch among available folder views"]
[null,"ALT+7 or ALT+L"]
[null,"Tools button: show the Tools menu"]
[null,"SHIFT+F10"]
[null,"Display a shortcut menu (shortcut menu: A menu that shows a list of commands relevant to a particular item. To display a shortcut menu, right-click an item or press SHIFT+F10.) for a selected item such as a folder or file"]
[null,"TAB"]
[null,"Move between options or areas in the dialog box"]
[null,"F4 or ALT+I"]
[null,"Open the Look in list"]
[null,"F5"]
[null,"Refresh the file list"]
[]
[null,"Keys for workbooks and worksheets"]
[]
[null,"Preview and print"]
[]
[null,"CTRL+P or CTRL+SHIFT+F12"]
[null,"Display the Print dialog box."]
[]
[null,"Use the following keys in print preview (to get to print preview, press ALT+F, then press V):"]
[]
[null,"Arrow keys"]
[null,"Move around the page when zoomed in."]
[null,"PAGE UP or PAGE DOWN"]
[null,"Move by one page when zoomed out."]
[null,"CTRL+UP ARROW or CTRL+LEFT ARROW"]
[null,"Move to the first page when zoomed out."]
[null,"CTRL+DOWN ARROW or CTRL+RIGHT ARROW"]
[null,"Move to the last page when zoomed out."]
[]
[]
[]
[]
[]
[]
[]
[]
[]
[null,"Some of the content in this topic may not be applicable to some languages."]
[]
[null,"To print this topic, press TAB to select Show All, press ENTER, and then press CTRL+P."]
[]
[null,"Keyboard shortcuts for using the Help"]
[]
[null,"Keyboard shortcuts for using the Help task pane and Help window"]
[]
[null,"The Help Pane is a task pane that provides access to all Office Help content. As a task pane, the Help Pane appears as part of the active application. The Help window displays topics and other Help content and appears as a window next to, but separate from, the active application."]

{"sheet":"CNTL Shortcuts","index":13,"n_rows":196,"n_cols":8,"rows_kept":196,"cut":false,"hidden":false,"merged":[[79,0,80,0],[15,0,16,0],[33,0,36,0],[38,0,39,0],[42,0,43,0],[44,0,45,0],[53,0,54,0],[65,0,66,0],[69,0,72,0],[73,0,74,0],[75,0,76,0],[77,0,78,0],[129,0,130,0],[81,0,84,0],[85,0,86,0],[87,0,90,0],[91,0,96,0],[97,0,100,0],[101,0,104,0],[106,0,113,0],[114,0,115,0],[116,0,117,0],[118,0,121,0],[122,0,128,0],[131,0,135,0],[136,0,139,0],[140,0,143,0],[144,0,150,0],[151,0,156,0]]}
["Table of Contents",null,"CNTL Shortcuts"]
[]
["Key",null,"Description"]
["CTRL+(",9,"Unhides any hidden rows within the selection."]
["CTRL+)",0,"Unhides any hidden columns within the selection."]
["CTRL+&",7,"Applies the outline border to the selected cells."]
["CTRL+_",8,"Removes the outline border from the selected cells."]
["CTRL+~","`","Applies the General number format."]
["CTRL+$",4,"Applies the Currency format with two decimal places (negative numbers in parentheses)."]
["CTRL+%",5,"Applies the Percentage format with no decimal places."]
["CTRL+^",6,"Applies the Exponential number format with two decimal places."]
["CTRL+#",3,"Applies the Date format with the day, month, and year."]
["CTRL+@",2,"Applies the Time format with the hour and minute, and AM or PM."]
["CTRL+!",1,"Applies the Number format with two decimal places, thousands separator, and minus sign (-) for negative values."]
["CTRL+-",null,"Displays the Delete dialog box to delete the selected cells."]
["CTRL+*",null,"Selects the current region around the active cell (the data area enclosed by blank rows and blank columns)."]
[null,null,"In a PivotTable, it selects the entire PivotTable report."]
["CTRL+:",null,"Enters the current time."]
["CTRL+;",null,"Enters the current date."]
["CTRL+`",null,"Alternates between displaying cell values and displaying formulas in the worksheet.",null,null,null,"A","B"]
["CTRL+'",null,"Copies a formula from the cell above the active cell into the cell or the Formula Bar.",null,null,"One",1,2]
["CTRL+\"",null,"Copies a formula from the cell above the active cell into the cell or the Formula Bar.",null,null,"Two",4,5]
["CTRL++",null,"Displays the Insert dialog box to insert blank cells."]
["CTRL+1",null,"Displays the Format Cells dialog box."]
["CTRL+2",null,"Applies or removes bold formatting."]
["CTRL+3",null,"Applies or removes italic formatting."]
["CTRL+4",null,"Applies or removes underlining."]
["CTRL+5",null,"Applies or removes strikethrough."]
["CTRL+6",null,"Alternates between hiding objects, displaying objects, and displaying placeholders for objects."]
["CTRL+7",null,"Displays or hides the Standard toolbar."]
["CTRL+8",null,"Displays or hides the outline symbols."]
["CTRL+9",null,"Hides the selected rows."]
["CTRL+0",null,"Hides the selected columns."]
["CTRL+A",null,"Selects the entire worksheet."]
[null,null,"If the worksheet contains data, CTRL+A selects the current region. Pressing CTRL+A a second time selects the entire worksheet."]
[null,null,"When the insertion point is to the right of a function name in a formula, displays the Function Arguments dialog box."]
[null,null,"CTRL+SHIFT+A inserts the argument names and parentheses when the insertion point is to the right of a function name in a formula."]
["CTRL+B",null,"Applies or removes bold formatting."]
["CTRL+C",null,"Copies the selected cells."]
[null,null,"CTRL+C followed by another CTRL+C displays the Microsoft Office Clipboard."]
["CTRL+D",null,"Uses the Fill Down command to copy the contents and format of the topmost cell of a selected range into the cells below."]
["CTRL+E",null,"Blank"]
["CTRL+F",null,"Displays the Find dialog box."]
[null,null,"SHIFT+F5 also displays this dialog box, while SHIFT+F4 repeats the last Find action."]
["CTRL+G",null,"Displays the Go To dialog box."]
[null,null,"F5 also displays this dialog box."]
["CTRL+H",null,"Displays the Find and Replace dialog box."]
["CTRL+I",null,"Applies or removes italic formatting."]
["CTRL+J",null,"Blank"]
["CTRL+K",null,"Displays the Insert Hyperlink dialog box for new hyperlinks or the Edit Hyperlink dialog box for selected existing hyperlinks."]
["CTRL+L",null,"Displays the Create List dialog box."]
["CTRL+M",null,"Blank"]
["CTRL+N",null,"Creates a new, blank file."]
["CTRL+O",null,"Displays the Open dialog box to open or find a file."]
[null,null,"CTRL+SHIFT+O selects all cells that contain comments."]
["CTRL+P",null,"Displays the Print dialog box."]
["CTRL+Q",null,"Blank"]
["CTRL+R",null,"Uses the Fill Right command to copy the contents and format of the leftmost cell of a selected range into the cells to the right."]
["CTRL+S",null,"Saves the active file with its current file name, location, and file format."]
["CTRL+T",null,"Blank"]
["CTRL+U",null,"Applies or removes underlining."]
["CTRL+V",null,"Inserts the contents of the Clipboard at the insertion point and replaces any selection. Available only after you cut or copied an object, text, or cell contents."]
["CTRL+W",null,"Closes the selected workbook window."]
["CTRL+X",null,"Cuts the selected cells."]
["CTRL+Y",null,"Repeats the last command or action, if possible."]
["CTRL+Z",null,"Uses the Undo command to reverse the last command or to delete the last entry you typed."]
[null,null,"CTRL+SHIFT+Z uses the Undo or Redo command to reverse or restore the last automatic correction when AutoCorrect Smart Tags are displayed."]
[]
[]
["F1",null,"Displays the Help task pane."]
[null,null,"CTRL+F1 closes and reopens the current task pane."]
[null,null,"ALT+F1 creates a chart of the data in the current range."]
[null,null,"ALT+SHIFT+F1 inserts a new worksheet."]
["F2",null,"Edits the active cell and positions the insertion point at the end of the cell contents. It also moves the insertion point into the Formula Bar when editing in a cell is turned off."]
[null,null,"SHIFT+F2 edits a cell comment."]
["F3",null,"Pastes a defined name into a formula."]
[null,null,"SHIFT+F3 displays the Insert Function dialog box."]
["F4",null,"Repeats the last command or action, if possible."]
[null,null,"CTRL+F4 closes the selected workbook window."]
["F5",null,"Displays the Go To dialog box."]
[null,null,"CTRL+F5 restores the window size of the selected workbook window."]
["F6",null,"Switches to the next pane in a worksheet that has been split (Window menu, Split command)."]
[null,null,"SHIFT+F6 switches to the previous pane in a worksheet that has been split."]
[null,null,"CTRL+F6 switches to the next workbook window when more than one workbook window is open."]
[null,null,"Note  When the task pane is visible, F6 and SHIFT+F6 include that pane when switching between panes."]
["F7",null,"Displays the Spelling dialog box to check spelling in the active worksheet or selected range."]
[null,null,"CTRL+F7 performs the Move command on the workbook window when it is not maximized. Use the arrow keys to move the window, and when finished press ESC."]
["F8",null,"Turns extend mode on or off. In extend mode, EXT appears in the status line, and the arrow keys extend the selection."]
[null,null,"SHIFT+F8 enables you to add a non-adjacent cell or range to a selection of cells by using the arrow keys."]
[null,null,"CTRL+F8 performs the Size command (on the Control menu for the workbook window) when a workbook is not maximized."]
[null,null,"ALT+F8 displays the Macro dialog box to run, edit, or delete a macro."]
["F9",null,"Calculates all worksheets in all open workbooks."]
[null,null,"F9 followed by ENTER (or followed by CTRL+SHIFT+ENTER for array formulas) calculates the selected a portion of a formula and replaces the selected portion with the calculated value."]
[null,null,"SHIFT+F9 calculates the active worksheet."]
[null,null,"CTRL+ALT+F9 calculates all worksheets in all open workbooks, regardless of whether they have changed since the last calculation."]
[null,null,"CTRL+ALT+SHIFT+F9 rechecks dependent formulas, and then calculates all cells in all open workbooks, including cells not marked as needing to be calculated."]
[null,null,"CTRL+F9 minimizes a workbook window to an icon."]
["F10",null,"Selects the menu bar or closes an open menu and submenu at the same time."]
[null,null,"SHIFT+F10 displays the shortcut menu for a selected item."]
[null,null,"ALT+SHIFT+F10 displays the menu or message for a smart tag. If more than one smart tag is present, it switches to the next smart tag and displays its menu or message."]
[null,null,"CTRL+F10 maximizes or restores the selected workbook window."]
["F11",null,"Creates a chart of the data in the current range."]
[null,null,"SHIFT+F11 inserts a new worksheet."]
[null,null,"ALT+F11 opens the Visual Basic Editor, in which you can create a macro by using Visual Basic for Applications (VBA)."]
[null,null,"ALT+SHIFT+F11 opens the Microsoft Script Editor, where you can add text, edit HTML tags, and modify any script code."]
["F12",null,"Displays the Save As dialog box."]
["ARROW KEYS",null,"Move one cell up, down, left, or right in a worksheet."]
[null,null,"CTRL+ARROW KEY moves to the edge of the current data region (data region: A range of cells that contains data and that is bounded by empty cells or datasheet borders.) in a worksheet."]
[null,null,"SHIFT+ARROW KEY extends the selection of cells by one cell."]
[null,null,"CTRL+SHIFT+ARROW KEY extends the selection of cells to the last nonblank cell in the same column or row as the active cell."]
[null,null,"LEFT ARROW or RIGHT ARROW selects the menu to the left or right when a menu is visible. When a submenu is open, these arrow keys switch between the main menu and the submenu."]
[null,null,"DOWN ARROW or UP ARROW selects the next or previous command when a menu or submenu is open."]
[null,null,"In a dialog box, arrow keys move between options in an open drop-down list, or between options in a group of options."]
[null,null,"ALT+DOWN ARROW opens a selected drop-down list."]
["BACKSPACE",null,"Deletes one character to the left in the Formula Bar."]
[null,null,"Also clears the content of the active cell."]
["DELETE",null,"Removes the cell contents (data and formulas) from selected cells without affecting cell formats or comments."]
[null,null,"In cell editing mode, it deletes the character to the right of the insertion point."]
["END",null,"Moves to the cell in the lower-right corner of the window when SCROLL LOCK is turned on."]
[null,null,"Also selects the last command on the menu when a menu or submenu is visible."]
[null,null,"CTRL+END moves to the last cell on a worksheet, in the lowest used row of the rightmost used column."]
[null,null,"CTRL+SHIFT+END extends the selection of cells to the last used cell on the worksheet (lower-right corner)."]
["ENTER",null,"Completes a cell entry from the cell or the Formula Bar, and selects the cell below (by default)."]
[null,null,"In a data form, it moves to the first field in the next record."]
[null,null,"Opens a selected menu (press F10 to activate the menu bar) or performs the action for a selected command."]
[null,null,"In a dialog box, it performs the action for the default command button in the dialog box (the button with the bold outline, often the OK button)."]
[null,null,"ALT+ENTER starts a new line in the same cell."]
[null,null,"CTRL+ENTER fills the selected cell range with the current entry."]
[null,null,"SHIFT+ENTER completes a cell entry and selects the cell above."]
["ESC",null,"Cancels an entry in the cell or Formula Bar."]
[null,null,"It also closes an open menu or submenu, dialog box, or message window."]
["HOME",null,"Moves to the beginning of a row in a worksheet."]
[null,null,"Moves to the cell in the upper-left corner of the window when SCROLL LOCK is turned on."]
[null,null,"Selects the first command on the menu when a menu or submenu is visible."]
[null,null,"CTRL+HOME moves to the beginning of a worksheet."]
[null,null,"CTRL+SHIFT+HOME extends the selection of cells to the beginning of the worksheet."]
["PAGE DOWN",null,"Moves one screen down in a worksheet."]
[null,null,"ALT+PAGE DOWN moves one screen to the right in a worksheet."]
[null,null,"CTRL+PAGE DOWN moves to the next sheet in a workbook."]
[null,null,"CTRL+SHIFT+PAGE DOWN selects the current and next sheet in a workbook."]
["PAGE UP",null,"Moves one screen up in a worksheet."]
[null,null,"ALT+PAGE UP moves one screen to the left in a worksheet."]
[null,null,"CTRL+PAGE UP moves to the previous sheet in a workbook."]
[null,null,"CTRL+SHIFT+PAGE UP selects the current and previous sheet in a workbook."]
["SPACEBAR",null,"In a dialog box, performs the action for the selected button, or selects or clears a check box."]
[null,null,"CTRL+SPACEBAR selects an entire column in a worksheet."]
[null,null,"SHIFT+SPACEBAR selects an entire row in a worksheet."]
[null,null,"CTRL+SHIFT+SPACEBAR selects the entire worksheet."]
[null,null,"If the worksheet contains data, CTRL+SHIFT+SPACEBAR selects the current region. Pressing CTRL+SHIFT+SPACEBAR a second time selects the entire worksheet."]
[null,null,"When an object is selected, CTRL+SHIFT+SPACEBAR selects all objects on a worksheet."]
[null,null,"ALT+SPACEBAR displays the Control menu for the Excel window."]
["TAB",null,"Moves one cell to the right in a worksheet."]
[null,null,"Moves between unlocked cells in a protected worksheet."]
[null,null,"Moves to the next option or option group in a dialog box."]
[null,null,"SHIFT+TAB moves to the previous cell in a worksheet or the previous option in a dialog box."]
[null,null,"CTRL+TAB switches to the next tab in dialog box."]
[null,null,"CTRL+SHIFT+TAB switches to the previous tab in a dialog box."]
[]
[]
[]
[]
[]
[]
[]
[]
[]
[]
[]
[]
[]
[]
[]
[]
[]
[]
[]
[]
[]
[]
[]
[]
[]
[]
[100000]
[]
[100000]
[]
[11]
[]
[]
[]
[11]
[]
[]
[]
[11]

{"sheet":"Shortcut Table","index":14,"n_rows":981,"n_cols":6,"rows_kept":981,"cut":false,"hidden":false,"merged":[[77,0,77,3],[181,0,182,0],[181,2,182,2],[181,3,182,3],[183,0,184,0],[183,2,184,2],[183,3,184,3],[327,0,327,3],[418,0,418,1],[435,0,435,1],[436,0,436,1],[437,0,437,1],[438,0,438,1],[321,0,321,3],[322,0,322,3],[323,0,323,3],[324,0,324,3],[325,0,325,3],[326,0,326,3],[469,0,469,1],[470,0,470,1],[473,0,473,1],[479,0,479,1],[491,0,491,1],[507,0,507,1],[439,0,439,1],[452,0,452,1],[462,0,462,1],[466,0,466,1],[467,0,467,1],[468,0,468,1],[528,0,528,1],[529,0,529,1],[537,0,537,1],[546,0,546,1],[556,0,556,1],[557,0,557,1],[518,0,518,1],[519,0,519,1],[520,0,520,1],[525,0,525,1],[526,0,526,1],[527,0,527,1],[583,0,583,1],[584,0,584,1],[585,0,585,1],[586,0,586,1],[587,0,587,1],[594,0,594,1],[561,0,561,1],[562,0,562,1],[563,0,563,1],[564,0,564,1],[565,0,565,1],[579,0,579,1],[611,0,611,1],[622,0,622,1],[623,0,623,1],[624,0,624,1],[625,0,625,1],[632,0,632,1],[595,0,595,1],[596,0,596,1],[597,0,597,1],[608,0,608,1],[609,0,609,1],[610,0,610,1],[645,0,645,1],[662,0,662,1],[663,0,663,1],[664,0,664,1],[665,0,665,1],[666,0,666,1],[633,0,633,1],[634,0,634,1],[635,0,635,1],[642,0,642,1],[643,0,643,1],[644,0,644,1],[718,0,718,1],[719,0,719,1],[720,0,720,1],[721,0,721,1],[722,0,722,1],[735,0,735,1],[676,0,676,1],[682,0,682,1],[698,0,698,1],[699,0,699,1],[700,0,700,1],[717,0,717,1],[754,0,754,1],[757,0,757,1],[763,0,763,1],[775,0,775,1],[791,0,791,1],[802,0,802,1],[745,0,745,1],[749,0,749,1],[750,0,750,1],[751,0,751,1],[752,0,752,1],[753,0,753,1],[813,0,813,1],[814,0,814,1],[822,0,822,1],[831,0,831,1],[841,0,841,1],[842,0,842,1],[803,0,803,1],[804,0,804,1],[809,0,809,1],[810,0,810,1],[811,0,811,1],[812,0,812,1],[866,0,866,1],[870,0,870,1],[871,0,871,1],[872,0,872,1],[873,0,873,1],[874,0,874,1],[846,0,846,1],[847,0,847,1],[848,0,848,1],[849,0,849,1],[850,0,850,1],[851,0,851,1],[897,0,897,1],[898,0,898,1],[899,0,899,1],[900,0,900,1],[901,0,901,1],[912,0,912,1],[875,0,875,1],[882,0,882,1],[883,0,883,1],[884,0,884,1],[885,0,885,1],[886,0,886,1],[925,0,925,1],[926,0,926,1],[927,0,927,1],[934,0,934,1],[935,0,935,1],[936,0,936,1],[913,0,913,1],[914,0,914,1],[915,0,915,1],[916,0,916,1],[923,0,923,1],[924,0,924,1],[959,0,959,1],[960,0,960,1],[970,0,970,1],[977,0,977,1],[937,0,937,1],[938,0,938,1],[955,0,955,1],[956,0,956,1],[957,0,957,1],[958,0,958,1]]}
["Table of Contents"]
["Key","Alone","Shift","Ctrl","Alt","Shift Ctrl"]
["F1","Help","What's This Help",null,"Insert Chart Sheet"]
["F2","Edit Mode","Edit Comment",null,"Save As"]
["F3","Paste Name Formula","Paste Function","Define Name",null,"Names From Labels"]
["F4","Repeat Action","Find Again","Close Window","Quit Excel"]
["F5","Goto","Find","Restore Window Size"]
["F6","Next Pane","Prev Pane","Next Workbook","Switch To VBA","Prev Workbook"]
["F7","Spell Check",null,"Move Window"]
["F8","Extend Selection","Add To Selection","Resize Window","Macro List"]
["F9","Calculate All","Calculate Worksheet","Minimize Workbook"]
["F10","Activate Menu","Context Menu","Restore Workbook"]
["F11","New Chart","New Worksheet","New Macro Sheet","VB Editor"]
["F12","Save As","Save","Open",null,"Print"]
["A",null,null,"Select All",null,"Formula Arguments"]
["B",null,null,"Bold"]
["C",null,null,"Copy"]
["D",null,null,"Fill Down","Data Menu"]
["E",null,null,null,"Edit Menu"]
["F",null,null,"Find","File Menu","Font Name"]
["G",null,null,"Goto"]
["H",null,null,"Replace","Help Menu"]
["I",null,null,"Italics","Insert Menu"]
["J"]
["K",null,null,"Insert Hyperlink"]
["L"]
["M"]
["N",null,null,"New Workbook"]
["O",null,null,"Open Workbook","Format Menu","Select Comments"]
["P",null,null,"Print",null,"Font Size"]
["Q"]
["R",null,null,"Fill Right"]
["S",null,null,"Save"]
["T",null,null,null,"Tools Menu"]
["U",null,null,"Underline"]
["V",null,null,"Paste"]
["W",null,null,"Close Workbook","Window Menu"]
["X",null,null,"Cut"]
["Y",null,null,"Repeat Active"]
["Z",null,null,"Undo"]
["` (~)",null,null,"Toggle Formula View",null,"General Format"]
["1 (!)",null,null,"Cell Format",null,"Number Format"]
["2 (@)",null,null,"Toggle Bold",null,"Time Format"]
["3 (#)",null,null,"Toggle Italics",null,"Date Format"]
["4 ($)",null,null,"Toggle Underline",null,"Currency Format"]
["5 (%)",null,null,"Toggle Strikethru",null,"Percent Format"]
["6 (^)",null,null,"a",null,"Exponent Format"]
["7 (&)",null,null,"a",null,"Apply Border"]
["8 (*)",null,null,"Outline",null,"Select Region"]
["9 (()",null,null,"Hide Rows",null,"Unhide Rows"]
["0 ())",null,null,"Hide Columns",null,"Unhide Columns"]
["-",null,null,"Delete Selection","Control Menu","No Border"]
["= (+)","Formula",null,null,"Auto Sum","Insert dialog"]
["[",null,null,"Direct Dependents",null,"Direct Precedents"]
["]",null,null,"All Dependents",null,"All Precedents"]
["; (semicolon)",null,null,"Insert Date","Select Visible Cells","Insert Time"]
["' (apostrophe)",null,null,null,"Style","Copy Cell Value Above"]
[": (colon)",null,null,"Insert Time"]
["/",null,null,"Select Array",null,"Select Array"]
["\\",null,null,"Select Differences",null,"Select Unequal Cells"]
["Insert","Insert Mode",null,"Copy"]
["Delete","Clear",null,"Delete To End Of Line"]
["Home","Begin Row",null,"Start Of Worksheet"]
["End","End Row",null,"End Of Worksheet"]
["Page Up","Page Up",null,"Previous Worksheet","Left 1 screen"]
["Page Down","Page Down",null,"Next Worksheet","Right 1 screen"]
["Left Arrow","Move Left","Select Left","Move Left Area"]
["Right Arrow","Move Right","Select Right","Move Right Area"]
["Up Arrow","Move Up","Select Up","Move Up Area"]
["Down Arrow","Move Down","Select Down","Move Down Area","Drop down list"]
["Space Bar","Space","Select Row","Select Column","Control Box","Select All"]
["Tab","Move Right","Move Left","Next Window","Next Application","Previous Window"]
["BackSpace",null,null,"Goto Active Cell"]
[]
[]
[]
[]
["Excel shortcuts"]
["Shortcut key","Action","Menu equivalent comments","version"]
["Ctrl+A","Select All","None","All"]
["Ctrl+B","Bold","Format, Cells, Font, Font Style, Bold","All"]
["Ctrl+C","Copy","Edit, Copy","All"]
["Ctrl+D","Fill Down","Edit, Fill, Down","All"]
["Ctrl+F","Find","Edit, Find","All"]
["Ctrl+G","Goto","Edit, Goto","All"]
["Ctrl+H","Replace","Edit, Replace","All"]
["Ctrl+I","Italic","Format, Cells, Font, Font Style, Italic","All"]
["Ctrl+K","Insert Hyperlink","Insert, Hyperlink","Excel 97/2000 +"]
["Ctrl+N","New Workbook","File, New","All"]
["Ctrl+O","Open","File, Open","All"]
["Ctrl+P","Print","File, Print","All"]
["Ctrl+R","Fill Right","Edit, Fill Right","All"]
["Ctrl+S","Save","File, Save","All"]
["Ctrl+U","Underline","Format, Cells, Font, Underline, Single","All"]
["Ctrl+V","Paste","Edit, Paste","All"]
["Ctrl W","Close","File, Close","Excel 97/2000 +"]
["Ctrl+X","Cut","Edit, Cut","All"]
["Ctrl+Y","Repeat","Edit, Repeat","All"]
["Ctrl+Z","Undo","Edit, Undo","All"]
["F1","Help","Help, Contents and Index","All"]
["F2","Edit","None","All"]
["F3","Paste Name","Insert, Name, Paste","All"]
["F4","Repeat last action","Edit, Repeat. Works while not in Edit mode.","All"]
["F4","While typing a formula, switch between absolute/relative refs","None","All"]
["F5","Goto","Edit, Goto","All"]
["F6","Next Pane","None","All"]
["F7","Spell check","Tools, Spelling","All"]
["F8","Extend mode","None","All"]
["F9","Recalculate all workbooks","Tools, Options, Calculation, Calc Now","All"]
["F10","Activate Menubar","N/A","All"]
["F11","New Chart","Insert, Chart","All"]
["F12","Save As","File, Save As","All"]
["Ctrl+:","Insert Current Time","None","All"]
["Ctrl+;","Insert Current Date","None","All"]
["Ctrl+\"","Copy Value from Cell Above","Edit, Paste Special, Value","All"]
["Ctrl+’","Copy Formula from Cell Above","Edit, Copy","All"]
["Shift","Hold down shift for additional functions in Excel’s menu","none","Excel 97/2000 +"]
["Shift+F1","What’s This?","Help, What’s This?","All"]
["Shift+F2","Edit cell comment","Insert, Edit Comments","All"]
["Shift+F3","Paste function into formula","Insert, Function","All"]
["Shift+F4","Find Next","Edit, Find, Find Next","All"]
["Shift+F5","Find","Edit, Find, Find Next","All"]
["Shift+F6","Previous Pane","None","All"]
["Shift+F8","Add to selection","None","All"]
["Shift+F9","Calculate active worksheet","Tools, Options, Calculation, Calc Sheet","All"]
["Ctrl+Alt+F9","Calculate all worksheets in all open workbooks, regardless of whether they have changed since the last calculation.","None","Excel 97/2000 +"]
["Ctrl+Alt+Shift+F9","Rechecks dependent formulas and then calculates all cells in all open workbooks, including cells not marked as needing to be calculated.","None","Excel 97/2000 +"]
["Shift+F10","Display shortcut menu","None","All"]
["Shift+F11","New worksheet","Insert, Worksheet","All"]
["Shift+F12","Save","File, Save","All"]
["Ctrl+F3","Define name","Insert, Names, Define","All"]
["Ctrl+F4","Close","File, Close","All"]
["Ctrl+F5","XL, Restore window size","Restore","All"]
["Ctrl+F6","Next workbook window","Window, ...","All"]
["Shift+Ctrl+F6","Previous workbook window","Window, ...","All"]
["Ctrl+F7","Move window","XL, Move","All"]
["Ctrl+F8","Resize window","XL, Size","All"]
["Ctrl+F9","Minimize workbook","XL, Minimize","All"]
["Ctrl+F10","Maximize or restore window","XL, Maximize","All"]
["Ctrl+F11","Inset 4.0 Macro sheet","None in Excel 97. In versions prior to 97 - Insert, Macro, 4.0 Macro","All"]
["Ctrl+F12","File Open","File, Open","All"]
["Alt+F1","Insert Chart","Insert, Chart","All"]
["Alt+F2","Save As","File, Save As","All"]
["Alt+F4","Exit","File, Exit","All"]
["Alt+F8","Macro dialog box","Tools, Macro, Macros in Excel 97 Tools,Macros - in earlier versions","Excel 97/2000 +"]
["Alt+F11","Visual Basic Editor","Tools, Macro, Visual Basic Editor","Excel 97/2000 +"]
["Ctrl+Shift+F3","Create name by using names of row and column labels","Insert, Name, Create","All"]
["Ctrl+Shift+F6","Previous Window","Window, ...","All"]
["Ctrl+Shift+F12","Print","File, Print","All"]
["Alt+Shift+F1","New worksheet","Insert, Worksheet","All"]
["Alt+Shift+F2","Save","File, Save","All"]
["Alt+=","AutoSum","No direct equivalent","All"]
["Ctrl+`","Toggle Value/Formula display","Tools, Options, View, Formulas","All"]
["Ctrl+Shift+A","Insert argument names into formula","No direct equivalent","All"]
["Alt+Down arrow","Display AutoComplete list","None","Excel 95"]
["Alt+’","Format Style dialog box","Format, Style","All"]
["Ctrl+Shift+~","General format","Format, Cells, Number, Category, General","All"]
["Ctrl+Shift+!","Comma format","Format, Cells, Number, Category, Number","All"]
["Ctrl+Shift+@","Time format","Format, Cells, Number, Category, Time","All"]
["Ctrl+Shift+#","Date format","Format, Cells, Number, Category, Date","All"]
["Ctrl+Shift+$","Currency format","Format, Cells, Number, Category, Currency","All"]
["Ctrl+Shift+%","Percent format","Format, Cells, Number, Category, Percentage","All"]
["Ctrl+Shift+^","Exponential format","Format, Cells, Number, Category,","All"]
["Ctrl+Shift+&","Place outline border around selected cells","Format, Cells, Border","All"]
["Ctrl+Shift+_","Remove outline border","Format, Cells, Border","All"]
["Ctrl+Shift+*","Select the current region around the active cell. In a PivotTable report, select the entire PivotTable report.","Edit, Goto, Special, Current Region","All"]
["Ctrl++","Insert","Insert, (Rows, Columns, or Cells) Depends on selection","All"]
["Ctrl+-","Delete","Delete, (Rows, Columns, or Cells) Depends on selection","All"]
["Ctrl+1","Format cells dialog box","Format, Cells","All"]
["Ctrl+2","Bold","Format, Cells, Font, Font Style, Bold","All"]
["Ctrl+3","Italic","Format, Cells, Font, Font Style, Italic","All"]
["Ctrl+4","Underline","Format, Cells, Font, Font Style, Underline","All"]
["Ctrl+5","Strikethrough","Format, Cells, Font, Effects, Strikethrough","All"]
["Ctrl+6","Show/Hide objects","Tools, Options, View, Objects, Show All/Hide","All"]
["Ctrl+7","Show/Hide Standard toolbar","View, Toolbars, Stardard","All"]
["Ctrl+8","Toggle Outline symbols","None","All"]
["Ctrl+9","Hide rows","Format, Row, Hide","All"]
["Ctrl+0","Hide columns","Format, Column, Hide","All"]
["Ctrl+Shift+(","Unhide rows","Format, Row, Unhide","All"]
["Ctrl+Shift+)","Unhide columns","Format, Column, Unhide","All"]
["Alt or F10","Activate the menu","None","All"]
["Ctrl+Tab","In toolbar: next toolbar","None","Excel 97/2000 +"]
[null,"In a workbook: activate next workbook"]
["Shift+Ctrl+Tab","In toolbar: previous toolbar","None","Excel 97/2000 +"]
[null,"In a workbook: activate previous workbook"]
["Tab","Next tool","None","Excel 97/2000 +"]
["Shift+Tab","Previous tool","None","Excel 97/2000 +"]
["Enter","Do the command","None","Excel 97/2000 +"]
["Alt+Enter","Start a new line in the same cell.","None","Excel 97/2000 +"]
["Ctrl+Enter","Fill the selected cell range with the current entry.","None","Excel 97/2000 +"]
["Shift+Ctrl+F","Font Drop Down List","Format, Cells, Font","All"]
["Shift+Ctrl+F+F","Font tab of Format Cell Dialog box","Format, Cells, Font","Before 97/2000"]
["Shift+Ctrl+P","Point size Drop Down List","Format, Cells, Font","All"]
["Ctrl+Spacebar","Select the entire column","None","Excel 97/2000 +"]
["Shift+Spacebar","Select the entire row","None","Excel 97/2000 +"]
["CTRL+/","Select the array containing the active cell."]
["CTRL+SHIFT+O","Select all cells that contain comments."]
["CTRL+\\","In a selected row, select the cells that don’t match the formula or static value in the active cell."]
["CTRL+SHIFT+|","In a selected column, select the cells that don’t match the formula or static value in the active cell."]
["CTRL+[","Select all cells directly referenced by formulas in the selection."]
["CTRL+SHIFT+{","Select all cells directly or indirectly referenced by formulas in the selection."]
["CTRL+]","Select cells that contain formulas that directly reference the active cell."]
["CTRL+SHIFT+}","Select cells that contain formulas that directly or indirectly reference the active cell."]
["ALT+;","Select the visible cells in the current selection."]
["SHIFT+BACKSPACE","With multiple cells selected, select only the active cell."]
["CTRL+SHIFT+SPACEBAR","Selects the entire worksheet. If the worksheet contains data, CTRL+SHIFT+SPACEBAR selects the current region. Pressing CTRL+SHIFT+SPACEBAR a second time selects the entire worksheet. When an object is selected, CTRL+SHIFT+SPACEBAR selects all objects on a worksheet"]
["Shortcut key","Action","Menu equivalent comments","version"]
["Ctrl+A","Select All","None","All"]
["Ctrl+B","Bold","Format, Cells, Font, Font Style, Bold","All"]
["Ctrl+C","Copy","Edit, Copy","All"]
["Ctrl+D","Fill Down","Edit, Fill, Down","All"]
["Ctrl+F","Find","Edit, Find","All"]
["Ctrl+G","Goto","Edit, Goto","All"]
["Ctrl+H","Replace","Edit, Replace","All"]
["Ctrl+I","Italic","Format, Cells, Font, Font Style, Italic","All"]
["Ctrl+K","Insert Hyperlink","Insert, Hyperlink","Excel 97/2000 +"]
["Ctrl+N","New Workbook","File, New","All"]
["Ctrl+O","Open","File, Open","All"]
["Ctrl+P","Print","File, Print","All"]
["Ctrl+R","Fill Right","Edit, Fill Right","All"]
["Ctrl+S","Save","File, Save","All"]
["Ctrl+U","Underline","Format, Cells, Font, Underline, Single","All"]
["Ctrl+V","Paste","Edit, Paste","All"]
["Ctrl W","Close","File, Close","Excel 97/2000 +"]
["Ctrl+X","Cut","Edit, Cut","All"]
["Ctrl+Y","Repeat","Edit, Repeat","All"]
["Ctrl+Z","Undo","Edit, Undo","All"]
["F1","Help","Help, Contents and Index","All"]
["F2","Edit","None","All"]
["F3","Paste Name","Insert, Name, Paste","All"]
["F4","Repeat last action","Edit, Repeat. Works while not in Edit mode.","All"]
["F4","While typing a formula, switch between absolute/relative refs","None","All"]
["F5","Goto","Edit, Goto","All"]
["F6","Next Pane","None","All"]
["F7","Spell check","Tools, Spelling","All"]
["F8","Extend mode","None","All"]
["F9","Recalculate all workbooks","Tools, Options, Calculation, Calc Now","All"]
["F10","Activate Menubar","N/A","All"]
["F11","New Chart","Insert, Chart","All"]
["F12","Save As","File, Save As","All"]
["Ctrl+:","Insert Current Time","None","All"]
["Ctrl+;","Insert Current Date","None","All"]
["Ctrl+\"","Copy Value from Cell Above","Edit, Paste Special, Value","All"]
["Ctrl+'","Copy Formula from Cell Above","Edit, Copy","All"]
["Shift","Hold down shift for additional functions in Excel's menu","none","Excel 97/2000 +"]
["Shift+F1","What's This?","Help, What’s This?","All"]
["Shift+F2","Edit cell comment","Insert, Edit Comments","All"]
["Shift+F3","Paste function into formula","Insert, Function","All"]
["Shift+F4","Find Next","Edit, Find, Find Next","All"]
["Shift+F5","Find","Edit, Find, Find Next","All"]
["Shift+F6","Previous Pane","None","All"]
["Shift+F8","Add to selection","None","All"]
["Shift+F9","Calculate active worksheet","Tools, Options, Calculation, Calc Sheet","All"]
["Ctrl+Alt+F9","Calculate all worksheets in all open workbooks, regardless of whether they have changed since the last calculation.","None","Excel 97/2000 +"]
["Ctrl+Alt+Shift+F9","Rechecks dependent formulas and then calculates all cells in all open workbooks, including cells not marked as needing to be calculated.","None","Excel 97/2000 +"]
["Shift+F10","Display shortcut menu","None","All"]
["Shift+F11","New worksheet","Insert, Worksheet","All"]
["Shift+F12","Save","File, Save","All"]
["Ctrl+F3","Define name","Insert, Names, Define","All"]
["Ctrl+F4","Close","File, Close","All"]
["Ctrl+F5","XL, Restore window size","Restore","All"]
["Ctrl+F6","Next workbook window","Window, ...","All"]
["Shift+Ctrl+F6","Previous workbook window","Window, ...","All"]
["Ctrl+F7","Move window","XL, Move","All"]
["Ctrl+F8","Resize window","XL, Size","All"]
["Ctrl+F9","Minimize workbook","XL, Minimize","All"]
["Ctrl+F10","Maximize or restore window","XL, Maximize","All"]
["Ctrl+F11","Inset 4.0 Macro sheet","None in Excel 97. In versions prior to 97 - Insert, Macro, 4.0 Macro","All"]
["Ctrl+F12","File Open","File, Open","All"]
["Alt+F1","Insert Chart","Insert, Chart","All"]
["Alt+F2","Save As","File, Save As","All"]
["Alt+F4","Exit","File, Exit","All"]
["Alt+F8","Macro dialog box","Tools, Macro, Macros in Excel 97 Tools,Macros - in earlier versions","Excel 97/2000 +"]
["Alt+F11","Visual Basic Editor","Tools, Macro, Visual Basic Editor","Excel 97/2000 +"]
["Ctrl+Shift+F3","Create name by using names of row and column labels","Insert, Name, Create","All"]
["Ctrl+Shift+F6","Previous Window","Window, ...","All"]
["Ctrl+Shift+F12","Print","File, Print","All"]
["Alt+Shift+F1","New worksheet","Insert, Worksheet","All"]
["Alt+Shift+F2","Save","File, Save","All"]
["Alt+=","AutoSum","No direct equivalent","All"]
["Ctrl+`","Toggle Value/Formula display","Tools, Options, View, Formulas","All"]
["Ctrl+Shift+A","Insert argument names into formula","No direct equivalent","All"]
["Alt+Down arrow","Display AutoComplete list","None","Excel 95"]
["Alt+'","Format Style dialog box","Format, Style","All"]
["Ctrl+Shift+~","General format","Format, Cells, Number, Category, General","All"]
["Ctrl+Shift+!","Comma format","Format, Cells, Number, Category, Number","All"]
["Ctrl+Shift+@","Time format","Format, Cells, Number, Category, Time","All"]
["Ctrl+Shift+#","Date format","Format, Cells, Number, Category, Date","All"]
["Ctrl+Shift+$","Currency format","Format, Cells, Number, Category, Currency","All"]
["Ctrl+Shift+%","Percent format","Format, Cells, Number, Category, Percentage","All"]
["Ctrl+Shift+^","Exponential format","Format, Cells, Number, Category,","All"]
["Ctrl+Shift+&","Place outline border around selected cells","Format, Cells, Border","All"]
["Ctrl+Shift+_","Remove outline border","Format, Cells, Border","All"]
["Ctrl+Shift+*","Select current region","Edit, Goto, Special, Current Region","All"]
["Ctrl++","Insert","Insert, (Rows, Columns, or Cells) Depends on selection","All"]
["Ctrl+-","Delete","Delete, (Rows, Columns, or Cells) Depends on selection","All"]
["Ctrl+1","Format cells dialog box","Format, Cells","All"]
["Ctrl+2","Bold","Format, Cells, Font, Font Style, Bold","All"]
["Ctrl+3","Italic","Format, Cells, Font, Font Style, Italic","All"]
["Ctrl+4","Underline","Format, Cells, Font, Font Style, Underline","All"]
["Ctrl+5","Strikethrough","Format, Cells, Font, Effects, Strikethrough","All"]
["Ctrl+6","Show/Hide objects","Tools, Options, View, Objects, Show All/Hide","All"]
["Ctrl+7","Show/Hide Standard toolbar","View, Toolbars, Stardard","All"]
["Ctrl+8","Toggle Outline symbols","None","All"]
["Ctrl+9","Hide rows","Format, Row, Hide","All"]
["Ctrl+0","Hide columns","Format, Column, Hide","All"]
["Ctrl+Shift+(","Unhide rows","Format, Row, Unhide","All"]
["Ctrl+Shift+)","Unhide columns","Format, Column, Unhide","All"]
["Alt or F10","Activate the menu","None","All"]
["Ctrl+Tab","In toolbar: next toolbar","None","Excel 97/2000 +"]
["Shift+Ctrl+Tab","In toolbar: previous toolbar","None","Excel 97/2000 +"]
["Ctrl+Tab","In a workbook: activate next workbook","None","Excel 97/2000 +"]
["Shift+Ctrl+Tab","In a workbook: activate previous workbook","None","Excel 97/2000 +"]
["Tab","Next tool","None","Excel 97/2000 +"]
["Shift+Tab","Previous tool","None","Excel 97/2000 +"]
["Enter","Do the command","None","Excel 97/2000 +"]
["Alt+Enter","Start a new line in the same cell.","None","Excel 97/2000 +"]
["Ctrl+Enter","Fill the selected cell range with the current entry.","None","Excel 97/2000 +"]
["Shift+Ctrl+F","Font Drop Down List","Format, Cells, Font","All"]
["Shift+Ctrl+F+F","Font tab of Format Cell Dialog box","Format, Cells, Font","Before 97/2000"]
["Shift+Ctrl+P","Point size Drop Down List","Format, Cells, Font","All"]
["A special thanks goes out to Shane Devenshire who provided most of the shortcuts in this list!"]
["References:"]
["Microsoft Office Assistance: Keyboard shortcuts"]
["Microsoft Office Assistance: Work with the keyboard (with video)"]
["Microsoft Office Assistance: Excel shortcut and function keys"]
["back to top"]
["Shortcuts for the Visual Basic Editor"]
["Shortcut key","Action","Menu equivalent comments"]
["F1","Help","Help"]
["F2","View Object Browser","View, Object Browser"]
["F3","Find Next"]
["F4","Properies Window","View, Properties Window"]
["F5","Run Sub/Form or Run Macro","Run, Run Macro"]
["F6","Switch Split Windows"]
["F7","View Code Window","View, Code"]
["F8","Step Into","Debug, Step Into"]
["F9","Toggle Breakpoint","Debug, Toggle Breakpoint"]
["F10","Activate Menubar"]
["Shift+F2","View definition","View, Definition"]
["Shift+F3","Find Previous"]
["Shift+F7","View Object","View, Object"]
["Shift+F8","Step Over","Debug, Step Over"]
["Shift+F9","Quick Watch","Debug, Quick Watch"]
["Shift+F10","Show Right Click Menu"]
["Ctrl+F2","Focus To Object Box"]
["Ctrl+F4","Close Window"]
["Ctrl+F8","Run To Cursor","Debug, Run To Cursor"]
["Ctrl+F10","Activate Menubar"]
["Alt+F4","Close VBE","File, Close and Return to Microsoft Excel"]
["Alt+F6","Switch Between Last 2 Windows"]
["Alt+F11","Return To Application"]
["Ctrl+Shift+F2","Go to last position","View, Last Position"]
["Ctrl+Shift+F8","Step Out","Debug, Step Out"]
["Ctrl+Shift+F9","Clear All Breakpoints","Debug, Clear All Breakpoints"]
["Insert","Toggle Insert Mode"]
["Delete","Delete","Edit, Clear"]
["Home","Move to beginning of line"]
["End","Move to end of line"]
["Page Up","Page Up"]
["Page Down","Page Down"]
["Left Arrow","Left"]
["Right Arrow","Right"]
["Up Arrow","Up"]
["Down Arrow","Down"]
["Tab","Indent","Edit, Indent"]
["Enter","New Line"]
["BackSpace","Delete Prev Char"]
["Shift+Insert","Paste","Edit, Paste"]
["Shift+Home","Select To Start Of Line"]
["Shift+End","Select To End Of Line"]
["Shift+Page Up","Select To Top Of Module"]
["Shift+Page Down","Select To End Of Module"]
["Shift+Left Arrow","Extend Selection Left 1 Char"]
["Shift+Right Arrow","Extend Selection Right 1 Char"]
["Shift+Up Arrow","Extend Selection Up"]
["Shift+Down Arrow","Extend Selection Down"]
["Shift+Tab","Outdent","Edit, Outdent"]
["Alt+Spacebar","System Menu"]
["Alt+Tab","Cycle Applications"]
["Alt+BackSpace","Undo"]
["Ctrl+A ","Select All","Edit, Select All"]
["Ctrl+C ","Copy","Edit, Copy"]
["Ctrl+E ","Export Module","File, Export File"]
["Ctrl+F ","Find","Edit, Find"]
["Ctrl+G ","Immediate Window","View, Immediate Window"]
["Ctrl+H ","Replace","Edit, Replace…"]
["Ctrl+I ","Turn On Quick Info","Edit, Quikc Info"]
["Ctrl+J ","List Properties/Methods","Edit, List Properties/Methods"]
["Ctrl+L ","Show Call Stack"]
["Ctrl+M ","Import File","File, Import File"]
["Ctrl+N ","New Line"]
["Ctrl+P ","Print","File, Print"]
["Ctrl+R ","Project Explorer","View, Project Explorer"]
["Ctrl+S ","Save","File, Save"]
["Ctrl+T ","Show Available Components","Insert, Components..."]
["Ctrl+V ","Paste","Edit, Paste"]
["Ctrl+X ","Cut","Edit, Cut"]
["Ctrl+Y ","Cut Entire Line"]
["Ctrl+Z ","Undo","Edit, Undo"]
["Ctrl+Insert","Copy","Edit, Copy"]
["Ctrl+Delete","Delete To End Of Word"]
["Ctrl+Home","Top Of Module"]
["Ctrl+End","End Of Module"]
["Ctrl+Page Up","Top Of Current Procedure"]
["Ctrl+Page Down","End Of Current Procedure"]
["Ctrl+Left Arrow","Move one word to left"]
["Ctrl+Right Arrow","Move one word to right"]
["Ctrl+Up Arrow","Previous Procedure"]
["Ctrl+Down Arrow","Next Procedure"]
["Ctrl+Spacebar","Complete Word","Edit, Complete Word"]
["Ctrl+Tab","Cycle Windows"]
["Ctrl+BackSpace","Delete To Start Of Word"]
["Ctrl+Shift+I ","Parameter Info","Edit, Parameter Info"]
["Ctrl+Shift+J ","List Constants","Edit, List Constants"]
[]
[]
[]
["1. Navigate Inside Worksheets"]
["Arrow Keys","Move one cell up, down, left, or right in a worksheet."]
["Page Down/Page Up","Move one screen down / one screen up in a worksheet."]
["Alt+Page Down/Alt+Page Up","Move one screen to the right / to the left in a worksheet."]
["Tab/Shift+Tab","Move one cell to the right / to the left in a worksheet."]
["Ctrl+Arrow Keys","Move to the edge of next data region (cells that contains data)"]
["Home","Move to the beginning of a row in a worksheet."]
["Ctrl+Home","Move to the beginning of a worksheet."]
["Ctrl+End","Move to the last cell with content on a worksheet."]
["Ctrl+f","Display the Find and Replace dialog box (with Find selected)."]
["Ctrl+h","Display the Find and Replace dialog box (with Replace selected)."]
["Shift+F4","Repeat last find."]
["Ctrl+g (or f5)","Display the 'Go To' dialog box."]
["Ctrl+Arrow Left/Ctrl+Arrow Right","Inside a cell: Move one word to the left / to the right."]
["Home/End","Inside a cell: Move to the beginning / to the end of a cell entry."]
["Alt+Arrow Down","Display the AutoComplete list e.g. in cell with dropdowns or autofilter."]
["End","Turn 'End' mode on. In End mode, press arrow keys to move to the next nonblank cell in the same column or row as the active cell. From here use arrow keys to move by blocks of data, home to move to last cell, or enter to move to the last cell to the right."]
[]
["▲ up"]
[]
["2. Work with Data Selections"]
["Select Cells"]
["Shift+Space","Select the entire row"]
["Ctrl+Space","Select the entire column."]
["Ctrl+Shift+* (asterisk)","Select the current region around the active cell."]
["Ctrl+a (or ctrl+Shift+spacebar)","Select the entire worksheet or the data-containing area. Pressing ctrl+a a second time then selects entire worksheet."]
["Ctrl+Shift+Page Up","Select the current and previous sheet in a workbook."]
["Ctrl+Shift+o","Select all cells with comments."]
["Shift+Arrow Keys","Extend the selection by one cell."]
["Ctrl+Shift+Arrow Key","Extend the selection to the last cell with content in row or column."]
["Shift+Page Down/Shift+Page Up","Extend the selection down one screen /up one screen."]
["Shift+Home","Extend the selection to the beginning of the row."]
["Ctrl+Shift+Home","Extend the selection to the beginning of the worksheet."]
["Ctrl+Shift+End","Extend the selection to the last used cell on the worksheet (lower-right corner)."]
["Manage Active Selections"]
["F8","Turn on extension of selection with arrow keys without having to keep pressing shift."]
["Shift+F8","Add another (adjacent or non-adjacent) range of cells to the selection. Use arrow keys and shift+arrow keys to add to selection."]
["Shift+Backspace","Select only the active cell when multiple cells are selected."]
["Ctrl+Backspace","Show active cell within selection."]
["Ctrl+. (period)","Move clockwise to the next corner of the selection."]
["Enter/Shift+Enter","Move active cell down / up in a selection."]
["Tab/Shift+Tab","Move active cell right / left in a selection."]
["Ctrl+Alt+Arrow Right/Ctrl+Alt+Arrow Left","Move to the right / to the left between non-adjacent selections (with multiple ranges selected)."]
["Esc","Cancel Selection."]
["Select inside cells"]
["Shift+Arrow Left/Shift+Arrow Right","Select or unselect one character to the left / to the right."]
["Ctrl+Shift+Arrow Left/Ctrl+Shift+Arrow Right","Select or unselect one word to the left / to the right."]
["Shift+Home/Shift+End","Select from the insertion point to the beginning / to the end of the cell."]
[]
["▲ up"]
[]
["3. Insert and Edit Data"]
["Undo / Redo Shortcuts"]
["Ctrl+z","Undo last action (multiple levels)."]
["Ctrl+y","Redo last action (multiple levels)."]
["Work with Clipboard"]
["Ctrl+c","Copy contents of selected cells."]
["Ctrl+x","Cut contents of selected cells."]
["Ctrl+v","Paste content from clipboard into selected cell."]
["Ctrl+Alt+v","If data exists in clipboard: Display the Paste Special dialog box."]
["Ctrl+Shift+[+]","If data exists in clipboard: Display the Insert dialog box to insert blank cells."]
["Edit Inside Cells"]
["F2","Edit the active cell with cursor at end of the line."]
["Alt+Enter","Start a new line in the same cell."]
["Enter","Complete a cell entry and move down in the selection. With multiple cells selected: fill cell range with current cell."]
["Shift+Enter","Complete a cell entry and move up in the selection."]
["Tab/Shift+Tab","Complete a cell entry and move to the right / to the left in the selection."]
["Esc","Cancel a cell entry."]
["Backspace","Delete the character to the left of the insertion point, or delete the selection."]
["Delete","Delete the character to the right of the insertion point, or delete the selection."]
["Ctrl+Delete","Delete text to the end of the line."]
["Ctrl+; (semicolon)","Insert Current Date"]
["Ctrl+Shift+: (colon)","Insert current time."]
["Edit Active or Selected Cells"]
["Ctrl+d","Fill complete cell down (Copy above cell)."]
["Ctrl+r","Fill complete cell to the right (Copy cell from the left)."]
["Ctrl+\"","Fill cell values down and edit (Copy above cell values)."]
["Ctrl+' (apostrophe)","Fill cell formulas down and edit (Copy above cell formulas)."]
["Ctrl+l","Insert a table (display Create Table dialog box)."]
["Ctrl+-","Delete Cell/Row/Column Menu"]
["Ctrl+- with row / column selected","Delete row / delete column."]
["Ctrl+Shift++","Insert Cell/Row/Column Menu"]
["Ctrl+Shift++ with row / column selected","Insert row/ insert column."]
["Shift+F2","Insert / Edit a cell comment."]
["Shift+f10, then m","Delete comment."]
["Alt+F1","Create and insert chart with data in current range as embedded Chart Object."]
["F11","Create and insert chart with data in current range in a separate Chart sheet."]
["Ctrl+k","Insert a hyperlink."]
["enter (in a cell with a hyperlink)","Activate a hyperlink."]
["Hide and Show Elements"]
["Ctrl+9","Hide the selected rows."]
["Ctrl+Shift+9","Unhide any hidden rows within the selection."]
["Ctrl+0 (zero)","Hide the selected columns."]
["Ctrl+Shift+0 (zero)","Unhide any hidden columns within the selection*."]
["Ctrl+` (grave accent)","Alternate between displaying cell values and displaying cell formulas. Accent grave /not a quotation mark."]
["Alt+Shift+Arrow Right","Group rows or columns."]
["Alt+Shift+Arrow Left","Ungroup rows or columns."]
["Ctrl+6","Alternate between hiding and displaying objects."]
["Ctrl+8","Display or hides the outline symbols."]
["Ctrl+6","Alternate between hiding objects, displaying objects, and displaying placeholders for objects."]
["*Does not seem to work anymore in Excel 2010. Detailed explanation here: http://superuser.com/questions/183197/whats-the-keyboard-shortcut-to-unhide-a-column-in-excel-2010 why."]
["Adjust Column Width and Row Height"]
["Note: there are no default shortcuts for this, but workaround through access keys from previous versions"]
["Alt+o, ca","Adjust Column width to fit content. Select complete column with Ctrl+Space first, otherwise column adjusts to content of current cell). Remember Format, Column Adjust."]
["Alt+o, cw","Adjust Columns width to specific value: Option, Cow, width"]
["Alt+o, ra","Adjust Row height to fit content: Option, Row, Adjust"]
["Alt+o, re","Adjust Row height to specific value: Option, Row, Height"]
[]
["▲ up"]
[]
["4. Format Data"]
["Format Cells"]
["Ctrl+1","Format cells dialog."]
["Ctrl+b (or ctrl+2)","Apply or remove bold formatting."]
["Ctrl+i (or ctrl+3)","Apply or remove italic formatting."]
["Ctrl+u (or ctrl+4)","Apply or remove an underline."]
["Ctrl+5","Apply or remove strikethrough formatting."]
["Ctrl+Shift+f","Display the Format Cells with Fonts Tab active. Press tab 3x to get to font-size. Used to be ctrl+shift+p, but that seems just get to the Font Tab in 2010."]
["Alt+' (apostrophe / single quote)","Display the Style dialog box."]
["Number Formats"]
["Ctrl+Shift+$","Apply the Currency format with two decimal places."]
["Ctrl+Shift+~","Apply the General number format."]
["Ctrl+Shift+%","Apply the Percentage format with no decimal places."]
["Ctrl+Shift+#","Apply the Date format with the day, month, and year."]
["Ctrl+Shift+@","Apply the Time format with the hour and minute, and indicate A.M. or P.M."]
["Ctrl+Shift+!","Apply the Number format with two decimal places, thousands separator, and minus sign (-) for negative values."]
["Ctrl+Shift+^","Apply the Scientific number format with two decimal places."]
["F4","Repeat last formatting action: Apply previously applied Cell Formatting to a different Cell"]
["Apply Borders to Cells"]
["Ctrl+Shift+&","Apply outline border from cell or selection"]
["Ctrl+Shift+_ (underscore)","Remove outline borders from cell or selection"]
["Ctrl+1, then Ctrl+Arrow Right/Arrow Left","Access border menu in 'Format Cell' dialog. Once border was selected, it will show up directly on the next Ctrl+1"]
["Alt+t*","Set top border"]
["Alt+b*","Set bottom Border"]
["Alt+l*","Set left Border"]
["Alt+r*","Set right Border"]
["Alt+d*","Set diagonal and down border"]
["Alt+u*","Set diagonal and up border"]
["*In Cell Format in 'Border' Dialog Window"]
["Align Cells"]
["Alt+h, ar","Align Right"]
["Alt+h, ac","Align Center"]
["Alt+h, al","Align Left"]
[]
["▲ up"]
[]
["5. Formulas and Names"]
["Formulas"]
["=","Start a formula."]
["Alt+=","Insert the AutoSum formula."]
["Shift+F3","Display the Insert Function dialog box."]
["Ctrl+a","Display Formula Window after typing formula name."]
["Ctrl+Shift+a","Insert Arguments in formula after typing formula name. ."]
["Shift+F3","Insert a function into a formula ."]
["Ctrl+Shift+Enter","Enter a formula as an array formula."]
["F4","After typing cell reference (e.g. =E3) makes reference absolute (=$E$4)"]
["F9","Calculate all worksheets in all open workbooks."]
["Shift+F9","Calculate the active worksheet."]
["Ctrl+Alt+F9","Calculate all worksheets in all open workbooks, regardless of whether they have changed since the last calculation."]
["Ctrl+Alt+Shift+F9","Recheck dependent formulas, and then calculates all cells in all open workbooks, including cells not marked as needing to be calculated."]
["Ctrl+Shift+u","Toggle expand or collapse formula bar."]
["Names"]
["Ctrl+F3","Define a name or dialog."]
["Ctrl+Shift+F3","Create names from row and column labels."]
["F3","Paste a defined name into a formula."]
[]
["▲ up"]
[]
["6. Manage Multipe Worksheets"]
["Shortcuts to delete, rename, or move worksheets are based on the old Excel 2003 menus which still work in Excel 2010."]
["Shift+F11/Alt+Shift+F1","Insert a new worksheet in current workbook."]
["Ctrl+Page Down/Ctrl+Page Up","Move to the next / previous worksheet in current workbook."]
["Shift+Ctrl+Page Down/Shift+Ctrl+Page Up","Select the current and next sheet(s) / select and previous sheet(s)."]
["Alt+o then h r","Rename current worksheet (format, sheet, rename)"]
["Alt+e then l","Delete current worksheet (Edit, delete)"]
["Alt+e then m","Move current worksheet (Edit, move)"]
[]
["▲ up"]
[]
["7. Manage Multiple Workbooks"]
["F6/Shift+F6","Move to the next pane / previous pane in a workbook that has been split."]
["Ctrl+F4","Close the selected workbook window."]
["Ctrl+n","Create a new blank workbook (Excel File)"]
["Ctrl+Tab/Ctrl+Shift+Tab","Move to next / previous workbook window."]
["Alt+Space","Display the Control menu for Main Excel window."]
["Ctrl+F9","Minimize current workbook window to an icon. Also restores ('un-maximizes') all workbook windows."]
["Ctrl+F10","Maximize or restores the selected workbook window."]
["Ctrl+F7","Move Workbook Windows which are not maximized."]
["Ctrl+F8","Perform size command for workbook windows which are not maximzed."]
["Alt+F4","Close Excel."]
[]
["▲ up"]
[]
["8. Various Excel Features"]
["Ctrl+o","Open File."]
["Ctrl+s","Save the active file with its current file name, location, and file format."]
["F12","Display the Save As dialog box."]
["f10 (or alt)","Turn key tips on or off."]
["Ctrl+p","Print File (Opens print menu)."]
["F1","Display the Excel Help task pane."]
["F7","Display the Spelling dialog box."]
["Shift+F7","Display the Thesaurus dialog box."]
["Alt+F8","Display the Macro dialog box."]
["Alt+F11","Open the Visual Basic Editor to create Macros."]
[]
["▲ up"]
[]
["9. Work with the Excel Ribbon"]
["Ctrl+F1","Minimize or restore the Ribbon.s"]
["Alt/F10","Select the active tab of the Ribbon and activate the access keys. Press either of these keys again to move back to the document and cancel the access keys. and then arrow left or arrow right"]
["Shift+F10","Display the shortcut menu for the selected command."]
["Space/Enter","Activate the selected command or control in the Ribbon, Open the selected menu or gallery in the Ribbon.."]
["Enter","Finish modifying a value in a control in the Ribbon, and move focus back to the document."]
["F1","Get help on the selected command or control in the Ribbon. (If no Help topic is associated with the selected command, the Help table of contents for that program is shown instead.)"]
[]
["▲ up"]
[]
["10. Data Forms"]
["Tab/Shift+Tab","Move to the next / previous field which can be edited."]
["Enter/Shift+Enter","Move to the first field in the next / previous record."]
["Page Down/Page Up","Move to the same field 10 records forward / back."]
["Ctrl+Page Down","Move to a new record."]
["Ctrl+Page Up","Move to the first record."]
["Home/End","Move to the beginning / end of a field."]
[]
["▲ up"]
[]
["11. Pivot Tables"]
["Arrow Keys","Navigate inside Pivot tables."]
["Home/End","Select the first / last visible item in the list."]
["Alt+c","Move the selected field into the Column area."]
["Alt+d","Move the selected field into the Data area."]
["Alt+l","Display the PivotTable Field dialog box."]
["Alt+p","Move the selected field into the Page area."]
["Alt+r","Move the selected field into the Row area."]
["Ctrl+Shift+* (asterisk)","Select the entire PivotTable report."]
["arrow keys to select the cell that contains the field, and then alt+Arrow Down","Display the list for the current field in a PivotTable report."]
["arrow keys to select the page field in a PivotChart report, and then alt+Arrow Down","Display the list for the current page field in a PivotChart report."]
["Enter","Display the selected item."]
["Space","Select or clear a check box in the list."]
["Ctrl+tab ctrl+Shift+Tab","select the PivotTable toolbar."]
["enter then arrow down /Arrow Up","On a field button: select the area you want to move the selected field to."]
["Alt+Shift+Arrow Right","Group selected PivotTable items."]
["Alt+Shift+Arrow Left","Ungroup selected PivotTable items."]
[]
["▲ up"]
[]
["12. The Rest"]
["Dialog Boxes"]
["Arrow Keys","Move between options in the active drop-down list box or between some options in a group of options."]
["Ctrl+Tab/Ctrl+Shift+Tab","Switch to the next/ previous tab in dialog box."]
["Space","In a dialog box: perform the action for the selected button, or select/clear a check box."]
["Tab/Shift+Tab","Move to the next / previous option."]
["a ... z","Move to an option in a drop-down list box starting with the letter"]
["Alt+a ... alt+z","Select an option, or select or clear a check box."]
["Alt+Arrow Down","Open the selected drop-down list box."]
["Enter","Perform the action assigned to the default command button in the dialog box."]
["Esc","Cancel the command and close the dialog box."]
["Auto Filter"]
["Alt+Arrow Down","On the field with column head, display the AutoFilter list for the current column ."]
["Arrow Down/Arrow Up","Select the next item / previous item in the AutoFilter list."]
["Alt+Arrow Up","Close the AutoFilter list for the current column."]
["Home/End","Select the first item / last item in the AutoFilter list."]
["Enter","Filter the list by using the selected item in the AutoFilter list."]
["Work with Smart Art Graphics"]
["Arrow Keys","Select elements."]
["Esc","Remove Focus from Selection."]
["F2","Edit Selection Text in if possible (in formula bar)."]
[]
[]
[]
[]
[]
[]
[]
[]
[]
[]
[]
[]
["http://www.shortcutworld.com/en/win/Excel_2010.html"]
[]
["1. Navigate Inside Worksheets"]
["Arrow Keys","Move one cell up, down, left, or right in a worksheet."]
["Page Down/Page Up","Move one screen down / one screen up in a worksheet."]
["Alt+Page Down/Alt+Page Up","Move one screen to the right / to the left in a worksheet."]
["Tab/Shift+Tab","Move one cell to the right / to the left in a worksheet."]
["Ctrl+Arrow Keys","Move to the edge of next data region (cells that contains data)"]
["Home","Move to the beginning of a row in a worksheet."]
["Ctrl+Home","Move to the beginning of a worksheet."]
["Ctrl+End","Move to the last cell with content on a worksheet."]
["Ctrl+f","Display the Find and Replace dialog box (with Find selected)."]
["Ctrl+h","Display the Find and Replace dialog box (with Replace selected)."]
["Shift+F4","Repeat last find."]
["Ctrl+g (or f5)","Display the 'Go To' dialog box."]
["Ctrl+Arrow Left/Ctrl+Arrow Right","Inside a cell: Move one word to the left / to the right."]
["Home/End","Inside a cell: Move to the beginning / to the end of a cell entry."]
["Alt+Arrow Down","Display the AutoComplete list e.g. in cell with dropdowns or autofilter."]
["End","Turn 'End' mode on. In End mode, press arrow keys to move to the next nonblank cell in the same column or row as the active cell. From here use arrow keys to move by blocks of data, home to move to last cell, or enter to move to the last cell to the right."]
[]
["▲ up"]
[]
[]
["2. Work with Data Selections"]
["Select Cells"]
["Shift+Space","Select the entire row."]
["Ctrl+Space","Select the entire column."]
["Ctrl+Shift+* (asterisk)","Select the current region around the active cell."]
["Ctrl+a (or ctrl+Shift+spacebar)","Select the entire worksheet or the data-containing area. Pressing ctrl+a a second time then selects entire worksheet."]
["Ctrl+Shift+Page Up","Select the current and previous sheet in a workbook."]
["Ctrl+Shift+o","Select all cells with comments."]
["Shift+Arrow Keys","Extend the selection by one cell."]
["Ctrl+Shift+Arrow Key","Extend the selection to the last cell with content in row or column."]
["Shift+Page Down/Shift+Page Up","Extend the selection down one screen /up one screen."]
["Shift+Home","Extend the selection to the beginning of the row."]
["Ctrl+Shift+Home","Extend the selection to the beginning of the worksheet."]
["Ctrl+Shift+End","Extend the selection to the last used cell on the worksheet (lower-right corner)."]
["Manage Active Selections"]
["F8","Turn on extension of selection with arrow keys without having to keep pressing shift."]
["Shift+F8","Add another (adjacent or non-adjacent) range of cells to the selection. Use arrow keys and shift+arrow keys to add to selection."]
["Shift+Backspace","Select only the active cell when multiple cells are selected."]
["Ctrl+Backspace","Show active cell within selection."]
["Ctrl+. (period)","Move clockwise to the next corner of the selection."]
["Enter/Shift+Enter","Move active cell down / up in a selection."]
["Tab/Shift+Tab","Move active cell right / left in a selection."]
["Ctrl+Alt+Arrow Right/Ctrl+Alt+Arrow Left","Move to the right / to the left between non-adjacent selections (with multiple ranges selected)."]
["Esc","Cancel Selection."]
["Select inside cells"]
["Shift+Arrow Left/Shift+Arrow Right","Select or unselect one character to the left / to the right."]
["Ctrl+Shift+Arrow Left/Ctrl+Shift+Arrow Right","Select or unselect one word to the left / to the right."]
["Shift+Home/Shift+End","Select from the insertion point to the beginning / to the end of the cell."]
[]
["▲ up"]
[]
[]
["3. Insert and Edit Data"]
["Undo / Redo Shortcuts"]
["Ctrl+z","Undo last action (multiple levels)."]
["Ctrl+y","Redo last action (multiple levels)."]
["Work with Clipboard"]
["Ctrl+c","Copy contents of selected cells."]
["Ctrl+x","Cut contents of selected cells."]
["Ctrl+v","Paste content from clipboard into selected cell."]
["Ctrl+Alt+v","If data exists in clipboard: Display the Paste Special dialog box."]
["Ctrl+Shift+[+]","If data exists in clipboard: Display the Insert dialog box to insert blank cells."]
["Edit Inside Cells"]
["F2","Edit the active cell with cursor at end of the line."]
["Alt+Enter","Start a new line in the same cell."]
["Enter","Complete a cell entry and move down in the selection. With multiple cells selected: fill cell range with current cell."]
["Shift+Enter","Complete a cell entry and move up in the selection."]
["Tab/Shift+Tab","Complete a cell entry and move to the right / to the left in the selection."]
["Esc","Cancel a cell entry."]
["Backspace","Delete the character to the left of the insertion point, or delete the selection."]
["Delete","Delete the character to the right of the insertion point, or delete the selection."]
["Ctrl+Delete","Delete text to the end of the line."]
["Ctrl+; (semicolon)","Insert current date."]
["Ctrl+Shift+: (colon)","Insert current time."]
["Edit Active or Selected Cells"]
["Ctrl+d","Fill complete cell down (Copy above cell)."]
["Ctrl+r","Fill complete cell to the right (Copy cell from the left)."]
["Ctrl+\"","Fill cell values down and edit (Copy above cell values)."]
["Ctrl+' (apostrophe)","Fill cell formulas down and edit (Copy above cell formulas)."]
["Ctrl+l","Insert a table (display Create Table dialog box)."]
["Ctrl+-","Delete Cell/Row/Column Menu"]
["Ctrl+- with row / column selected","Delete row / delete column."]
["Ctrl+Shift++","Insert Cell/Row/Column Menu"]
["Ctrl+Shift++ with row / column selected","Insert row/ insert column."]
["Shift+F2","Insert / Edit a cell comment."]
["Shift+f10, then m","Delete comment."]
["Alt+F1","Create and insert chart with data in current range as embedded Chart Object."]
["F11","Create and insert chart with data in current range in a separate Chart sheet."]
["Ctrl+k","Insert a hyperlink."]
["enter (in a cell with a hyperlink)","Activate a hyperlink."]
["Hide and Show Elements"]
["Ctrl+9","Hide the selected rows."]
["Ctrl+Shift+9","Unhide any hidden rows within the selection."]
["Ctrl+0 (zero)","Hide the selected columns."]
["Ctrl+Shift+0 (zero)","Unhide any hidden columns within the selection*."]
["Ctrl+` (grave accent)","Alternate between displaying cell values and displaying cell formulas. Accent grave /not a quotation mark."]
["Alt+Shift+Arrow Right","Group rows or columns."]
["Alt+Shift+Arrow Left","Ungroup rows or columns."]
["Ctrl+6","Alternate between hiding and displaying objects."]
["Ctrl+8","Display or hides the outline symbols."]
["Ctrl+6","Alternate between hiding objects, displaying objects, and displaying placeholders for objects."]
["*Does not seem to work anymore in Excel 2010. Detailed explanation here: http://superuser.com/questions/183197/whats-the-keyboard-shortcut-to-unhide-a-column-in-excel-2010 why."]
["Adjust Column Width and Row Height"]
["Note: there are no default shortcuts for this, but workaround through access keys from previous versions"]
["Alt+o, ca","Adjust Column width to fit content. Select complete column with Ctrl+Space first, otherwise column adjusts to content of current cell). Remember Format, Column Adjust."]
["Alt+o, cw","Adjust Columns width to specific value: Option, Cow, width"]
["Alt+o, ra","Adjust Row height to fit content: Option, Row, Adjust"]
["Alt+o, re","Adjust Row height to specific value: Option, Row, Height"]
[]
["▲ up"]
[]
[]
["4. Format Data"]
["Format Cells"]
["Ctrl+1","Format cells dialog."]
["Ctrl+b (or ctrl+2)","Apply or remove bold formatting."]
["Ctrl+i (or ctrl+3)","Apply or remove italic formatting."]
["Ctrl+u (or ctrl+4)","Apply or remove an underline."]
["Ctrl+5","Apply or remove strikethrough formatting."]
["Ctrl+Shift+f","Display the Format Cells with Fonts Tab active. Press tab 3x to get to font-size. Used to be ctrl+shift+p, but that seems just get to the Font Tab in 2010."]
["Alt+' (apostrophe / single quote)","Display the Style dialog box."]
["Number Formats"]
["Ctrl+Shift+$","Apply the Currency format with two decimal places."]
["Ctrl+Shift+~","Apply the General number format."]
["Ctrl+Shift+%","Apply the Percentage format with no decimal places."]
["Ctrl+Shift+#","Apply the Date format with the day, month, and year."]
["Ctrl+Shift+@","Apply the Time format with the hour and minute, and indicate A.M. or P.M."]
["Ctrl+Shift+!","Apply the Number format with two decimal places, thousands separator, and minus sign (-) for negative values."]
["Ctrl+Shift+^","Apply the Scientific number format with two decimal places."]
["F4","Repeat last formatting action: Apply previously applied Cell Formatting to a different Cell"]
["Apply Borders to Cells"]
["Ctrl+Shift+&","Apply outline border from cell or selection"]
["Ctrl+Shift+_ (underscore)","Remove outline borders from cell or selection"]
["Ctrl+1, then Ctrl+Arrow Right/Arrow Left","Access border menu in 'Format Cell' dialog. Once border was selected, it will show up directly on the next Ctrl+1"]
["Alt+t*","Set top border"]
["Alt+b*","Set bottom Border"]
["Alt+l*","Set left Border"]
["Alt+r*","Set right Border"]
["Alt+d*","Set diagonal and down border"]
["Alt+u*","Set diagonal and up border"]
["*In Cell Format in 'Border' Dialog Window"]
["Align Cells"]
["Alt+h, ar","Align Right"]
["Alt+h, ac","Align Center"]
["Alt+h, al","Align Left"]
[]
["▲ up"]
[]
[]
["5. Formulas and Names"]
["Formulas"]
["=","Start a formula."]
["Alt+=","Insert the AutoSum formula."]
["Shift+F3","Display the Insert Function dialog box."]
["Ctrl+a","Display Formula Window after typing formula name."]
["Ctrl+Shift+a","Insert Arguments in formula after typing formula name. ."]
["Shift+F3","Insert a function into a formula ."]
["Ctrl+Shift+Enter","Enter a formula as an array formula."]
["F4","After typing cell reference (e.g. =E3) makes reference absolute (=$E$4)"]
["F9","Calculate all worksheets in all open workbooks."]
["Shift+F9","Calculate the active worksheet."]
["Ctrl+Alt+F9","Calculate all worksheets in all open workbooks, regardless of whether they have changed since the last calculation."]
["Ctrl+Alt+Shift+F9","Recheck dependent formulas, and then calculates all cells in all open workbooks, including cells not marked as needing to be calculated."]
["Ctrl+Shift+u","Toggle expand or collapse formula bar."]
["Ctrl+`","Toggle Show formula in cell instead of values"]
["Names"]
["Ctrl+F3","Define a name or dialog."]
["Ctrl+Shift+F3","Create names from row and column labels."]
["F3","Paste a defined name into a formula."]
[]
["▲ up"]
[]
[]
["6. Manage Multipe Worksheets"]
["Shortcuts to delete, rename, or move worksheets are based on the old Excel 2003 menus which still work in Excel 2010."]
["Shift+F11/Alt+Shift+F1","Insert a new worksheet in current workbook."]
["Ctrl+Page Down/Ctrl+Page Up","Move to the next / previous worksheet in current workbook."]
["Shift+Ctrl+Page Down/Shift+Ctrl+Page Up","Select the current and next sheet(s) / select and previous sheet(s)."]
["Alt+o then h r","Rename current worksheet (format, sheet, rename)"]
["Alt+e then l","Delete current worksheet (Edit, delete)"]
["Alt+e then m","Move current worksheet (Edit, move)"]
[]
["▲ up"]
[]
[]
["7. Manage Multiple Workbooks"]
["F6/Shift+F6","Move to the next pane / previous pane in a workbook that has been split."]
["Ctrl+F4","Close the selected workbook window."]
["Ctrl+n","Create a new blank workbook (Excel File)"]
["Ctrl+Tab/Ctrl+Shift+Tab","Move to next / previous workbook window."]
["Alt+Space","Display the Control menu for Main Excel window."]
["Ctrl+F9","Minimize current workbook window to an icon. Also restores ('un-maximizes') all workbook windows."]
["Ctrl+F10","Maximize or restores the selected workbook window."]
["Ctrl+F7","Move Workbook Windows which are not maximized."]
["Ctrl+F8","Perform size command for workbook windows which are not maximzed."]
["Alt+F4","Close Excel."]
[]
["▲ up"]
[]
[]
["8. Various Excel Features"]
["Ctrl+o","Open File."]
["Ctrl+s","Save the active file with its current file name, location, and file format."]
["F12","Display the Save As dialog box."]
["f10 (or alt)","Turn key tips on or off."]
["Ctrl+p","Print File (Opens print menu)."]
["F1","Display the Excel Help task pane."]
["F7","Display the Spelling dialog box."]
["Shift+F7","Display the Thesaurus dialog box."]
["Alt+F8","Display the Macro dialog box."]
["Alt+F11","Open the Visual Basic Editor to create Macros."]
[]
["▲ up"]
[]
[]
["9. Work with the Excel Ribbon"]
["Ctrl+F1","Minimize or restore the Ribbon.s"]
["Alt/F10","Select the active tab of the Ribbon and activate the access keys. Press either of these keys again to move back to the document and cancel the access keys. and then arrow left or arrow right"]
["Shift+F10","Display the shortcut menu for the selected command."]
["Space/Enter","Activate the selected command or control in the Ribbon, Open the selected menu or gallery in the Ribbon.."]
["Enter","Finish modifying a value in a control in the Ribbon, and move focus back to the document."]
["F1","Get help on the selected command or control in the Ribbon. (If no Help topic is associated with the selected command, the Help table of contents for that program is shown instead.)"]
[]
["▲ up"]
[]
[]
["10. Data Forms"]
["Tab/Shift+Tab","Move to the next / previous field which can be edited."]
["Enter/Shift+Enter","Move to the first field in the next / previous record."]
["Page Down/Page Up","Move to the same field 10 records forward / back."]
["Ctrl+Page Down","Move to a new record."]
["Ctrl+Page Up","Move to the first record."]
["Home/End","Move to the beginning / end of a field."]
[]
["▲ up"]
[]
[]
["11. Pivot Tables"]
["Arrow Keys","Navigate inside Pivot tables."]
["Home/End","Select the first / last visible item in the list."]
["Alt+c","Move the selected field into the Column area."]
["Alt+d","Move the selected field into the Data area."]
["Alt+l","Display the PivotTable Field dialog box."]
["Alt+p","Move the selected field into the Page area."]
["Alt+r","Move the selected field into the Row area."]
["Ctrl+Shift+* (asterisk)","Select the entire PivotTable report."]
["arrow keys to select the cell that contains the field, and then alt+Arrow Down","Display the list for the current field in a PivotTable report."]
["arrow keys to select the page field in a PivotChart report, and then alt+Arrow Down","Display the list for the current page field in a PivotChart report."]
["Enter","Display the selected item."]
["Space","Select or clear a check box in the list."]
["Ctrl+tab ctrl+Shift+Tab","select the PivotTable toolbar."]
["enter then arrow down /Arrow Up","On a field button: select the area you want to move the selected field to."]
["Alt+Shift+Arrow Right","Group selected PivotTable items."]
["Alt+Shift+Arrow Left","Ungroup selected PivotTable items."]
[]
["▲ up"]
[]
[]
["12. The Rest"]
["Dialog Boxes"]
["Arrow Keys","Move between options in the active drop-down list box or between some options in a group of options."]
["Ctrl+Tab/Ctrl+Shift+Tab","Switch to the next/ previous tab in dialog box."]
["Space","In a dialog box: perform the action for the selected button, or select/clear a check box."]
["Tab/Shift+Tab","Move to the next / previous option."]
["a ... z","Move to an option in a drop-down list box starting with the letter"]
["Alt+a ... alt+z","Select an option, or select or clear a check box."]
["Alt+Arrow Down","Open the selected drop-down list box."]
["Enter","Perform the action assigned to the default command button in the dialog box."]
["Esc","Cancel the command and close the dialog box."]
["Auto Filter"]
["Alt+Arrow Down","On the field with column head, display the AutoFilter list for the current column ."]
["Arrow Down/Arrow Up","Select the next item / previous item in the AutoFilter list."]
["Alt+Arrow Up","Close the AutoFilter list for the current column."]
["Home/End","Select the first item / last item in the AutoFilter list."]
["Enter","Filter the list by using the selected item in the AutoFilter list."]
["Ctrl + Shift + L","Apply filter on selected column headings."]
["Work with Smart Art Graphics"]
["Arrow Keys","Select elements."]
["Esc","Remove Focus from Selection."]
["F2","Edit Selection Text in if possible (in formula bar)."]